Workbook

Sheet Ejecución presupuestal (hidden)
B1: Año 1 Trimestre 1
A2: Concepto | B2: Plan | C2: Análisis vertical plan | D2: Ejecución | E2: Análisis vertical real | F2: Diferencia | G2: % Ejecución | H2: Comentarios
A3: Ventas | B3: =SUM('Proyección ventas'!$B$82:$D$82) -> 85500000 | C3: 1 | D3: 0 | E3: 1 | F3: =+D3-B3 -> -85500000 | G3: =IFERROR(D3/B3,"N/A") -> 0 | H3: =IF(F3>=0,CONCATENATE(I3,J3,K3),CONCATENATE(L3,M3,K3,N3)) -> La ejecución presupuestal de ventas está por debajo en $86MM. Por favor revise las razones del no cumplimiento de la meta. | I3: La ejecución presupuestal de ventas está por encima en $ | J3: =ROUND((F3/1000000),0) -> -86 | K3: MM. | L3: La ejecución presupuestal de ventas está por debajo en $ | M3: =-J3 -> 86 | N3: Por favor revise las razones del no cumplimiento de la meta.
A4: Costos variables | B4: =SUM('costos y gastos'!$B$102:$D$102) -> 24000000 | C4: =IFERROR(B4/$B$3,0) -> 0.2807017544 | D4: 0 | E4: =IFERROR(D4/$D$3,0) -> 0 | F4: =+D4-B4 -> -24000000 | G4: =IFERROR(D4/B4,"N/A") -> 0 | H4: =IF(F4>=0,CONCATENATE(I4,J4,K4,N4),CONCATENATE(L4,M4,K4,N4)) -> La ejecución presupuestal del costo ventas está por debajo en $24MM. Por favor revise en detalla la razón de la distorsión. | I4: La ejecución presupuestal de los costos de ventas está por encima en $ | J4: -24 | K4: MM. | L4: La ejecución presupuestal del costo ventas está por debajo en $ | M4: 24 | N4: Por favor revise en detalla la razón de la distorsión.
A5: Costos fijos de producción | B5: =SUM('costos y gastos'!$B$35:$D$35) -> 27600000 | C5: =IFERROR(B5/$B$3,0) -> 0.3228070175 | D5: 0 | E5: =IFERROR(D5/$D$3,0) -> 0 | F5: -27600000 | G5: 0 | H5: =IF(F5>=0,CONCATENATE(I5,J5,K5,N5),CONCATENATE(L5,M5,K5,N5)) -> La ejecución presupuestal del costo fijos de producción está por debajo en $28MM. Por favor revise en detalla la razón de la distorsión. | I5: La ejecución presupuestal de los costos fijos de producción está por encima en $ | J5: -28 | K5: MM. | L5: La ejecución presupuestal del costo fijos de producción está por debajo en $ | M5: 28 | N5: Por favor revise en detalla la razón de la distorsión.
A6: Nómina de producción | B6: =SUM(#REF!)+SUM(#REF!) ->  | C6: 0 | D6: 0 | E6: 0 | G6: N/A | H6: =IF(F6>=0,CONCATENATE(I6,J6,K6,N6),CONCATENATE(L6,M6,K6,N6)) ->  | I6: La ejecución presupuestal de la nómina de producción está por encima en $ | K6: MM. | L6: La ejecución presupuestal de la nómina de producción está por debajo en $ | N6: Por favor revise en detalla la razón de la distorsión.
A7: Depreciación de producción | B7: =+ER_BG!$C$11/4 -> 0 | C7: 0 | D7: 0 | E7: 0 | F7: 0 | G7: N/A | H7: =IF(F7>=0,CONCATENATE(I7,J7,K7,N7),CONCATENATE(L7,M7,K7,N7)) -> La ejecución presupuestal de la depreciación de producción está por encima en $0MM. Por favor revise en detalla la razón de la distorsión. | I7: La ejecución presupuestal de la depreciación de producción está por encima en $ | J7: 0 | K7: MM. | L7: La ejecución presupuestal de la depreciación de producción está por debajo en $ | M7: 0 | N7: Por favor revise en detalla la razón de la distorsión.
A8: Utiilidad bruta | B8: =+B3-B4-B5-B6-B7 ->  | C8: 0 | D8: =+D3-D4-D5-D6-D7 -> 0 | E8: 0 | G8: N/A | H8: =IF(F8>=0,CONCATENATE(I8,"$",J8,K8, "frente a lo presupuestado."),CONCATENATE(L8,"$",M8,K8,N8, "frente a lo presupuestado.")) ->  | I8: Teniendo en cuenta el comportamiento de las anteriores variables la utilidad bruta subió en | K8: MM | L8: Teniendo en cuenta el comportamiento de las anteriores variables la utilidad bruta disminuyó en
A9: Gastos de administración | B9: =SUM('costos y gastos'!$B$56:$D$56) -> 16000000 | C9: 0.1871345029 | D9: 0 | E9: 0 | F9: -16000000 | G9: 0 | H9: =IF(F9>=0,CONCATENATE(I9,J9,K9,N9),CONCATENATE(L9,M9,K9,N9)) -> La ejecución presupuestal de los gastos de administración está por debajo en $16MM. Por favor revise en detalla la razón de la distorsión. | I9: La ejecución presupuestal de los gastos de administración está por encima en $ | J9: -16 | K9: MM. | L9: La ejecución presupuestal de los gastos de administración está por debajo en $ | M9: 16 | N9: Por favor revise en detalla la razón de la distorsión.
A10: Nómina de administración | B10: =SUM(#REF!)+SUM(#REF!) ->  | C10: 0 | D10: 0 | E10: 0 | G10: N/A | I10: La ejecución presupuestal de la nómina de administración está por encima en $ | K10: MM. | L10: La ejecución presupuestal de la nómina de administración está por debajo en $ | N10: Por favor revise en detalla la razón de la distorsión.
A11: Depreciación de administración | B11: =+ER_BG!$C$15/4 -> 4450000 | C11: 0.05204678363 | D11: 0 | E11: 0 | F11: -4450000 | G11: 0 | H11: La ejecución presupuestal de la depreciación de administración está por debajo en $4MM. Por favor revise en detalla la razón de la distorsión. | I11: La ejecución presupuestal de la depreciación de administración está por encima en $ | J11: -4 | K11: MM. | L11: La ejecución presupuestal de la depreciación de administración está por debajo en $ | M11: 4 | N11: Por favor revise en detalla la razón de la distorsión.
A12: Gastos de ventas | B12: =SUM('costos y gastos'!$B$77:$D$77) -> 15000000 | C12: 0.1754385965 | D12: 0 | E12: 0 | F12: -15000000 | G12: 0 | H12: La ejecución presupuestal de los gastos de ventas está por debajo en $15MM. Por favor revise en detalla la razón de la distorsión. | I12: La ejecución presupuestal de los gastos de ventas está por encima en $ | J12: -15 | K12: MM. | L12: La ejecución presupuestal de los gastos de ventas está por debajo en $ | M12: 15 | N12: Por favor revise en detalla la razón de la distorsión.
A13: Nómina de ventas | B13: =SUM(#REF!)+SUM(#REF!) ->  | C13: 0 | D13: 0 | E13: 0 | G13: N/A | I13: La ejecución presupuestal de la nómina de ventas está por encima en $ | K13: MM. | L13: La ejecución presupuestal de la nómina de ventas está por debajo en $ | N13: Por favor revise en detalla la razón de la distorsión.
A14: Comisión de ventas | B14: =SUM('costos y gastos'!$B$128:$D$128) -> 0 | C14: 0 | D14: 0 | E14: 0 | F14: 0 | G14: N/A | H14: La ejecución presupuestal de las comisiones de ventas está por encima en $0MM. Por favor revise en detalla la razón de la distorsión. | I14: La ejecución presupuestal de las comisiones de ventas está por encima en $ | J14: 0 | K14: MM. | L14: La ejecución presupuestal de las comisiones de ventas está por debajo en $ | M14: 0 | N14: Por favor revise en detalla la razón de la distorsión.
A15: Depreciación de ventas | B15: =+ER_BG!$C$19/4 -> 0 | C15: 0 | D15: 0 | E15: 0 | F15: 0 | G15: N/A | H15: La ejecución presupuestal de la depreciación de ventas está por encima en $0MM. Por favor revise en detalla la razón de la distorsión. | I15: La ejecución presupuestal de la depreciación de ventas está por encima en $ | J15: 0 | K15: MM. | L15: La ejecución presupuestal de la depreciación de ventas está por debajo en $ | M15: 0 | N15: Por favor revise en detalla la razón de la distorsión.
A16: Utilidad operacional | B16: =+B8-B9-B10-B11-B12-B13-B15-B14 ->  | C16: 0 | D16: =+D8-D9-D10-D11-D12-D13-D15-D14 -> 0 | E16: 0 | G16: N/A | H16: =IF(F16>=0,CONCATENATE(I16,"$",J16,K16, "frente a lo presupuestado."),CONCATENATE(L16,"$",M16,K16,N16, "frente a lo presupuestado.")) ->  | I16: Teniendo en cuenta el comportamiento de las anteriores variables la utilidad operacional subió en | K16: MM | L16: Teniendo en cuenta el comportamiento de las anteriores variables la utilidad operacional disminuyó en
A17: Gastos Financieros | B17: =SUM(Inversiones!$TA$64:$TC$64)+SUM(Inversiones!$TA$86:$TC$86)+SUM(Inversiones!$TA$93:$TC$93) -> 0 | C17: 0 | D17: 0 | E17: 0 | F17: 0 | G17: N/A | H17: =IF(F17>=0,CONCATENATE(I17,J17,K17,N17),CONCATENATE(L17,M17,K17,N17)) -> La ejecución presupuestal de los gastos financieros está por encima en $0MM. Por favor revise en detalla la razón de la distorsión. | I17: La ejecución presupuestal de los gastos financieros está por encima en $ | J17: 0 | K17: MM. | L17: La ejecución presupuestal de los gastos financieros está por debajo en $ | M17: 0 | N17: Por favor revise en detalla la razón de la distorsión.
A18: Utilidad antes de impuestos | B18: =+B16-B17 ->  | C18: 0 | D18: =+D16-D17 -> 0 | E18: 0 | G18: N/A | H18: =IF(F18>=0,CONCATENATE(I18,"$",J18,K18, "frente a lo presupuestado."),CONCATENATE(L18,"$",M18,K18,N18, "frente a lo presupuestado.")) ->  | I18: Teniendo en cuenta el comportamiento de las anteriores variables la utilidad antes de impuestos subió en | K18: MM | L18: Teniendo en cuenta el comportamiento de las anteriores variables la utilidad antes de impuestos disminuyó en
A19: Impuesto de Renta | B19: =IF(B18<=0,0,B18*Datos!$C$17) ->  | C19: 0 | D19: 0 | E19: 0 | G19: N/A | H19: =IF(F19>=0,CONCATENATE(I19,J19,K19,N19),CONCATENATE(L19,M19,K19,N19)) ->  | I19: La ejecución presupuestal del impuesto de renta está por encima en $ | K19: MM. | L19: La ejecución presupuestal del impuesto de renta está por debajo en $ | N19: Por favor revise en detalla la razón de la distorsión.
A20: Impuesto CREE | B20: =IF(B18<=0,0,(B18*Datos!$C$18)) ->  | C20: 0 | D20: 0 | E20: 0 | G20: N/A | H20: =IF(F20>=0,CONCATENATE(I20,J20,K20,N20),CONCATENATE(L20,M20,K20,N20)) ->  | I20: La ejecución presupuestal del impuesto CREE está por encima en $ | K20: MM. | L20: La ejecución presupuestal del impuesto CREE está por debajo en $ | N20: Por favor revise en detalla la razón de la distorsión.
A21: Utilidad neta | B21: =+B18-B19-B20 ->  | C21: 0 | D21: =+D18-D19-D20 -> 0 | E21: 0 | G21: N/A | H21: =IF(F21>=0,CONCATENATE(I21,"$",J21,K21, "frente a lo presupuestado."),CONCATENATE(L21,"$",M21,K21,N21, "frente a lo presupuestado.")) ->  | I21: Teniendo en cuenta el comportamiento de las anteriores variables la utilidad neta subió en | K21: MM | L21: Teniendo en cuenta el comportamiento de las anteriores variables la utilidad neta disminuyó en
E24: Margen bruto | H24: =IF(E8>C8,CONCATENATE(I24,J24,"%, frente a lo presupuestado"),CONCATENATE(L24,-J24,"%, frente a lo presupuestado")) -> Teniendo en cuenta el comportamiento de las variables arriba expuestas el margen bruto disminuyó en 0%, frente a lo presupuestado | I24: Teniendo en cuenta el comportamiento de las variables arriba expuestas el margen bruto subió en | J24: =ROUND((E8-C8),4)*100 -> 0 | L24: Teniendo en cuenta el comportamiento de las variables arriba expuestas el margen bruto disminuyó en | M24: =-J24 -> 0
E25: Margen operacional | H25: =IF(E16>C16,CONCATENATE(I25,J25,"%, frente a lo presupuestado"),CONCATENATE(L25,-J25,"%, frente a lo presupuestado")) -> Teniendo en cuenta el comportamiento de las variables arriba expuestas el margen operacional disminuyó en 0%, frente a lo presupuestado | I25: Teniendo en cuenta el comportamiento de las variables arriba expuestas el margen operacional subió en | J25: =ROUND((E16-C16),4)*100 -> 0 | L25: Teniendo en cuenta el comportamiento de las variables arriba expuestas el margen operacional disminuyó en | M25: =-J25 -> 0
E26: Margen neto | H26: =IF(E21>C21,CONCATENATE(I26,J26,"%, frente a lo presupuestado"),CONCATENATE(L26,-J26,"%, frente a lo presupuestado")) -> Teniendo en cuenta el comportamiento de las variables arriba expuestas el margen neto disminuyó en 0%, frente a lo presupuestado | I26: Teniendo en cuenta el comportamiento de las variables arriba expuestas el margen neto subió en | J26: =ROUND((E21-C21),4)*100 -> 0 | L26: Teniendo en cuenta el comportamiento de las variables arriba expuestas el margen neto disminuyó en | M26: =-J26 -> 0
B32: Año 1 Semestre 1
A33: Concepto | B33: Plan | C33: Análisis vertical plan | D33: Ejecución | E33: Análisis vertical real | F33: Diferencia | G33: % Ejecución | H33: Comentarios
A34: Ventas | B34: =SUM('Proyección ventas'!$B$82:$G$82) -> 171000000 | C34: 1 | D34: 0 | E34: 1 | F34: =+D34-B34 -> -171000000 | G34: =IFERROR(D34/B34,"N/A") -> 0 | H34: =IF(F34>=0,CONCATENATE(I34,J34,K34),CONCATENATE(L34,M34,K34,N34)) -> La ejecución presupuestal de ventas está por debajo en $171MM. Por favor revise las razones del no cumplimiento de la meta. | I34: La ejecución presupuestal de ventas está por encima en $ | J34: =ROUND((F34/1000000),0) -> -171 | K34: MM. | L34: La ejecución presupuestal de ventas está por debajo en $ | M34: =-J34 -> 171 | N34: Por favor revise las razones del no cumplimiento de la meta.
A35: Costos variables | B35: =SUM('costos y gastos'!$B$102:$G$102) -> 48000000 | C35: =IFERROR(B35/$B$34,0) -> 0.2807017544 | D35: 0 | E35: =IFERROR(D35/$D$34,0) -> 0 | F35: =+D35-B35 -> -48000000 | G35: =IFERROR(D35/B35,"N/A") -> 0 | H35: =IF(F35>=0,CONCATENATE(I35,J35,K35,N35),CONCATENATE(L35,M35,K35,N35)) -> La ejecución presupuestal del costo ventas está por debajo en $48MM. Por favor revise en detalla la razón de la distorsión. | I35: La ejecución presupuestal de los costos de ventas está por encima en $ | J35: -48 | K35: MM. | L35: La ejecución presupuestal del costo ventas está por debajo en $ | M35: 48 | N35: Por favor revise en detalla la razón de la distorsión.
A36: Costos fijos de producción | B36: =SUM('costos y gastos'!$B$35:$G$35) -> 55200000 | C36: =IFERROR(B36/$B$34,0) -> 0.3228070175 | D36: 0 | E36: =IFERROR(D36/$D$34,0) -> 0 | F36: -55200000 | G36: 0 | H36: =IF(F36>=0,CONCATENATE(I36,J36,K36,N36),CONCATENATE(L36,M36,K36,N36)) -> La ejecución presupuestal del costo fijos de producción está por debajo en $55MM. Por favor revise en detalla la razón de la distorsión. | I36: La ejecución presupuestal de los costos fijos de producción está por encima en $ | J36: -55 | K36: MM. | L36: La ejecución presupuestal del costo fijos de producción está por debajo en $ | M36: 55 | N36: Por favor revise en detalla la razón de la distorsión.
A37: Nómina de producción | B37: =SUM(#REF!)+SUM(#REF!) ->  | C37: 0 | D37: 0 | E37: 0 | G37: N/A | H37: =IF(F37>=0,CONCATENATE(I37,J37,K37,N37),CONCATENATE(L37,M37,K37,N37)) ->  | I37: La ejecución presupuestal de la nómina de producción está por encima en $ | K37: MM. | L37: La ejecución presupuestal de la nómina de producción está por debajo en $ | N37: Por favor revise en detalla la razón de la distorsión.
A38: Depreciación de producción | B38: =+ER_BG!$C$11/2 -> 0 | C38: 0 | D38: 0 | E38: 0 | F38: 0 | G38: N/A | H38: =IF(F38>=0,CONCATENATE(I38,J38,K38,N38),CONCATENATE(L38,M38,K38,N38)) -> La ejecución presupuestal de la depreciación de producción está por encima en $0MM. Por favor revise en detalla la razón de la distorsión. | I38: La ejecución presupuestal de la depreciación de producción está por encima en $ | J38: 0 | K38: MM. | L38: La ejecución presupuestal de la depreciación de producción está por debajo en $ | M38: 0 | N38: Por favor revise en detalla la razón de la distorsión.
A39: Utiilidad bruta | B39: =+B34-B35-B36-B37-B38 ->  | C39: 0 | D39: =+D34-D35-D36-D37-D38 -> 0 | E39: 0 | G39: N/A | H39: =IF(F39>=0,CONCATENATE(I39,"$",J39,K39, "frente a lo presupuestado."),CONCATENATE(L39,"$",M39,K39,N39, "frente a lo presupuestado.")) ->  | I39: Teniendo en cuenta el comportamiento de las anteriores variables la utilidad bruta subió en | K39: MM | L39: Teniendo en cuenta el comportamiento de las anteriores variables la utilidad bruta disminuyó en
A40: Gastos de administración | B40: =SUM('costos y gastos'!$B$56:$G$56) -> 22000000 | C40: 0.1286549708 | D40: 0 | E40: 0 | F40: -22000000 | G40: 0 | H40: =IF(F40>=0,CONCATENATE(I40,J40,K40,N40),CONCATENATE(L40,M40,K40,N40)) -> La ejecución presupuestal de los gastos de administración está por debajo en $22MM. Por favor revise en detalla la razón de la distorsión. | I40: La ejecución presupuestal de los gastos de administración está por encima en $ | J40: -22 | K40: MM. | L40: La ejecución presupuestal de los gastos de administración está por debajo en $ | M40: 22 | N40: Por favor revise en detalla la razón de la distorsión.
A41: Nómina de administración | B41: =SUM(#REF!)+SUM(#REF!) ->  | C41: 0 | D41: 0 | E41: 0 | G41: N/A | I41: La ejecución presupuestal de la nómina de administración está por encima en $ | K41: MM. | L41: La ejecución presupuestal de la nómina de administración está por debajo en $ | N41: Por favor revise en detalla la razón de la distorsión.
A42: Depreciación de administración | B42: =+ER_BG!$C$15/2 -> 8900000 | C42: 0.05204678363 | D42: 0 | E42: 0 | F42: -8900000 | G42: 0 | H42: La ejecución presupuestal de la depreciación de administración está por debajo en $9MM. Por favor revise en detalla la razón de la distorsión. | I42: La ejecución presupuestal de la depreciación de administración está por encima en $ | J42: -9 | K42: MM. | L42: La ejecución presupuestal de la depreciación de administración está por debajo en $ | M42: 9 | N42: Por favor revise en detalla la razón de la distorsión.
A43: Gastos de ventas | B43: =SUM('costos y gastos'!$B$77:$G$77) -> 30000000 | C43: 0.1754385965 | D43: 0 | E43: 0 | F43: -30000000 | G43: 0 | H43: La ejecución presupuestal de los gastos de ventas está por debajo en $30MM. Por favor revise en detalla la razón de la distorsión. | I43: La ejecución presupuestal de los gastos de ventas está por encima en $ | J43: -30 | K43: MM. | L43: La ejecución presupuestal de los gastos de ventas está por debajo en $ | M43: 30 | N43: Por favor revise en detalla la razón de la distorsión.
A44: Nómina de ventas | B44: =SUM(#REF!)+SUM(#REF!) ->  | C44: 0 | D44: 0 | E44: 0 | G44: N/A | I44: La ejecución presupuestal de la nómina de ventas está por encima en $ | K44: MM. | L44: La ejecución presupuestal de la nómina de ventas está por debajo en $ | N44: Por favor revise en detalla la razón de la distorsión.
A45: Comisión de ventas | B45: =SUM('costos y gastos'!$B$128:$G$128) -> 0 | C45: 0 | D45: 0 | E45: 0 | F45: 0 | G45: N/A | H45: La ejecución presupuestal de las comisiones de ventas está por encima en $0MM. Por favor revise en detalla la razón de la distorsión. | I45: La ejecución presupuestal de las comisiones de ventas está por encima en $ | J45: 0 | K45: MM. | L45: La ejecución presupuestal de las comisiones de ventas está por debajo en $ | M45: 0 | N45: Por favor revise en detalla la razón de la distorsión.
A46: Depreciación de ventas | B46: =+ER_BG!$C$19/2 -> 0 | C46: 0 | D46: 0 | E46: 0 | F46: 0 | G46: N/A | H46: La ejecución presupuestal de la depreciación de ventas está por encima en $0MM. Por favor revise en detalla la razón de la distorsión. | I46: La ejecución presupuestal de la depreciación de ventas está por encima en $ | J46: 0 | K46: MM. | L46: La ejecución presupuestal de la depreciación de ventas está por debajo en $ | M46: 0 | N46: Por favor revise en detalla la razón de la distorsión.
A47: Utilidad operacional | B47: =+B39-B40-B41-B42-B43-B44-B46-B45 ->  | C47: 0 | D47: =+D39-D40-D41-D42-D43-D44-D46-D45 -> 0 | E47: 0 | G47: N/A | H47: =IF(F47>=0,CONCATENATE(I47,"$",J47,K47, "frente a lo presupuestado."),CONCATENATE(L47,"$",M47,K47,N47, "frente a lo presupuestado.")) ->  | I47: Teniendo en cuenta el comportamiento de las anteriores variables la utilidad operacional subió en | K47: MM | L47: Teniendo en cuenta el comportamiento de las anteriores variables la utilidad operacional disminuyó en
A48: Gastos Financieros | B48: =SUM(Inversiones!$TA$64:$TF$64)+SUM(Inversiones!$TA$86:$TF$86)+SUM(Inversiones!$TA$93:$TF$93) -> 0 | C48: 0 | D48: 0 | E48: 0 | F48: 0 | G48: N/A | H48: =IF(F48>=0,CONCATENATE(I48,J48,K48,N48),CONCATENATE(L48,M48,K48,N48)) -> La ejecución presupuestal de los gastos financieros está por encima en $0MM. Por favor revise en detalla la razón de la distorsión. | I48: La ejecución presupuestal de los gastos financieros está por encima en $ | J48: 0 | K48: MM. | L48: La ejecución presupuestal de los gastos financieros está por debajo en $ | M48: 0 | N48: Por favor revise en detalla la razón de la distorsión.
A49: Utilidad antes de impuestos | B49: =+B47-B48 ->  | C49: 0 | D49: =+D47-D48 -> 0 | E49: 0 | G49: N/A | H49: =IF(F49>=0,CONCATENATE(I49,"$",J49,K49, "frente a lo presupuestado."),CONCATENATE(L49,"$",M49,K49,N49, "frente a lo presupuestado.")) ->  | I49: Teniendo en cuenta el comportamiento de las anteriores variables la utilidad antes de impuestos subió en | K49: MM | L49: Teniendo en cuenta el comportamiento de las anteriores variables la utilidad antes de impuestos disminuyó en
A50: Impuesto de Renta | B50: =IF(B49<=0,0,B49*Datos!$C$17) ->  | C50: 0 | D50: 0 | E50: 0 | G50: N/A | H50: =IF(F50>=0,CONCATENATE(I50,J50,K50,N50),CONCATENATE(L50,M50,K50,N50)) ->  | I50: La ejecución presupuestal del impuesto de renta está por encima en $ | K50: MM. | L50: La ejecución presupuestal del impuesto de renta está por debajo en $ | N50: Por favor revise en detalla la razón de la distorsión.
A51: Impuesto CREE | B51: =IF(B49<=0,0,(B49*Datos!$C$18)) ->  | C51: 0 | D51: 0 | E51: 0 | G51: N/A | H51: =IF(F51>=0,CONCATENATE(I51,J51,K51,N51),CONCATENATE(L51,M51,K51,N51)) ->  | I51: La ejecución presupuestal del impuesto CREE está por encima en $ | K51: MM. | L51: La ejecución presupuestal del impuesto CREE está por debajo en $ | N51: Por favor revise en detalla la razón de la distorsión.
A52: Utilidad neta | B52: =+B49-B50-B51 ->  | C52: 0 | D52: =+D49-D50-D51 -> 0 | E52: 0 | G52: N/A | H52: =IF(F52>=0,CONCATENATE(I52,"$",J52,K52, "frente a lo presupuestado."),CONCATENATE(L52,"$",M52,K52,N52, "frente a lo presupuestado.")) ->  | I52: Teniendo en cuenta el comportamiento de las anteriores variables la utilidad neta subió en | K52: MM | L52: Teniendo en cuenta el comportamiento de las anteriores variables la utilidad neta disminuyó en
E55: Margen bruto | H55: =IF(E39>C39,CONCATENATE(I55,J55,"%, frente a lo presupuestado"),CONCATENATE(L55,-J55,"%, frente a lo presupuestado")) -> Teniendo en cuenta el comportamiento de las variables arriba expuestas el margen bruto disminuyó en 0%, frente a lo presupuestado | I55: Teniendo en cuenta el comportamiento de las variables arriba expuestas el margen bruto subió en | J55: =ROUND((E39-C39),4)*100 -> 0 | L55: Teniendo en cuenta el comportamiento de las variables arriba expuestas el margen bruto disminuyó en | M55: =-J55 -> 0
E56: Margen operacional | H56: =IF(E47>C47,CONCATENATE(I56,J56,"%, frente a lo presupuestado"),CONCATENATE(L56,-J56,"%, frente a lo presupuestado")) -> Teniendo en cuenta el comportamiento de las variables arriba expuestas el margen operacional disminuyó en 0%, frente a lo presupuestado | I56: Teniendo en cuenta el comportamiento de las variables arriba expuestas el margen operacional subió en | J56: =ROUND((E47-C47),4)*100 -> 0 | L56: Teniendo en cuenta el comportamiento de las variables arriba expuestas el margen operacional disminuyó en | M56: =-J56 -> 0
E57: Margen neto | H57: =IF(E52>C52,CONCATENATE(I57,J57,"%, frente a lo presupuestado"),CONCATENATE(L57,-J57,"%, frente a lo presupuestado")) -> Teniendo en cuenta el comportamiento de las variables arriba expuestas el margen neto disminuyó en 0%, frente a lo presupuestado | I57: Teniendo en cuenta el comportamiento de las variables arriba expuestas el margen neto subió en | J57: =ROUND((E52-C52),4)*100 -> 0 | L57: Teniendo en cuenta el comportamiento de las variables arriba expuestas el margen neto disminuyó en | M57: =-J57 -> 0
B63: Año 1 Acumulado tercer trimestre
A64: Concepto | B64: Plan | C64: Análisis vertical plan | D64: Ejecución | E64: Análisis vertical real | F64: Diferencia | G64: % Ejecución | H64: Comentarios
A65: Ventas | B65: =SUM('Proyección ventas'!$B$82:$J$82) -> 256500000 | C65: 1 | D65: 0 | E65: 1 | F65: =+D65-B65 -> -256500000 | G65: =IFERROR(D65/B65,"N/A") -> 0 | H65: =IF(F65>=0,CONCATENATE(I65,J65,K65),CONCATENATE(L65,M65,K65,N65)) -> La ejecución presupuestal de ventas está por debajo en $257MM. Por favor revise las razones del no cumplimiento de la meta. | I65: La ejecución presupuestal de ventas está por encima en $ | J65: =ROUND((F65/1000000),0) -> -257 | K65: MM. | L65: La ejecución presupuestal de ventas está por debajo en $ | M65: =-J65 -> 257 | N65: Por favor revise las razones del no cumplimiento de la meta.
A66: Costos variables | B66: =SUM('costos y gastos'!$B$102:$J$102) -> 72000000 | C66: =IFERROR(B66/$B$65,0) -> 0.2807017544 | D66: 0 | E66: =IFERROR(D66/$D$65,0) -> 0 | F66: =+D66-B66 -> -72000000 | G66: =IFERROR(D66/B66,"N/A") -> 0 | H66: =IF(F66>=0,CONCATENATE(I66,J66,K66,N66),CONCATENATE(L66,M66,K66,N66)) -> La ejecución presupuestal del costo ventas está por debajo en $72MM. Por favor revise en detalla la razón de la distorsión. | I66: La ejecución presupuestal de los costos de ventas está por encima en $ | J66: -72 | K66: MM. | L66: La ejecución presupuestal del costo ventas está por debajo en $ | M66: 72 | N66: Por favor revise en detalla la razón de la distorsión.
A67: Costos fijos de producción | B67: =SUM('costos y gastos'!$B$35:$J$35) -> 82800000 | C67: =IFERROR(B67/$B$65,0) -> 0.3228070175 | D67: 0 | E67: =IFERROR(D67/$D$65,0) -> 0 | F67: -82800000 | G67: 0 | H67: =IF(F67>=0,CONCATENATE(I67,J67,K67,N67),CONCATENATE(L67,M67,K67,N67)) -> La ejecución presupuestal del costo fijos de producción está por debajo en $83MM. Por favor revise en detalla la razón de la distorsión. | I67: La ejecución presupuestal de los costos fijos de producción está por encima en $ | J67: -83 | K67: MM. | L67: La ejecución presupuestal del costo fijos de producción está por debajo en $ | M67: 83 | N67: Por favor revise en detalla la razón de la distorsión.
A68: Nómina de producción | B68: =SUM(#REF!)+SUM(#REF!) ->  | C68: 0 | D68: 0 | E68: 0 | G68: N/A | H68: =IF(F68>=0,CONCATENATE(I68,J68,K68,N68),CONCATENATE(L68,M68,K68,N68)) ->  | I68: La ejecución presupuestal de la nómina de producción está por encima en $ | K68: MM. | L68: La ejecución presupuestal de la nómina de producción está por debajo en $ | N68: Por favor revise en detalla la razón de la distorsión.
A69: Depreciación de producción | B69: =+ER_BG!$C$11/4*3 -> 0 | C69: 0 | D69: 0 | E69: 0 | F69: 0 | G69: N/A | H69: =IF(F69>=0,CONCATENATE(I69,J69,K69,N69),CONCATENATE(L69,M69,K69,N69)) -> La ejecución presupuestal de la depreciación de producción está por encima en $0MM. Por favor revise en detalla la razón de la distorsión. | I69: La ejecución presupuestal de la depreciación de producción está por encima en $ | J69: 0 | K69: MM. | L69: La ejecución presupuestal de la depreciación de producción está por debajo en $ | M69: 0 | N69: Por favor revise en detalla la razón de la distorsión.
A70: Utiilidad bruta | B70: =+B65-B66-B67-B68-B69 ->  | C70: 0 | D70: =+D65-D66-D67-D68-D69 -> 0 | E70: 0 | G70: N/A | H70: =IF(F70>=0,CONCATENATE(I70,"$",J70,K70, "frente a lo presupuestado."),CONCATENATE(L70,"$",M70,K70,N70, "frente a lo presupuestado.")) ->  | I70: Teniendo en cuenta el comportamiento de las anteriores variables la utilidad bruta subió en | K70: MM | L70: Teniendo en cuenta el comportamiento de las anteriores variables la utilidad bruta disminuyó en
A71: Gastos de administración | B71: =SUM('costos y gastos'!$B$56:$J$56) -> 28000000 | C71: 0.1091617934 | D71: 0 | E71: 0 | F71: -28000000 | G71: 0 | H71: =IF(F71>=0,CONCATENATE(I71,J71,K71,N71),CONCATENATE(L71,M71,K71,N71)) -> La ejecución presupuestal de los gastos de administración está por debajo en $28MM. Por favor revise en detalla la razón de la distorsión. | I71: La ejecución presupuestal de los gastos de administración está por encima en $ | J71: -28 | K71: MM. | L71: La ejecución presupuestal de los gastos de administración está por debajo en $ | M71: 28 | N71: Por favor revise en detalla la razón de la distorsión.
A72: Nómina de administración | B72: =SUM(#REF!)+SUM(#REF!) ->  | C72: 0 | D72: 0 | E72: 0 | G72: N/A | I72: La ejecución presupuestal de la nómina de administración está por encima en $ | K72: MM. | L72: La ejecución presupuestal de la nómina de administración está por debajo en $ | N72: Por favor revise en detalla la razón de la distorsión.
A73: Depreciación de administración | B73: =+ER_BG!$C$15/4*3 -> 13350000 | C73: 0.05204678363 | D73: 0 | E73: 0 | F73: -13350000 | G73: 0 | H73: La ejecución presupuestal de la depreciación de administración está por debajo en $13MM. Por favor revise en detalla la razón de la distorsión. | I73: La ejecución presupuestal de la depreciación de administración está por encima en $ | J73: -13 | K73: MM. | L73: La ejecución presupuestal de la depreciación de administración está por debajo en $ | M73: 13 | N73: Por favor revise en detalla la razón de la distorsión.
A74: Gastos de ventas | B74: =SUM('costos y gastos'!$B$77:$J$77) -> 45000000 | C74: 0.1754385965 | D74: 0 | E74: 0 | F74: -45000000 | G74: 0 | H74: La ejecución presupuestal de los gastos de ventas está por debajo en $45MM. Por favor revise en detalla la razón de la distorsión. | I74: La ejecución presupuestal de los gastos de ventas está por encima en $ | J74: -45 | K74: MM. | L74: La ejecución presupuestal de los gastos de ventas está por debajo en $ | M74: 45 | N74: Por favor revise en detalla la razón de la distorsión.
A75: Nómina de ventas | B75: =SUM(#REF!)+SUM(#REF!) ->  | C75: 0 | D75: 0 | E75: 0 | G75: N/A | I75: La ejecución presupuestal de la nómina de ventas está por encima en $ | K75: MM. | L75: La ejecución presupuestal de la nómina de ventas está por debajo en $ | N75: Por favor revise en detalla la razón de la distorsión.
A76: Comisión de ventas | B76: =SUM('costos y gastos'!$B$128:$J$128) -> 0 | C76: 0 | D76: 0 | E76: 0 | F76: 0 | G76: N/A | H76: La ejecución presupuestal de las comisiones de ventas está por encima en $0MM. Por favor revise en detalla la razón de la distorsión. | I76: La ejecución presupuestal de las comisiones de ventas está por encima en $ | J76: 0 | K76: MM. | L76: La ejecución presupuestal de las comisiones de ventas está por debajo en $ | M76: 0 | N76: Por favor revise en detalla la razón de la distorsión.
A77: Depreciación de ventas | B77: =+ER_BG!$C$19/4*3 -> 0 | C77: 0 | D77: 0 | E77: 0 | F77: 0 | G77: N/A | H77: La ejecución presupuestal de la depreciación de ventas está por encima en $0MM. Por favor revise en detalla la razón de la distorsión. | I77: La ejecución presupuestal de la depreciación de ventas está por encima en $ | J77: 0 | K77: MM. | L77: La ejecución presupuestal de la depreciación de ventas está por debajo en $ | M77: 0 | N77: Por favor revise en detalla la razón de la distorsión.
A78: Utilidad operacional | B78: =+B70-B71-B72-B73-B74-B75-B77-B76 ->  | C78: 0 | D78: =+D70-D71-D72-D73-D74-D75-D77-D76 -> 0 | E78: 0 | G78: N/A | H78: =IF(F78>=0,CONCATENATE(I78,"$",J78,K78, "frente a lo presupuestado."),CONCATENATE(L78,"$",M78,K78,N78, "frente a lo presupuestado.")) ->  | I78: Teniendo en cuenta el comportamiento de las anteriores variables la utilidad operacional subió en | K78: MM | L78: Teniendo en cuenta el comportamiento de las anteriores variables la utilidad operacional disminuyó en
A79: Gastos Financieros | B79: =SUM(Inversiones!$TA$64:$TI$64)+SUM(Inversiones!$TA$86:$TI$86)+SUM(Inversiones!$TA$93:$TI$93) -> 0 | C79: 0 | D79: 0 | E79: 0 | F79: 0 | G79: N/A | H79: =IF(F79>=0,CONCATENATE(I79,J79,K79,N79),CONCATENATE(L79,M79,K79,N79)) -> La ejecución presupuestal de los gastos financieros está por encima en $0MM. Por favor revise en detalla la razón de la distorsión. | I79: La ejecución presupuestal de los gastos financieros está por encima en $ | J79: 0 | K79: MM. | L79: La ejecución presupuestal de los gastos financieros está por debajo en $ | M79: 0 | N79: Por favor revise en detalla la razón de la distorsión.
A80: Utilidad antes de impuestos | B80: =+B78-B79 ->  | C80: 0 | D80: =+D78-D79 -> 0 | E80: 0 | G80: N/A | H80: =IF(F80>=0,CONCATENATE(I80,"$",J80,K80, "frente a lo presupuestado."),CONCATENATE(L80,"$",M80,K80,N80, "frente a lo presupuestado.")) ->  | I80: Teniendo en cuenta el comportamiento de las anteriores variables la utilidad antes de impuestos subió en | K80: MM | L80: Teniendo en cuenta el comportamiento de las anteriores variables la utilidad antes de impuestos disminuyó en
A81: Impuesto de Renta | B81: =IF(B80<=0,0,B80*Datos!$C$17) ->  | C81: 0 | D81: 0 | E81: 0 | G81: N/A | H81: =IF(F81>=0,CONCATENATE(I81,J81,K81,N81),CONCATENATE(L81,M81,K81,N81)) ->  | I81: La ejecución presupuestal del impuesto de renta está por encima en $ | K81: MM. | L81: La ejecución presupuestal del impuesto de renta está por debajo en $ | N81: Por favor revise en detalla la razón de la distorsión.
A82: Impuesto CREE | B82: =IF(B80<=0,0,(B80*Datos!$C$18)) ->  | C82: 0 | D82: 0 | E82: 0 | G82: N/A | H82: =IF(F82>=0,CONCATENATE(I82,J82,K82,N82),CONCATENATE(L82,M82,K82,N82)) ->  | I82: La ejecución presupuestal del impuesto CREE está por encima en $ | K82: MM. | L82: La ejecución presupuestal del impuesto CREE está por debajo en $ | N82: Por favor revise en detalla la razón de la distorsión.
A83: Utilidad neta | B83: =+B80-B81-B82 ->  | C83: 0 | D83: =+D80-D81-D82 -> 0 | E83: 0 | G83: N/A | H83: =IF(F83>=0,CONCATENATE(I83,"$",J83,K83, "frente a lo presupuestado."),CONCATENATE(L83,"$",M83,K83,N83, "frente a lo presupuestado.")) ->  | I83: Teniendo en cuenta el comportamiento de las anteriores variables la utilidad neta subió en | K83: MM | L83: Teniendo en cuenta el comportamiento de las anteriores variables la utilidad neta disminuyó en
E86: Margen bruto | H86: =IF(E70>C70,CONCATENATE(I86,J86,"%, frente a lo presupuestado"),CONCATENATE(L86,-J86,"%, frente a lo presupuestado")) -> Teniendo en cuenta el comportamiento de las variables arriba expuestas el margen bruto disminuyó en 0%, frente a lo presupuestado | I86: Teniendo en cuenta el comportamiento de las variables arriba expuestas el margen bruto subió en | J86: =ROUND((E70-C70),4)*100 -> 0 | L86: Teniendo en cuenta el comportamiento de las variables arriba expuestas el margen bruto disminuyó en | M86: =-J86 -> 0
E87: Margen operacional | H87: =IF(E78>C78,CONCATENATE(I87,J87,"%, frente a lo presupuestado"),CONCATENATE(L87,-J87,"%, frente a lo presupuestado")) -> Teniendo en cuenta el comportamiento de las variables arriba expuestas el margen operacional disminuyó en 0%, frente a lo presupuestado | I87: Teniendo en cuenta el comportamiento de las variables arriba expuestas el margen operacional subió en | J87: =ROUND((E78-C78),4)*100 -> 0 | L87: Teniendo en cuenta el comportamiento de las variables arriba expuestas el margen operacional disminuyó en | M87: =-J87 -> 0
E88: Margen neto | H88: =IF(E83>C83,CONCATENATE(I88,J88,"%, frente a lo presupuestado"),CONCATENATE(L88,-J88,"%, frente a lo presupuestado")) -> Teniendo en cuenta el comportamiento de las variables arriba expuestas el margen neto disminuyó en 0%, frente a lo presupuestado | I88: Teniendo en cuenta el comportamiento de las variables arriba expuestas el margen neto subió en | J88: =ROUND((E83-C83),4)*100 -> 0 | L88: Teniendo en cuenta el comportamiento de las variables arriba expuestas el margen neto disminuyó en | M88: =-J88 -> 0
B95: Año 1 Acumulado
A96: Concepto | B96: Plan | C96: Análisis vertical plan | D96: Ejecución | E96: Análisis vertical real | F96: Diferencia | G96: % Ejecución | H96: Comentarios
A97: Ventas | B97: =SUM('Proyección ventas'!$B$82:$M$82) -> 342000000 | C97: 1 | D97: 0 | E97: 1 | F97: =+D97-B97 -> -342000000 | G97: =IFERROR(D97/B97,"N/A") -> 0 | H97: =IF(F97>=0,CONCATENATE(I97,J97,K97),CONCATENATE(L97,M97,K97,N97)) -> La ejecución presupuestal de ventas está por debajo en $342MM. Por favor revise las razones del no cumplimiento de la meta. | I97: La ejecución presupuestal de ventas está por encima en $ | J97: =ROUND((F97/1000000),0) -> -342 | K97: MM. | L97: La ejecución presupuestal de ventas está por debajo en $ | M97: =-J97 -> 342 | N97: Por favor revise las razones del no cumplimiento de la meta.
A98: Costos variables | B98: =SUM('costos y gastos'!$B$102:$M$102) -> 96000000 | C98: =IFERROR(B98/$B$97,0) -> 0.2807017544 | D98: 0 | E98: =IFERROR(D98/$D$97,0) -> 0 | F98: =+D98-B98 -> -96000000 | G98: =IFERROR(D98/B98,"N/A") -> 0 | H98: =IF(F98>=0,CONCATENATE(I98,J98,K98,N98),CONCATENATE(L98,M98,K98,N98)) -> La ejecución presupuestal del costo ventas está por debajo en $96MM. Por favor revise en detalla la razón de la distorsión. | I98: La ejecución presupuestal de los costos de ventas está por encima en $ | J98: -96 | K98: MM. | L98: La ejecución presupuestal del costo ventas está por debajo en $ | M98: 96 | N98: Por favor revise en detalla la razón de la distorsión.
A99: Costos fijos de producción | B99: =SUM('costos y gastos'!$B$35:$M$35) -> 110400000 | C99: =IFERROR(B99/$B$97,0) -> 0.3228070175 | D99: 0 | E99: =IFERROR(D99/$D$97,0) -> 0 | F99: -110400000 | G99: 0 | H99: =IF(F99>=0,CONCATENATE(I99,J99,K99,N99),CONCATENATE(L99,M99,K99,N99)) -> La ejecución presupuestal del costo fijos de producción está por debajo en $110MM. Por favor revise en detalla la razón de la distorsión. | I99: La ejecución presupuestal de los costos fijos de producción está por encima en $ | J99: -110 | K99: MM. | L99: La ejecución presupuestal del costo fijos de producción está por debajo en $ | M99: 110 | N99: Por favor revise en detalla la razón de la distorsión.
A100: Nómina de producción | B100: =SUM(#REF!)+SUM(#REF!) ->  | C100: 0 | D100: 0 | E100: 0 | G100: N/A | H100: =IF(F100>=0,CONCATENATE(I100,J100,K100,N100),CONCATENATE(L100,M100,K100,N100)) ->  | I100: La ejecución presupuestal de la nómina de producción está por encima en $ | K100: MM. | L100: La ejecución presupuestal de la nómina de producción está por debajo en $ | N100: Por favor revise en detalla la razón de la distorsión.
A101: Depreciación de producción | B101: =+ER_BG!$C$11 -> 0 | C101: 0 | D101: 0 | E101: 0 | F101: 0 | G101: N/A | H101: =IF(F101>=0,CONCATENATE(I101,J101,K101,N101),CONCATENATE(L101,M101,K101,N101)) -> La ejecución presupuestal de la depreciación de producción está por encima en $0MM. Por favor revise en detalla la razón de la distorsión. | I101: La ejecución presupuestal de la depreciación de producción está por encima en $ | J101: 0 | K101: MM. | L101: La ejecución presupuestal de la depreciación de producción está por debajo en $ | M101: 0 | N101: Por favor revise en detalla la razón de la distorsión.
A102: Utiilidad bruta | B102: =+B97-B98-B99-B100-B101 ->  | C102: 0 | D102: =+D97-D98-D99-D100-D101 -> 0 | E102: 0 | G102: N/A | H102: =IF(F102>=0,CONCATENATE(I102,"$",J102,K102, "frente a lo presupuestado."),CONCATENATE(L102,"$",M102,K102,N102, "frente a lo presupuestado.")) ->  | I102: Teniendo en cuenta el comportamiento de las anteriores variables la utilidad bruta subió en | K102: MM | L102: Teniendo en cuenta el comportamiento de las anteriores variables la utilidad bruta disminuyó en
A103: Gastos de administración | B103: =SUM('costos y gastos'!$B$56:$M$56) -> 34000000 | C103: 0.09941520468 | D103: 0 | E103: 0 | F103: -34000000 | G103: 0 | H103: =IF(F103>=0,CONCATENATE(I103,J103,K103,N103),CONCATENATE(L103,M103,K103,N103)) -> La ejecución presupuestal de los gastos de administración está por debajo en $34MM. Por favor revise en detalla la razón de la distorsión. | I103: La ejecución presupuestal de los gastos de administración está por encima en $ | J103: -34 | K103: MM. | L103: La ejecución presupuestal de los gastos de administración está por debajo en $ | M103: 34 | N103: Por favor revise en detalla la razón de la distorsión.
A104: Nómina de administración | B104: =SUM(#REF!)+SUM(#REF!) ->  | C104: 0 | D104: 0 | E104: 0 | G104: N/A | I104: La ejecución presupuestal de la nómina de administración está por encima en $ | K104: MM. | L104: La ejecución presupuestal de la nómina de administración está por debajo en $ | N104: Por favor revise en detalla la razón de la distorsión.
A105: Depreciación de administración | B105: =+ER_BG!$C$15 -> 17800000 | C105: 0.05204678363 | D105: 0 | E105: 0 | F105: -17800000 | G105: 0 | H105: La ejecución presupuestal de la depreciación de administración está por debajo en $18MM. Por favor revise en detalla la razón de la distorsión. | I105: La ejecución presupuestal de la depreciación de administración está por encima en $ | J105: -18 | K105: MM. | L105: La ejecución presupuestal de la depreciación de administración está por debajo en $ | M105: 18 | N105: Por favor revise en detalla la razón de la distorsión.
A106: Gastos de ventas | B106: =SUM('costos y gastos'!$B$77:$M$77) -> 60000000 | C106: 0.1754385965 | D106: 0 | E106: 0 | F106: -60000000 | G106: 0 | H106: La ejecución presupuestal de los gastos de ventas está por debajo en $60MM. Por favor revise en detalla la razón de la distorsión. | I106: La ejecución presupuestal de los gastos de ventas está por encima en $ | J106: -60 | K106: MM. | L106: La ejecución presupuestal de los gastos de ventas está por debajo en $ | M106: 60 | N106: Por favor revise en detalla la razón de la distorsión.
A107: Nómina de ventas | B107: =SUM(#REF!)+SUM(#REF!) ->  | C107: 0 | D107: 0 | E107: 0 | G107: N/A | I107: La ejecución presupuestal de la nómina de ventas está por encima en $ | K107: MM. | L107: La ejecución presupuestal de la nómina de ventas está por debajo en $ | N107: Por favor revise en detalla la razón de la distorsión.
A108: Comisión de ventas | B108: =SUM('costos y gastos'!$B$128:$M$128) -> 0 | C108: 0 | D108: 0 | E108: 0 | F108: 0 | G108: N/A | H108: La ejecución presupuestal de las comisiones de ventas está por encima en $0MM. Por favor revise en detalla la razón de la distorsión. | I108: La ejecución presupuestal de las comisiones de ventas está por encima en $ | J108: 0 | K108: MM. | L108: La ejecución presupuestal de las comisiones de ventas está por debajo en $ | M108: 0 | N108: Por favor revise en detalla la razón de la distorsión.
A109: Depreciación de ventas | B109: =+ER_BG!$C$19 -> 0 | C109: 0 | D109: 0 | E109: 0 | F109: 0 | G109: N/A | H109: La ejecución presupuestal de la depreciación de ventas está por encima en $0MM. Por favor revise en detalla la razón de la distorsión. | I109: La ejecución presupuestal de la depreciación de ventas está por encima en $ | J109: 0 | K109: MM. | L109: La ejecución presupuestal de la depreciación de ventas está por debajo en $ | M109: 0 | N109: Por favor revise en detalla la razón de la distorsión.
A110: Utilidad operacional | B110: =+B102-B103-B104-B105-B106-B107-B109-B108 ->  | C110: 0 | D110: =+D102-D103-D104-D105-D106-D107-D109-D108 -> 0 | E110: 0 | G110: N/A | H110: =IF(F110>=0,CONCATENATE(I110,"$",J110,K110, "frente a lo presupuestado."),CONCATENATE(L110,"$",M110,K110,N110, "frente a lo presupuestado.")) ->  | I110: Teniendo en cuenta el comportamiento de las anteriores variables la utilidad operacional subió en | K110: MM | L110: Teniendo en cuenta el comportamiento de las anteriores variables la utilidad operacional disminuyó en
A111: Gastos Financieros | B111: =SUM(Inversiones!$TA$64:$TL$64)+SUM(Inversiones!$TA$86:$TL$86)+SUM(Inversiones!$TA$93:$TL$93) -> 0 | C111: 0 | D111: 0 | E111: 0 | F111: 0 | G111: N/A | H111: =IF(F111>=0,CONCATENATE(I111,J111,K111,N111),CONCATENATE(L111,M111,K111,N111)) -> La ejecución presupuestal de los gastos financieros está por encima en $0MM. Por favor revise en detalla la razón de la distorsión. | I111: La ejecución presupuestal de los gastos financieros está por encima en $ | J111: 0 | K111: MM. | L111: La ejecución presupuestal de los gastos financieros está por debajo en $ | M111: 0 | N111: Por favor revise en detalla la razón de la distorsión.
A112: Utilidad antes de impuestos | B112: =+B110-B111 ->  | C112: 0 | D112: =+D110-D111 -> 0 | E112: 0 | G112: N/A | H112: =IF(F112>=0,CONCATENATE(I112,"$",J112,K112, "frente a lo presupuestado."),CONCATENATE(L112,"$",M112,K112,N112, "frente a lo presupuestado.")) ->  | I112: Teniendo en cuenta el comportamiento de las anteriores variables la utilidad antes de impuestos subió en | K112: MM | L112: Teniendo en cuenta el comportamiento de las anteriores variables la utilidad antes de impuestos disminuyó en
A113: Impuesto de Renta | B113: =IF(B112<=0,0,B112*Datos!$C$17) ->  | C113: 0 | D113: 0 | E113: 0 | G113: N/A | H113: =IF(F113>=0,CONCATENATE(I113,J113,K113,N113),CONCATENATE(L113,M113,K113,N113)) ->  | I113: La ejecución presupuestal del impuesto de renta está por encima en $ | K113: MM. | L113: La ejecución presupuestal del impuesto de renta está por debajo en $ | N113: Por favor revise en detalla la razón de la distorsión.
A114: Impuesto CREE | B114: =IF(B112<=0,0,(B112*Datos!$C$18)) ->  | C114: 0 | D114: 0 | E114: 0 | G114: N/A | H114: =IF(F114>=0,CONCATENATE(I114,J114,K114,N114),CONCATENATE(L114,M114,K114,N114)) ->  | I114: La ejecución presupuestal del impuesto CREE está por encima en $ | K114: MM. | L114: La ejecución presupuestal del impuesto CREE está por debajo en $ | N114: Por favor revise en detalla la razón de la distorsión.
A115: Utilidad neta | B115: =+B112-B113-B114 ->  | C115: 0 | D115: =+D112-D113-D114 -> 0 | E115: 0 | G115: N/A | H115: =IF(F115>=0,CONCATENATE(I115,"$",J115,K115, "frente a lo presupuestado."),CONCATENATE(L115,"$",M115,K115,N115, "frente a lo presupuestado.")) ->  | I115: Teniendo en cuenta el comportamiento de las anteriores variables la utilidad neta subió en | K115: MM | L115: Teniendo en cuenta el comportamiento de las anteriores variables la utilidad neta disminuyó en
E118: Margen bruto | H118: =IF(E102>C102,CONCATENATE(I118,J118,"%, frente a lo presupuestado"),CONCATENATE(L118,-J118,"%, frente a lo presupuestado")) -> Teniendo en cuenta el comportamiento de las variables arriba expuestas el margen bruto disminuyó en 0%, frente a lo presupuestado | I118: Teniendo en cuenta el comportamiento de las variables arriba expuestas el margen bruto subió en | J118: =ROUND((E102-C102),4)*100 -> 0 | L118: Teniendo en cuenta el comportamiento de las variables arriba expuestas el margen bruto disminuyó en | M118: =-J118 -> 0
E119: Margen operacional | H119: =IF(E110>C110,CONCATENATE(I119,J119,"%, frente a lo presupuestado"),CONCATENATE(L119,-J119,"%, frente a lo presupuestado")) -> Teniendo en cuenta el comportamiento de las variables arriba expuestas el margen operacional disminuyó en 0%, frente a lo presupuestado | I119: Teniendo en cuenta el comportamiento de las variables arriba expuestas el margen operacional subió en | J119: =ROUND((E110-C110),4)*100 -> 0 | L119: Teniendo en cuenta el comportamiento de las variables arriba expuestas el margen operacional disminuyó en | M119: =-J119 -> 0
E120: Margen neto | H120: =IF(E115>C115,CONCATENATE(I120,J120,"%, frente a lo presupuestado"),CONCATENATE(L120,-J120,"%, frente a lo presupuestado")) -> Teniendo en cuenta el comportamiento de las variables arriba expuestas el margen neto disminuyó en 0%, frente a lo presupuestado | I120: Teniendo en cuenta el comportamiento de las variables arriba expuestas el margen neto subió en | J120: =ROUND((E115-C115),4)*100 -> 0 | L120: Teniendo en cuenta el comportamiento de las variables arriba expuestas el margen neto disminuyó en | M120: =-J120 -> 0

Sheet PROYECCION EEFF
B3: ESTADOS FINANCIEROS PROYECTADOS
B8: BALANCE GENERAL | C8: AÑO 0 | D8: AÑO 1 | E8: AÑO 2 | F8: AÑO 3 | G8: AÑO 4 | H8: AÑO 5
B9: Caja | C9: =+ER_BG!C37 -> 41000000 | D9: =+ER_BG!D37 -> 73483135.93 | E9: =+ER_BG!E37 -> 124862897.2 | F9: =+ER_BG!F37 -> 199164749 | G9: =+ER_BG!G37 -> 299746101 | H9: =+ER_BG!H37 -> 430388054.4
B10: Inventarios | C10: =+ER_BG!C39 -> 0 | D10: =+ER_BG!D39 -> 0 | E10: =+ER_BG!E39 -> 0 | F10: =+ER_BG!F39 -> 0 | G10: =+ER_BG!G39 -> 0 | H10: =+ER_BG!H39 -> 0
B11: CxC | C11: =+ER_BG!C38 -> 0 | D11: =+ER_BG!D38 -> 0 | E11: =+ER_BG!E38 -> 0 | F11: =+ER_BG!F38 -> 0 | G11: =+ER_BG!G38 -> 0 | H11: =+ER_BG!H38 -> 0
B12: Activos Fijos NETO | C12: =+ER_BG!C40+ER_BG!C51 -> 89000000 | D12: =+ER_BG!D40+ER_BG!D51 -> 71200000 | E12: =+ER_BG!E40+ER_BG!E51 -> 53400000 | F12: =+ER_BG!F40+ER_BG!F51 -> 35600000 | G12: =+ER_BG!G40+ER_BG!G51 -> 17800000 | H12: =+ER_BG!H40+ER_BG!H51 -> 0
B13: Total Activo | C13: =SUM(C9:C12) -> 130000000 | D13: 144683135.9 | E13: 178262897.2 | F13: 234764749 | G13: 317546101 | H13: =SUM(H9:H12) -> 430388054.4
B14: CxP | C14: =+ER_BG!C57+ER_BG!C58+ER_BG!C59+ER_BG!C60 -> 0 | D14: =+ER_BG!D57+ER_BG!D58+ER_BG!D59+ER_BG!D60 -> 10065562.05 | E14: =+ER_BG!E57+ER_BG!E58+ER_BG!E59+ER_BG!E60 -> 20341467.33 | F14: =+ER_BG!F57+ER_BG!F58+ER_BG!F59+ER_BG!F60 -> 32026422.62 | G14: =+ER_BG!G57+ER_BG!G58+ER_BG!G59+ER_BG!G60 -> 45291205.1 | H14: =+ER_BG!H57+ER_BG!H58+ER_BG!H59+ER_BG!H60 -> 60326786.61
B15: Total Obligaciones F | C15: =+C16+C17 -> 100000000 | D15: 85459061.84 | E15: 68591573.57 | F15: 49025287.18 | G15: 26328394.97 | H15: =+H16+H17 -> 0
B16: Obligaciones CP | C16: =+ER_BG!C56 -> 0 | D16: =+ER_BG!D56 -> 0 | E16: =+ER_BG!E56 -> 0 | F16: =+ER_BG!F56 -> 0 | G16: =+ER_BG!G56 -> 0 | H16: =+ER_BG!H56 -> 0
B17: Obligaciones LP | C17: =+ER_BG!C63 -> 100000000 | D17: =+ER_BG!D63 -> 85459061.84 | E17: =+ER_BG!E63 -> 68591573.57 | F17: =+ER_BG!F63 -> 49025287.18 | G17: =+ER_BG!G63 -> 26328394.97 | H17: =+ER_BG!H63 -> 0
B18: Otras Obligaciones | C18: =+ER_BG!C64 -> 0 | D18: =+ER_BG!D64 -> 0 | E18: =+ER_BG!E64 -> 0 | F18: =+ER_BG!F64 -> 0 | G18: =+ER_BG!G64 -> 0 | H18: =+ER_BG!H64 -> 0
B19: Patrimonio | C19: =+ER_BG!C74 -> 30000000 | D19: =+ER_BG!D74 -> 49158512.04 | E19: =+ER_BG!E74 -> 89329856.32 | F19: =+ER_BG!F74 -> 153713039.2 | G19: =+ER_BG!G74 -> 245926501 | H19: =+ER_BG!H74 -> 370061267.7
B20: Total Pasivo + Patrimonio | C20: =+C14+C16+C17+C19+C18 -> 130000000 | D20: =+D14+D16+D17+D19+D18 -> 144683135.9 | E20: 178262897.2 | F20: 234764749 | G20: =+G14+G16+G17+G19+G18 -> 317546101 | H20: =+H14+H16+H17+H19+H18 -> 430388054.4
B22: ESTADO DE RESULTADO | C22: AÑO 0 | D22: AÑO 1 | E22: AÑO 2 | F22: AÑO 3 | G22: AÑO 4 | H22: AÑO 5
B23: Ventas | C23: 0 | D23: =+ER_BG!C7 -> 342000000 | E23: =+ER_BG!D7 -> 381996995.8 | F23: =+ER_BG!E7 -> 426691061.4 | G23: =+ER_BG!F7 -> 476635321.6 | H23: =+ER_BG!G7 -> 532448155.6
B24: Costo | C24: 0 | D24: =+ER_BG!C8+ER_BG!C9+ER_BG!C10+ER_BG!C11 -> 206400000 | E24: =+ER_BG!D8+ER_BG!D9+ER_BG!D10+ER_BG!D11 -> 214243200 | F24: =+ER_BG!E8+ER_BG!E9+ER_BG!E10+ER_BG!E11 -> 222384441.6 | G24: =+ER_BG!F8+ER_BG!F9+ER_BG!F10+ER_BG!F11 -> 230835050.4 | H24: =+ER_BG!G8+ER_BG!G9+ER_BG!G10+ER_BG!G11 -> 239606782.3
B25: Utilidad Bruta | C25: 0 | D25: =+D23-D24 -> 135600000 | E25: 167753795.8 | F25: 204306619.8 | G25: 245800271.2 | H25: =+H23-H24 -> 292841373.3
B26: Gastos Administrativos | C26: 0 | D26: =+ER_BG!C13+ER_BG!C14 -> 34000000 | E26: =+ER_BG!D13+ER_BG!D14 -> 35292000 | F26: =+ER_BG!E13+ER_BG!E14 -> 36633096 | G26: =+ER_BG!F13+ER_BG!F14 -> 38025153.65 | H26: =+ER_BG!G13+ER_BG!G14 -> 39470109.49
B27: Gastos de ventas | C27: 0 | D27: =+ER_BG!C16+ER_BG!C17+ER_BG!C18 -> 63775680 | E27: =+ER_BG!D16+ER_BG!D17+ER_BG!D18 -> 66497246.83 | F27: =+ER_BG!E16+ER_BG!E17+ER_BG!E18 -> 69357309.32 | G27: =+ER_BG!F16+ER_BG!F17+ER_BG!F18 -> 72365266.27 | H27: =+ER_BG!G16+ER_BG!G17+ER_BG!G18 -> 75531362.03
B28: Depreciaciones | C28: 0 | D28: =+ER_BG!C11+ER_BG!C15+ER_BG!C19 -> 17800000 | E28: =+ER_BG!D11+ER_BG!D15+ER_BG!D19 -> 17800000 | F28: =+ER_BG!E11+ER_BG!E15+ER_BG!E19 -> 17800000 | G28: =+ER_BG!F11+ER_BG!F15+ER_BG!F19 -> 17800000 | H28: =+ER_BG!G11+ER_BG!G15+ER_BG!G19 -> 17800000
B29: UTILIDAD OPERATIVA (U.A.I.I) | C29: 0 | D29: =+D25-D26-D27-D28 -> 20024320 | E29: =+E25-E26-E27-E28 -> 48164548.93 | F29: 80516214.46 | G29: 117609851.3 | H29: 160039901.7
B30: otros ingresos | C30: 0 | D30: =+ER_BG!C22 -> 24000000 | E30: =+ER_BG!D22 -> 24912000 | F30: =+ER_BG!E22 -> 25858656 | G30: =+ER_BG!F22 -> 26841284.93 | H30: =+ER_BG!G22 -> 27861253.76
B31: Gastos financieros | C31: 0 | D31: =+Inversiones!C151 -> 1464000 | E31: =+Inversiones!D151 -> 1627635.983 | F31: =+Inversiones!E151 -> 1810198.87 | G31: =+Inversiones!F151 -> 2013906.426 | H31: =+Inversiones!G151 -> 2241237.637
B32: Intereses | C32: 0 | D32: =+ER_BG!C21 -> 15429525.91 | E32: =+ER_BG!D21 -> 13266611.79 | F32: =+ER_BG!E21 -> 10750376.55 | G32: =+ER_BG!F21 -> 7823478.285 | H32: =+ER_BG!G21 -> 4419306.742
B33: UAI | C33: 0 | D33: =+D29-D32-D31+D30 -> 27130794.09 | E33: =+E29-E32-E31+E30 -> 58182301.16 | F33: 93814295.04 | G33: 134613751.5 | H33: 181240611.1
B34: TX | C34: 0 | D34: =+ER_BG!C24 -> 9436282.05 | E34: =+ER_BG!D24 -> 19638592.86 | F34: =+ER_BG!E24 -> 31241311.06 | G34: =+ER_BG!F24 -> 44414196.11 | H34: =+ER_BG!G24 -> 59347082
B35: U Neta | C35: =+C33-C34 -> 0 | D35: 17694512.04 | E35: 38543708.3 | F35: 62572983.98 | G35: 90199555.39 | H35: 121893529.1
B36: Dividendos | D36: =+(D35*Datos!$C$30) -> 3538902.408 | E36: =+E35*Datos!$C$30 -> 7708741.659 | F36: =+F35*Datos!$C$30 -> 12514596.8 | G36: =+G35*Datos!$C$30 -> 18039911.08 | H36: =+H35*Datos!$C$30 -> 24378705.82
E38: =+D24/SUM('Proyección ventas'!N48:N51) -> 86000 | F38: =+'Proyección ventas'!N82/SUM('Proyección ventas'!N48:N51) -> 142500
B41: FCL | C41: AÑO 0 | D41: AÑO 1 | E41: AÑO 2 | F41: AÑO 3 | G41: AÑO 4 | H41: AÑO 5
A42: + | B42: UAII | D42: =+D25-D28 -> 117800000 | E42: =+E25-E28 -> 149953795.8 | F42: =+F25-F28 -> 186506619.8 | G42: =+G25-G28 -> 228000271.2 | H42: =+H25-H28 -> 275041373.3
A43: + | B43: Depreciaciones | D43: =+D28 -> 17800000 | E43: =+E28 -> 17800000 | F43: =+F28 -> 17800000 | G43: =+G28 -> 17800000 | H43: =+H28 -> 17800000
A44: - | B44: Amortizacion de Diferidos | D44: 0 | E44: 0 | F44: 0 | G44: 0 | H44: 0
A45: - | B45: Incremento NOF KW | D45: =+D51-C51 -> 22417573.88 | E45: =+E51-D51 -> 41103856.01 | F45: 62616896.46 | G45: 87316569.6 | H45: 115606371.8
A46: - | B46: Inversion en Activo Fijo | D46: 0 | E46: 0 | F46: 0 | G46: 0 | H46: 0
A47: = | B47: Impuestos Hipoteticos | D47: =+D42*Datos!$C$29 -> 38874000 | E47: =+E42*Datos!$C$29 -> 49484752.6 | F47: =+F42*Datos!$C$29 -> 61547184.53 | G47: =+G42*Datos!$C$29 -> 75240089.49 | H47: =+H42*Datos!$C$29 -> 90763653.18
B48: Flujo de Caja Libre | C48: =+C42+C43+C44-C45-C46-C47 -> 0 | D48: =+D42+D43+D44-D45-D46-D47 -> 74308426.12 | E48: 77165187.15 | F48: 80142538.79 | G48: 83243612.1 | H48: 86471348.29
B49: Flujo de Caja Libre con VR | C49: =+C43+C44+C45-C46-C47-C48 -> 0 | D49: =+D48*-1 -> -74308426.12 | E49: =+E48 -> 77165187.15 | F49: =+F48 -> 80142538.79 | G49: =+G48 -> 83243612.1
B51: Capital de Trabajo | C51: =+C9+C10+C11-C14 -> 41000000 | D51: 63417573.88 | E51: 104521429.9 | F51: 167138326.3 | G51: 254454895.9 | H51: 370061267.7
B52: Activo Fijo Bruto | C52: =+C12+C53 -> 89000000 | D52: 89000000 | E52: 89000000 | F52: 89000000 | G52: 89000000 | H52: 89000000
B53: Depreciacion Acumulada | C53: =+C28 -> 0 | D53: =+C53+D28 -> 17800000 | E53: =+D53+E28 -> 35600000 | F53: =+E53+F28 -> 53400000 | G53: =+F53+G28 -> 71200000 | H53: =+G53+H28 -> 89000000
B55: COSTO DE CAPITAL | C55: AÑO 0 | D55: AÑO 1 | E55: AÑO 2 | F55: AÑO 3 | G55: AÑO 4 | H55: AÑO 5
B56: %D | C56: =+(C16+C17)/(C15+C19)*0 -> 0 | D56: =+(D16+D17)/(D15+D19) -> 0.6348284208 | E56: =+(E16+E17)/(E15+E19) -> 0.4343398715 | F56: 0.2418155859 | G56: 0.09670494584 | H56: 0
B57: %K | C57: =+C19/(C15+C19)*0 -> 0 | D57: =+D19/(D15+D19) -> 0.3651715792 | E57: 0.5656601285 | F57: 0.7581844141 | G57: 0.9032950542 | H57: =+H19/(H15+H19) -> 1
B58: Kd | D58: =+D32/AVERAGE(C15:D15) -> 0.1663927959 | E58: =+E32/AVERAGE(D15:E15) -> 0.1722370278 | F58: =+F32/AVERAGE(E15:F15) -> 0.182803324 | G58: =+G32/AVERAGE(F15:G15) -> 0.2076468744 | H58: =+H32/AVERAGE(G15:H15) -> 0.335706506
B59: Ke | D59: =+'CALCULO KE MODELO CAPM'!C26 -> 0.1401505896 | E59: =+'CALCULO KE MODELO CAPM'!D26 -> 0.1210078254 | F59: =+'CALCULO KE MODELO CAPM'!E26 -> 0.111548628 | G59: =+'CALCULO KE MODELO CAPM'!F26 -> 0.1067799211 | H59: =+'CALCULO KE MODELO CAPM'!G26 -> 0.06693520955
B60: Tx | C60: =+Datos!$C$29 -> 0.33 | D60: =+Datos!C17 -> 0.33 | E60: =+Datos!D17 -> 0.32835 | F60: =+Datos!E17 -> 0.32670825 | G60: =+Datos!F17 -> 0.3250747088 | H60: =+Datos!G17 -> 0.3234493352
B61: WACC | D61: =(D56*D58)+(D57*D59) -> 0.156809888 | E61: =(E56*E58)+(E57*E59) -> 0.1432587106 | F61: =(F56*F58)+(F57*F59) -> 0.128779124 | G61: =(G56*G58)+(G57*G59) -> 0.1165342543 | H61: =(H56*H58)+(H57*H59) -> 0.06693520955
B62: WACC dtx | D62: =((D56*D58)*(1-D60))+(D57*D59) -> 0.1219516989 | E62: =((E56*E58)*(1-E60))+(E57*E59) -> 0.1186950413 | F62: =((F56*F58)*(1-F60))+(F57*F59) -> 0.1143370862 | G62: =((G56*G58)*(1-G60))+(G57*G59) -> 0.1100065982 | H62: =((H56*H58)*(1-H60))+(H57*H59) -> 0.06693520955
H63: 0.3

Sheet CALCULO KE MODELO CAPM
I1: MODELO CAPM
B2: CALCULO KE POR MODELO CAMP
I3: AÑO 1 | Q3: AÑO 2 | Y3: AÑO 3 | AG3: AÑO 4 | AO3: AÑO 5
C4: AÑO 1 | D4: AÑO 2 | E4: AÑO 3 | F4: AÑO 4 | G4: AÑO 5 | I4: US 10y Yield | K4: EMBI Spread | M4: Equity Risk Premium | O4: Beta | Q4: US 10y Yield | S4: EMBI Spread | U4: Equity Risk Premium | W4: Beta | Y4: US 10y Yield | AA4: EMBI Spread | AC4: Equity Risk Premium | AE4: Beta | AG4: US 10y Yield | AI4: EMBI Spread | AK4: Equity Risk Premium | AM4: Beta | AO4: US 10y Yield | AQ4: EMBI Spread | AS4: Equity Risk Premium | AU4: Beta
B5: Activos | C5: =+'PROYECCION EEFF'!D13 -> 144683135.9 | D5: =+'PROYECCION EEFF'!E13 -> 178262897.2 | E5: =+'PROYECCION EEFF'!F13 -> 234764749 | F5: =+'PROYECCION EEFF'!G13 -> 317546101 | G5: =+'PROYECCION EEFF'!H13 -> 430388054.4 | I5: =+C13 -> 0.035 | K5: =+C9 -> 0.0181 | M5: =+C12 -> 0.045 | O5: =+C19 -> 1.542300684 | Q5: =+D13 -> 0.035 | S5: =+D9 -> 0.0181 | U5: =+D12 -> 0.045 | W5: =+D19 -> 1.116905925 | Y5: =+E13 -> 0.035 | AA5: =+E9 -> 0.0181 | AC5: =+E12 -> 0.045 | AE5: =+E19 -> 0.9067015363 | AG5: =+F13 -> 0.035 | AI5: =+F9 -> 0.0181 | AK5: =+F12 -> 0.045 | AM5: =+F19 -> 0.8007302724 | AO5: =+G13 -> 0.035 | AQ5: =+G9 -> 0.0181 | AS5: =+G12 -> 0.045 | AU5: =+G19 -> 0.7431789487
B6: Patrimonio | C6: =+'PROYECCION EEFF'!D19 -> 49158512.04 | D6: =+'PROYECCION EEFF'!E19 -> 89329856.32 | E6: =+'PROYECCION EEFF'!F19 -> 153713039.2 | F6: =+'PROYECCION EEFF'!G19 -> 245926501 | G6: =+'PROYECCION EEFF'!H19 -> 370061267.7
B7: Tasa Impositiva | C7: =+Datos!C17 -> 0.33 | D7: =+C7 -> 0.33 | E7: =+D7 -> 0.33 | F7: 0.33 | G7: 0.33 | I7: (RF) Tasa Libre Riesgo Colombia | M7: (RM) Prima Riesgo Mercado | Q7: (RF) Tasa Libre Riesgo Colombia | U7: (RM) Prima Riesgo Mercado | Y7: (RF) Tasa Libre Riesgo Colombia | AC7: (RM) Prima Riesgo Mercado | AG7: (RF) Tasa Libre Riesgo Colombia | AK7: (RM) Prima Riesgo Mercado | AO7: (RF) Tasa Libre Riesgo Colombia | AS7: (RM) Prima Riesgo Mercado
B8: B Desapalancado | C8: =+Datos!C38 -> 0.67 | D8: =+C8 -> 0.67 | E8: =+D8 -> 0.67 | F8: 0.67 | G8: 0.67 | I8: =+I5+K5 -> 0.0531 | M8: =+M5*O5 -> 0.06940353077 | Q8: =+Q5+S5 -> 0.0531 | U8: =+U5*W5 -> 0.05026076662 | Y8: =+Y5+AA5 -> 0.0531 | AC8: =+AC5*AE5 -> 0.04080156914 | AG8: =+AG5+AI5 -> 0.0531 | AK8: =+AK5*AM5 -> 0.03603286226 | AO8: =+AO5+AQ5 -> 0.0531 | AS8: =+AS5*AU5 -> 0.03344305269
B9: EMBI Spread | C9: 0.0181 | D9: =+C9 -> 0.0181 | E9: =+D9 -> 0.0181 | F9: 0.0181 | G9: 0.0181
B10: Inflacion USA | C10: 0.02 | D10: =+C10 -> 0.02 | E10: =+D10 -> 0.02 | F10: 0.02 | G10: 0.02 | K10: Costos de Capital US | O10: Devaluacion | S10: Costos de Capital US | W10: Devaluacion | AA10: Costos de Capital US | AE10: Devaluacion | AI10: Costos de Capital US | AM10: Devaluacion | AQ10: Costos de Capital US | AU10: Devaluacion
B11: Inflacion Colombia | C11: =+Datos!D11 -> 0.038 | D11: =+Datos!E11 -> 0.038 | E11: =+Datos!F11 -> 0.038 | F11: =+Datos!G11 -> 0.038 | G11: =+Datos!H11 -> 0 | K11: =+I8+M8 -> 0.1225035308 | O11: =((1+C11)/(1+C10))-1 -> 0.01764705882 | S11: =+Q8+U8 -> 0.1033607666 | W11: =((1+D11)/(1+D10))-1 -> 0.01764705882 | AA11: =+Y8+AC8 -> 0.09390156914 | AE11: =((1+E11)/(1+E10))-1 -> 0.01764705882 | AI11: =+AG8+AK8 -> 0.08913286226 | AM11: =((1+F11)/(1+F10))-1 -> 0.01764705882 | AQ11: =+AO8+AS8 -> 0.08654305269 | AU11: =((1+G11)/(1+G10))-1 -> -0.01960784314
B12: Equity Risk Premium | C12: 0.045 | D12: =+C12 -> 0.045 | E12: =+D12 -> 0.045 | F12: 0.045 | G12: 0.045
A13: Rf | B13: US 10y Yield | C13: 0.035 | D13: =+C13 -> 0.035 | E13: 0.035 | F13: 0.035 | G13: 0.035 | M13: KE Costo de Capital | U13: KE Costo de Capital | AC13: KE Costo de Capital | AK13: KE Costo de Capital | AS13: KE Costo de Capital
B14: Retorno 10y S&P 500EA | C14: 0.0283 | D14: 0.0283 | E14: 0.0283 | F14: 0.0283 | G14: 0.0283 | M14: =+K11+O11 -> 0.1401505896 | U14: =+S11+W11 -> 0.1210078254 | AC14: =+AA11+AE11 -> 0.111548628 | AK14: =+AI11+AM11 -> 0.1067799211 | AS14: =+AQ11+AU11 -> 0.06693520955
B16: Tasa Libre Riesgo Colombia | C16: =+C13+C9 -> 0.0531 | D16: =+D13+D9 -> 0.0531 | E16: =+E13+E9 -> 0.0531 | F16: =+F13+F9 -> 0.0531 | G16: =+G13+G9 -> 0.0531
A17: Rm | B17: % Deuda | C17: =+(C5-C6)/C5 -> 0.6602332972 | D17: =+(D5-D6)/D5 -> 0.4988869938 | E17: =+(E5-E6)/E5 -> 0.3452465081 | F17: =+(F5-F6)/F5 -> 0.225540795 | G17: =+(G5-G6)/G5 -> 0.1401683574
B18: % Equity | C18: =+C6/C5 -> 0.3397667028 | D18: =+D6/D5 -> 0.5011130062 | E18: =+E6/E5 -> 0.6547534919 | F18: =+F6/F5 -> 0.774459205 | G18: =+G6/G5 -> 0.8598316426
B19: Beta | C19: =C8*(1+(C17/C18)*(1-C7)) -> 1.542300684 | D19: =D8*(1+(D17/D18)*(1-D7)) -> 1.116905925 | E19: =E8*(1+(E17/E18)*(1-E7)) -> 0.9067015363 | F19: =F8*(1+(F17/F18)*(1-F7)) -> 0.8007302724 | G19: =G8*(1+(G17/G18)*(1-G7)) -> 0.7431789487
B20: Prima Riesgo Mercado | C20: =+C12*C19 -> 0.06940353077 | D20: =+D12*D19 -> 0.05026076662 | E20: =+E12*E19 -> 0.04080156914 | F20: =+F12*F19 -> 0.03603286226 | G20: =+G12*G19 -> 0.03344305269
B22: Costo de Capital US | C22: =+C16+C20 -> 0.1225035308 | D22: =+D16+D20 -> 0.1033607666 | E22: =+E16+E20 -> 0.09390156914 | F22: =+F16+F20 -> 0.08913286226 | G22: =+G16+G20 -> 0.08654305269
B24: Devaluacion | C24: =((1+C11)/(1+C10))-1 -> 0.01764705882 | D24: =((1+D11)/(1+D10))-1 -> 0.01764705882 | E24: =((1+E11)/(1+E10))-1 -> 0.01764705882 | F24: =((1+F11)/(1+F10))-1 -> 0.01764705882 | G24: =((1+G11)/(1+G10))-1 -> -0.01960784314
B26: KE | C26: =+C22+C24 -> 0.1401505896 | D26: =+D22+D24 -> 0.1210078254 | E26: =+E22+E24 -> 0.111548628 | F26: =+F22+F24 -> 0.1067799211 | G26: =+G22+G24 -> 0.06693520955

Sheet Resultados de la simulación
B5: RESUMEN DE LA INVERSIÓN
C8: Aporte de socios | D8: Deuda | E8: Operación | F8: Total Inversión
B9: Activos fijos y preoperativos | C9: 0 | D9: =+BG!C35 -> 100000000 | E9: =+Inversiones!C63+Inversiones!C66+Inversiones!C69 -> 0 | F9: =SUM(C9:E9) -> 100000000
B10: Capital de trabajo | C10: =+BG!C43 -> 30000000 | D10: 0 | E10: 0 | F10: =SUM(C10:E10) -> 30000000
C11: =SUM(C9:C10) -> 30000000 | D11: =SUM(D9:D10) -> 100000000 | E11: =SUM(E9:E10) -> 0 | F11: =SUM(C11:E11) -> 130000000
B14: DISTRIBUCIÓN DE LAS VENTAS
B17: Año | C17: Ventas totales por año
B18: =IF(C18=0,"",+ER_BG!C$6) -> Año 1 | C18: =+ER_BG!C$7 -> 342000000
B19: =IF(C19=0,"",+ER_BG!D$6) -> Año 2 | C19: =+ER_BG!D$7 -> 381996995.8
B20: =IF(C20=0,"",+ER_BG!E$6) -> Año 3 | C20: =+ER_BG!E$7 -> 426691061.4
B21: =IF(C21=0,"",+ER_BG!F$6) -> Año 4 | C21: =+ER_BG!F$7 -> 476635321.6
B22: =IF(C22=0,"",+ER_BG!G$6) -> Año 5 | C22: =+ER_BG!G$7 -> 532448155.6
C24: =SUM(C18:C23) -> 2159771534
B30: Servicios | C30: Ventas totales año 1 | T30: Etiquetas de fila | U30: Suma de Ventas totales por año
B31: =IF(C31=0,"",+'Proyección ventas'!A67) -> COCINAS INTEGRALES | C31: =+'Proyección ventas'!N67 -> 150000000 | T31: Año 1 | U31: 342000000
B32: =IF(C32=0,"",+'Proyección ventas'!A68) -> BAÑOS | C32: =+'Proyección ventas'!N68 -> 60000000 | T32: Año 2 | U32: 381996995.8
B33: =IF(C33=0,"",+'Proyección ventas'!A69) -> PISOS | C33: =+'Proyección ventas'!N69 -> 120000000 | T33: Año 3 | U33: 426691061.4
B34: =IF(C34=0,"",+'Proyección ventas'!A70) -> ASESORIAS | C34: =+'Proyección ventas'!N70 -> 12000000 | T34: Año 4 | U34: 476635321.6
C35: =SUM(C31:C34) -> 342000000 | T35: Año 5 | U35: 532448155.6
T36: Total general | U36: 2159771534
B42: COSTOS Y GASTOS
B45: Desagregación de costos fijos | C45: Costo total año 1
B46: =+ER_BG!B9 -> Costos fijos de producción | C46: =+ER_BG!C9 -> 110400000
B47: =+ER_BG!B10 -> Nómina de producción | C47: =+ER_BG!C10 -> 0
B48: =+ER_BG!B11 -> Depreciación de producción | C48: =+ER_BG!C11 -> 0
B49: =+ER_BG!B13 -> Gastos de administración | C49: =+ER_BG!C13 -> 34000000
B50: =+ER_BG!B14 -> Nómina de administración | C50: =+ER_BG!C14 -> 0
B51: =+ER_BG!B15 -> Depreciación de administración | C51: =+ER_BG!C15 -> 17800000 | S51: Suma de Ventas totales año 1
B52: =+ER_BG!B16 -> Gastos de ventas | C52: =+ER_BG!C16 -> 60000000 | S52: 228000000
B53: =+ER_BG!B17 -> Nómina de ventas | C53: =+ER_BG!C17 -> 0
B54: =+ER_BG!B19 -> Depreciación de ventas | C54: =+ER_BG!C19 -> 0
C55: =SUM(C46:C54) -> 222200000
B60: Producto | C60: Margen de contribución
B61: =+'Punto de equilibrio'!B7 -> COCINAS INTEGRALES | C61: =+'Punto de equilibrio'!H7 -> 0.7189372144
B62: =+'Punto de equilibrio'!B8 -> BAÑOS | C62: =+'Punto de equilibrio'!H8 -> 0.7189372144
B63: =+'Punto de equilibrio'!B9 -> PISOS | C63: =+'Punto de equilibrio'!H9 -> 0.7189372144
B64: =+'Punto de equilibrio'!B10 -> ASESORIAS | C64: =+'Punto de equilibrio'!H10 -> 0
B77: ESTADO DE RESULTADOS
B79: Concepto | C79: Año 1 | D79: Año 2 | E79: Año 3 | F79: Año 4 | G79: Año 5
B80: Ventas | C80: =+ER_BG!C7 -> 342000000 | D80: =+ER_BG!D7 -> 381996995.8 | E80: =+ER_BG!E7 -> 426691061.4 | F80: =+ER_BG!F7 -> 476635321.6 | G80: =+ER_BG!G7 -> 532448155.6 | S80: Etiquetas de fila | T80: Suma de Margen de contribución
B81: Costos variables | C81: =+ER_BG!C8 -> 96000000 | D81: =+ER_BG!D8 -> 99648000 | E81: =+ER_BG!E8 -> 103434624 | F81: =+ER_BG!F8 -> 107365139.7 | G81: =+ER_BG!G8 -> 111445015 | S81: COCINAS INTEGRALES | T81: 0.11
B82: Costos fijos de producción | C82: =+ER_BG!C9 -> 110400000 | D82: =+ER_BG!D9 -> 114595200 | E82: =+ER_BG!E9 -> 118949817.6 | F82: =+ER_BG!F9 -> 123469910.7 | G82: =+ER_BG!G9 -> 128161767.3 | S82: BAÑOS | T82: 0.11
B83: Nómina de producción | C83: =+ER_BG!C10 -> 0 | D83: =+ER_BG!D10 -> 0 | E83: =+ER_BG!E10 -> 0 | F83: =+ER_BG!F10 -> 0 | G83: =+ER_BG!G10 -> 0 | S83: PISOS | T83: 0.11
B84: Depreciación de producción | C84: =+ER_BG!C11 -> 0 | D84: =+ER_BG!D11 -> 0 | E84: =+ER_BG!E11 -> 0 | F84: =+ER_BG!F11 -> 0 | G84: =+ER_BG!G11 -> 0 | S84: ASESORIAS | T84: 0.12
B85: Utiilidad bruta | C85: =+ER_BG!C12 -> 135600000 | D85: =+ER_BG!D12 -> 167753795.8 | E85: =+ER_BG!E12 -> 204306619.8 | F85: =+ER_BG!F12 -> 245800271.2 | G85: =+ER_BG!G12 -> 292841373.3 | S85: Total general | T85: 0.45
B86: Gastos de administración | C86: =+ER_BG!C13 -> 34000000 | D86: =+ER_BG!D13 -> 35292000 | E86: =+ER_BG!E13 -> 36633096 | F86: =+ER_BG!F13 -> 38025153.65 | G86: =+ER_BG!G13 -> 39470109.49
B87: Nómina de administración | C87: =+ER_BG!C14 -> 0 | D87: =+ER_BG!D14 -> 0 | E87: =+ER_BG!E14 -> 0 | F87: =+ER_BG!F14 -> 0 | G87: =+ER_BG!G14 -> 0
B88: Depreciación de administración | C88: =+ER_BG!C15 -> 17800000 | D88: =+ER_BG!D15 -> 17800000 | E88: =+ER_BG!E15 -> 17800000 | F88: =+ER_BG!F15 -> 17800000 | G88: =+ER_BG!G15 -> 17800000
B89: Gastos de ventas | C89: =+ER_BG!C16 -> 60000000 | D89: =+ER_BG!D16 -> 62280000 | E89: =+ER_BG!E16 -> 64646640 | F89: =+ER_BG!F16 -> 67103212.32 | G89: =+ER_BG!G16 -> 69653134.39
B90: Nómina de ventas | C90: =+ER_BG!C17 -> 0 | D90: =+ER_BG!D17 -> 0 | E90: =+ER_BG!E17 -> 0 | F90: =+ER_BG!F17 -> 0 | G90: =+ER_BG!G17 -> 0
B91: Comisión de ventas | C91: =+ER_BG!C18 -> 3775680 | D91: =+ER_BG!D18 -> 4217246.833 | E91: =+ER_BG!E18 -> 4710669.318 | F91: =+ER_BG!F18 -> 5262053.95 | G91: =+ER_BG!G18 -> 5878227.637
B92: Depreciación de ventas | C92: =+ER_BG!C19 -> 0 | D92: =+ER_BG!D19 -> 0 | E92: =+ER_BG!E19 -> 0 | F92: =+ER_BG!F19 -> 0 | G92: =+ER_BG!G19 -> 0
B93: Utilidad operacional | C93: =+ER_BG!C20 -> 20024320 | D93: =+ER_BG!D20 -> 48164548.93 | E93: =+ER_BG!E20 -> 80516214.46 | F93: =+ER_BG!F20 -> 117609851.3 | G93: =+ER_BG!G20 -> 160039901.7
B94: Gastos Financieros | C94: =+ER_BG!C21 -> 15429525.91 | D94: =+ER_BG!D21 -> 13266611.79 | E94: =+ER_BG!E21 -> 10750376.55 | F94: =+ER_BG!F21 -> 7823478.285 | G94: =+ER_BG!G21 -> 4419306.742
B95: Utilidad antes de impuestos | C95: =+ER_BG!C23 -> 28594794.09 | D95: =+ER_BG!D23 -> 59809937.14 | E95: =+ER_BG!E23 -> 95624493.91 | F95: =+ER_BG!F23 -> 136627657.9 | G95: =+ER_BG!G23 -> 183481848.8
B96: Impuesto de Renta | C96: =+ER_BG!C24 -> 9436282.05 | D96: =+ER_BG!D24 -> 19638592.86 | E96: =+ER_BG!E24 -> 31241311.06 | F96: =+ER_BG!F24 -> 44414196.11 | G96: =+ER_BG!G24 -> 59347082
B97: Impuesto CREE | C97: =+ER_BG!C25 -> 0 | D97: =+ER_BG!D25 -> 0 | E97: =+ER_BG!E25 -> 0 | F97: =+ER_BG!F25 -> 0 | G97: =+ER_BG!G25 -> 0
B98: Utilidad neta | C98: =+ER_BG!C26 -> 19158512.04 | D98: =+ER_BG!D26 -> 40171344.28 | E98: =+ER_BG!E26 -> 64383182.85 | F98: =+ER_BG!F26 -> 92213461.81 | G98: =+ER_BG!G26 -> 124134766.8
B101: Año | C101: Margen Bruto | D101: Margen Operacional | E101: Margen antes de Tx | F101: Margen Neto
B102: =+AD152 -> Año 1 | C102: =IFERROR(AE152,0) -> 0.3964912281 | D102: 0.05855064327 | E102: 0.08361050904 | F102: 0.05601904105
B103: =+AD153 -> Año 2 | C103: 0.4391495159 | D103: 0.1260861982 | E103: 0.1565717474 | F103: 0.1051614142
B104: =+AD154 -> Año 3 | C104: 0.4788162637 | D104: 0.1886990888 | E104: 0.2241070943 | F104: 0.1508894577
B105: =+AD155 -> Año 4 | C105: 0.5156988164 | D105: 0.2467501798 | E105: 0.2866503 | F105: 0.1934675372
B106: =+AD156 -> Año 5 | C106: 0.5499903985 | D106: 0.3005736804 | E106: 0.3446004026 | F106: 0.2331396315
S108: Etiquetas de fila | T108: Suma de Ventas totales por año | U108: Suma de Punto de equilibrio
S109: Año 1 | T109: 228000000 | U109: 321689085.2
S110: Año 2 | T110: 360250560 | U110: 332531037
B111: FLUJO DE CAJA | S111: Año 3 | T111: 397308056 | U111: 343082169.5
S112: Año 4 | T112: 438211549.7 | U112: 353970938.1
S113: Año 5 | T113: 483362539 | U113: 364505821.8
B114: Flujo de caja operativo | C114: Año 0 | D114: Año 1 | E114: Año 2 | F114: Año 3 | G114: Año 4 | H114: Año 5 | S114: Total general | T114: 1907132705 | U114: 1715779052
B115: Recaudo por ventas | C115: =+'Flujo de caja'!B50 -> 0 | D115: =+'Flujo de caja'!C50 -> 366000000 | E115: =+'Flujo de caja'!D50 -> 406908995.8 | F115: =+'Flujo de caja'!E50 -> 452549717.4 | G115: =+'Flujo de caja'!F50 -> 503476606.5 | H115: =+'Flujo de caja'!G50 -> 560309409.3
B116: Pago a proveedores | C116: =+'Flujo de caja'!B51 -> 0 | D116: =+'Flujo de caja'!C51 -> 0 | E116: =+'Flujo de caja'!D51 -> 0 | F116: =+'Flujo de caja'!E51 -> 0 | G116: =+'Flujo de caja'!F51 -> 0 | H116: =+'Flujo de caja'!G51 -> 0
B117: Rotación de inventarios | C117: =+'Flujo de caja'!B52 -> 0 | D117: =+'Flujo de caja'!C52 -> 0 | E117: =+'Flujo de caja'!D52 -> 0 | F117: =+'Flujo de caja'!E52 -> 0 | G117: =+'Flujo de caja'!F52 -> 0 | H117: =+'Flujo de caja'!G52 -> 0
B118: Costos fijos de producción | C118: =+'Flujo de caja'!B53 -> 0 | D118: =+'Flujo de caja'!C53 -> 110400000 | E118: =+'Flujo de caja'!D53 -> 114595200 | F118: =+'Flujo de caja'!E53 -> 118949817.6 | G118: =+'Flujo de caja'!F53 -> 123469910.7 | H118: =+'Flujo de caja'!G53 -> 128161767.3
B119: Costos variables | C119: =+'Flujo de caja'!B54 -> 0 | D119: =+'Flujo de caja'!C54 -> 96000000 | E119: =+'Flujo de caja'!D54 -> 99648000 | F119: =+'Flujo de caja'!E54 -> 103434624 | G119: =+'Flujo de caja'!F54 -> 107365139.7 | H119: =+'Flujo de caja'!G54 -> 111445015
B120: Flujo neto producto o servicio | C120: =+'Flujo de caja'!B55 -> 0 | D120: =+'Flujo de caja'!C55 -> 159600000 | E120: =+'Flujo de caja'!D55 -> 192665795.8 | F120: =+'Flujo de caja'!E55 -> 230165275.8 | G120: =+'Flujo de caja'!F55 -> 272641556.1 | H120: =+'Flujo de caja'!G55 -> 320702627
B121: Gastos de administración | C121: =+'Flujo de caja'!B56 -> 0 | D121: =+'Flujo de caja'!C56 -> 34000000 | E121: =+'Flujo de caja'!D56 -> 35292000 | F121: =+'Flujo de caja'!E56 -> 36633096 | G121: =+'Flujo de caja'!F56 -> 38025153.65 | H121: =+'Flujo de caja'!G56 -> 39470109.49
B122: Nómina de administración | C122: =+'Flujo de caja'!B57 -> 0 | D122: =+'Flujo de caja'!C57 -> 0 | E122: =+'Flujo de caja'!D57 -> 0 | F122: =+'Flujo de caja'!E57 -> 0 | G122: =+'Flujo de caja'!F57 -> 0 | H122: =+'Flujo de caja'!G57 -> 0
B123: Gastos de ventas | C123: =+'Flujo de caja'!B58 -> 0 | D123: =+'Flujo de caja'!C58 -> 60000000 | E123: =+'Flujo de caja'!D58 -> 62280000 | F123: =+'Flujo de caja'!E58 -> 64646640 | G123: =+'Flujo de caja'!F58 -> 67103212.32 | H123: =+'Flujo de caja'!G58 -> 69653134.39
B124: Nómina de ventas | C124: =+'Flujo de caja'!B59 -> 0 | D124: =+'Flujo de caja'!C59 -> 0 | E124: =+'Flujo de caja'!D59 -> 0 | F124: =+'Flujo de caja'!E59 -> 0 | G124: =+'Flujo de caja'!F59 -> 0 | H124: =+'Flujo de caja'!G59 -> 0
B125: Comisiones de ventas | C125: =+'Flujo de caja'!B60 -> 0 | D125: =+'Flujo de caja'!C60 -> 3146400 | E125: =+'Flujo de caja'!D60 -> 3514372.361 | F125: =+'Flujo de caja'!E60 -> 3925557.765 | G125: =+'Flujo de caja'!F60 -> 4385044.958 | H125: =+'Flujo de caja'!G60 -> 4898523.031
B126: Otras cuentas por pagar | C126: =+'Flujo de caja'!B61 -> 0 | D126: =+'Flujo de caja'!C61 -> 1464000 | E126: =+'Flujo de caja'!D61 -> 7692978.916 | F126: =+'Flujo de caja'!E61 -> 0 | G126: =+'Flujo de caja'!F61 -> 0 | H126: =+'Flujo de caja'!G61 -> 0
B127: Impuestos | C127: =+'Flujo de caja'!B62 -> 0 | D127: =+'Flujo de caja'!C62 -> 0 | E127: =+'Flujo de caja'!D62 -> 10065562.05 | F127: =+'Flujo de caja'!E62 -> 0 | G127: =+'Flujo de caja'!F62 -> 0 | H127: =+'Flujo de caja'!G62 -> 0
B128: Flujo neto de la operación | C128: =+'Flujo de caja'!B63 -> 0 | D128: =+'Flujo de caja'!C63 -> 60989600 | E128: =+'Flujo de caja'!D63 -> 79886225.37 | F128: =+'Flujo de caja'!E63 -> 102808315.8 | G128: =+'Flujo de caja'!F63 -> 129087816.2 | H128: =+'Flujo de caja'!G63 -> 159148417.4
B130: Flujo de caja inversión
B131: Inversiones en Activos Fijos | C131: =+'Flujo de caja'!B66 -> 0 | D131: =+'Flujo de caja'!C66 -> 0 | E131: =+'Flujo de caja'!D66 -> 0 | F131: =+'Flujo de caja'!E66 -> 0 | G131: =+'Flujo de caja'!F66 -> 0 | H131: =+'Flujo de caja'!G66 -> 0
B132: Inversiones en adecuaciones | C132: =+'Flujo de caja'!B67 -> 0 | D132: =+'Flujo de caja'!C67 -> 0 | E132: =+'Flujo de caja'!D67 -> 0 | F132: =+'Flujo de caja'!E67 -> 0 | G132: =+'Flujo de caja'!F67 -> 0 | H132: =+'Flujo de caja'!G67 -> 0
B133: Gastos diferidos | C133: =+'Flujo de caja'!B68 -> 0 | D133: =+'Flujo de caja'!C68 -> 0 | E133: =+'Flujo de caja'!D68 -> 0 | F133: =+'Flujo de caja'!E68 -> 0 | G133: =+'Flujo de caja'!F68 -> 0 | H133: =+'Flujo de caja'!G68 -> 0
B134: Flujo neto de la inversión | C134: =+'Flujo de caja'!B69 -> 0 | D134: =+'Flujo de caja'!C69 -> 0 | E134: =+'Flujo de caja'!D69 -> 0 | F134: =+'Flujo de caja'!E69 -> 0 | G134: =+'Flujo de caja'!F69 -> 0 | H134: =+'Flujo de caja'!G69 -> 0
B136: Flujo de caja financiación
B137: Aporte de socios para inversión en activos fijos | C137: =+'Flujo de caja'!B72 -> 0 | D137: =+'Flujo de caja'!C72 -> 0 | E137: =+'Flujo de caja'!D72 -> 0 | F137: =+'Flujo de caja'!E72 -> 0 | G137: =+'Flujo de caja'!F72 -> 0 | H137: =+'Flujo de caja'!G72 -> 0
B138: Prestamos para inversión en activos fijos y diferidos | C138: =+'Flujo de caja'!B73 -> 0 | D138: =+'Flujo de caja'!C73 -> 0 | E138: =+'Flujo de caja'!D73 -> 0 | F138: =+'Flujo de caja'!E73 -> 0 | G138: =+'Flujo de caja'!F73 -> 0 | H138: =+'Flujo de caja'!G73 -> 0
B139: Aporte de socios para capital de trabajo | C139: =+'Flujo de caja'!B74 -> 0 | D139: =+'Flujo de caja'!C74 -> 0 | E139: =+'Flujo de caja'!D74 -> 0 | F139: =+'Flujo de caja'!E74 -> 0 | G139: =+'Flujo de caja'!F74 -> 0 | H139: =+'Flujo de caja'!G74 -> 0
B140: Prestamos para capital de trabajo | C140: =+'Flujo de caja'!B75 -> 0 | D140: =+'Flujo de caja'!C75 -> 0 | E140: =+'Flujo de caja'!D75 -> 0 | F140: =+'Flujo de caja'!E75 -> 0 | G140: =+'Flujo de caja'!F75 -> 0 | H140: =+'Flujo de caja'!G75 -> 0
B141: Total ingresos por financiación | C141: =+'Flujo de caja'!B76 -> 0 | D141: =+'Flujo de caja'!C76 -> 0 | E141: =+'Flujo de caja'!D76 -> 0 | F141: =+'Flujo de caja'!E76 -> 0 | G141: =+'Flujo de caja'!F76 -> 0 | H141: =+'Flujo de caja'!G76 -> 0
B142: Pago de deuda para inversiones en activos fijos y diferidos | C142: =+'Flujo de caja'!B77 -> 0 | D142: =+'Flujo de caja'!C77 -> 0 | E142: =+'Flujo de caja'!D77 -> 0 | F142: =+'Flujo de caja'!E77 -> 0 | G142: =+'Flujo de caja'!F77 -> 0 | H142: =+'Flujo de caja'!G77 -> 0
B143: Pago de deuda para capital de trabajo | C143: =+'Flujo de caja'!B78 -> 0 | D143: =+'Flujo de caja'!C78 -> 0 | E143: =+'Flujo de caja'!D78 -> 0 | F143: =+'Flujo de caja'!E78 -> 0 | G143: =+'Flujo de caja'!F78 -> 0 | H143: =+'Flujo de caja'!G78 -> 0
B144: Prestamos vigentes | C144: =+'Flujo de caja'!B79 -> 0 | D144: =+'Flujo de caja'!C79 -> 28506464.07 | E144: =+'Flujo de caja'!D79 -> 28506464.07 | F144: =+'Flujo de caja'!E79 -> 28506464.07 | G144: =+'Flujo de caja'!F79 -> 28506464.07 | H144: =+'Flujo de caja'!G79 -> 28506464.07
B145: Total egresos por financiación | C145: =+'Flujo de caja'!B80 -> 0 | D145: =+'Flujo de caja'!C80 -> 28506464.07 | E145: =+'Flujo de caja'!D80 -> 28506464.07 | F145: =+'Flujo de caja'!E80 -> 28506464.07 | G145: =+'Flujo de caja'!F80 -> 28506464.07 | H145: =+'Flujo de caja'!G80 -> 28506464.07
B146: Flujo neto de financiación | C146: =+'Flujo de caja'!B81 -> 0 | D146: =+'Flujo de caja'!C81 -> -28506464.07 | E146: =+'Flujo de caja'!D81 -> -28506464.07 | F146: =+'Flujo de caja'!E81 -> -28506464.07 | G146: =+'Flujo de caja'!F81 -> -28506464.07 | H146: =+'Flujo de caja'!G81 -> -28506464.07
B148: Flujo neto del periodo | C148: =+'Flujo de caja'!B83 -> 0 | D148: =IF(Datos!$C$5>=1,('Flujo de caja'!C83),0) -> 32483135.93 | E148: =IF(Datos!$C$5>=2,('Flujo de caja'!D83),0) -> 51379761.29 | F148: =IF(Datos!$C$5>=3,('Flujo de caja'!E83),0) -> 74301851.74 | G148: =IF(Datos!$C$5>=4,('Flujo de caja'!F83),0) -> 100581352.1 | H148: =IF(Datos!$C$5>=5,('Flujo de caja'!G83),0) -> 130641953.3
B149: Saldo inicial en caja | C149: =+'Flujo de caja'!B84 -> 0 | D149: =IF(Datos!$C$5>=1,('Flujo de caja'!C84),0) -> 41000000 | E149: =IF(Datos!$C$5>=2,('Flujo de caja'!D84),0) -> 73483135.93 | F149: =IF(Datos!$C$5>=3,('Flujo de caja'!E84),0) -> 124862897.2 | G149: =IF(Datos!$C$5>=4,('Flujo de caja'!F84),0) -> 199164749 | H149: =IF(Datos!$C$5>=5,('Flujo de caja'!G84),0) -> 299746101
B150: Saldo final en caja | C150: =+'Flujo de caja'!B85 -> 0 | D150: =IF(Datos!$C$5>=1,('Flujo de caja'!C85),0) -> 73483135.93 | E150: =IF(Datos!$C$5>=2,('Flujo de caja'!D85),0) -> 124862897.2 | F150: =IF(Datos!$C$5>=3,('Flujo de caja'!E85),0) -> 199164749 | G150: =IF(Datos!$C$5>=4,('Flujo de caja'!F85),0) -> 299746101 | H150: =IF(Datos!$C$5>=5,('Flujo de caja'!G85),0) -> 430388054.4
AD151: Año | AE151: Margen Bruto | AF151: Margen Operacional | AG151: Margen antes de Tx | AH151: Margen Neto
AD152: =IF(C$80=0,"",C$79) -> Año 1 | AE152: =+$C$85/$C$80 -> 0.3964912281 | AF152: =+$C$93/$C$80 -> 0.05855064327 | AG152: =+$C$95/$C$80 -> 0.08361050904 | AH152: =+$C$98/$C$80 -> 0.05601904105
D153: =+'Flujo de caja'!C85 -> 73483135.93 | E153: =+'Flujo de caja'!D85 -> 124862897.2 | F153: =+'Flujo de caja'!E85 -> 199164749 | G153: =+'Flujo de caja'!F85 -> 299746101 | H153: =+'Flujo de caja'!G85 -> 430388054.4 | AD153: =IF(D$80=0,"",D$79) -> Año 2 | AE153: =+$D$85/$D$80 -> 0.4391495159 | AF153: =+$D$93/$D$80 -> 0.1260861982 | AG153: =+$D$95/$D$80 -> 0.1565717474 | AH153: =+$D$98/$D$80 -> 0.1051614142
AD154: =IF(E$80=0,"",E$79) -> Año 3 | AE154: =+$E$85/$E$80 -> 0.4788162637 | AF154: =+$E$93/$E$80 -> 0.1886990888 | AG154: =+$E$95/$E$80 -> 0.2241070943 | AH154: =+$E$98/$E$80 -> 0.1508894577
AD155: =IF(F$80=0,"",F$79) -> Año 4 | AE155: =+$F$85/$F$80 -> 0.5156988164 | AF155: =+$F$93/$F$80 -> 0.2467501798 | AG155: =+$F$95/$F$80 -> 0.2866503 | AH155: =+$F$98/$F$80 -> 0.1934675372
AD156: =IF(G$80=0,"",G$79) -> Año 5 | AE156: =+$G$85/$G$80 -> 0.5499903985 | AF156: =+$G$93/$G$80 -> 0.3005736804 | AG156: =+$G$95/$G$80 -> 0.3446004026 | AH156: =+$G$98/$G$80 -> 0.2331396315
S166: Etiquetas de fila | T166: Suma de Margen Bruto | U166: Suma de Margen Operacional | V166: Suma de Margen Neto
S167: Año 1 | T167: 0.280334728 | U167: -0.1205239609 | V167: -0.04819734278
B168: BALANCE GENERAL | S168: Año 2 | T168: 0.3243529894 | U168: -0.05085571471 | V168: 0.01719404626
S169: Año 3 | T169: 0.3668718959 | U169: 0.01632029037 | V169: 0.06490227188
B170: Concepto | C170: Año 0 | D170: Año 1 | E170: Año 2 | F170: Año 3 | G170: Año 4 | H170: Año 5 | S170: Año 4 | T170: 0.4045095475 | U170: 0.07563323079 | V170: 0.1077597717
S171: Año 5 | T171: 0.438879159 | U171: 0.1296684997 | V171: 0.1473780695
B172: Activo Corriente | S172: Total general | T172: 1.81494832 | U172: 0.05024234518 | V172: 0.2890368165
B173: =+ER_BG!B37 -> Disponible | C173: =+ER_BG!C37 -> 41000000 | D173: =+ER_BG!D37 -> 73483135.93 | E173: =+ER_BG!E37 -> 124862897.2 | F173: =+ER_BG!F37 -> 199164749 | G173: =+ER_BG!G37 -> 299746101 | H173: =+ER_BG!H37 -> 430388054.4
B174: =+ER_BG!B38 -> Cuentas por cobrar | C174: =+ER_BG!C38 -> 0 | D174: =+ER_BG!D38 -> 0 | E174: =+ER_BG!E38 -> 0 | F174: =+ER_BG!F38 -> 0 | G174: =+ER_BG!G38 -> 0 | H174: =+ER_BG!H38 -> 0
B175: =+ER_BG!B39 -> Inventarios | C175: =+ER_BG!C39 -> 0 | D175: =+ER_BG!D39 -> 0 | E175: =+ER_BG!E39 -> 0 | F175: =+ER_BG!F39 -> 0 | G175: =+ER_BG!G39 -> 0 | H175: =+ER_BG!H39 -> 0
B176: =+ER_BG!B40 -> Cargos diferidos | C176: =+ER_BG!C40 -> 0 | D176: =+ER_BG!D40 -> 0 | E176: =+ER_BG!E40 -> 0 | F176: =+ER_BG!F40 -> 0 | G176: =+ER_BG!G40 -> 0 | H176: =+ER_BG!H40 -> 0
B177: =+ER_BG!B42 -> Total Activo Corriente | C177: =+ER_BG!C42 -> 41000000 | D177: =+ER_BG!D42 -> 73483135.93 | E177: =+ER_BG!E42 -> 124862897.2 | F177: =+ER_BG!F42 -> 199164749 | G177: =+ER_BG!G42 -> 299746101 | H177: =+ER_BG!H42 -> 430388054.4
B178: Activo Fijo
B179: =+ER_BG!B45 -> Inversión en Maquinaria y Equipos | C179: =+ER_BG!C45 -> 9000000 | D179: =+ER_BG!D45 -> 9000000 | E179: =+ER_BG!E45 -> 9000000 | F179: =+ER_BG!F45 -> 9000000 | G179: =+ER_BG!G45 -> 9000000 | H179: =+ER_BG!H45 -> 9000000
B180: =+ER_BG!B46 -> Inversión en Muebles y Enseres | C180: =+ER_BG!C46 -> 0 | D180: =+ER_BG!D46 -> 0 | E180: =+ER_BG!E46 -> 0 | F180: =+ER_BG!F46 -> 0 | G180: =+ER_BG!G46 -> 0 | H180: =+ER_BG!H46 -> 0
B181: =+ER_BG!B47 -> Inversión en Equipos de transporte | C181: =+ER_BG!C47 -> 0 | D181: =+ER_BG!D47 -> 0 | E181: =+ER_BG!E47 -> 0 | F181: =+ER_BG!F47 -> 0 | G181: =+ER_BG!G47 -> 0 | H181: =+ER_BG!H47 -> 0
B182: =+ER_BG!B48 -> Inversión en Equipos de computo | C182: =+ER_BG!C48 -> 0 | D182: =+ER_BG!D48 -> 0 | E182: =+ER_BG!E48 -> 0 | F182: =+ER_BG!F48 -> 0 | G182: =+ER_BG!G48 -> 0 | H182: =+ER_BG!H48 -> 0
B183: =+ER_BG!B49 -> Inversión en otros activos | C183: =+ER_BG!C49 -> 80000000 | D183: =+ER_BG!D49 -> 80000000 | E183: =+ER_BG!E49 -> 80000000 | F183: =+ER_BG!F49 -> 80000000 | G183: =+ER_BG!G49 -> 80000000 | H183: =+ER_BG!H49 -> 80000000
B184: =+ER_BG!B50 -> Depreciación acumulada | C184: =+ER_BG!C50 -> 0 | D184: =+ER_BG!D50 -> 17800000 | E184: =+ER_BG!E50 -> 35600000 | F184: =+ER_BG!F50 -> 53400000 | G184: =+ER_BG!G50 -> 71200000 | H184: =+ER_BG!H50 -> 89000000
B185: =+ER_BG!B51 -> Total propiedad, planta y equipos | C185: =+ER_BG!C51 -> 89000000 | D185: =+ER_BG!D51 -> 71200000 | E185: =+ER_BG!E51 -> 53400000 | F185: =+ER_BG!F51 -> 35600000 | G185: =+ER_BG!G51 -> 17800000 | H185: =+ER_BG!H51 -> 0
B187: Total Activos | C187: =+C177+C185 -> 130000000 | D187: =+D177+D185 -> 144683135.9 | E187: 178262897.2 | F187: 234764749 | G187: 317546101 | H187: =+H177+H185 -> 430388054.4
B189: =+ER_BG!B55 -> Pasivo Corriente
B190: =+ER_BG!B56 -> Bancos corto plazo | C190: =+ER_BG!C56 -> 0 | D190: =+ER_BG!D56 -> 0 | E190: =+ER_BG!E56 -> 0 | F190: =+ER_BG!F56 -> 0 | G190: =+ER_BG!G56 -> 0 | H190: =+ER_BG!H56 -> 0
B191: =+ER_BG!B57 -> Proveedores | C191: =+ER_BG!C57 -> 0 | D191: =+ER_BG!D57 -> 0 | E191: =+ER_BG!E57 -> 0 | F191: =+ER_BG!F57 -> 0 | G191: =+ER_BG!G57 -> 0 | H191: =+ER_BG!H57 -> 0
B192: =+ER_BG!B59 -> Impuestos por pagar | C192: =+ER_BG!C59 -> 0 | D192: =+ER_BG!D59 -> 10065562.05 | E192: =+ER_BG!E59 -> 20341467.33 | F192: =+ER_BG!F59 -> 32026422.62 | G192: =+ER_BG!G59 -> 45291205.1 | H192: =+ER_BG!H59 -> 60326786.61
B193: =+ER_BG!B61 -> Total Pasivo Corriente | C193: =+ER_BG!C61 -> 0 | D193: =+ER_BG!D61 -> 10065562.05 | E193: =+ER_BG!E61 -> 20341467.33 | F193: =+ER_BG!F61 -> 32026422.62 | G193: =+ER_BG!G61 -> 45291205.1 | H193: =+ER_BG!H61 -> 60326786.61
B194: =+ER_BG!B62 -> Pasivo de largo plazo | C194: =+ER_BG!C62 -> 0 | D194: =+ER_BG!D62 -> 0 | E194: =+ER_BG!E62 -> 0 | F194: =+ER_BG!F62 -> 0 | G194: =+ER_BG!G62 -> 0 | H194: =+ER_BG!H62 -> 0
B195: =+ER_BG!B63 -> Bancos largo plazo | C195: =+ER_BG!C63 -> 100000000 | D195: =+ER_BG!D63 -> 85459061.84 | E195: =+ER_BG!E63 -> 68591573.57 | F195: =+ER_BG!F63 -> 49025287.18 | G195: =+ER_BG!G63 -> 26328394.97 | H195: =+ER_BG!H63 -> 0
B196: =+ER_BG!B65 -> Total Pasivo de largo plazo | C196: =+ER_BG!C65 -> 100000000 | D196: =+ER_BG!D65 -> 85459061.84 | E196: =+ER_BG!E65 -> 68591573.57 | F196: =+ER_BG!F65 -> 49025287.18 | G196: =+ER_BG!G65 -> 26328394.97 | H196: =+ER_BG!H65 -> 0
B198: Total Pasivos | C198: =+C193+C196 -> 100000000 | D198: =+D193+D196 -> 95524623.89 | E198: 88933040.9 | F198: 81051709.8 | G198: 71619600.06 | H198: =+H193+H196 -> 60326786.61
B200: Patrimonio
B202: =+ER_BG!B71 -> Capital Social | C202: =+ER_BG!C71 -> 30000000 | D202: =+ER_BG!D71 -> 30000000 | E202: =+ER_BG!E71 -> 30000000 | F202: =+ER_BG!F71 -> 30000000 | G202: =+ER_BG!G71 -> 30000000 | H202: =+ER_BG!H71 -> 30000000
B203: =+ER_BG!B72 -> Utilidades de ejericios anteriores | C203: =+ER_BG!C72 -> 0 | D203: =+ER_BG!D72 -> 0 | E203: =+ER_BG!E72 -> 19158512.04 | F203: =+ER_BG!F72 -> 59329856.32 | G203: =+ER_BG!G72 -> 123713039.2 | H203: =+ER_BG!H72 -> 215926501
B204: =+ER_BG!B73 -> Utilidades del ejercicio | C204: =+ER_BG!C73 -> 0 | D204: =+ER_BG!D73 -> 19158512.04 | E204: =+ER_BG!E73 -> 40171344.28 | F204: =+ER_BG!F73 -> 64383182.85 | G204: =+ER_BG!G73 -> 92213461.81 | H204: =+ER_BG!H73 -> 124134766.8
B205: Total Patrimonio | C205: =+C202+C203+C204 -> 30000000 | D205: =+D202+D203+D204 -> 49158512.04 | E205: 89329856.32 | F205: 153713039.2 | G205: 245926501 | H205: =+H202+H203+H204 -> 370061267.7
B208: Total Pasivo + Patrimonio | C208: =+C187 -> 130000000 | D208: =+D187 -> 144683135.9 | E208: 178262897.2 | F208: 234764749 | G208: 317546101 | H208: =+H187 -> 430388054.4
B209: Total Activo | C209: =+C198+C205 -> 130000000 | D209: =+D198+D205 -> 144683135.9 | E209: 178262897.2 | F209: 234764749 | G209: 317546101 | H209: =+H198+H205 -> 430388054.4
B211: Concepto | C211: =+C170 -> Año 0 | D211: =+D170 -> Año 1 | E211: Año 2 | F211: Año 3 | G211: Año 4 | H211: Año 5
B212: Razón corriente | C212: =IFERROR((C177/C193),0) -> 0 | D212: =IFERROR((D177/D193),0) -> 7.300450344 | E212: 6.138342686 | F212: 6.21876353 | G212: 6.618196632 | H212: 7.134277798
B213: Nivel de endedudamiento | C213: =IFERROR((C198/C187),0) -> 0.7692307692 | D213: =IFERROR((D198/D187),0) -> 0.6602332972 | E213: =IFERROR((E198/E187),0) -> 0.4988869938 | F213: 0.3452465081 | G213: 0.225540795 | H213: 0.1401683574
B214: EBITDA | D214: =+C95+C94+C92+C88+C84 -> 61824320 | E214: =+D95+D94+D92+D88+D84 -> 90876548.93 | F214: =+E95+E94+E92+E88+E84 -> 124174870.5 | G214: =+F95+F94+F92+F88+F84 -> 162251136.2 | H214: =+G95+G94+G92+G88+G84 -> 205701155.5
D215: =+D214/C80 -> 0.1807728655 | E215: 0.2378985959 | F215: 0.2910182136 | G215: 0.340409384 | H215: =+H214/G80 -> 0.3863308631
B217: Razón corriente
B219: Año | C219: Indicador | L219: Etiquetas de fila | M219: Suma de Indicador
B220: =IF(C220=0,"",C$211) ->  | C220: =+C212 -> 0 | L220: Año 1 | M220: 58.67551984
B221: =IF(C221=0,"",D$211) -> Año 1 | C221: =+D212 -> 7.300450344 | L221: Año 2 | M221: 12.38965058
B222: =IF(C222=0,"",E$211) -> Año 2 | C222: =+E212 -> 6.138342686 | L222: Año 3 | M222: 5.967422633
B223: =IF(C223=0,"",F$211) -> Año 3 | C223: =+F212 -> 6.21876353 | L223: Año 4 | M223: 5.574413255
B224: =IF(C224=0,"",G$211) -> Año 4 | C224: =+G212 -> 6.618196632 | L224: Año 5 | M224: 5.86368188
B225: =IF(C225=0,"",H$211) -> Año 5 | C225: =+H212 -> 7.134277798 | L225: Total general | M225: 88.47068819
B226: =IF(C226=0,"",H$279) ->  | C226: =+H280 -> 0
B227: =IF(C227=0,"",I$279) ->  | C227: =+I280 -> 0
B228: =IF(C228=0,"",J$279) ->  | C228: =+J280 -> 0
B229: =IF(C229=0,"",K$279) ->  | C229: =+K280 -> 0
B230: =IF(C230="","",K$279) -> 
B231: =IF(C231=0,"",L$279) ->  | C231: =+L280 -> 0
B239: Nivel de endeudamiento
B241: Año | C241: Deuda | D241: Patrimonio | L241: Etiquetas de fila | M241: Suma de Deuda | N241: Suma de Patrimonio
B242: =+B220 ->  | C242: =IF(B242="","",C$213) ->  | D242: =IF(C242="","",(1-C242)) ->  | L242: Año 1 | M242: 0.8416561845 | N242: 0.1583438155
B243: =+B221 -> Año 1 | C243: =IF(B243="","",D$213) -> 0.6602332972 | D243: =IF(C243="","",(1-C243)) -> 0.3397667028 | L243: Año 2 | M243: 0.7688098604 | N243: 0.2311901396
B244: Año 2 | C244: =IF(B244="","",E$213) -> 0.4988869938 | D244: =IF(C244="","",(1-C244)) -> 0.5011130062 | L244: Año 3 | M244: 0.5784652347 | N244: 0.4215347653
B245: Año 3 | C245: =IF(B245="","",F$213) -> 0.3452465081 | D245: =IF(C245="","",(1-C245)) -> 0.6547534919 | L245: Año 4 | M245: 0.3544619586 | N245: 0.6455380414
B246: Año 4 | C246: =IF(B246="","",G$213) -> 0.225540795 | D246: =IF(C246="","",(1-C246)) -> 0.774459205 | L246: Año 5 | M246: 0.1705413118 | N246: 0.8294586882
B247: Año 5 | C247: =IF(B247="","",H$213) -> 0.1401683574 | D247: =IF(C247="","",(1-C247)) -> 0.8598316426 | L247: Total general | M247: 2.71393455 | N247: 2.28606545
C248: =IF(B248="","",H$281) -> 
C249: =IF(B249="","",I$281) -> 
C250: =IF(B250="","",J$281) -> 
C251: =IF(B251="","",K$281) -> 
C252: =IF(B252="","",G$213) -> 
C253: =IF(B253="","",L$281) -> 
B261: EBITDA
B263: Año | C263: Indicador
B264: =IF(C264="","",C$211) ->  | L264: Etiquetas de fila | M264: Suma de Indicador
C265: =IF(B265="","",D$214) ->  | L265: Año 1 | M265: 0.06706320781
B266: =+B243 -> Año 1 | C266: =IF(B266="","",D215) -> 0.1807728655 | L266: Año 2 | M266: 0.1234509419
B267: Año 2 | C267: =IF(B267="","",E$215) -> 0.2378985959 | L267: Año 3 | M267: 0.1777043943
B268: Año 3 | C268: =IF(B268="","",F$215) -> 0.2910182136 | L268: Año 4 | M268: 0.2259312155
B269: Año 4 | C269: =IF(B269="","",G$215) -> 0.340409384 | L269: Año 5 | M269: 0.270065293
B270: Año 5 | C270: =IF(B270="","",H$215) -> 0.3863308631 | L270: Total general | M270: 0.8642150525
C271: =IF(B271="","",H$282) -> 
C272: =IF(B272="","",I$282) -> 
C273: =IF(B273="","",J$282) -> 
C274: =IF(B274="","",K$282) -> 
B275: =+B253 ->  | C275: =IF(B275="","",L$282) -> 
B285: EVA
B287: Año | C287: Indicador
B288: =+B266 -> Año 1 | C288: =IFERROR((D214-(D187*'Flujo de caja'!$B$127)),"") -> 61824320
B289: Año 2 | C289: =IFERROR((E214-(E187*'Flujo de caja'!$B$127)),"") -> 90876548.93
B290: Año 3 | C290: =IFERROR((F214-(F187*'Flujo de caja'!$B$127)),"") -> 124174870.5
B291: Año 4 | C291: =IFERROR((G214-(G187*'Flujo de caja'!$B$127)),"") -> 162251136.2
... 58 more rows

Sheet Flujo de caja
C1: Proyección Flujo de caja
T2: =+Datos!C5 -> 5
A4: Flujo de caja operativo | C4: =+'Proyección ventas'!B66 -> Enero | D4: =+'Proyección ventas'!C66 -> Febrero | E4: =+'Proyección ventas'!D66 -> Marzo | F4: =+'Proyección ventas'!E66 -> Abril | G4: =+'Proyección ventas'!F66 -> Mayo | H4: =+'Proyección ventas'!G66 -> Junio | I4: =+'Proyección ventas'!H66 -> Julio | J4: =+'Proyección ventas'!I66 -> Agosto | K4: =+'Proyección ventas'!J66 -> Septiembre | L4: =+'Proyección ventas'!K66 -> Octubre | M4: =+'Proyección ventas'!L66 -> Noviembre | N4: =+'Proyección ventas'!M66 -> Diciembre | O4: =+'Proyección ventas'!P66 -> AÑO2 | P4: =+'Proyección ventas'!Q66 -> AÑO3 | Q4: =+'Proyección ventas'!R66 -> AÑO4 | R4: =+'Proyección ventas'!S66 -> AÑO5
A5: Recaudo por ventas | B5: 0 | C5: ='Proyección ventas'!B82+'Proyección ventas'!B96 -> 30500000 | D5: ='Proyección ventas'!C82+'Proyección ventas'!C96 -> 30500000 | E5: ='Proyección ventas'!D82+'Proyección ventas'!D96 -> 30500000 | F5: ='Proyección ventas'!E82+'Proyección ventas'!E96 -> 30500000 | G5: ='Proyección ventas'!F82+'Proyección ventas'!F96 -> 30500000 | H5: ='Proyección ventas'!G82+'Proyección ventas'!G96 -> 30500000 | I5: ='Proyección ventas'!H82+'Proyección ventas'!H96 -> 30500000 | J5: ='Proyección ventas'!I82+'Proyección ventas'!I96 -> 30500000 | K5: ='Proyección ventas'!J82+'Proyección ventas'!J96 -> 30500000 | L5: ='Proyección ventas'!K82+'Proyección ventas'!K96 -> 30500000 | M5: ='Proyección ventas'!L82+'Proyección ventas'!L96 -> 30500000 | N5: ='Proyección ventas'!M82+'Proyección ventas'!M96 -> 30500000 | O5: =+'Proyección ventas'!P82+'Proyección ventas'!P96 -> 406908995.8 | P5: =+'Proyección ventas'!Q82+'Proyección ventas'!Q96 -> 452549717.4 | Q5: =+'Proyección ventas'!R82+'Proyección ventas'!R96 -> 503476606.5 | R5: =+'Proyección ventas'!S82+'Proyección ventas'!S96 -> 560309409.3
A6: Pago a proveedores | B6: 0 | C6: 0 | D6: 0 | E6: 0 | F6: 0 | G6: 0 | H6: 0 | I6: 0 | J6: 0 | K6: 0 | L6: 0 | M6: 0 | N6: 0 | O6: 0 | P6: 0 | Q6: 0 | R6: 0
A7: Rotación de inventarios | B7: 0 | C7: 0 | D7: 0 | E7: 0 | F7: 0 | G7: 0 | H7: 0 | I7: 0 | J7: 0 | K7: 0 | L7: 0 | M7: 0 | N7: 0 | O7: 0 | P7: 0 | Q7: 0 | R7: 0
A8: Costos fijos de producción | B8: 0 | C8: =+'costos y gastos'!B35 -> 9200000 | D8: =+'costos y gastos'!C35 -> 9200000 | E8: =+'costos y gastos'!D35 -> 9200000 | F8: =+'costos y gastos'!E35 -> 9200000 | G8: =+'costos y gastos'!F35 -> 9200000 | H8: =+'costos y gastos'!G35 -> 9200000 | I8: =+'costos y gastos'!H35 -> 9200000 | J8: =+'costos y gastos'!I35 -> 9200000 | K8: =+'costos y gastos'!J35 -> 9200000 | L8: =+'costos y gastos'!K35 -> 9200000 | M8: =+'costos y gastos'!L35 -> 9200000 | N8: =+'costos y gastos'!M35 -> 9200000 | O8: =+'costos y gastos'!O35 -> 114595200 | P8: =+'costos y gastos'!P35 -> 118949817.6 | Q8: =+'costos y gastos'!Q35 -> 123469910.7 | R8: =+'costos y gastos'!R35 -> 128161767.3
A9: Costos Variables | B9: 0 | C9: =+'costos y gastos'!B16 -> 8000000 | D9: =+'costos y gastos'!C16 -> 8000000 | E9: =+'costos y gastos'!D16 -> 8000000 | F9: =+'costos y gastos'!E16 -> 8000000 | G9: =+'costos y gastos'!F16 -> 8000000 | H9: =+'costos y gastos'!G16 -> 8000000 | I9: =+'costos y gastos'!H16 -> 8000000 | J9: =+'costos y gastos'!I16 -> 8000000 | K9: =+'costos y gastos'!J16 -> 8000000 | L9: =+'costos y gastos'!K16 -> 8000000 | M9: =+'costos y gastos'!L16 -> 8000000 | N9: =+'costos y gastos'!M16 -> 8000000 | O9: =+'costos y gastos'!O6 -> 99648000 | P9: =+'costos y gastos'!P6 -> 103434624 | Q9: =+'costos y gastos'!Q6 -> 107365139.7 | R9: =+'costos y gastos'!R6 -> 111445015
A10: Flujo neto producto o servicio | B10: 0 | C10: =+C5-C6-C8-C9-C7 -> 13300000 | D10: 13300000 | E10: 13300000 | F10: 13300000 | G10: 13300000 | H10: 13300000 | I10: 13300000 | J10: 13300000 | K10: 13300000 | L10: 13300000 | M10: 13300000 | N10: 13300000 | O10: 192665795.8 | P10: 230165275.8 | Q10: 272641556.1 | R10: 320702627
A12: Gastos de administración | B12: 0 | C12: =+'costos y gastos'!B56 -> 12000000 | D12: =+'costos y gastos'!C56 -> 2000000 | E12: =+'costos y gastos'!D56 -> 2000000 | F12: =+'costos y gastos'!E56 -> 2000000 | G12: =+'costos y gastos'!F56 -> 2000000 | H12: =+'costos y gastos'!G56 -> 2000000 | I12: =+'costos y gastos'!H56 -> 2000000 | J12: =+'costos y gastos'!I56 -> 2000000 | K12: =+'costos y gastos'!J56 -> 2000000 | L12: =+'costos y gastos'!K56 -> 2000000 | M12: =+'costos y gastos'!L56 -> 2000000 | N12: =+'costos y gastos'!M56 -> 2000000 | O12: =+'costos y gastos'!O56 -> 35292000 | P12: =+'costos y gastos'!P56 -> 36633096 | Q12: =+'costos y gastos'!Q56 -> 38025153.65 | R12: =+'costos y gastos'!R56 -> 39470109.49
A13: Costos variables | B13: 0 | C13: 0 | D13: 0 | E13: 0 | F13: 0 | G13: 0 | H13: 0 | I13: 0 | J13: 0 | K13: 0 | L13: 0 | M13: 0 | N13: 0 | O13: 0 | P13: 0 | Q13: 0 | R13: 0
A14: Gastos de ventas | B14: 0 | C14: =+'costos y gastos'!B77 -> 5000000 | D14: =+'costos y gastos'!C77 -> 5000000 | E14: =+'costos y gastos'!D77 -> 5000000 | F14: =+'costos y gastos'!E77 -> 5000000 | G14: =+'costos y gastos'!F77 -> 5000000 | H14: =+'costos y gastos'!G77 -> 5000000 | I14: =+'costos y gastos'!H77 -> 5000000 | J14: =+'costos y gastos'!I77 -> 5000000 | K14: =+'costos y gastos'!J77 -> 5000000 | L14: =+'costos y gastos'!K77 -> 5000000 | M14: =+'costos y gastos'!L77 -> 5000000 | N14: =+'costos y gastos'!M77 -> 5000000 | O14: =+'costos y gastos'!O77 -> 62280000 | P14: =+'costos y gastos'!P77 -> 64646640 | Q14: =+'costos y gastos'!Q77 -> 67103212.32 | R14: =+'costos y gastos'!R77 -> 69653134.39
A15: Nómina de ventas | B15: 0 | C15: 0 | D15: 0 | E15: 0 | F15: 0 | G15: 0 | H15: 0 | I15: 0 | J15: 0 | K15: 0 | L15: 0 | M15: 0 | N15: 0 | O15: 0 | P15: =+O15 -> 0 | Q15: =+P15 -> 0 | R15: 0
A16: Comisiones de ventas | B16: 0 | C16: =+'costos y gastos'!B120+'costos y gastos'!B134 -> 0 | D16: =+'costos y gastos'!C120+'costos y gastos'!C134 -> 0 | E16: =+'costos y gastos'!D120+'costos y gastos'!D134 -> 629280 | F16: =+'costos y gastos'!E120+'costos y gastos'!E134 -> 0 | G16: =+'costos y gastos'!F120+'costos y gastos'!F134 -> 629280 | H16: =+'costos y gastos'!G120+'costos y gastos'!G134 -> 0 | I16: =+'costos y gastos'!H120+'costos y gastos'!H134 -> 629280 | J16: =+'costos y gastos'!I120+'costos y gastos'!I134 -> 0 | K16: =+'costos y gastos'!J120+'costos y gastos'!J134 -> 629280 | L16: =+'costos y gastos'!K120+'costos y gastos'!K134 -> 0 | M16: =+'costos y gastos'!L120+'costos y gastos'!L134 -> 629280 | N16: =+'costos y gastos'!M120+'costos y gastos'!M134 -> 0 | O16: =+'costos y gastos'!O120+'costos y gastos'!O134+'costos y gastos'!O135 -> 3514372.361 | P16: =+'costos y gastos'!P120+'costos y gastos'!P134+'costos y gastos'!P135 -> 3925557.765 | Q16: =+'costos y gastos'!Q120+'costos y gastos'!Q134+'costos y gastos'!Q135 -> 4385044.958 | R16: =+'costos y gastos'!R120+'costos y gastos'!R134+'costos y gastos'!R135 -> 4898523.031
A17: Otras cuentas por pagar | B17: 0 | C17: =+(C5*4)/1000 -> 122000 | D17: =+(D5*4)/1000 -> 122000 | E17: 122000 | F17: 122000 | G17: 122000 | H17: 122000 | I17: 122000 | J17: 122000 | K17: 122000 | L17: 122000 | M17: 122000 | N17: 122000 | O17: 1627635.983 | P17: 1810198.87 | Q17: 2013906.426 | R17: 2241237.637
A18: Impuestos | B18: 0 | C18: 0 | D18: 0 | E18: 0 | F18: 0 | G18: 0 | H18: 0 | I18: 0 | J18: 0 | K18: 0 | L18: 0 | M18: 0 | N18: 0 | O18: =+Inversiones!D142 -> 10065562.05 | P18: =+Inversiones!E142 -> 20341467.33 | Q18: =+Inversiones!F142 -> 32026422.62 | R18: =+Inversiones!G142 -> 45291205.1
A19: Flujo neto de la operación | B19: =+B10-B12-B13-B14-B15-B16 -> 0 | C19: =+C10-C12-C13-C14-C15-C16-C18-C17 -> -3822000 | D19: =+D10-D12-D13-D14-D15-D16-D18-D17 -> 6178000 | E19: 5548720 | F19: 6178000 | G19: 5548720 | H19: 6178000 | I19: 5548720 | J19: 6178000 | K19: 5548720 | L19: 6178000 | M19: 5548720 | N19: 6178000 | O19: 79886225.37 | P19: 102808315.8 | Q19: 129087816.2 | R19: 159148417.4
A21: Flujo de caja inversión
A22: Inversiones en Activos Fijos | B22: 0 | C22: =+Inversiones!AJ61 -> 0 | D22: =+Inversiones!AK61 -> 0 | E22: =+Inversiones!AL61 -> 0 | F22: =+Inversiones!AM61 -> 0 | G22: =+Inversiones!AN61 -> 0 | H22: =+Inversiones!AO61 -> 0 | I22: =+Inversiones!AP61 -> 0 | J22: =+Inversiones!AQ61 -> 0 | K22: =+Inversiones!AR61 -> 0 | L22: =+Inversiones!AS61 -> 0 | M22: =+Inversiones!AT61 -> 0 | N22: =+Inversiones!AU61 -> 0 | O22: =+Inversiones!AV61 -> 0 | P22: =+Inversiones!AW61 -> 0 | Q22: =+Inversiones!AX61 -> 0 | R22: =+Inversiones!AY61 -> 0
A23: Inversiones en adecuaciones | B23: 0 | C23: =+Inversiones!AJ62 -> 0 | D23: =+Inversiones!AK62 -> 0 | E23: =+Inversiones!AL62 -> 0 | F23: =+Inversiones!AM62 -> 0 | G23: =+Inversiones!AN62 -> 0 | H23: =+Inversiones!AO62 -> 0 | I23: =+Inversiones!AP62 -> 0 | J23: =+Inversiones!AQ62 -> 0 | K23: =+Inversiones!AR62 -> 0 | L23: =+Inversiones!AS62 -> 0 | M23: =+Inversiones!AT62 -> 0 | N23: =+Inversiones!AU62 -> 0 | O23: =+Inversiones!AV62 -> 0 | P23: =+Inversiones!AW62 -> 0 | Q23: =+Inversiones!AX62 -> 0 | R23: =+Inversiones!AY62 -> 0
A24: Gastos diferidos | B24: 0 | C24: =+Inversiones!AJ63 -> 0 | D24: =+Inversiones!AK63 -> 0 | E24: =+Inversiones!AL63 -> 0 | F24: =+Inversiones!AM63 -> 0 | G24: =+Inversiones!AN63 -> 0 | H24: =+Inversiones!AO63 -> 0 | I24: =+Inversiones!AP63 -> 0 | J24: =+Inversiones!AQ63 -> 0 | K24: =+Inversiones!AR63 -> 0 | L24: =+Inversiones!AS63 -> 0 | M24: =+Inversiones!AT63 -> 0 | N24: =+Inversiones!AU63 -> 0 | O24: =+Inversiones!AV63 -> 0 | P24: =+Inversiones!AW63 -> 0 | Q24: =+Inversiones!AX63 -> 0 | R24: =+Inversiones!AY63 -> 0
A25: Flujo neto de la inversión | B25: =SUM(B22:B24) -> 0 | C25: =SUM(C22:C24) -> 0 | D25: 0 | E25: 0 | F25: 0 | G25: 0 | H25: 0 | I25: 0 | J25: 0 | K25: 0 | L25: 0 | M25: 0 | N25: 0 | O25: 0 | P25: 0 | Q25: 0 | R25: 0
A27: Flujo de caja financiación
A28: Aporte de socios para inversión en activos fijos | B28: 0 | C28: =+Inversiones!XR64 -> 0 | D28: =+Inversiones!XS64 -> 0 | E28: =+Inversiones!XT64 -> 0 | F28: =+Inversiones!XU64 -> 0 | G28: =+Inversiones!XV64 -> 0 | H28: =+Inversiones!XW64 -> 0 | I28: =+Inversiones!XX64 -> 0 | J28: =+Inversiones!XY64 -> 0 | K28: =+Inversiones!XZ64 -> 0 | L28: =+Inversiones!YA64 -> 0 | M28: =+Inversiones!YB64 -> 0 | N28: =+Inversiones!YC64 -> 0 | O28: =+Inversiones!YD64 -> 0 | P28: =+Inversiones!YE64 -> 0 | Q28: =+Inversiones!YF64 -> 0 | R28: =+Inversiones!YG64 -> 0
A29: Prestamos para inversión en activos fijos y diferidos | B29: 0 | C29: 0 | D29: =+C29 -> 0 | E29: =+D29 -> 0 | F29: 0 | G29: 0 | H29: 0 | I29: 0 | J29: 0 | K29: 0 | L29: 0 | M29: 0 | N29: 0 | O29: =+Inversiones!FM64 -> 0 | P29: =+Inversiones!FN64 -> 0 | Q29: =+Inversiones!FO64 -> 0 | R29: =+Inversiones!FP64 -> 0
A30: Aporte de socios para capital de trabajo | B30: 0 | C30: =+Inversiones!XR86 -> 0 | D30: =+Inversiones!XS86 -> 0 | E30: =+Inversiones!XT86 -> 0 | F30: =+Inversiones!XU86 -> 0 | G30: =+Inversiones!XV86 -> 0 | H30: =+Inversiones!XW86 -> 0 | I30: =+Inversiones!XX86 -> 0 | J30: =+Inversiones!XY86 -> 0 | K30: =+Inversiones!XZ86 -> 0 | L30: =+Inversiones!YA86 -> 0 | M30: =+Inversiones!YB86 -> 0 | N30: =+Inversiones!YC86 -> 0 | O30: =+Inversiones!YD86 -> 0 | P30: =+Inversiones!YE86 -> 0 | Q30: =+Inversiones!YF86 -> 0 | R30: =+Inversiones!YG86 -> 0
A31: Prestamos para capital de trabajo | B31: 0 | C31: =+Inversiones!FA86 -> 0 | D31: =+Inversiones!FB86 -> 0 | E31: =+Inversiones!FC86 -> 0 | F31: =+Inversiones!FD86 -> 0 | G31: =+Inversiones!FE86 -> 0 | H31: =+Inversiones!FF86 -> 0 | I31: =+Inversiones!FG86 -> 0 | J31: =+Inversiones!FH86 -> 0 | K31: =+Inversiones!FI86 -> 0 | L31: =+Inversiones!FJ86 -> 0 | M31: =+Inversiones!FK86 -> 0 | N31: =+Inversiones!FL86 -> 0 | O31: =+Inversiones!FM86 -> 0 | P31: =+Inversiones!FN86 -> 0 | Q31: =+Inversiones!FO86 -> 0 | R31: =+Inversiones!FP86 -> 0
A32: Total ingresos por financiación | B32: =SUM(B28:B31) -> 0 | C32: 0 | D32: 0 | E32: 0 | F32: 0 | G32: 0 | H32: 0 | I32: 0 | J32: 0 | K32: 0 | L32: 0 | M32: 0 | N32: 0 | O32: 0 | P32: 0 | Q32: 0 | R32: 0
A33: Pago de deuda para inversiones en activos fijos y diferidos | B33: 0 | C33: =+Inversiones!JS64 -> 0 | D33: =+Inversiones!JT64 -> 0 | E33: =+Inversiones!JU64 -> 0 | F33: =+Inversiones!JV64 -> 0 | G33: =+Inversiones!JW64 -> 0 | H33: =+Inversiones!JX64 -> 0 | I33: =+Inversiones!JY64 -> 0 | J33: =+Inversiones!JZ64 -> 0 | K33: =+Inversiones!KA64 -> 0 | L33: =+Inversiones!KB64 -> 0 | M33: =+Inversiones!KC64 -> 0 | N33: =+Inversiones!KD64 -> 0 | O33: =+Inversiones!KE64 -> 0 | P33: =+Inversiones!KF64 -> 0 | Q33: =+Inversiones!KG64 -> 0 | R33: =+Inversiones!KH64 -> 0
A34: Pago de deuda para capital de trabajo | B34: 0 | C34: =+Inversiones!JS86 -> 0 | D34: =+Inversiones!JT86 -> 0 | E34: =+Inversiones!JU86 -> 0 | F34: =+Inversiones!JV86 -> 0 | G34: =+Inversiones!JW86 -> 0 | H34: =+Inversiones!JX86 -> 0 | I34: =+Inversiones!JY86 -> 0 | J34: =+Inversiones!JZ86 -> 0 | K34: =+Inversiones!KA86 -> 0 | L34: =+Inversiones!KB86 -> 0 | M34: =+Inversiones!KC86 -> 0 | N34: =+Inversiones!KD86 -> 0 | O34: =+Inversiones!KE86 -> 0 | P34: =+Inversiones!KF86 -> 0 | Q34: =+Inversiones!KG86 -> 0 | R34: =+Inversiones!KH86 -> 0
A35: Prestamos vigentes | B35: 0 | C35: =+amortización!C16 -> 2375538.673 | D35: =+C35 -> 2375538.673 | E35: =+D35 -> 2375538.673 | F35: 2375538.673 | G35: 2375538.673 | H35: 2375538.673 | I35: 2375538.673 | J35: 2375538.673 | K35: 2375538.673 | L35: 2375538.673 | M35: 2375538.673 | N35: 2375538.673 | O35: =+Inversiones!D144 -> 28506464.07 | P35: =+Inversiones!E144 -> 28506464.07 | Q35: =+Inversiones!F144 -> 28506464.07 | R35: =+Inversiones!G144 -> 28506464.07
A36: Total egresos por financiación | B36: =SUM(B33:B35) -> 0 | C36: =SUM(C33:C35) -> 2375538.673 | D36: =SUM(D33:D35) -> 2375538.673 | E36: 2375538.673 | F36: 2375538.673 | G36: 2375538.673 | H36: 2375538.673 | I36: 2375538.673 | J36: 2375538.673 | K36: 2375538.673 | L36: 2375538.673 | M36: 2375538.673 | N36: 2375538.673 | O36: 28506464.07 | P36: 28506464.07 | Q36: 28506464.07 | R36: 28506464.07
A37: Flujo neto de financiación | B37: =+B32-B36 -> 0 | C37: =+C32-C36 -> -2375538.673 | D37: -2375538.673 | E37: -2375538.673 | F37: -2375538.673 | G37: -2375538.673 | H37: -2375538.673 | I37: -2375538.673 | J37: -2375538.673 | K37: -2375538.673 | L37: -2375538.673 | M37: -2375538.673 | N37: -2375538.673 | O37: -28506464.07 | P37: -28506464.07 | Q37: -28506464.07 | R37: -28506464.07
A39: Flujo neto del periodo | B39: =+B19-B25+B37 -> 0 | C39: -6197538.673 | D39: 3802461.327 | E39: 3173181.327 | F39: 3802461.327 | G39: 3173181.327 | H39: 3802461.327 | I39: 3173181.327 | J39: 3802461.327 | K39: 3173181.327 | L39: 3802461.327 | M39: 3173181.327 | N39: 3802461.327 | O39: 51379761.29 | P39: 74301851.74 | Q39: 100581352.1 | R39: 130641953.3
A40: Saldo inicial en caja | B40: 0 | C40: =+ER_BG!C37 -> 41000000 | D40: =+C41 -> 34802461.33 | E40: 38604922.65 | F40: 41778103.98 | G40: 45580565.31 | H40: 48753746.64 | I40: 52556207.96 | J40: 55729389.29 | K40: 59531850.62 | L40: 62705031.95 | M40: 66507493.27 | N40: 69680674.6 | O40: 73483135.93 | P40: 124862897.2 | Q40: 199164749 | R40: 299746101
A41: Saldo final en caja | B41: =+B39+B40 -> 0 | C41: =+C39+C40 -> 34802461.33 | D41: 38604922.65 | E41: 41778103.98 | F41: 45580565.31 | G41: 48753746.64 | H41: 52556207.96 | I41: 55729389.29 | J41: 59531850.62 | K41: 62705031.95 | L41: 66507493.27 | M41: 69680674.6 | N41: 73483135.93 | O41: 124862897.2 | P41: 199164749 | Q41: 299746101 | R41: 430388054.4
A43: Saldo negativo a gestionar | B43: =IF(B41<0,"Deficit","Superavit") -> Superavit | C43: =IF(C41<0,"Deficit","Superavit") -> Superavit | D43: Superavit | E43: Superavit | F43: Superavit | G43: Superavit | H43: Superavit | I43: Superavit | J43: =IF(J41<0,"Deficit","Superavit") -> Superavit | K43: Superavit | L43: Superavit | M43: Superavit | N43: Superavit | O43: Superavit | P43: Superavit | Q43: Superavit | R43: Superavit
A49: Flujo de caja operativo | B49: Año 0 | C49: Año 1 | D49: Año 2 | E49: Año 3 | F49: Año 4 | G49: Año 5
A50: Recaudo por ventas | B50: =+B5 -> 0 | C50: =SUM(C5:N5) -> 366000000 | D50: =+O5 -> 406908995.8 | E50: 452549717.4 | F50: 503476606.5 | G50: 560309409.3
A51: Pago a proveedores | B51: 0 | C51: 0 | D51: 0 | E51: 0 | F51: 0 | G51: 0
A52: Rotación de inventarios | B52: 0 | C52: 0 | D52: =SUM(O7:R7) -> 0 | E52: 0 | F52: 0 | G52: 0
A53: Costos fijos de producción | B53: 0 | C53: 110400000 | D53: =+O8 -> 114595200 | E53: 118949817.6 | F53: 123469910.7 | G53: 128161767.3
A54: Costos variables | B54: 0 | C54: 96000000 | D54: 99648000 | E54: 103434624 | F54: 107365139.7 | G54: 111445015
A55: Flujo neto producto o servicio | B55: 0 | C55: 159600000 | D55: 192665795.8 | E55: 230165275.8 | F55: 272641556.1 | G55: 320702627
A56: Gastos de administración | B56: =+B12 -> 0 | C56: =SUM(C12:N12) -> 34000000 | D56: =+O12 -> 35292000 | E56: 36633096 | F56: 38025153.65 | G56: 39470109.49
A57: Costos variables | B57: 0 | C57: 0 | D57: 0 | E57: 0 | F57: 0 | G57: 0
A58: Gastos de ventas | B58: 0 | C58: 60000000 | D58: 62280000 | E58: 64646640 | F58: 67103212.32 | G58: 69653134.39
A59: Nómina de ventas | B59: 0 | C59: 0 | D59: 0 | E59: 0 | F59: 0 | G59: 0
A60: Comisiones de ventas | B60: 0 | C60: 3146400 | D60: =+O16 -> 3514372.361 | E60: =+P16 -> 3925557.765 | F60: =+Q16 -> 4385044.958 | G60: =+R16 -> 4898523.031
A61: Otras cuentas por pagar | B61: 0 | C61: =SUM(C17:N17) -> 1464000 | D61: =SUM(O17:R17) -> 7692978.916 | E61: 0 | F61: 0 | G61: 0
A62: Impuestos | B62: 0 | C62: 0 | D62: =+O18 -> 10065562.05 | E62: 0 | F62: 0 | G62: 0
A63: Flujo neto de la operación | B63: 0 | C63: 60989600 | D63: =+O19 -> 79886225.37 | E63: =+P19 -> 102808315.8 | F63: =+Q19 -> 129087816.2 | G63: =+R19 -> 159148417.4
A65: Flujo de caja inversión
A66: Inversiones en Activos Fijos | B66: 0 | C66: =SUM(C22:N22) -> 0 | D66: =SUM(O22:R22) -> 0 | E66: 0 | F66: 0 | G66: 0
A67: Inversiones en adecuaciones | B67: =+B23 -> 0 | C67: =SUM(C23:N23) -> 0 | D67: =SUM(O23:R23) -> 0 | E67: 0 | F67: 0 | G67: 0
A68: Gastos diferidos | B68: =+B24 -> 0 | C68: =SUM(C24:N24) -> 0 | D68: =SUM(O24:R24) -> 0 | E68: 0 | F68: 0 | G68: 0
A69: Flujo neto de la inversión | B69: =+B25 -> 0 | C69: =SUM(C25:N25) -> 0 | D69: =+O25 -> 0 | E69: =+P25 -> 0 | F69: =+Q25 -> 0 | G69: =+R25 -> 0
A71: Flujo de caja financiación
A72: Aporte de socios para inversión en activos fijos | B72: =+B28 -> 0 | C72: =SUM(C28:N28) -> 0 | D72: =+O28 -> 0 | E72: 0 | F72: 0 | G72: 0
A73: Prestamos para inversión en activos fijos y diferidos | B73: 0 | C73: 0 | D73: 0 | E73: 0 | F73: 0 | G73: 0
A74: Aporte de socios para capital de trabajo | B74: 0 | C74: 0 | D74: 0 | E74: 0 | F74: 0 | G74: 0
A75: Prestamos para capital de trabajo | B75: 0 | C75: 0 | D75: 0 | E75: 0 | F75: 0 | G75: 0
A76: Total ingresos por financiación | B76: 0 | C76: 0 | D76: 0 | E76: 0 | F76: 0 | G76: 0
A77: Pago de deuda para inversiones en activos fijos y diferidos | B77: 0 | C77: 0 | D77: =+O24 -> 0 | E77: 0 | F77: 0 | G77: 0
A78: Pago de deuda para capital de trabajo | B78: 0 | C78: 0 | D78: 0 | E78: 0 | F78: 0 | G78: 0
A79: Prestamos vigentes | B79: 0 | C79: 28506464.07 | D79: =+O35 -> 28506464.07 | E79: 28506464.07 | F79: 28506464.07 | G79: 28506464.07
A80: Total egresos por financiación | B80: 0 | C80: 28506464.07 | D80: 28506464.07 | E80: 28506464.07 | F80: 28506464.07 | G80: 28506464.07
A81: Flujo neto de financiación | B81: 0 | C81: -28506464.07 | D81: -28506464.07 | E81: -28506464.07 | F81: -28506464.07 | G81: -28506464.07
A83: Flujo neto del periodo | B83: =+B39 -> 0 | C83: =SUM(C39:N39) -> 32483135.93 | D83: =+O39 -> 51379761.29 | E83: =+P39 -> 74301851.74 | F83: =+Q39 -> 100581352.1 | G83: =+R39 -> 130641953.3
A84: Saldo inicial en caja | B84: =+B40 -> 0 | C84: =+C40 -> 41000000 | D84: =+C85 -> 73483135.93 | E84: =+D85 -> 124862897.2 | F84: 199164749 | G84: 299746101
A85: Saldo final en caja | B85: =+B41 -> 0 | C85: =+C83+C84 -> 73483135.93 | D85: =+D83+D84 -> 124862897.2 | E85: =+E83+E84 -> 199164749 | F85: 299746101 | G85: 430388054.4
A87: SALDOS MAXIMOS EN CAJA | C87: =MAX($B$41:$N$41) -> 73483135.93 | D87: =MAX($B$41:$R$41) -> 430388054.4 | E87: =MAX($B$41:$R$41) -> 430388054.4 | F87: =MAX($B$41:$R$41) -> 430388054.4 | G87: =MAX($B$41:$R$41) -> 430388054.4
A88: SALDOS MINIMOS EN CAJA | C88: =MIN($B$41:$N$41) -> 0 | D88: =MIN($B$41:$R$41) -> 0 | E88: =MIN($B$41:$R$41) -> 0 | F88: =MIN($B$41:$R$41) -> 0 | G88: =MIN($B$41:$R$41) -> 0
A93: FLUJO DE CAJA LIBRE
A94: FCL | B94: Año 0 | C94: Año 1 | D94: Año 2 | E94: Año 3 | F94: Año 4 | G94: Año 5
A95: EBITDA | C95: =+'Resultados de la simulación'!D214 -> 61824320 | D95: =+'Resultados de la simulación'!E214 -> 90876548.93 | E95: =+'Resultados de la simulación'!F214 -> 124174870.5 | F95: =+'Resultados de la simulación'!G214 -> 162251136.2 | G95: =+'Resultados de la simulación'!H214 -> 205701155.5
A96: Impuesto operativo | C96: =IF(C95<=0,0,ER_BG!C20*(Datos!C17+Datos!C18)) -> 6608025.6 | D96: =IF(D95<=0,0,ER_BG!D20*(Datos!D17+Datos!D18)) -> 15814829.64 | E96: =IF(E95<=0,0,ER_BG!E20*(Datos!E17+Datos!E18)) -> 26305311.52 | F96: =IF(F95<=0,0,ER_BG!F20*(Datos!F17+Datos!F18)) -> 38231988.15 | G96: =IF(G95<=0,0,ER_BG!G20*(Datos!G17+Datos!G18)) -> 51764799.83
A97: FCO | C97: =+C95-C96 -> 55216294.4 | D97: =+D95-D96 -> 75061719.29 | E97: 97869558.94 | F97: 124019148.1 | G97: 153936355.7
A98: Variación KTNO | C98: =+(ER_BG!D38-ER_BG!C38)+(ER_BG!D39-ER_BG!C39)-(ER_BG!D57-ER_BG!C57) -> 0 | D98: =+(ER_BG!E38-ER_BG!D38)+(ER_BG!E39-ER_BG!D39)-(ER_BG!E57-ER_BG!D57) -> 0 | E98: =+(ER_BG!F38-ER_BG!E38)+(ER_BG!F39-ER_BG!E39)-(ER_BG!F57-ER_BG!E57) -> 0 | F98: =+(ER_BG!G38-ER_BG!F38)+(ER_BG!G39-ER_BG!F39)-(ER_BG!G57-ER_BG!F57) -> 0 | G98: =+(ER_BG!H38-ER_BG!G38)+(ER_BG!H39-ER_BG!G39)-(ER_BG!H57-ER_BG!G57) -> 0
A99: Inversiones | C99: =+C69 -> 0 | D99: =+D69 -> 0 | E99: =+E69 -> 0 | F99: =+F69 -> 0 | G99: =+G69 -> 0
A100: FCL | B100: =+B97-B98-B99 -> 0 | C100: 55216294.4 | D100: 75061719.29 | E100: 97869558.94 | F100: 124019148.1 | G100: 153936355.7
B102: Opción 1

Sheet Punto de equilibrio
C2: PUNTO DE EQUILIBRIO
B6: Productos | C6: Precio de venta | D6: Costo Fijo Total | E6: Costo V unitario | F6: Comisiones | G6: M.C. en $ | H6: M.C. en % | I6: Part en ventas | J6: M.C. Total
B7: =+'Proyección ventas'!A48 -> COCINAS INTEGRALES | C7: =+'Proyección ventas'!M11*'Proyección ventas'!M29 -> 250000 | D7: =+'Proyección ventas'!B99 -> 110400000 | E7: =+'Proyección ventas'!F100 -> 70265.6964 | F7: =+'costos y gastos'!B83*'Punto de equilibrio'!C7 -> 0 | G7: =+C7-E7 -> 179734.3036 | H7: =IFERROR((G7/C7),0) -> 0.7189372144 | I7: =+C7/$C$12 -> 0.4545454545 | J7: =+H7*I7 -> 0.3267896429
B8: =+'Proyección ventas'!A49 -> BAÑOS | C8: =+'Proyección ventas'!M12*'Proyección ventas'!M30 -> 100000 | D8: =+D7 -> 110400000 | E8: =+'Proyección ventas'!F101 -> 28106.27856 | F8: =+'costos y gastos'!B84*'Punto de equilibrio'!C8 -> 0 | G8: =+C8-E8 -> 71893.72144 | H8: =IFERROR((G8/C8),0) -> 0.7189372144 | I8: =+C8/$C$12 -> 0.1818181818 | J8: =+H8*I8 -> 0.1307158572
B9: =+'Proyección ventas'!A50 -> PISOS | C9: =+'Proyección ventas'!M13*'Proyección ventas'!M31 -> 200000 | D9: =+D8 -> 110400000 | E9: =+'Proyección ventas'!F102 -> 56212.55712 | F9: =+'costos y gastos'!B85*'Punto de equilibrio'!C9 -> 0 | G9: 143787.4429 | H9: =IFERROR((G9/C9),0) -> 0.7189372144 | I9: 0.3636363636 | J9: =+H9*I9 -> 0.2614317143
B10: =+'Proyección ventas'!A51 -> ASESORIAS | C10: 0 | D10: 0 | E10: 0 | F10: =+'costos y gastos'!B86*'Punto de equilibrio'!C10 -> 0 | G10: 0 | H10: =IFERROR((G10/C10),0) -> 0 | I10: =+'Proyección ventas'!H103 -> 0.03384667456 | J10: =+H10*I10 -> 0
C12: =SUM(C7:C11) -> 550000 | D12: =SUM(D7:D11) -> 331200000 | E12: =SUM(E7:E11) -> 154584.5321
J14: =SUM(J7:J10) -> 0.7189372144
B17: Costos y Gastos fijos Año 1 | D17: =+'Proyección ventas'!B99 -> 110400000
B19: Punto de equilibrio | D19: =IF(J14=0,0,D17/J14) -> 153560001.9
B21: Productos | C21: Total de ventas | D21: Unidades
B22: =+B7 -> COCINAS INTEGRALES | C22: =+$D$22*C7 -> 153560001.9 | D22: =+D7/(C7-E7) -> 614.2400075
B23: =+B8 -> BAÑOS | C23: =+$D$22*C8 -> 61424000.75 | D23: =+D8/(C8-E8) -> 1535.600019
B24: =+B9 -> PISOS | C24: 122848001.5 | D24: =+D9/(C9-E9) -> 767.8000094
B25: =+B10 -> ASESORIAS | C25: 0 | D25: 0
C26: =+SUM(C22:C25) -> 337832004.1 | D26: =+SUM(D22:D25) -> 2917.640036 | E26: =+D10/J14 -> 0
B30: Año | C30: Ventas totales por año | D30: Costos y Gastos Fijos | E30: Punto de equilibrio
B31: =IF(C31=0,"",+ER_BG!C$6) -> Año 1 | C31: =+'Proyección ventas'!N82 -> 342000000 | D31: =+ER_BG!$C$9+ER_BG!$C$10+ER_BG!$C$11+ER_BG!$C$13+ER_BG!$C$14+ER_BG!$C$15+ER_BG!$C$16+ER_BG!$C$17+ER_BG!$C$19 -> 222200000 | E31: =IF(D31=0,0,(D31/$J$14)) -> 309067322.6
B32: =IF(C32=0,"",+ER_BG!D$6) -> Año 2 | C32: =+'Proyección ventas'!P82 -> 381996995.8 | D32: =+ER_BG!$D$9+ER_BG!$D$10+ER_BG!$D$11+ER_BG!$D$13+ER_BG!$D$14+ER_BG!$D$15+ER_BG!$D$16+ER_BG!$D$17+ER_BG!$D$19 -> 229967200 | E32: =IF(D32=0,0,(D32/$J$14)) -> 319871047.7
B33: =IF(C33=0,"",+ER_BG!E$6) -> Año 3 | C33: =+ER_BG!E$7 -> 426691061.4 | D33: =+ER_BG!$E$9+ER_BG!$E$10+ER_BG!$E$11+ER_BG!$E$13+ER_BG!$E$14+ER_BG!$E$15+ER_BG!$E$16+ER_BG!$E$17+ER_BG!$E$19 -> 238029553.6 | E33: =IF(D33=0,0,(D33/$J$14)) -> 331085314.3
B34: =IF(C34=0,"",+ER_BG!F$6) -> Año 4 | C34: =+ER_BG!F$7 -> 476635321.6 | D34: =+ER_BG!$F$9+ER_BG!$F$10+ER_BG!$F$11+ER_BG!$F$13+ER_BG!$F$14+ER_BG!$F$15+ER_BG!$F$16+ER_BG!$F$17+ER_BG!$F$19 -> 246398276.6 | E34: =IF(D34=0,0,(D34/$J$14)) -> 342725723
B35: =IF(C35=0,"",+ER_BG!G$6) -> Año 5 | C35: =+ER_BG!G$7 -> 532448155.6 | D35: =+ER_BG!$G$9+ER_BG!$G$10+ER_BG!$G$11+ER_BG!$G$13+ER_BG!$G$14+ER_BG!$G$15+ER_BG!$G$16+ER_BG!$G$17+ER_BG!$G$19 -> 255085011.1 | E35: =IF(D35=0,0,(D35/$J$14)) -> 354808467.3
C36: =+$D$19*H19 -> 0 | D36: =IFERROR((C36/#REF!),0) -> 0
C37: =SUM(C22:C36) -> 2835435543 | D37: =SUM(D22:D36) -> 1191685877
B54: =+C31+C32+C33+C34+C35 -> 2159771534

Sheet ER_BG
I1: =+Datos!C5 -> 5
C3: Proyección de Estado de resultados y Balance general
B5: ESTADO DE RESULTADOS
B6: Concepto | C6: Año 1 | D6: Año 2 | E6: Año 3 | F6: Año 4 | G6: Año 5
B7: Ventas | C7: =SUM('Proyección ventas'!$B$82:$M$82) -> 342000000 | D7: =+'Proyección ventas'!P82 -> 381996995.8 | E7: =+'Proyección ventas'!Q82 -> 426691061.4 | F7: =+'Proyección ventas'!R82 -> 476635321.6 | G7: =+'Proyección ventas'!S82 -> 532448155.6
B8: Costos variables | C8: =SUM('costos y gastos'!B102:M102) -> 96000000 | D8: =+'costos y gastos'!O102 -> 99648000 | E8: =+'costos y gastos'!P102 -> 103434624 | F8: =+'costos y gastos'!Q102 -> 107365139.7 | G8: =+'costos y gastos'!R102 -> 111445015
B9: Costos fijos de producción | C9: =SUM('costos y gastos'!B35:M35) -> 110400000 | D9: =+'costos y gastos'!O35 -> 114595200 | E9: =+'costos y gastos'!P35 -> 118949817.6 | F9: =+'costos y gastos'!Q35 -> 123469910.7 | G9: =+'costos y gastos'!R35 -> 128161767.3
B10: Nómina de producción | C10: 0 | D10: 0 | E10: 0 | F10: 0 | G10: 0
B11: Depreciación de producción | C11: 0 | D11: 0 | E11: 0 | F11: 0 | G11: 0
B12: Utiilidad bruta | C12: =+C7-C8-C9-C10-C11 -> 135600000 | D12: =+D7-D8-D9-D10-D11 -> 167753795.8 | E12: 204306619.8 | F12: 245800271.2 | G12: 292841373.3
B13: Gastos de administración | C13: =SUM('costos y gastos'!B56:M56) -> 34000000 | D13: =+'costos y gastos'!O56 -> 35292000 | E13: =+'costos y gastos'!P56 -> 36633096 | F13: =+'costos y gastos'!Q56 -> 38025153.65 | G13: =+'costos y gastos'!R56 -> 39470109.49
B14: Nómina de administración | C14: 0 | D14: 0 | E14: 0 | F14: 0 | G14: 0
B15: Depreciación de administración | C15: =+Inversiones!P8 -> 17800000 | D15: =+Inversiones!Q8 -> 17800000 | E15: =+Inversiones!R8 -> 17800000 | F15: =+Inversiones!S8 -> 17800000 | G15: =+Inversiones!T8 -> 17800000
B16: Gastos de ventas | C16: =SUM('costos y gastos'!B77:M77) -> 60000000 | D16: =+'costos y gastos'!O77 -> 62280000 | E16: =+'costos y gastos'!P77 -> 64646640 | F16: =+'costos y gastos'!Q77 -> 67103212.32 | G16: =+'costos y gastos'!R77 -> 69653134.39
B17: Nómina de ventas | C17: 0 | D17: 0 | E17: 0 | F17: 0 | G17: 0 | H17: 0
B18: Comisión de ventas | C18: =SUM('costos y gastos'!B128:M128)+SUM('costos y gastos'!B133:M133) -> 3775680 | D18: =+'costos y gastos'!O133+'costos y gastos'!O128 -> 4217246.833 | E18: =+'costos y gastos'!P133+'costos y gastos'!P128 -> 4710669.318 | F18: =+'costos y gastos'!Q133+'costos y gastos'!Q128 -> 5262053.95 | G18: =+'costos y gastos'!R133+'costos y gastos'!R128 -> 5878227.637
B19: Depreciación de ventas | C19: 0 | D19: 0 | E19: 0 | F19: 0 | G19: 0
B20: Utilidad operacional | C20: =+C12-C13-C14-C15-C16-C17-C19-C18 -> 20024320 | D20: =+D12-D13-D14-D15-D16-D17-D19-D18 -> 48164548.93 | E20: 80516214.46 | F20: 117609851.3 | G20: 160039901.7
B21: Gastos Financieros | C21: =+Inversiones!C152 -> 15429525.91 | D21: =+Inversiones!D152 -> 13266611.79 | E21: =+Inversiones!E152 -> 10750376.55 | F21: =+Inversiones!F152 -> 7823478.285 | G21: =+Inversiones!G152 -> 4419306.742
B22: Otros Ingresos | C22: =SUM('Proyección ventas'!$B$96:$M$96) -> 24000000 | D22: =+'Proyección ventas'!P96 -> 24912000 | E22: =+'Proyección ventas'!Q96 -> 25858656 | F22: =+'Proyección ventas'!R96 -> 26841284.93 | G22: =+'Proyección ventas'!S96 -> 27861253.76
B23: Utilidad antes de impuestos | C23: =+C20-C21+C22 -> 28594794.09 | D23: =+D20-D21+D22 -> 59809937.14 | E23: 95624493.91 | F23: 136627657.9 | G23: 183481848.8
B24: Impuesto de Renta | C24: =IF(C23<=0,0,C23*Datos!C17) -> 9436282.05 | D24: =IF(D23<=0,0,D23*Datos!D17) -> 19638592.86 | E24: =IF(E23<=0,0,E23*Datos!E17) -> 31241311.06 | F24: =IF(F23<=0,0,F23*Datos!F17) -> 44414196.11 | G24: =IF(G23<=0,0,G23*Datos!G17) -> 59347082
B25: Impuesto CREE | C25: =IF(C23<=0,0,(C23*Datos!C18)) -> 0 | D25: =IF(D23<=0,0,(D23*Datos!D18)) -> 0 | E25: =IF(E23<=0,0,(E23*Datos!E18)) -> 0 | F25: =IF(F23<=0,0,(F23*Datos!F18)) -> 0 | G25: =IF(G23<=0,0,(G23*Datos!G18)) -> 0
B26: Utilidad neta | C26: =+C23-C24-C25 -> 19158512.04 | D26: =+D23-D24-D25 -> 40171344.28 | E26: 64383182.85 | F26: 92213461.81 | G26: 124134766.8
B32: BALANCE GENERAL
B34: Concepto | C34: Balance Inicial | D34: Año 1 | E34: Año 2 | F34: Año 3 | G34: Año 4 | H34: Año 5
B36: Activo Corriente
B37: Disponible | C37: =+BG!C9 -> 41000000 | D37: =IF($I$1>=1,('Flujo de caja'!C85),0) -> 73483135.93 | E37: =IF($I$1>=2,('Flujo de caja'!D85),0) -> 124862897.2 | F37: =IF($I$1>=3,('Flujo de caja'!E85),0) -> 199164749 | G37: =IF($I$1>=4,('Flujo de caja'!F85),0) -> 299746101 | H37: =IF($I$1>=4,('Flujo de caja'!G85),0) -> 430388054.4
B38: Cuentas por cobrar | C38: =+BG!C10 -> 0 | D38: 0 | E38: 0 | F38: 0 | G38: 0 | H38: 0
B39: Inventarios | C39: =+BG!C11 -> 0 | D39: 0 | E39: 0 | F39: 0 | G39: 0 | H39: 0
B40: Cargos diferidos | C40: =+BG!C12 -> 0 | D40: 0 | E40: 0 | F40: 0 | G40: 0 | H40: 0
B41: Otros activos | C41: =+BG!C13 -> 0 | D41: =IF($I$1>=1,C41,0) -> 0 | E41: =IF($I$1>=2,D41,0) -> 0 | F41: =IF($I$1>=3,E41,0) -> 0 | G41: =IF($I$1>=4,F41,0) -> 0 | H41: =IF($I$1>=4,G41,0) -> 0
B42: Total Activo Corriente | C42: =SUM(C37:C41) -> 41000000 | D42: =SUM(D37:D41) -> 73483135.93 | E42: 124862897.2 | F42: 199164749 | G42: 299746101 | H42: =SUM(H37:H41) -> 430388054.4
B43: Activo Fijo
B44: Construcciones y edificaciones | C44: =+BG!C16 -> 0 | D44: =+C44 -> 0 | E44: =IF($I$1>=2,D44,0) -> 0 | F44: =IF($I$1>=3,E44,0) -> 0 | G44: =IF($I$1>=4,F44,0) -> 0 | H44: =IF($I$1>=4,G44,0) -> 0
B45: Inversión en Maquinaria y Equipos | C45: =+BG!C17 -> 9000000 | D45: =SUM(Inversiones!P40)+ER_BG!C45 -> 9000000 | E45: =SUM(Inversiones!Q40)+ER_BG!D45 -> 9000000 | F45: =SUM(Inversiones!R40)+ER_BG!E45 -> 9000000 | G45: =SUM(Inversiones!S40)+ER_BG!F45 -> 9000000 | H45: =SUM(Inversiones!T40)+ER_BG!G45 -> 9000000
B46: Inversión en Muebles y Enseres | C46: =+BG!C18 -> 0 | D46: 0 | E46: 0 | F46: 0 | G46: 0 | H46: 0
B47: Inversión en Equipos de transporte | C47: =+BG!C19 -> 0 | D47: 0 | E47: 0 | F47: 0 | G47: 0 | H47: 0
B48: Inversión en Equipos de computo | C48: =+BG!C20 -> 0 | D48: =SUM(Inversiones!AJ23:AU23)+ER_BG!C48 -> 0 | E48: =IF($I$1>=2,D48+SUM(Inversiones!AV23:BG23),0) -> 0 | F48: =IF($I$1>=3,E48+SUM(Inversiones!BH23:BS23),0) -> 0 | G48: =IF($I$1>=4,F48+SUM(Inversiones!BT23:CE23),0) -> 0 | H48: =IF($I$1>=4,G48+SUM(Inversiones!BU23:CF23),0) -> 0
B49: Inversión en otros activos | C49: =+BG!C21 -> 80000000 | D49: =SUM(Inversiones!AJ40:AU40)+ER_BG!C49 -> 80000000 | E49: =IF($I$1>=2,D49+SUM(Inversiones!AV40:BG40),0) -> 80000000 | F49: =IF($I$1>=3,E49+SUM(Inversiones!BH40:BS40),0) -> 80000000 | G49: =IF($I$1>=4,F49+SUM(Inversiones!BT40:CE40),0) -> 80000000 | H49: =IF($I$1>=4,G49+SUM(Inversiones!BU40:CF40),0) -> 80000000
B50: Depreciación acumulada | C50: =-BG!C22 -> 0 | D50: =+Inversiones!P9 -> 17800000 | E50: =+Inversiones!Q9 -> 35600000 | F50: =+Inversiones!R9 -> 53400000 | G50: =+Inversiones!S9 -> 71200000 | H50: =+Inversiones!T9 -> 89000000
B51: Total propiedad, planta y equipos | C51: =+C44+C45+C46+C47+C48+C49-C50 -> 89000000 | D51: 71200000 | E51: 53400000 | F51: 35600000 | G51: =+G44+G45+G46+G47+G48+G49-G50 -> 17800000 | H51: =+H44+H45+H46+H47+H48+H49-H50 -> 0
B53: Total Activos | C53: =+C42+C51 -> 130000000 | D53: 144683135.9 | E53: 178262897.2 | F53: 234764749 | G53: 317546101 | H53: =+H42+H51 -> 430388054.4
B55: Pasivo Corriente
B56: Bancos corto plazo | C56: =+BG!C28 -> 0 | D56: 0 | E56: 0 | F56: 0 | G56: 0 | H56: 0
B57: Proveedores | C57: =+BG!C29 -> 0 | D57: 0 | E57: 0 | F57: 0 | G57: 0 | H57: 0
B58: Cuentas por pagar | C58: =+BG!C30 -> 0 | D58: =+C58-SUM(Inversiones!D130:P130) -> 0 | E58: =+D58-SUM(Inversiones!E130:P130) -> 0 | F58: =+E58-SUM(Inversiones!F130:Q130) -> 0 | G58: =+F58-SUM(Inversiones!G130:R130) -> 0 | H58: =+G58-SUM(Inversiones!H130:S130) -> 0
B59: Impuestos por pagar | C59: =+BG!C31 -> 0 | D59: =+C24+C25+'costos y gastos'!N135 -> 10065562.05 | E59: =+D24+D25+'costos y gastos'!O134 -> 20341467.33 | F59: =+E24+E25+'costos y gastos'!P134 -> 32026422.62 | G59: =+F24+F25+'costos y gastos'!Q134 -> 45291205.1 | H59: =+G24+G25+'costos y gastos'!R134 -> 60326786.61
B60: Otros pasivos corrientes | C60: =+BG!C32 -> 0 | D60: =+C60-SUM(Inversiones!D132:P132) -> 0 | E60: =+D60-SUM(Inversiones!E132:P132) -> 0 | F60: =+E60-SUM(Inversiones!F132:Q132) -> 0 | G60: =+F60-SUM(Inversiones!G132:R132) -> 0 | H60: =+G60-SUM(Inversiones!H132:S132) -> 0
B61: Total Pasivo Corriente | C61: =+C56+C57+C59+C58+C60 -> 0 | D61: =+D56+D57+D59+D58+D60 -> 10065562.05 | E61: 20341467.33 | F61: 32026422.62 | G61: 45291205.1 | H61: =+H56+H57+H59+H58+H60 -> 60326786.61
B62: Pasivo de largo plazo
B63: Bancos largo plazo | C63: =+BG!C35 -> 100000000 | D63: =+Inversiones!C138 -> 85459061.84 | E63: =+Inversiones!D138 -> 68591573.57 | F63: =+Inversiones!E138 -> 49025287.18 | G63: =+Inversiones!F138 -> 26328394.97 | H63: =+Inversiones!G138 -> 0
B64: Otros pasivos de largo plazo | C64: =+BG!C36 -> 0 | D64: 0 | E64: 0 | F64: 0 | G64: 0 | H64: 0
B65: Total Pasivo de largo plazo | C65: =+C63+C64 -> 100000000 | D65: =+D63+D64 -> 85459061.84 | E65: =+E63+E64 -> 68591573.57 | F65: =+F63+F64 -> 49025287.18 | G65: =+G63+G64 -> 26328394.97 | H65: =+H63+H64 -> 0
B67: Total Pasivos | C67: =+C61+C65 -> 100000000 | D67: 95524623.89 | E67: 88933040.9 | F67: 81051709.8 | G67: 71619600.06 | H67: =+H61+H65 -> 60326786.61
B69: Patrimonio
B71: Capital Social | C71: =+BG!C43 -> 30000000 | D71: =IF($I$1>=1,C71,0)+'Flujo de caja'!C72+'Flujo de caja'!C74 -> 30000000 | E71: =IF($I$1>=2,D71,0)+'Flujo de caja'!D72+'Flujo de caja'!D74 -> 30000000 | F71: =IF($I$1>=3,E71,0)+'Flujo de caja'!E72+'Flujo de caja'!E74 -> 30000000 | G71: =IF($I$1>=4,F71,0)+'Flujo de caja'!F72+'Flujo de caja'!F74 -> 30000000 | H71: =IF($I$1>=4,G71,0)+'Flujo de caja'!G72+'Flujo de caja'!G74 -> 30000000
B72: Utilidades de ejericios anteriores | C72: =+BG!C44 -> 0 | D72: =IF($I$1>=5,(C72+C73),0) -> 0 | E72: =IF($I$1>=5,(D72+D73),0) -> 19158512.04 | F72: =IF($I$1>=5,(E72+E73),0) -> 59329856.32 | G72: =IF($I$1>=5,(F72+F73),0) -> 123713039.2 | H72: =IF($I$1>=5,(G72+G73),0) -> 215926501
B73: Utilidades del ejercicio | C73: =+BG!C45 -> 0 | D73: =+C26 -> 19158512.04 | E73: =+D26 -> 40171344.28 | F73: =+E26 -> 64383182.85 | G73: =+F26 -> 92213461.81 | H73: =+G26 -> 124134766.8
B74: Total Patrimonio | C74: =+C71+C72+C73 -> 30000000 | D74: 49158512.04 | E74: 89329856.32 | F74: 153713039.2 | G74: 245926501 | H74: =+H71+H72+H73 -> 370061267.7
B76: Total Pasivo + Patrimonio | C76: =+C74+C67 -> 130000000 | D76: =+D74+D67 -> 144683135.9 | E76: =+E74+E67 -> 178262897.2 | F76: 234764749 | G76: 317546101 | H76: =+H74+H67 -> 430388054.4
B77: Total Activo | C77: =+C53 -> 130000000 | D77: 144683135.9 | E77: 178262897.2 | F77: 234764749 | G77: 317546101 | H77: =+H53 -> 430388054.4
B78: Diferencia | C78: =+C77-C76 -> 0 | D78: =+D77-D76 -> 0 | E78: =+E77-E76 -> 0 | F78: 0 | G78: 0 | H78: =+H77-H76 -> 0

Sheet BG
B4: BALANCE GENERAL ÚLTIMO CORTE 2020
B8: Activo Corriente
B9: Disponible | C9: 41000000
B10: Cuentas por cobrar | C10: 0
B11: Inventarios | C11: 0
B12: Cargos diferidos | C12: 0
B13: Otros activos | C13: 0
B14: Total Activo Corriente | C14: =SUM(C9:C13) -> 41000000
B15: Activo Fijo
B16: Construcciones y edificaciones | C16: 0
B17: Inversión en Maquinaria y Equipos | C17: 9000000
B18: Inversión en Muebles y Enseres | C18: 0
B19: Inversión en Equipos de transporte | C19: 0
B20: Inversión en Equipos de computo | C20: 0
B21: Inversión en otros activos | C21: 80000000 | E21: SE DEPRECIA
B22: Depreciación acumulada (Valor negativo) | C22: 0
B23: Total propiedad, planta y equipos | C23: =SUM(C16:C22) -> 89000000
B25: Total Activos | C25: =+C23+C14 -> 130000000
B27: Pasivo Corriente
B28: Bancos corto plazo | C28: 0
B29: Proveedores | C29: 0
B30: Cuentas por pagar | C30: 0
B31: Impuestos por pagar | C31: 0
B32: Otros pasivos corrientes | C32: 0
B33: Total Pasivo Corriente | C33: =SUM(C28:C32) -> 0
B34: Pasivo de largo plazo
B35: Bancos largo plazo | C35: 100000000
B36: Otros pasivos de largo plazo | C36: 0
B37: Total Pasivo de largo plazo | C37: =+C35+C36 -> 100000000
B39: Total Pasivos | C39: =+C33+C37 -> 100000000
B41: Patrimonio
B43: Capital Social | C43: 30000000
B44: Utilidades de ejericios anteriores | C44: 0
B45: Utilidades del ejercicio | C45: 0
B46: Total Patrimonio | C46: =+C43+C44+C45 -> 30000000
B48: Validación de ecuación contable | C48: =+C46+C39-C25 -> 0

Sheet costos y gastos
D2: Proyección de Costos y gastos
A4: COSTOS VARIABLES | B4: Porcentaje del costo variable sobre el precio de venta
A5: Detalle | B5: =+'Proyección ventas'!B66 -> Enero | C5: =+'Proyección ventas'!C66 -> Febrero | D5: =+'Proyección ventas'!D66 -> Marzo | E5: =+'Proyección ventas'!E66 -> Abril | F5: =+'Proyección ventas'!F66 -> Mayo | G5: =+'Proyección ventas'!G66 -> Junio | H5: =+'Proyección ventas'!H66 -> Julio | I5: =+'Proyección ventas'!I66 -> Agosto | J5: =+'Proyección ventas'!J66 -> Septiembre | K5: =+'Proyección ventas'!K66 -> Octubre | L5: =+'Proyección ventas'!L66 -> Noviembre | M5: =+'Proyección ventas'!M66 -> Diciembre | N5: =+'Proyección ventas'!N66 -> TOTAL | O5: Año 2 | P5: Año 3 | Q5: Año 4 | R5: Año 5
A6: Honorarios-Asesorias | B6: 8000000 | C6: =+B6 -> 8000000 | D6: =+C6 -> 8000000 | E6: =+D6 -> 8000000 | F6: =+E6 -> 8000000 | G6: =+F6 -> 8000000 | H6: =+G6 -> 8000000 | I6: 8000000 | J6: 8000000 | K6: 8000000 | L6: 8000000 | M6: 8000000 | N6: =SUM(B6:M6) -> 96000000 | O6: =+N6*(1+Datos!C$11) -> 99648000 | P6: =+O6*(1+Datos!D$11) -> 103434624 | Q6: =+P6*(1+Datos!E$11) -> 107365139.7 | R6: =+Q6*(1+Datos!F$11) -> 111445015
A7: Arrendamientos | N7: 0 | O7: =+N7*(1+Datos!C$11) -> 0 | P7: =+O7*(1+Datos!D$11) -> 0 | Q7: =+P7*(1+Datos!E$11) -> 0 | R7: =+Q7*(1+Datos!F$11) -> 0
A8: Seguros | N8: 0 | O8: =+N8*(1+Datos!C$11) -> 0 | P8: =+O8*(1+Datos!D$11) -> 0 | Q8: =+P8*(1+Datos!E$11) -> 0 | R8: =+Q8*(1+Datos!F$11) -> 0
A9: Servicios | N9: 0 | O9: =+N9*(1+Datos!C$11) -> 0 | P9: =+O9*(1+Datos!D$11) -> 0 | Q9: =+P9*(1+Datos!E$11) -> 0 | R9: =+Q9*(1+Datos!F$11) -> 0
A10: Gastos Legales | N10: 0 | O10: =+N10*(1+Datos!C$11) -> 0 | P10: =+O10*(1+Datos!D$11) -> 0 | Q10: =+P10*(1+Datos!E$11) -> 0 | R10: =+Q10*(1+Datos!F$11) -> 0
A11: Mantenimiento y Reparaciones | N11: 0 | O11: =+N11*(1+Datos!C$11) -> 0 | P11: =+O11*(1+Datos!D$11) -> 0 | Q11: =+P11*(1+Datos!E$11) -> 0 | R11: =+Q11*(1+Datos!F$11) -> 0
A12: Adecuacion e Instalacion | N12: 0 | O12: =+N12*(1+Datos!C$11) -> 0 | P12: =+O12*(1+Datos!D$11) -> 0 | Q12: =+P12*(1+Datos!E$11) -> 0 | R12: =+Q12*(1+Datos!F$11) -> 0
A13: Gastos de Viaje | N13: 0 | O13: =+N13*(1+Datos!C$11) -> 0 | P13: =+O13*(1+Datos!D$11) -> 0 | Q13: =+P13*(1+Datos!E$11) -> 0 | R13: =+Q13*(1+Datos!F$11) -> 0
A14: Diversos | N14: 0 | O14: =+N14*(1+Datos!C$11) -> 0 | P14: =+O14*(1+Datos!D$11) -> 0 | Q14: =+P14*(1+Datos!E$11) -> 0 | R14: =+Q14*(1+Datos!F$11) -> 0
A15: Otros Servicios | N15: 0 | O15: =+N15*(1+Datos!C$11) -> 0 | P15: =+O15*(1+Datos!D$11) -> 0 | Q15: =+P15*(1+Datos!E$11) -> 0 | R15: =+Q15*(1+Datos!F$11) -> 0
B16: =SUM(B6:B15) -> 8000000 | C16: =SUM(C6:C15) -> 8000000 | D16: 8000000 | E16: 8000000 | F16: 8000000 | G16: 8000000 | H16: 8000000 | I16: 8000000 | J16: 8000000 | K16: 8000000 | L16: 8000000 | M16: 8000000 | N16: 96000000 | O16: =SUM(O6:O15) -> 99648000 | P16: =SUM(P6:P15) -> 103434624 | Q16: =SUM(Q6:Q15) -> 107365139.7 | R16: =SUM(R6:R15) -> 111445015
A22: COSTOS FIJOS | B22: Año 1
A23: Detalle | B23: =+B5 -> Enero | C23: Febrero | D23: Marzo | E23: Abril | F23: Mayo | G23: Junio | H23: Julio | I23: Agosto | J23: Septiembre | K23: Octubre | L23: Noviembre | M23: Diciembre | N23: =+N5 -> TOTAL | O23: Año 2 | P23: Año 3 | Q23: Año 4 | R23: Año 5
A24: Honorarios | B24: 0 | C24: =+B24 -> 0 | D24: =+C24 -> 0 | E24: 0 | F24: 0 | G24: 0 | H24: =+G24 -> 0 | I24: 0 | J24: 0 | K24: 0 | L24: 0 | M24: 0 | N24: =SUM(B24:M24) -> 0 | O24: =+N24*(1+Datos!$D$11) -> 0 | P24: =+O24*(1+Datos!$E$11) -> 0 | Q24: =+P24*(1+Datos!$E$11) -> 0 | R24: =+Q24*(1+Datos!$G$11) -> 0
A25: Arrendamientos -Hosting-pse | B25: 5000000 | C25: =+B25 -> 5000000 | D25: =+C25 -> 5000000 | E25: 5000000 | F25: 5000000 | G25: 5000000 | H25: 5000000 | I25: 5000000 | J25: 5000000 | K25: 5000000 | L25: 5000000 | M25: 5000000 | N25: 60000000 | O25: =+N25*(1+Datos!C$11) -> 62280000 | P25: =+O25*(1+Datos!D$11) -> 64646640 | Q25: =+P25*(1+Datos!E$11) -> 67103212.32 | R25: =+Q25*(1+Datos!F$11) -> 69653134.39
A26: Seguros | N26: 0 | O26: =+N26*(1+Datos!C$11) -> 0 | P26: =+O26*(1+Datos!D$11) -> 0 | Q26: =+P26*(1+Datos!E$11) -> 0 | R26: =+Q26*(1+Datos!F$11) -> 0
A27: Servicios | B27: 200000 | C27: =+B27 -> 200000 | D27: =+C27 -> 200000 | E27: 200000 | F27: 200000 | G27: 200000 | H27: =+G27 -> 200000 | I27: 200000 | J27: 200000 | K27: 200000 | L27: 200000 | M27: 200000 | N27: 2400000 | O27: =+N27*(1+Datos!C$11) -> 2491200 | P27: =+O27*(1+Datos!D$11) -> 2585865.6 | Q27: =+P27*(1+Datos!E$11) -> 2684128.493 | R27: =+Q27*(1+Datos!F$11) -> 2786125.376
A28: Gastos Legales | N28: 0 | O28: =+N28*(1+Datos!C$11) -> 0 | P28: =+O28*(1+Datos!D$11) -> 0 | Q28: =+P28*(1+Datos!E$11) -> 0 | R28: =+Q28*(1+Datos!F$11) -> 0
A29: Mantenimiento y Reparaciones | B29: 2000000 | C29: =+B29 -> 2000000 | D29: =+C29 -> 2000000 | E29: 2000000 | F29: 2000000 | G29: 2000000 | H29: 2000000 | I29: 2000000 | J29: 2000000 | K29: 2000000 | L29: 2000000 | M29: 2000000 | N29: 24000000 | O29: =+N29*(1+Datos!C$11) -> 24912000 | P29: =+O29*(1+Datos!D$11) -> 25858656 | Q29: =+P29*(1+Datos!E$11) -> 26841284.93 | R29: =+Q29*(1+Datos!F$11) -> 27861253.76
A30: Adecuacion e Instalacion | N30: 0 | O30: =+N30*(1+Datos!C$11) -> 0 | P30: =+O30*(1+Datos!D$11) -> 0 | Q30: =+P30*(1+Datos!E$11) -> 0 | R30: =+Q30*(1+Datos!F$11) -> 0
A31: Gastos de Viaje | N31: 0 | O31: =+N31*(1+Datos!C$11) -> 0 | P31: =+O31*(1+Datos!D$11) -> 0 | Q31: =+P31*(1+Datos!E$11) -> 0 | R31: =+Q31*(1+Datos!F$11) -> 0
A32: Diversos | B32: 2000000 | C32: =+B32 -> 2000000 | D32: =+C32 -> 2000000 | E32: 2000000 | F32: 2000000 | G32: 2000000 | H32: =+G32 -> 2000000 | I32: 2000000 | J32: 2000000 | K32: 2000000 | L32: 2000000 | M32: 2000000 | N32: 24000000 | O32: =+N32*(1+Datos!C$11) -> 24912000 | P32: =+O32*(1+Datos!D$11) -> 25858656 | Q32: =+P32*(1+Datos!E$11) -> 26841284.93 | R32: =+Q32*(1+Datos!F$11) -> 27861253.76
A33: Otros Servicios | B33: 0 | C33: =+B33 -> 0 | D33: =+C33 -> 0 | E33: 0 | F33: 0 | G33: 0 | H33: 0 | I33: 0 | J33: 0 | K33: 0 | L33: 0 | M33: 0 | N33: 0 | O33: =+N33*(1+Datos!C$11) -> 0 | P33: =+O33*(1+Datos!D$11) -> 0 | Q33: =+P33*(1+Datos!E$11) -> 0 | R33: =+Q33*(1+Datos!F$11) -> 0
B34: 0 | C34: 0 | D34: 0 | E34: 0 | F34: 0 | G34: 0 | H34: 0 | I34: 0 | J34: 0 | K34: 0 | L34: 0 | M34: 0 | N34: 0 | O34: =+N34*(1+Datos!C$11) -> 0 | P34: =+O34*(1+Datos!D$11) -> 0 | Q34: =+P34*(1+Datos!E$11) -> 0 | R34: =+Q34*(1+Datos!F$11) -> 0
B35: =SUM(B24:B34) -> 9200000 | C35: 9200000 | D35: 9200000 | E35: 9200000 | F35: 9200000 | G35: 9200000 | H35: 9200000 | I35: 9200000 | J35: 9200000 | K35: 9200000 | L35: 9200000 | M35: 9200000 | N35: 110400000 | O35: 114595200 | P35: 118949817.6 | Q35: 123469910.7 | R35: 128161767.3
A39: GASTOS DE ADMINISTRACIÓN | B39: Año 1
A40: Detalle | B40: =+B23 -> Enero | C40: Febrero | D40: Marzo | E40: Abril | F40: Mayo | G40: Junio | H40: Julio | I40: Agosto | J40: Septiembre | K40: Octubre | L40: Noviembre | M40: Diciembre | N40: =+N23 -> TOTAL | O40: Año 2 | P40: Año 3 | Q40: Año 4 | R40: Año 5
A41: Honorarios | B41: 1000000 | C41: =+B41 -> 1000000 | D41: =+C41 -> 1000000 | E41: 1000000 | F41: 1000000 | G41: 1000000 | H41: =+G41 -> 1000000 | I41: 1000000 | J41: 1000000 | K41: 1000000 | L41: 1000000 | M41: 1000000 | N41: =SUM(B41:M41) -> 12000000 | O41: =+N41*(1+Datos!C$11) -> 12456000 | P41: =+O41*(1+Datos!D$11) -> 12929328 | Q41: =+P41*(1+Datos!E$11) -> 13420642.46 | R41: =+Q41*(1+Datos!F$11) -> 13930626.88
A42: Arrendamientos | N42: 0 | O42: =+N42*(1+Datos!C$11) -> 0 | P42: =+O42*(1+Datos!D$11) -> 0 | Q42: =+P42*(1+Datos!E$11) -> 0 | R42: =+Q42*(1+Datos!F$11) -> 0
A43: Afiliaciones y Contribuciones | N43: 0 | O43: =+N43*(1+Datos!C$11) -> 0 | P43: =+O43*(1+Datos!D$11) -> 0 | Q43: =+P43*(1+Datos!E$11) -> 0 | R43: =+Q43*(1+Datos!F$11) -> 0
A44: Seguros | B44: 10000000 | N44: 10000000 | O44: =+N44*(1+Datos!C$11) -> 10380000 | P44: =+O44*(1+Datos!D$11) -> 10774440 | Q44: =+P44*(1+Datos!E$11) -> 11183868.72 | R44: =+Q44*(1+Datos!F$11) -> 11608855.73
A45: Servicios | N45: 0 | O45: =+N45*(1+Datos!C$11) -> 0 | P45: =+O45*(1+Datos!D$11) -> 0 | Q45: =+P45*(1+Datos!E$11) -> 0 | R45: =+Q45*(1+Datos!F$11) -> 0
A46: Gastos Legales | B46: 1000000 | C46: =+B46 -> 1000000 | D46: =+C46 -> 1000000 | E46: 1000000 | F46: 1000000 | G46: 1000000 | H46: =+G46 -> 1000000 | I46: 1000000 | J46: 1000000 | K46: 1000000 | L46: 1000000 | M46: 1000000 | N46: 12000000 | O46: =+N46*(1+Datos!C$11) -> 12456000 | P46: =+O46*(1+Datos!D$11) -> 12929328 | Q46: =+P46*(1+Datos!E$11) -> 13420642.46 | R46: =+Q46*(1+Datos!F$11) -> 13930626.88
A47: Mantenimiento y Reparaciones | B47: 0 | C47: =+B47 -> 0 | D47: =+C47 -> 0 | E47: 0 | F47: 0 | G47: 0 | H47: 0 | I47: 0 | J47: 0 | K47: 0 | L47: 0 | M47: 0 | N47: 0 | O47: =+N47*(1+Datos!C$11) -> 0 | P47: =+O47*(1+Datos!D$11) -> 0 | Q47: =+P47*(1+Datos!E$11) -> 0 | R47: =+Q47*(1+Datos!F$11) -> 0
A48: Adecuacion e Instalacion | B48: 0 | N48: 0 | O48: =+N48*(1+Datos!C$11) -> 0 | P48: =+O48*(1+Datos!D$11) -> 0 | Q48: =+P48*(1+Datos!E$11) -> 0 | R48: =+Q48*(1+Datos!F$11) -> 0
A49: Gastos de Viaje | N49: 0 | O49: =+N49*(1+Datos!C$11) -> 0 | P49: =+O49*(1+Datos!D$11) -> 0 | Q49: =+P49*(1+Datos!E$11) -> 0 | R49: =+Q49*(1+Datos!F$11) -> 0
A50: Diversos | B50: 0 | C50: =+B50 -> 0 | D50: =+C50 -> 0 | E50: 0 | F50: 0 | G50: 0 | H50: =+G50 -> 0 | I50: 0 | J50: 0 | K50: 0 | L50: 0 | M50: 0 | N50: 0 | O50: =+N50*(1+Datos!C$11) -> 0 | P50: =+O50*(1+Datos!D$11) -> 0 | Q50: =+P50*(1+Datos!E$11) -> 0 | R50: =+Q50*(1+Datos!F$11) -> 0
A51: Otros (Prov) | B51: 0 | C51: =+B51 -> 0 | D51: =+C51 -> 0 | E51: 0 | F51: 0 | G51: 0 | H51: 0 | I51: 0 | J51: 0 | K51: 0 | L51: 0 | M51: 0 | N51: 0 | O51: =+N51*(1+Datos!C$11) -> 0 | P51: =+O51*(1+Datos!D$11) -> 0 | Q51: =+P51*(1+Datos!E$11) -> 0 | R51: =+Q51*(1+Datos!F$11) -> 0
B52: 0 | C52: 0 | D52: 0 | E52: 0 | F52: 0 | G52: 0 | H52: 0 | I52: 0 | J52: 0 | K52: 0 | L52: 0 | M52: 0 | N52: 0 | O52: =+B52*(1+Datos!$D$11) -> 0 | P52: =+C52*(1+Datos!$D$11) -> 0 | Q52: =+D52*(1+Datos!$D$11) -> 0 | R52: =+E52*(1+Datos!$D$11) -> 0
B53: 0 | C53: 0 | D53: 0 | E53: 0 | F53: 0 | G53: 0 | H53: 0 | I53: 0 | J53: 0 | K53: 0 | L53: 0 | M53: 0 | N53: 0 | O53: =+B53*(1+Datos!$D$11) -> 0 | P53: =+C53*(1+Datos!$D$11) -> 0 | Q53: =+D53*(1+Datos!$D$11) -> 0 | R53: =+E53*(1+Datos!$D$11) -> 0
B54: 0 | C54: 0 | D54: 0 | E54: 0 | F54: 0 | G54: 0 | H54: 0 | I54: 0 | J54: 0 | K54: 0 | L54: 0 | M54: 0 | N54: 0 | O54: =+B54*(1+Datos!$D$11) -> 0 | P54: =+C54*(1+Datos!$D$11) -> 0 | Q54: =+D54*(1+Datos!$D$11) -> 0 | R54: =+E54*(1+Datos!$D$11) -> 0
B55: 0 | C55: 0 | D55: 0 | E55: 0 | F55: 0 | G55: 0 | H55: 0 | I55: 0 | J55: 0 | K55: 0 | L55: 0 | M55: 0 | N55: 0 | O55: =+B55*(1+Datos!$D$11) -> 0 | P55: =+C55*(1+Datos!$D$11) -> 0 | Q55: =+D55*(1+Datos!$D$11) -> 0 | R55: =+E55*(1+Datos!$D$11) -> 0
B56: =SUM(B41:B55) -> 12000000 | C56: 2000000 | D56: 2000000 | E56: 2000000 | F56: 2000000 | G56: 2000000 | H56: 2000000 | I56: 2000000 | J56: 2000000 | K56: 2000000 | L56: 2000000 | M56: 2000000 | N56: 34000000 | O56: 35292000 | P56: 36633096 | Q56: 38025153.65 | R56: 39470109.49
A60: GASTOS DE VENTAS Y PUBLICIDAD | B60: Año 1
A61: Detalle | B61: =+B40 -> Enero | C61: =+C40 -> Febrero | D61: Marzo | E61: Abril | F61: Mayo | G61: Junio | H61: Julio | I61: Agosto | J61: Septiembre | K61: Octubre | L61: Noviembre | M61: Diciembre | N61: =+N40 -> TOTAL | O61: Año 2 | P61: Año 3 | Q61: Año 4 | R61: Año 5
A62: Honorarios | N62: =SUM(B62:M62) -> 0 | O62: =+N62*(1+Datos!C$11) -> 0 | P62: =+O62*(1+Datos!D$11) -> 0 | Q62: =+P62*(1+Datos!E$11) -> 0 | R62: =+Q62*(1+Datos!F$11) -> 0
A63: Arrendamientos | N63: 0 | O63: =+N63*(1+Datos!C$11) -> 0 | P63: =+O63*(1+Datos!D$11) -> 0 | Q63: =+P63*(1+Datos!E$11) -> 0 | R63: =+Q63*(1+Datos!F$11) -> 0
A64: Afiliaciones y Contribuciones | N64: 0 | O64: =+N64*(1+Datos!C$11) -> 0 | P64: =+O64*(1+Datos!D$11) -> 0 | Q64: =+P64*(1+Datos!E$11) -> 0 | R64: =+Q64*(1+Datos!F$11) -> 0
A65: Seguros | N65: 0 | O65: =+N65*(1+Datos!C$11) -> 0 | P65: =+O65*(1+Datos!D$11) -> 0 | Q65: =+P65*(1+Datos!E$11) -> 0 | R65: =+Q65*(1+Datos!F$11) -> 0
A66: Servicios | B66: 5000000 | C66: =+B66 -> 5000000 | D66: =+C66 -> 5000000 | E66: 5000000 | F66: 5000000 | G66: 5000000 | H66: 5000000 | I66: 5000000 | J66: 5000000 | K66: 5000000 | L66: 5000000 | M66: 5000000 | N66: =SUM(B66:M66) -> 60000000 | O66: =+N66*(1+Datos!C$11) -> 62280000 | P66: =+O66*(1+Datos!D$11) -> 64646640 | Q66: =+P66*(1+Datos!E$11) -> 67103212.32 | R66: =+Q66*(1+Datos!F$11) -> 69653134.39
A67: Gastos Legales | N67: =SUM(B67:M67) -> 0 | O67: =+N67*(1+Datos!C$11) -> 0 | P67: =+O67*(1+Datos!D$11) -> 0 | Q67: =+P67*(1+Datos!E$11) -> 0 | R67: =+Q67*(1+Datos!F$11) -> 0
A68: Mantenimiento y Reparaciones | N68: 0 | O68: =+N68*(1+Datos!C$11) -> 0 | P68: =+O68*(1+Datos!D$11) -> 0 | Q68: =+P68*(1+Datos!E$11) -> 0 | R68: =+Q68*(1+Datos!F$11) -> 0
A69: Gastos de Viaje | N69: 0 | O69: =+N69*(1+Datos!C$11) -> 0 | P69: =+O69*(1+Datos!D$11) -> 0 | Q69: =+P69*(1+Datos!E$11) -> 0 | R69: =+Q69*(1+Datos!F$11) -> 0
A70: Diversos | N70: 0 | O70: =+N70*(1+Datos!C$11) -> 0 | P70: =+O70*(1+Datos!D$11) -> 0 | Q70: =+P70*(1+Datos!E$11) -> 0 | R70: =+Q70*(1+Datos!F$11) -> 0
B71: 0 | C71: 0 | D71: 0 | E71: 0 | F71: 0 | G71: 0 | H71: 0 | I71: 0 | J71: 0 | K71: 0 | L71: 0 | M71: 0 | N71: 0 | O71: =+B71*(1+Datos!$D$11) -> 0 | P71: =+C71*(1+Datos!$D$11) -> 0 | Q71: =+D71*(1+Datos!$D$11) -> 0 | R71: =+E71*(1+Datos!$D$11) -> 0
B72: 0 | C72: 0 | D72: 0 | E72: 0 | F72: 0 | G72: 0 | H72: 0 | I72: 0 | J72: 0 | K72: 0 | L72: 0 | M72: 0 | N72: 0 | O72: =+B72*(1+Datos!$D$11) -> 0 | P72: =+C72*(1+Datos!$D$11) -> 0 | Q72: =+D72*(1+Datos!$D$11) -> 0 | R72: =+E72*(1+Datos!$D$11) -> 0
B73: 0 | C73: 0 | D73: 0 | E73: 0 | F73: 0 | G73: 0 | H73: 0 | I73: 0 | J73: 0 | K73: 0 | L73: 0 | M73: 0 | N73: 0 | O73: =+B73*(1+Datos!$D$11) -> 0 | P73: =+C73*(1+Datos!$D$11) -> 0 | Q73: =+D73*(1+Datos!$D$11) -> 0 | R73: =+E73*(1+Datos!$D$11) -> 0
B74: 0 | C74: 0 | D74: 0 | E74: 0 | F74: 0 | G74: 0 | H74: 0 | I74: 0 | J74: 0 | K74: 0 | L74: 0 | M74: 0 | N74: 0 | O74: =+B74*(1+Datos!$D$11) -> 0 | P74: =+C74*(1+Datos!$D$11) -> 0 | Q74: =+D74*(1+Datos!$D$11) -> 0 | R74: =+E74*(1+Datos!$D$11) -> 0
B75: 0 | C75: 0 | D75: 0 | E75: 0 | F75: 0 | G75: 0 | H75: 0 | I75: 0 | J75: 0 | K75: 0 | L75: 0 | M75: 0 | N75: 0 | O75: =+B75*(1+Datos!$D$11) -> 0 | P75: =+C75*(1+Datos!$D$11) -> 0 | Q75: =+D75*(1+Datos!$D$11) -> 0 | R75: =+E75*(1+Datos!$D$11) -> 0
B76: 0 | C76: 0 | D76: 0 | E76: 0 | F76: 0 | G76: 0 | H76: 0 | I76: 0 | J76: 0 | K76: 0 | L76: 0 | M76: 0 | N76: 0 | O76: =+B76*(1+Datos!$D$11) -> 0 | P76: =+C76*(1+Datos!$D$11) -> 0 | Q76: =+D76*(1+Datos!$D$11) -> 0 | R76: =+E76*(1+Datos!$D$11) -> 0
B77: =SUM(B62:B76) -> 5000000 | C77: 5000000 | D77: 5000000 | E77: 5000000 | F77: 5000000 | G77: 5000000 | H77: 5000000 | I77: 5000000 | J77: 5000000 | K77: 5000000 | L77: 5000000 | M77: 5000000 | N77: 60000000 | O77: 62280000 | P77: 64646640 | Q77: 67103212.32 | R77: 69653134.39
A81: COMISIONES DE VENTAS
A82: Comisiones de ventas | B82: % Comisión
A83: =+'Proyección ventas'!A67 -> COCINAS INTEGRALES | B83: 0
A84: =+'Proyección ventas'!A68 -> BAÑOS | B84: 0
A85: =+'Proyección ventas'!A69 -> PISOS | B85: 0
A86: ASESORIAS | B86: 0
A89: Distribución de cantidades mensual
A90: Productos y Servicios | B90: Enero | C90: Febrero | D90: Marzo | E90: Abril | F90: Mayo | G90: Junio | H90: Julio | I90: Agosto | J90: Septiembre | K90: Octubre | L90: Noviembre | M90: Diciembre | N90: TOTAL | O90: Año 2 | P90: Año 3 | Q90: Año 4 | R90: Año 5
A91: =+'Proyección ventas'!A11 -> COCINAS INTEGRALES | B91: =+'Proyección ventas'!B11 -> 2500000 | C91: =+'Proyección ventas'!C11 -> 2500000 | D91: =+'Proyección ventas'!D11 -> 2500000 | E91: =+'Proyección ventas'!E11 -> 2500000 | F91: =+'Proyección ventas'!F11 -> 2500000 | G91: =+'Proyección ventas'!G11 -> 2500000 | H91: =+'Proyección ventas'!H11 -> 2500000 | I91: =+'Proyección ventas'!I11 -> 2500000 | J91: =+'Proyección ventas'!J11 -> 2500000 | K91: =+'Proyección ventas'!K11 -> 2500000 | L91: =+'Proyección ventas'!L11 -> 2500000 | M91: =+'Proyección ventas'!M11 -> 2500000 | N91: =+'Proyección ventas'!N11 -> 30000000 | O91: =+'Proyección ventas'!P11 -> 2595000 | P91: =+'Proyección ventas'!Q11 -> 2693610 | Q91: =+'Proyección ventas'!R11 -> 2795967.18 | R91: =+'Proyección ventas'!S11 -> 2902213.933
A92: =+'Proyección ventas'!A12 -> BAÑOS | B92: =+'Proyección ventas'!B12 -> 1000000 | C92: =+'Proyección ventas'!C12 -> 1000000 | D92: =+'Proyección ventas'!D12 -> 1000000 | E92: =+'Proyección ventas'!E12 -> 1000000 | F92: =+'Proyección ventas'!F12 -> 1000000 | G92: =+'Proyección ventas'!G12 -> 1000000 | H92: =+'Proyección ventas'!H12 -> 1000000 | I92: =+'Proyección ventas'!I12 -> 1000000 | J92: =+'Proyección ventas'!J12 -> 1000000 | K92: =+'Proyección ventas'!K12 -> 1000000 | L92: =+'Proyección ventas'!L12 -> 1000000 | M92: =+'Proyección ventas'!M12 -> 1000000 | N92: =+'Proyección ventas'!N12 -> 12000000 | O92: =+'Proyección ventas'!P12 -> 1038000 | P92: =+'Proyección ventas'!Q12 -> 1077444 | Q92: =+'Proyección ventas'!R12 -> 1118386.872 | R92: =+'Proyección ventas'!S12 -> 1160885.573
A93: =+'Proyección ventas'!A13 -> PISOS | B93: =+'Proyección ventas'!B13 -> 2000000 | C93: =+'Proyección ventas'!C13 -> 2000000 | D93: =+'Proyección ventas'!D13 -> 2000000 | E93: =+'Proyección ventas'!E13 -> 2000000 | F93: =+'Proyección ventas'!F13 -> 2000000 | G93: =+'Proyección ventas'!G13 -> 2000000 | H93: =+'Proyección ventas'!H13 -> 2000000 | I93: =+'Proyección ventas'!I13 -> 2000000 | J93: =+'Proyección ventas'!J13 -> 2000000 | K93: =+'Proyección ventas'!K13 -> 2000000 | L93: =+'Proyección ventas'!L13 -> 2000000 | M93: =+'Proyección ventas'!M13 -> 2000000 | N93: =+'Proyección ventas'!N13 -> 24000000 | O93: =+'Proyección ventas'!P13 -> 2076000 | P93: =+'Proyección ventas'!Q13 -> 2154888 | Q93: =+'Proyección ventas'!R13 -> 2236773.744 | R93: =+'Proyección ventas'!S13 -> 2321771.146
A94: =+'Proyección ventas'!A14 -> ASESORIAS | B94: =+'Proyección ventas'!B14 -> 20000 | C94: =+'Proyección ventas'!C14 -> 20000 | D94: =+'Proyección ventas'!D14 -> 20000 | E94: =+'Proyección ventas'!E14 -> 20000 | F94: =+'Proyección ventas'!F14 -> 20000 | G94: =+'Proyección ventas'!G14 -> 20000 | H94: =+'Proyección ventas'!H14 -> 20000 | I94: =+'Proyección ventas'!I14 -> 20000 | J94: =+'Proyección ventas'!J14 -> 20000 | K94: =+'Proyección ventas'!K14 -> 20000 | L94: =+'Proyección ventas'!L14 -> 20000 | M94: =+'Proyección ventas'!M14 -> 20000 | N94: =+'Proyección ventas'!N14 -> 240000 | O94: =+'Proyección ventas'!P14 -> 20760 | P94: =+'Proyección ventas'!Q14 -> 21548.88 | Q94: =+'Proyección ventas'!R14 -> 22367.73744 | R94: =+'Proyección ventas'!S14 -> 23217.71146
A97: Distribución de costos variables para estado de resultados
A98: Productos y Servicios | B98: =+B40 -> Enero | C98: =+C40 -> Febrero | D98: Marzo | E98: Abril | F98: Mayo | G98: Junio | H98: Julio | I98: Agosto | J98: Septiembre | K98: Octubre | L98: Noviembre | M98: Diciembre | N98: TOTAL | O98: Año 2 | P98: Año 3 | Q98: Año 4 | R98: Año 5
A99: TOTAL COSTOS | B99: =+B16 -> 8000000 | C99: =+C16 -> 8000000 | D99: 8000000 | E99: 8000000 | F99: 8000000 | G99: 8000000 | H99: 8000000 | I99: 8000000 | J99: 8000000 | K99: 8000000 | L99: 8000000 | M99: 8000000 | N99: =SUM(B99:M99) -> 96000000 | O99: 99648000 | P99: 103434624 | Q99: 107365139.7 | R99: 111445015
B102: =SUM(B99:B101) -> 8000000 | C102: 8000000 | D102: 8000000 | E102: 8000000 | F102: 8000000 | G102: 8000000 | H102: 8000000 | I102: 8000000 | J102: 8000000 | K102: 8000000 | L102: 8000000 | M102: 8000000 | N102: 96000000 | O102: 99648000 | P102: 103434624 | Q102: 107365139.7 | R102: 111445015
A105: Distribución de costos variables para flujo de caja
A106: Productos y Servicios | B106: =+B98 -> Enero | C106: Febrero | D106: Marzo | E106: Abril | F106: Mayo | G106: Junio | H106: Julio | I106: Agosto | J106: Septiembre | K106: Octubre | L106: Noviembre | M106: Diciembre | N106: TOTAL | O106: Año 2 | P106: Año 3 | Q106: Año 4 | R106: Año 5
A107: =+A99 -> TOTAL COSTOS
B112: =SUM(B107:B111) -> 0 | C112: 0 | D112: 0 | E112: 0 | F112: 0 | G112: 0 | H112: 0 | I112: 0 | J112: 0 | K112: 0 | L112: 0 | M112: 0 | N112: 0 | O112: 0 | P112: 0 | Q112: 0 | R112: 0
A115: Distribución de comisiones para flujo de caja
A116: Productos y Servicios | B116: =+B106 -> Enero | C116: Febrero | D116: Marzo | E116: Abril | F116: Mayo | G116: Junio | H116: Julio | I116: Agosto | J116: Septiembre | K116: Octubre | L116: Noviembre | M116: Diciembre | N116: TOTAL | O116: Año 2 | P116: Año 3 | Q116: Año 4 | R116: Año 5
A117: =+'Proyección ventas'!A29 -> COCINAS INTEGRALES | B117: =+B125 -> 0 | C117: =+C125 -> 0 | D117: 0 | E117: 0 | F117: 0 | G117: 0 | H117: 0 | I117: 0 | J117: 0 | K117: 0 | L117: 0 | M117: 0 | N117: =SUM(B117:M117) -> 0 | O117: =+O125 -> 0 | P117: 0 | Q117: 0 | R117: 0
A118: =+'Proyección ventas'!A30 -> BAÑOS | B118: =+B126 -> 0 | C118: 0 | D118: 0 | E118: 0 | F118: 0 | G118: 0 | H118: 0 | I118: 0 | J118: 0 | K118: 0 | L118: 0 | M118: 0 | N118: =SUM(B118:M118) -> 0 | O118: 0 | P118: 0 | Q118: 0 | R118: 0
A119: =+'Proyección ventas'!A31 -> PISOS | B119: =+B127 -> 0 | C119: 0 | D119: 0 | E119: 0 | F119: 0 | G119: 0 | H119: 0 | I119: 0 | J119: 0 | K119: 0 | L119: 0 | M119: 0 | N119: =SUM(B119:M119) -> 0 | O119: 0 | P119: 0 | Q119: 0 | R119: 0
B120: =SUM(B117:B119) -> 0 | C120: =SUM(C117:C119) -> 0 | D120: 0 | E120: 0 | F120: 0 | G120: 0 | H120: 0 | I120: 0 | J120: 0 | K120: 0 | L120: 0 | M120: 0 | N120: 0 | O120: 0 | P120: 0 | Q120: 0 | R120: 0
A123: Distribución de comisiones para estado de resultados
A124: Productos y Servicios | B124: =+B116 -> Enero | C124: Febrero | D124: Marzo | E124: Abril | F124: Mayo | G124: Junio | H124: Julio | I124: Agosto | J124: Septiembre | K124: Octubre | L124: Noviembre | M124: Diciembre | N124: TOTAL | O124: Año 2 | P124: Año 3 | Q124: Año 4 | R124: Año 5
A125: COMISIONES | B125: =+'Proyección ventas'!B67*'costos y gastos'!$B83 -> 0 | C125: =+'Proyección ventas'!C67*'costos y gastos'!$B83 -> 0 | D125: =+'Proyección ventas'!D67*'costos y gastos'!$B83 -> 0 | E125: =+'Proyección ventas'!E67*'costos y gastos'!$B83 -> 0 | F125: =+'Proyección ventas'!F67*'costos y gastos'!$B83 -> 0 | G125: =+'Proyección ventas'!G67*'costos y gastos'!$B83 -> 0 | H125: =+'Proyección ventas'!H67*'costos y gastos'!$B83 -> 0 | I125: =+'Proyección ventas'!I67*'costos y gastos'!$B83 -> 0 | J125: =+'Proyección ventas'!J67*'costos y gastos'!$B83 -> 0 | K125: =+'Proyección ventas'!K67*'costos y gastos'!$B83 -> 0 | L125: =+'Proyección ventas'!L67*'costos y gastos'!$B83 -> 0 | M125: =+'Proyección ventas'!M67*'costos y gastos'!$B83 -> 0 | N125: =+'Proyección ventas'!N67*'costos y gastos'!$B83 -> 0 | O125: =+'Proyección ventas'!P67*'costos y gastos'!$B83 -> 0 | P125: =+'Proyección ventas'!Q67*'costos y gastos'!$B83 -> 0 | Q125: =+'Proyección ventas'!R67*'costos y gastos'!$B83 -> 0 | R125: =+'Proyección ventas'!S67*'costos y gastos'!$B83 -> 0
A126: =+A118 -> BAÑOS | B126: =+'Proyección ventas'!B68*'costos y gastos'!$B84 -> 0 | C126: =+'Proyección ventas'!C68*'costos y gastos'!$B84 -> 0 | D126: =+'Proyección ventas'!D68*'costos y gastos'!$B84 -> 0 | E126: =+'Proyección ventas'!E68*'costos y gastos'!$B84 -> 0 | F126: =+'Proyección ventas'!F68*'costos y gastos'!$B84 -> 0 | G126: =+'Proyección ventas'!G68*'costos y gastos'!$B84 -> 0 | H126: =+'Proyección ventas'!H68*'costos y gastos'!$B84 -> 0 | I126: =+'Proyección ventas'!I68*'costos y gastos'!$B84 -> 0 | J126: =+'Proyección ventas'!J68*'costos y gastos'!$B84 -> 0 | K126: =+'Proyección ventas'!K68*'costos y gastos'!$B84 -> 0 | L126: =+'Proyección ventas'!L68*'costos y gastos'!$B84 -> 0 | M126: =+'Proyección ventas'!M68*'costos y gastos'!$B84 -> 0 | N126: =+'Proyección ventas'!N68*'costos y gastos'!$B84 -> 0 | O126: =+'Proyección ventas'!P68*'costos y gastos'!$B84 -> 0 | P126: =+'Proyección ventas'!Q68*'costos y gastos'!$B84 -> 0 | Q126: =+'Proyección ventas'!R68*'costos y gastos'!$B84 -> 0 | R126: =+'Proyección ventas'!S68*'costos y gastos'!$B84 -> 0
A127: =+A119 -> PISOS | B127: =+'Proyección ventas'!B69*'costos y gastos'!$B85 -> 0 | C127: =+'Proyección ventas'!C69*'costos y gastos'!$B85 -> 0 | D127: =+'Proyección ventas'!D69*'costos y gastos'!$B85 -> 0 | E127: =+'Proyección ventas'!E69*'costos y gastos'!$B85 -> 0 | F127: =+'Proyección ventas'!F69*'costos y gastos'!$B85 -> 0 | G127: =+'Proyección ventas'!G69*'costos y gastos'!$B85 -> 0 | H127: =+'Proyección ventas'!H69*'costos y gastos'!$B85 -> 0 | I127: =+'Proyección ventas'!I69*'costos y gastos'!$B85 -> 0 | J127: =+'Proyección ventas'!J69*'costos y gastos'!$B85 -> 0 | K127: =+'Proyección ventas'!K69*'costos y gastos'!$B85 -> 0 | L127: =+'Proyección ventas'!L69*'costos y gastos'!$B85 -> 0 | M127: =+'Proyección ventas'!M69*'costos y gastos'!$B85 -> 0 | N127: =+'Proyección ventas'!N69*'costos y gastos'!$B85 -> 0 | O127: =+'Proyección ventas'!P69*'costos y gastos'!$B85 -> 0 | P127: =+'Proyección ventas'!Q69*'costos y gastos'!$B85 -> 0 | Q127: =+'Proyección ventas'!R69*'costos y gastos'!$B85 -> 0 | R127: =+'Proyección ventas'!S69*'costos y gastos'!$B85 -> 0
A128: PYG | B128: =SUM(B125:B127) -> 0 | C128: 0 | D128: 0 | E128: 0 | F128: 0 | G128: 0 | H128: 0 | I128: 0 | J128: 0 | K128: 0 | L128: 0 | M128: 0 | N128: 0 | O128: 0 | P128: 0 | Q128: 0 | R128: 0
A131: Distribución de ICA
A132: Productos y Servicios | B132: =+B124 -> Enero | C132: Febrero | D132: Marzo | E132: Abril | F132: Mayo | G132: Junio | H132: Julio | I132: Agosto | J132: Septiembre | K132: Octubre | L132: Noviembre | M132: Diciembre | N132: TOTAL | O132: Año 2 | P132: Año 3 | Q132: Año 4 | R132: Año 5
A133: ICA para estado de resultados | B133: =+'Proyección ventas'!B82*(Datos!$C$19/1000) -> 314640 | C133: =+'Proyección ventas'!C82*(Datos!$C$19/1000) -> 314640 | D133: =+'Proyección ventas'!D82*(Datos!$C$19/1000) -> 314640 | E133: =+'Proyección ventas'!E82*(Datos!$C$19/1000) -> 314640 | F133: =+'Proyección ventas'!F82*(Datos!$C$19/1000) -> 314640 | G133: =+'Proyección ventas'!G82*(Datos!$C$19/1000) -> 314640 | H133: =+'Proyección ventas'!H82*(Datos!$C$19/1000) -> 314640 | I133: =+'Proyección ventas'!I82*(Datos!$C$19/1000) -> 314640 | J133: =+'Proyección ventas'!J82*(Datos!$C$19/1000) -> 314640 | K133: =+'Proyección ventas'!K82*(Datos!$C$19/1000) -> 314640 | L133: =+'Proyección ventas'!L82*(Datos!$C$19/1000) -> 314640 | M133: =+'Proyección ventas'!M82*(Datos!$C$19/1000) -> 314640 | N133: =+'Proyección ventas'!N82*(Datos!$C$19/1000) -> 3775680 | O133: =+'Proyección ventas'!P82*(Datos!$C$19/1000) -> 4217246.833 | P133: =+'Proyección ventas'!Q82*(Datos!$C$19/1000) -> 4710669.318 | Q133: =+'Proyección ventas'!R82*(Datos!$C$19/1000) -> 5262053.95 | R133: =+'Proyección ventas'!S82*(Datos!$C$19/1000) -> 5878227.637
A134: ICA para flujo de caja | B134: 0 | C134: 0 | D134: =+B133+C133 -> 629280 | E134: 0 | F134: =+D133+E133 -> 629280 | G134: 0 | H134: =+F133+G133 -> 629280 | I134: 0 | J134: =+H133+I133 -> 629280 | K134: 0 | L134: =+J133+K133 -> 629280 | M134: 0 | N134: =+L133+M133 -> 629280 | O134: =+N136*2 -> 702874.4722 | P134: =+O136*2 -> 785111.5529 | Q134: =+P136*2 -> 877008.9917 | R134: 979704.6062
N135: =+L133+M133 -> 629280 | O135: =+N136*8 -> 2811497.889 | P135: =+O136*8 -> 3140446.212 | Q135: =+P136*8 -> 3508035.967 | R135: 3918818.425
M136: =+'Proyección ventas'!M82*(Datos!$C$19/1000) -> 314640 | N136: =+'Proyección ventas'!P82/12*(Datos!$C$19/1000) -> 351437.2361 | O136: =+'Proyección ventas'!Q82/12*(Datos!$C$19/1000) -> 392555.7765 | P136: =+'Proyección ventas'!R82/12*(Datos!$C$19/1000) -> 438504.4958 | Q136: =+'Proyección ventas'!S82/12*(Datos!$C$19/1000) -> 489852.3031

Sheet amortización
D3: Amortizaciones
B6: Amortización de deuda para inversiones y preoperativos | H6: Amortización de deuda para capital de trabajo
B7: Tiempo de la deuda | C7: =+Datos!C22 -> 60 | D7: Meses | H7: Tiempo de la deuda | I7: =+Datos!C26 -> 60 | J7: Meses
B8: Tasa de interés E.A. | C8: 0.16 | D8: E.A. | H8: Tasa de interés E.A. | I8: =+Datos!C27 -> 0.09 | J8: E.A.
B9: Tasa de interés periodica | C9: =NOMINAL(C8,12)/12 -> 0.01244513792 | D9: Mensual | H9: Tasa de interés periodica | I9: =NOMINAL(I8,12)/12 -> 0.007207323316 | J9: Mensual
B10: Cápital | C10: =+BG!C35 -> 100000000 | H10: Cápital | I10: =+Inversiones!D78 -> 30000000
B11: Periodo de gracia | C11: 0 | H11: Periodo de gracia | I11: 0
B14: Mes | C14: Cuota | D14: Interés | E14: Capital | F14: Saldo | H14: Mes | I14: Cuota | J14: Interés | K14: Capital | L14: Saldo
B15: 0 | F15: =+C10 -> 100000000 | H15: 0 | L15: =+I10 -> 30000000
B16: 1 | C16: =IF(B16>$C$7,0,IF(B16<=$C$11,$C$10*$C$9,PMT($C$9,($C$7-$C$11),-$C$10))) -> 2375538.673 | D16: =+F15*$C$9 -> 1244513.792 | E16: =IF(B16<=$C$11,0,C16-D16) -> 1131024.881 | F16: =+F15-E16 -> 98868975.12 | H16: 1 | I16: =IF(H16>$I$7,0,IF(H16<=$I$11,$I$10*$I$9,PMT($I$9,($I$7-$I$11),-$I$10))) -> 617649.4865 | J16: =+L15*$I$9 -> 216219.6995 | K16: =IF(H16<=$I$11,0,I16-J16) -> 401429.787 | L16: =+L15-K16 -> 29598570.21
B17: 2 | C17: 2375538.673 | D17: 1230438.031 | E17: 1145100.641 | F17: =+F16-E17 -> 97723874.48 | H17: 2 | I17: 617649.4865 | J17: 213326.4652 | K17: 404323.0213 | L17: =+L16-K17 -> 29194247.19
B18: 3 | C18: 2375538.673 | D18: 1216187.096 | E18: 1159351.577 | F18: 96564522.9 | H18: 3 | I18: 617649.4865 | J18: 210412.3785 | K18: 407237.108 | L18: 28787010.08
B19: 4 | C19: 2375538.673 | D19: 1201758.806 | E19: 1173779.867 | F19: 95390743.03 | H19: 4 | I19: 617649.4865 | J19: 207477.289 | K19: 410172.1975 | L19: 28376837.89
B20: 5 | C20: 2375538.673 | D20: 1187150.953 | E20: 1188387.719 | F20: 94202355.32 | H20: 5 | I20: 617649.4865 | J20: 204521.0453 | K20: 413128.4411 | L20: 27963709.45
B21: 6 | C21: 2375538.673 | D21: 1172361.304 | E21: 1203177.368 | F21: 92999177.95 | H21: 6 | I21: 617649.4865 | J21: 201543.4951 | K21: 416105.9914 | L21: 27547603.45
B22: 7 | C22: 2375538.673 | D22: 1157387.596 | E22: 1218151.077 | F22: 91781026.87 | H22: 7 | I22: 617649.4865 | J22: 198544.4847 | K22: 419105.0018 | L22: 27128498.45
B23: 8 | C23: 2375538.673 | D23: 1142227.538 | E23: 1233311.135 | F23: 90547715.74 | H23: 8 | I23: 617649.4865 | J23: 195523.8594 | K23: 422125.6271 | L23: 26706372.82
B24: 9 | C24: 2375538.673 | D24: 1126878.811 | E24: 1248659.862 | F24: 89299055.87 | H24: 9 | I24: 617649.4865 | J24: 192481.4636 | K24: 425168.0229 | L24: 26281204.8
B25: 10 | C25: 2375538.673 | D25: 1111339.066 | E25: 1264199.606 | F25: 88034856.27 | H25: 10 | I25: 617649.4865 | J25: 189417.1401 | K25: 428232.3463 | L25: 25852972.46
B26: 11 | C26: 2375538.673 | D26: 1095605.928 | E26: 1279932.745 | F26: 86754923.52 | H26: 11 | I26: 617649.4865 | J26: 186330.7312 | K26: 431318.7553 | L26: 25421653.7
B27: 12 | C27: 2375538.673 | D27: 1079676.988 | E27: 1295861.684 | F27: 85459061.84 | H27: 12 | I27: 617649.4865 | J27: 183222.0774 | K27: 434427.409 | L27: 24987226.29
B28: 13 | C28: 2375538.673 | D28: 1063549.811 | E28: 1311988.862 | F28: 84147072.98 | H28: 13 | I28: 617649.4865 | J28: 180091.0187 | K28: 437558.4678 | L28: 24549667.82
B29: 14 | C29: 2375538.673 | D29: 1047221.929 | E29: 1328316.744 | F29: 82818756.23 | H29: 14 | I29: 617649.4865 | J29: 176937.3933 | K29: 440712.0932 | L29: 24108955.73
B30: 15 | C30: 2375538.673 | D30: 1030690.844 | E30: 1344847.829 | F30: 81473908.4 | H30: 15 | I30: 617649.4865 | J30: 173761.0388 | K30: 443888.4477 | L30: 23665067.28
B31: 16 | C31: 2375538.673 | D31: 1013954.027 | E31: 1361584.646 | F31: 80112323.76 | H31: 16 | I31: 617649.4865 | J31: 170561.7912 | K31: 447087.6953 | L31: 23217979.59
B32: 17 | C32: 2375538.673 | D32: 997008.9182 | E32: 1378529.754 | F32: 78733794 | H32: 17 | I32: 617649.4865 | J32: 167339.4856 | K32: 450310.0008 | L32: 22767669.59
B33: 18 | C33: 2375538.673 | D33: 979852.9253 | E33: 1395685.747 | F33: 77338108.26 | H33: 18 | I33: 617649.4865 | J33: 164093.9559 | K33: 453555.5306 | L33: 22314114.06
B34: 19 | C34: 2375538.673 | D34: 962483.4237 | E34: 1413055.249 | F34: 75925053.01 | H34: 19 | I34: 617649.4865 | J34: 160825.0345 | K34: 456824.452 | L34: 21857289.6
B35: 20 | C35: 2375538.673 | D35: 944897.7562 | E35: 1430640.916 | F35: 74494412.09 | H35: 20 | I35: 617649.4865 | J35: 157532.553 | K35: 460116.9335 | L35: 21397172.67
B36: 21 | C36: 2375538.673 | D36: 927093.2327 | E36: 1448445.44 | F36: 73045966.65 | H36: 21 | I36: 617649.4865 | J36: 154216.3415 | K36: 463433.145 | L36: 20933739.53
B37: 22 | C37: 2375538.673 | D37: 909067.1295 | E37: 1466471.543 | F37: 71579495.11 | H37: 22 | I37: 617649.4865 | J37: 150876.229 | K37: 466773.2575 | L37: 20466966.27
B38: 23 | C38: 2375538.673 | D38: 890816.6888 | E38: 1484721.984 | F38: 70094773.12 | H38: 23 | I38: 617649.4865 | J38: 147512.0432 | K38: 470137.4433 | L38: 19996828.82
B39: 24 | C39: 2375538.673 | D39: 872339.119 | E39: 1503199.554 | F39: 68591573.57 | H39: 24 | I39: 617649.4865 | J39: 144123.6106 | K39: 473525.8758 | L39: 19523302.95
B40: 25 | C40: 2375538.673 | D40: 853631.5932 | E40: 1521907.079 | F40: 67069666.49 | H40: 25 | I40: 617649.4865 | J40: 140710.7566 | K40: 476938.7299 | L40: 19046364.22
B41: 26 | C41: 2375538.673 | D41: 834691.2497 | E41: 1540847.423 | F41: 65528819.07 | H41: 26 | I41: 617649.4865 | J41: 137273.3049 | K41: 480376.1816 | L41: 18565988.04
B42: 27 | C42: 2375538.673 | D42: 815515.191 | E42: 1560023.482 | F42: 63968795.59 | H42: 27 | I42: 617649.4865 | J42: 133811.0785 | K42: 483838.408 | L42: 18082149.63
B43: 28 | C43: 2375538.673 | D43: 796100.4836 | E43: 1579438.189 | F43: 62389357.4 | H43: 28 | I43: 617649.4865 | J43: 130323.8986 | K43: 487325.5878 | L43: 17594824.04
B44: 29 | C44: 2375538.673 | D44: 776444.1575 | E44: 1599094.515 | F44: 60790262.88 | H44: 29 | I44: 617649.4865 | J44: 126811.5856 | K44: 490837.9009 | L44: 17103986.14
B45: 30 | C45: 2375538.673 | D45: 756543.2057 | E45: 1618995.467 | F45: 59171267.42 | H45: 30 | I45: 617649.4865 | J45: 123273.9581 | K45: 494375.5284 | L45: 16609610.61
B46: 31 | C46: 2375538.673 | D46: 736394.5839 | E46: 1639144.089 | F46: 57532123.33 | H46: 31 | I46: 617649.4865 | J46: 119710.8338 | K46: 497938.6526 | L46: 16111671.96
B47: 32 | C47: 2375538.673 | D47: 715995.2096 | E47: 1659543.463 | F47: 55872579.86 | H47: 32 | I47: 617649.4865 | J47: 116122.029 | K47: 501527.4575 | L47: 15610144.5
B48: 33 | C48: =IF(B48>$C$7,0,IF(B48<=$C$11,$C$10*$C$9,PMT($C$9,($C$7-$C$11),-$C$10))) -> 2375538.673 | D48: =+F47*$C$9 -> 695341.9623 | E48: =IF(B48<=$C$11,0,C48-D48) -> 1680196.71 | F48: 54192383.15 | H48: 33 | I48: =IF(H48>$I$7,0,IF(H48<=$I$11,$I$10*$I$9,PMT($I$9,($I$7-$I$11),-$I$10))) -> 617649.4865 | J48: =+L47*$I$9 -> 112507.3584 | K48: =IF(H48<=$I$11,0,I48-J48) -> 505142.128 | L48: 15105002.37
B49: 34 | C49: 2375538.673 | D49: 674431.6825 | E49: 1701106.99 | F49: 52491276.16 | H49: 34 | I49: 617649.4865 | J49: 108866.6358 | K49: 508782.8507 | L49: 14596219.52
B50: 35 | C50: 2375538.673 | D50: 653261.1714 | E50: 1722277.501 | F50: 50768998.66 | H50: 35 | I50: 617649.4865 | J50: 105199.6733 | K50: 512449.8132 | L50: 14083769.71
B51: 36 | C51: 2375538.673 | D51: 631827.1904 | E51: 1743711.482 | F51: 49025287.18 | H51: 36 | I51: 617649.4865 | J51: 101506.2818 | K51: 516143.2047 | L51: 13567626.51
B52: 37 | C52: 2375538.673 | D52: 610126.4605 | E52: 1765412.212 | F52: 47259874.97 | H52: 37 | I52: 617649.4865 | J52: 97786.27086 | K52: 519863.2156 | L52: 13047763.29
B53: 38 | C53: 2375538.673 | D53: 588155.662 | E53: 1787383.011 | F53: 45472491.96 | H53: 38 | I53: 617649.4865 | J53: 94039.44858 | K53: 523610.0379 | L53: 12524153.25
B54: 39 | C54: 2375538.673 | D54: 565911.434 | E54: 1809627.239 | F54: 43662864.72 | H54: 39 | I54: 617649.4865 | J54: 90265.62175 | K54: 527383.8647 | L54: 11996769.39
B55: 40 | C55: 2375538.673 | D55: 543390.3734 | E55: 1832148.299 | F55: 41830716.42 | H55: 40 | I55: 617649.4865 | J55: 86464.59572 | K55: 531184.8908 | L55: 11465584.5
B56: 41 | C56: 2375538.673 | D56: 520589.0351 | E56: 1854949.638 | F56: 39975766.78 | H56: 41 | I56: 617649.4865 | J56: 82636.17447 | K56: 535013.312 | L56: 10930571.18
B57: 42 | C57: 2375538.673 | D57: 497503.931 | E57: 1878034.742 | F57: 38097732.04 | H57: 42 | I57: 617649.4865 | J57: 78780.16056 | K57: 538869.3259 | L57: 10391701.86
B58: 43 | C58: 2375538.673 | D58: 474131.5297 | E58: 1901407.143 | F58: 36196324.9 | H58: 43 | I58: 617649.4865 | J58: 74896.3551 | K58: 542753.1314 | L58: 9848948.727
B59: 44 | C59: 2375538.673 | D59: 450468.2555 | E59: 1925070.417 | F59: 34271254.48 | H59: 44 | I59: 617649.4865 | J59: 70984.5578 | K59: 546664.9287 | L59: 9302283.799
B60: 45 | C60: 2375538.673 | D60: 426510.4887 | E60: 1949028.184 | F60: 32322226.3 | H60: 45 | I60: 617649.4865 | J60: 67044.56691 | K60: 550604.9196 | L60: 8751678.879
B61: 46 | C61: 2375538.673 | D61: 402254.5641 | E61: 1973284.109 | F61: 30348942.19 | H61: 46 | I61: 617649.4865 | J61: 63076.17924 | K61: 554573.3072 | L61: 8197105.572
B62: 47 | C62: 2375538.673 | D62: 377696.7712 | E62: 1997841.901 | F62: 28351100.29 | H62: 47 | I62: 617649.4865 | J62: 59079.19011 | K62: 558570.2964 | L62: 7638535.275
B63: 48 | C63: 2375538.673 | D63: 352833.3532 | E63: 2022705.319 | F63: 26328394.97 | H63: 48 | I63: 617649.4865 | J63: 55053.39339 | K63: 562596.0931 | L63: 7075939.182
B64: 49 | C64: 2375538.673 | D64: 327660.5066 | E64: 2047878.166 | F64: 24280516.8 | H64: 49 | I64: 617649.4865 | J64: 50998.58145 | K64: 566650.905 | L64: 6509288.277
B65: 50 | C65: 2375538.673 | D65: 302174.3804 | E65: 2073364.292 | F65: 22207152.51 | H65: 50 | I65: 617649.4865 | J65: 46914.54517 | K65: 570734.9413 | L65: 5938553.336
B66: 51 | C66: 2375538.673 | D66: 276371.0758 | E66: 2099167.597 | F66: 20107984.91 | H66: 51 | I66: 617649.4865 | J66: 42801.07392 | K66: 574848.4126 | L66: 5363704.923
B67: 52 | C67: 2375538.673 | D67: 250246.6455 | E67: 2125292.027 | F67: 17982692.88 | H67: 52 | I67: 617649.4865 | J67: 38657.95556 | K67: 578991.5309 | L67: 4784713.392
B68: 53 | C68: 2375538.673 | D68: 223797.0931 | E68: 2151741.58 | F68: 15830951.31 | H68: 53 | I68: 617649.4865 | J68: 34484.97639 | K68: 583164.5101 | L68: 4201548.882
B69: 54 | C69: 2375538.673 | D69: 197018.3724 | E69: 2178520.3 | F69: 13652431 | H69: 54 | I69: 617649.4865 | J69: 30281.92122 | K69: 587367.5653 | L69: 3614181.317
B70: 55 | C70: 2375538.673 | D70: 169906.3868 | E70: 2205632.286 | F70: 11446798.72 | H70: 55 | I70: 617649.4865 | J70: 26048.57328 | K70: 591600.9132 | L70: 3022580.404
B71: 56 | C71: 2375538.673 | D71: 142456.9888 | E71: 2233081.684 | F71: 9213717.035 | H71: 56 | I71: 617649.4865 | J71: 21784.71422 | K71: 595864.7723 | L71: 2426715.632
B72: 57 | C72: 2375538.673 | D72: 114665.9793 | E72: 2260872.693 | F72: 6952844.342 | H72: 57 | I72: 617649.4865 | J72: 17490.12415 | K72: 600159.3623 | L72: 1826556.269
B73: 58 | C73: 2375538.673 | D73: 86529.10677 | E73: 2289009.566 | F73: 4663834.776 | H73: 58 | I73: 617649.4865 | J73: 13164.58159 | K73: 604484.9049 | L73: 1222071.364
B74: 59 | C74: 2375538.673 | D74: 58042.06702 | E74: 2317496.606 | F74: 2346338.17 | H74: 59 | I74: 617649.4865 | J74: 8807.863439 | K74: 608841.623 | L74: 613229.7415
B75: 60 | C75: 2375538.673 | D75: 29200.50214 | E75: 2346338.17 | F75: 6.98491931e-08 | H75: 60 | I75: 617649.4865 | J75: 4419.745014 | K75: 613229.7415 | L75: 1.071020961e-08

Sheet Inversiones
N1: =+Datos!C5 -> 5
C2: Proyección de Inversiones
B5: Inversión en Equipos de computo
B6: Depreciación en años | C6: 5 | P6: Depreciación y amortización en años
B7: Concepto | C7: Cantidad | D7: Valor unitario | E7: Costo total | F7: Depreciación anual | G7: Depreciación mensual | H7: Aporte de socios | I7: Deuda | J7: Operación | K7: Validación | L7: Destinación del activo | M7: Mes de inversión | P7: 1 | Q7: 2 | R7: 3 | S7: 4 | T7: 5
C8: 3 | D8: 3000000 | E8: =+C8*D8 -> 9000000 | F8: =IFERROR(E8/$C$6,0) -> 1800000 | G8: =+F8/12 -> 150000 | P8: =IF($M8<=12,$F8,0)+P48 -> 17800000 | Q8: =IF(P8=$E8,0,IF($M8<=24,$F8,0))+Q61 -> 17800000 | R8: =IF(SUM($P8:Q8)=$E8,0,IF($M8<=36,$F8,0))+R61 -> 17800000 | S8: =IF(SUM($P8:R8)=$E8,0,IF($M8<=48,$F8,0))+S61 -> 17800000 | T8: =IF(SUM($P8:S8)=$E8,0,IF($M8<=60,$F8,0))+T48 -> 17800000
E9: =+C9*D9 -> 0 | F9: 0 | G9: =+F9/12 -> 0 | K9: =SUM(H9:J9)-E9 -> 0 | P9: =+P8 -> 17800000 | Q9: =+Q8+P9 -> 35600000 | R9: =+R8+Q9 -> 53400000 | S9: 71200000 | T9: 89000000
E10: 0 | F10: 0 | G10: 0 | K10: 0 | P10: =IF($M10<=12,$F10,0) -> 0 | Q10: 0 | R10: 0 | S10: 0 | T10: 0
E11: 0 | F11: 0 | G11: 0 | K11: 0 | P11: 0 | Q11: 0 | R11: 0 | S11: 0 | T11: 0
E12: 0 | F12: 0 | G12: 0 | K12: 0 | P12: 0 | Q12: 0 | R12: 0 | S12: 0 | T12: 0
E13: 0 | F13: 0 | G13: 0 | K13: 0 | P13: 0 | Q13: 0 | R13: 0 | S13: 0 | T13: 0
E14: 0 | F14: 0 | G14: 0 | K14: 0 | P14: 0 | Q14: 0 | R14: 0 | S14: 0 | T14: 0
E15: 0 | F15: 0 | G15: 0 | K15: 0 | P15: 0 | Q15: 0 | R15: 0 | S15: 0 | T15: 0
E16: 0 | F16: 0 | G16: 0 | K16: 0 | P16: 0 | Q16: 0 | R16: 0 | S16: 0 | T16: 0
E17: 0 | F17: 0 | G17: 0 | K17: 0 | P17: 0 | Q17: 0 | R17: 0 | S17: 0 | T17: 0
E18: 0 | F18: 0 | G18: 0 | K18: 0 | P18: 0 | Q18: 0 | R18: 0 | S18: 0 | T18: 0
E19: 0 | F19: 0 | G19: 0 | K19: 0 | P19: 0 | Q19: 0 | R19: 0 | S19: 0 | T19: 0
E20: 0 | F20: 0 | G20: 0 | K20: 0 | P20: 0 | Q20: 0 | R20: 0 | S20: 0 | T20: 0
E21: 0 | F21: 0 | G21: 0 | K21: 0 | P21: 0 | Q21: 0 | R21: 0 | S21: 0 | T21: 0
E22: 0 | F22: 0 | G22: 0 | K22: 0 | P22: 0 | Q22: 0 | R22: 0 | S22: 0 | T22: 0
E23: =SUM(E8:E22) -> 9000000 | F23: 1800000 | G23: 150000 | H23: 0 | I23: 0 | J23: 0 | P23: =+$E$8-P9+E48 -> 71200000 | Q23: =+$E$8-Q9+E48 -> 53400000 | R23: =+$E$8-R9+E48 -> 35600000 | S23: =+$E$8-S9+E48 -> 17800000 | T23: =+$E$8-T9+E48 -> 0
B27: Inversión en otros activos
B28: Depreciación en años | C28: 1 | P28: Depreciación y amortización en años
B29: Unidad de medida | C29: Cantidad | D29: Valor unitario | E29: Costo total | F29: Depreciación anual | G29: Depreciación mensual | H29: Aporte de socios | I29: Deuda | J29: Operación | K29: Validación | L29: Destinación del activo | M29: Mes de inversión | P29: 1 | Q29: 2 | R29: 3 | S29: 4 | T29: 5
B30: 1 | C30: 0 | D30: 0 | E30: =+C30*D30 -> 0 | F30: =IFERROR(E30/$C$28,0) -> 0 | G30: =+F30/12 -> 0 | I30: =+D30 -> 0 | M30: 2 | P30: =IF($M30<=12,$F30,0) -> 0 | Q30: =IF(P30=$E30,0,IF($M30<=24,$F30,0)) -> 0 | R30: =IF(SUM($P30:Q30)=$E30,0,IF($M30<=36,$F30,0)) -> 0 | S30: =IF(SUM($P30:R30)=$E30,0,IF($M30<=48,$F30,0)) -> 0 | T30: =IF(SUM($P30:S30)=$E30,0,IF($M30<=60,$F30,0)) -> 0
E31: =+C31*D31 -> 0 | F31: 0 | G31: =+F31/12 -> 0 | I31: 0 | J31: =+E31 -> 0 | K31: =SUM(H31:J31)-E31 -> 0 | P31: 0 | Q31: 0 | R31: =IF(SUM($P31:Q31)=$E31,0,IF($M31<=36,$F31,0)) -> 0 | S31: =IF(SUM($P31:R31)=$E31,0,IF($M31<=48,$F31,0)) -> 0 | T31: =IF(SUM($P31:S31)=$E31,0,IF($M31<=60,$F31,0)) -> 0
E32: 0 | F32: 0 | G32: 0 | I32: 0 | K32: 0 | P32: 0 | Q32: 0 | R32: =IF(SUM($P32:Q32)=$E32,0,IF($M32<=36,$F32,0)) -> 0 | S32: =IF(SUM($P32:R32)=$E32,0,IF($M32<=48,$F32,0)) -> 0 | T32: =IF(SUM($P32:S32)=$E32,0,IF($M32<=60,$F32,0)) -> 0
E33: 0 | F33: 0 | G33: 0 | I33: 0 | K33: 0 | P33: 0 | Q33: 0 | R33: =IF(SUM($P33:Q33)=$E33,0,IF($M33<=36,$F33,0)) -> 0 | S33: =IF(SUM($P33:R33)=$E33,0,IF($M33<=48,$F33,0)) -> 0 | T33: =IF(SUM($P33:S33)=$E33,0,IF($M33<=60,$F33,0)) -> 0
E34: 0 | F34: 0 | G34: 0 | K34: 0 | P34: 0 | Q34: 0 | R34: =IF(SUM($P34:Q34)=$E34,0,IF($M34<=36,$F34,0)) -> 0 | S34: =IF(SUM($P34:R34)=$E34,0,IF($M34<=48,$F34,0)) -> 0 | T34: =IF(SUM($P34:S34)=$E34,0,IF($M34<=60,$F34,0)) -> 0
E35: 0 | F35: 0 | G35: 0 | K35: 0 | P35: 0 | Q35: 0 | R35: =IF(SUM($P35:Q35)=$E35,0,IF($M35<=36,$F35,0)) -> 0 | S35: =IF(SUM($P35:R35)=$E35,0,IF($M35<=48,$F35,0)) -> 0 | T35: =IF(SUM($P35:S35)=$E35,0,IF($M35<=60,$F35,0)) -> 0
E36: 0 | F36: 0 | G36: 0 | K36: 0 | P36: 0 | Q36: 0 | R36: =IF(SUM($P36:Q36)=$E36,0,IF($M36<=36,$F36,0)) -> 0 | S36: =IF(SUM($P36:R36)=$E36,0,IF($M36<=48,$F36,0)) -> 0 | T36: =IF(SUM($P36:S36)=$E36,0,IF($M36<=60,$F36,0)) -> 0
E37: 0 | F37: 0 | G37: 0 | K37: 0 | P37: 0 | Q37: 0 | R37: =IF(SUM($P37:Q37)=$E37,0,IF($M37<=36,$F37,0)) -> 0 | S37: =IF(SUM($P37:R37)=$E37,0,IF($M37<=48,$F37,0)) -> 0 | T37: =IF(SUM($P37:S37)=$E37,0,IF($M37<=60,$F37,0)) -> 0
E38: 0 | F38: 0 | G38: 0 | K38: 0 | P38: 0 | Q38: 0 | R38: =IF(SUM($P38:Q38)=$E38,0,IF($M38<=36,$F38,0)) -> 0 | S38: =IF(SUM($P38:R38)=$E38,0,IF($M38<=48,$F38,0)) -> 0 | T38: =IF(SUM($P38:S38)=$E38,0,IF($M38<=60,$F38,0)) -> 0
E39: 0 | F39: 0 | G39: 0 | K39: 0 | P39: 0 | Q39: 0 | R39: =IF(SUM($P39:Q39)=$E39,0,IF($M39<=36,$F39,0)) -> 0 | S39: =IF(SUM($P39:R39)=$E39,0,IF($M39<=48,$F39,0)) -> 0 | T39: =IF(SUM($P39:S39)=$E39,0,IF($M39<=60,$F39,0)) -> 0
E40: =SUM(E30:E39) -> 0 | F40: 0 | G40: 0 | H40: 0 | I40: 0 | J40: 0 | P40: =SUM(P30:P39) -> 0 | Q40: 0 | R40: 0 | S40: 0 | T40: 0
B45: Gastos diferidos
B46: Años a diferir | C46: 5 | P46: Depreciación y amortización en años
B47: Concepto | C47: Cantidad | D47: Valor unitario | E47: Costo total | F47: Amortización anual | G47: Amortización mensual | H47: Aporte de socios | I47: Deuda | J47: Operación | K47: Validación | L47: Destinación del activo | M47: Mes de inversión | P47: 1 | Q47: 2 | R47: 3 | S47: 4 | T47: 5
B48: LICENCIAS | C48: 1 | D48: =+BG!C21 -> 80000000 | E48: =+C48*D48 -> 80000000 | F48: =IFERROR(E48/$C$46,0) -> 16000000 | G48: =+F48/12 -> 1333333.333 | I48: =+E48 -> 80000000 | L48: Producción | M48: 1 | P48: =IF($M48<=12,$F48,0) -> 16000000 | Q48: =IF(P48=$E48,0,IF($M48<=24,$F48,0)) -> 16000000 | R48: =IF(SUM($P48:Q48)=$E48,0,IF($M48<=36,$F48,0)) -> 16000000 | S48: =IF(SUM($P48:R48)=$E48,0,IF($M48<=48,$F48,0)) -> 16000000 | T48: =IF(SUM($P48:S48)=$E48,0,IF($M48<=60,$F48,0)) -> 16000000
B49: LICENCIAS | C49: 0 | D49: 0 | E49: =+C49*D49 -> 0 | F49: 0 | G49: =+F49/12 -> 0 | I49: =+E49 -> 0 | K49: =SUM(H49:J49)-E49 -> 0 | L49: Administración | M49: 1 | P49: =IF($M49<=12,$F49,0) -> 0 | Q49: 0 | R49: =IF(SUM($P49:Q49)=$E49,0,IF($M49<=36,$F49,0)) -> 0 | S49: =IF(SUM($P49:R49)=$E49,0,IF($M49<=48,$F49,0)) -> 0 | T49: =IF(SUM($P49:S49)=$E49,0,IF($M49<=60,$F49,0)) -> 0
E50: 0 | F50: 0 | G50: 0 | J50: =+E50 -> 0 | K50: 0 | L50: Administración | M50: 48 | P50: 0 | Q50: 0 | R50: =IF(SUM($P50:Q50)=$E50,0,IF($M50<=36,$F50,0)) -> 0 | S50: =IF(SUM($P50:R50)=$E50,0,IF($M50<=48,$F50,0)) -> 0 | T50: =IF(SUM($P50:S50)=$E50,0,IF($M50<=60,$F50,0)) -> 0
E51: 0 | F51: 0 | G51: 0 | J51: 0 | K51: 0 | L51: Administración | M51: 54 | P51: 0 | Q51: 0 | R51: =IF(SUM($P51:Q51)=$E51,0,IF($M51<=36,$F51,0)) -> 0 | S51: =IF(SUM($P51:R51)=$E51,0,IF($M51<=48,$F51,0)) -> 0 | T51: =IF(SUM($P51:S51)=$E51,0,IF($M51<=60,$F51,0)) -> 0
E52: 0 | F52: 0 | G52: 0 | K52: 0 | P52: 0 | Q52: 0 | R52: =IF(SUM($P52:Q52)=$E52,0,IF($M52<=36,$F52,0)) -> 0 | S52: =IF(SUM($P52:R52)=$E52,0,IF($M52<=48,$F52,0)) -> 0 | T52: =IF(SUM($P52:S52)=$E52,0,IF($M52<=60,$F52,0)) -> 0
E53: 0 | F53: 0 | G53: 0 | K53: 0 | P53: 0 | Q53: 0 | R53: =IF(SUM($P53:Q53)=$E53,0,IF($M53<=36,$F53,0)) -> 0 | S53: =IF(SUM($P53:R53)=$E53,0,IF($M53<=48,$F53,0)) -> 0 | T53: =IF(SUM($P53:S53)=$E53,0,IF($M53<=60,$F53,0)) -> 0
E54: 0 | F54: 0 | G54: 0 | K54: 0 | P54: 0 | Q54: 0 | R54: =IF(SUM($P54:Q54)=$E54,0,IF($M54<=36,$F54,0)) -> 0 | S54: =IF(SUM($P54:R54)=$E54,0,IF($M54<=48,$F54,0)) -> 0 | T54: =IF(SUM($P54:S54)=$E54,0,IF($M54<=60,$F54,0)) -> 0
E55: 0 | F55: 0 | G55: 0 | K55: 0 | P55: 0 | Q55: 0 | R55: =IF(SUM($P55:Q55)=$E55,0,IF($M55<=36,$F55,0)) -> 0 | S55: =IF(SUM($P55:R55)=$E55,0,IF($M55<=48,$F55,0)) -> 0 | T55: =IF(SUM($P55:S55)=$E55,0,IF($M55<=60,$F55,0)) -> 0
E56: 0 | F56: 0 | G56: 0 | K56: 0 | P56: 0 | Q56: 0 | R56: =IF(SUM($P56:Q56)=$E56,0,IF($M56<=36,$F56,0)) -> 0 | S56: =IF(SUM($P56:R56)=$E56,0,IF($M56<=48,$F56,0)) -> 0 | T56: =IF(SUM($P56:S56)=$E56,0,IF($M56<=60,$F56,0)) -> 0
E57: 0 | F57: 0 | G57: 0 | K57: 0 | P57: 0 | Q57: 0 | R57: =IF(SUM($P57:Q57)=$E57,0,IF($M57<=36,$F57,0)) -> 0 | S57: =IF(SUM($P57:R57)=$E57,0,IF($M57<=48,$F57,0)) -> 0 | T57: =IF(SUM($P57:S57)=$E57,0,IF($M57<=60,$F57,0)) -> 0
E58: =SUM(E48:E57) -> 80000000 | F58: 16000000 | G58: 1333333.333 | H58: 0 | I58: 80000000 | J58: 0 | P58: =SUM(P48:P57) -> 16000000 | Q58: 16000000 | R58: 16000000 | S58: 16000000 | T58: 16000000
P61: =SUMIF($L$2:$L$57,"Producción",P$2:P$57) -> 16000000 | Q61: 16000000 | R61: 16000000 | S61: 16000000 | T61: 16000000 | V61: 0 | W61: 0 | X61: 0 | Y61: 0
P62: =SUMIF($L$2:$L$57,"Administración",P$2:P$57)+P110 -> 0 | Q62: =SUMIF($L$2:$L$57,"Administración",Q$2:Q$57)+Q110 -> 0 | R62: =SUMIF($L$2:$L$57,"Administración",R$2:R$57)+R110 -> 0 | S62: =SUMIF($L$2:$L$57,"Administración",S$2:S$57)+S110 -> 0 | T62: =SUMIF($L$2:$L$57,"Administración",T$2:T$57)+T110 -> 0 | V62: =SUMIF($L$2:$L$57,"Administración",V$2:V$57)+W110 -> 0 | W62: =SUMIF($L$2:$L$57,"Administración",W$2:W$57)+X110 -> 0 | X62: =SUMIF($L$2:$L$57,"Administración",X$2:X$57)+Y110 -> 0 | Y62: =SUMIF($L$2:$L$57,"Administración",Y$2:Y$57)+Z110 -> 0
P63: =SUMIF($L$2:$L$57,"Ventas",P$2:P$57) -> 0 | Q63: 0 | R63: 0 | S63: 0 | T63: 0 | V63: 0 | W63: 0 | X63: 0 | Y63: 0
B76: Requerimiento mínimo de capital de trabajo | D76: =+'Flujo de caja'!#REF! -> 
B77: Total aporte de socios para capital de trabajo | D77: =SUM(H84:H85) -> 0
B78: Total deuda para capital de trabajo | D78: =SUM(I84:I85) -> 30000000
A80: Total no reembolsables para capítal de trabajo | B80: 0
B83: Concepto | C83: Unidad de medida | D83: Cantidad | E83: Valor unitario | F83: Costo total | H83: Aporte de socios | I83: Deuda | K83: Validación | M83: Mes de inversión
B84: Capital de trabajo | C84: Unidad | D84: 0 | E84: =+BG!C43 -> 30000000 | F84: =+D84*E84 -> 0 | H84: 0 | I84: =+E84 -> 30000000 | K84: =SUM(H84:J84)-F84 -> 30000000 | M84: 1
B85: Capital de trabajo | C85: Unidad | D85: 1 | E85: 0 | F85: =+D85*E85 -> 0 | H85: =+E85 -> 0 | I85: 0 | K85: =SUM(H85:J85)-F85 -> 0 | M85: 1
B89: Concepto | C89: Unidad de medida | D89: Cantidad | E89: Valor unitario | F89: Costo total | I89: Deuda | J89: Cuotas por pagar | K89: Validación | L89: Tasa efectiva anual | M89: Mes de inicio de pago
B90: Créditos vigentes según balance inicial | C90: Unidad | D90: 1 | E90: =+(BG!C28+BG!C35) -> 100000000 | F90: =+D90*E90 -> 100000000 | I90: =+E90 -> 100000000 | J90: 1 | K90: 0 | L90: 0.1 | M90: 1
B91: Créditos vigentes según balance inicial | C91: Unidad | D91: 1 | E91: 0 | F91: =+D91*E91 -> 0 | I91: =+E91 -> 0 | K91: 0 | L91: 0.1
B92: Créditos vigentes según balance inicial | C92: Unidad | D92: 1 | E92: 0 | F92: =+D92*E92 -> 0 | I92: =+E92 -> 0 | J92: 0 | K92: 0 | L92: 0
B95: Concepto | C95: Saldo de C x X | D95: =+'Flujo de caja'!C4 -> Enero | E95: =+'Flujo de caja'!D4 -> Febrero | F95: =+'Flujo de caja'!E4 -> Marzo | G95: =+'Flujo de caja'!F4 -> Abril | H95: =+'Flujo de caja'!G4 -> Mayo | I95: =+'Flujo de caja'!H4 -> Junio | J95: =+'Flujo de caja'!I4 -> Julio | K95: =+'Flujo de caja'!J4 -> Agosto | L95: =+'Flujo de caja'!K4 -> Septiembre | M95: =+'Flujo de caja'!L4 -> Octubre | N95: =+'Flujo de caja'!M4 -> Noviembre | O95: =+'Flujo de caja'!N4 -> Diciembre
B96: Distribución de las cuentas por cobrar del balance inicial | C96: =+ER_BG!C38 -> 0 | D96: 0 | E96: =+$C$96*51% -> 0 | F96: =+$C$96*15% -> 0 | G96: =+$C$96*7% -> 0 | H96: =+$C$96*6% -> 0 | I96: =+$C$96*7% -> 0 | J96: =+$C$96*14% -> 0 | K96: 0 | L96: 0 | N96: 0 | O96: 0
B99: Concepto | C99: Saldo de Inventarios | D99: =+D95 -> Enero | E99: Febrero | F99: Marzo | G99: Abril | H99: Mayo | I99: Junio | J99: Julio | K99: Agosto | L99: Septiembre | M99: Octubre | N99: Noviembre | O99: Diciembre
B100: Distribución de los inventarios del balance inicial | C100: =+ER_BG!C39 -> 0 | D100: 0 | E100: 0 | F100: 0 | G100: 0 | H100: 0 | I100: 0 | J100: 0 | K100: 0 | L100: 0 | M100: 0 | N100: 0 | O100: 0
B107: Cargos diferidos vigentes del balance inicial
B108: Años a diferir | C108: 5 | Q108: Amortización en años
B109: Concepto | D109: Cantidad | E109: Valor unitario | F109: Costo total | G109: Amortización anual | H109: Amortización mensual | K109: Operación | L109: Validación | M109: Destinación del activo | N109: Mes de inversión | P109: 1 | Q109: 2 | R109: 3 | S109: 4 | T109: 5 | V109: 6 | W109: 7 | X109: 8 | Y109: 9 | Z109: 10
B110: Cargos diferidos vigentes del balance inicial | D110: 1 | E110: =+ER_BG!C40 -> 0 | F110: =+D110*E110 -> 0 | G110: =IFERROR(F110/$C$108,0) -> 0 | H110: =+G110/12 -> 0 | K110: =+F110 -> 0 | L110: =SUM(I110:K110)-F110 -> 0 | P110: =IF(P$109<=$C$108,$G110,0) -> 0 | Q110: =IF(Q$109<=$C$108,$G110,0) -> 0 | R110: =IF(R$109<=$C$108,$G110,0) -> 0 | S110: =IF(S$109<=$C$108,$G110,0) -> 0 | T110: =IF(T$109<=$C$108,$G110,0) -> 0 | V110: =IF(V$109<=$C$108,$G110,0) -> 0 | W110: =IF(W$109<=$C$108,$G110,0) -> 0 | X110: =IF(X$109<=$C$108,$G110,0) -> 0 | Y110: =IF(Y$109<=$C$108,$G110,0) -> 0 | Z110: =IF(Z$109<=$C$108,$G110,0) -> 0
B115: Activos fijos a depreciar | C115: 5 | Q115: Depreciación en años de los activos en balance inicial
B116: Concepto | C116: Años por depreciar | D116: Cantidad | E116: Por depreciar | F116: Costo total | G116: Depreciación anual | H116: Amortización mensual | K116: Operación | L116: Validación | M116: Destinación del activo | N116: Mes de inversión | P116: 1 | Q116: 2 | R116: 3 | S116: 4 | T116: 5 | V116: 6 | W116: 7 | X116: 8 | Y116: 9 | Z116: 10
B117: Construcciones y edificaciones | D117: 1 | E117: =+BG!C16 -> 0 | F117: =+D117*E117 -> 0 | G117: =IFERROR(F117/20,0) -> 0 | H117: =+G117/12 -> 0 | N117: 1 | P117: =IF(P$116<=$C117,$G117,0) -> 0 | Q117: 0 | R117: 0 | S117: 0 | T117: 0 | V117: =IF(V$116<=$C117,$G117,0) -> 0 | W117: 0 | X117: 0 | Y117: 0 | Z117: 0
B118: Maquinaria y Equipos | D118: 1 | E118: =+BG!C17 -> 9000000 | F118: 9000000 | G118: =IFERROR(F118/10,0) -> 900000 | H118: 75000 | N118: 1 | P118: 0 | Q118: 0 | R118: 0 | S118: 0 | T118: 0 | V118: 0 | W118: 0 | X118: 0 | Y118: 0 | Z118: 0
B119: Muebles y Enseres | D119: 1 | E119: =+BG!C18 -> 0 | F119: 0 | G119: =IFERROR(F119/10,0) -> 0 | H119: 0 | N119: 1 | P119: 0 | Q119: 0 | R119: 0 | S119: 0 | T119: 0 | V119: 0 | W119: 0 | X119: 0 | Y119: 0 | Z119: 0
B120: Equipos de transporte | D120: 1 | E120: =+BG!C19 -> 0 | F120: 0 | G120: =IFERROR(F120/10,0) -> 0 | H120: 0 | N120: 1 | P120: 0 | Q120: 0 | R120: 0 | S120: 0 | T120: 0 | V120: 0 | W120: 0 | X120: 0 | Y120: 0 | Z120: 0
B121: Equipos de computo | D121: 1 | E121: =+BG!C20 -> 0 | F121: 0 | G121: =IFERROR(F121/3,0) -> 0 | H121: 0 | N121: 1 | P121: 0 | Q121: 0 | R121: 0 | S121: 0 | T121: 0 | V121: 0 | W121: 0 | X121: 0 | Y121: 0 | Z121: 0
B122: Otros activos fijos | D122: 1 | E122: =+BG!C21 -> 80000000 | F122: 80000000 | G122: =IFERROR(F122/10,0) -> 8000000 | H122: 666666.6667 | N122: 1 | P122: 0 | Q122: 0 | R122: 0 | S122: 0 | T122: 0 | V122: 0 | W122: 0 | X122: 0 | Y122: 0 | Z122: 0
Q125: Depreciación en años de los activos en balance inicial
B128: Concepto | C128: Saldo del pasivo | D128: =+'Flujo de caja'!C4 -> Enero | E128: =+'Flujo de caja'!D4 -> Febrero | F128: =+'Flujo de caja'!E4 -> Marzo | G128: =+'Flujo de caja'!F4 -> Abril | H128: =+'Flujo de caja'!G4 -> Mayo | I128: =+'Flujo de caja'!H4 -> Junio | J128: =+'Flujo de caja'!I4 -> Julio | K128: =+'Flujo de caja'!J4 -> Agosto | L128: =+'Flujo de caja'!K4 -> Septiembre | M128: =+'Flujo de caja'!K4 -> Septiembre | N128: =+'Flujo de caja'!L4 -> Octubre | O128: =+'Flujo de caja'!M4 -> Noviembre | P128: =+'Flujo de caja'!N4 -> Diciembre
B129: =+BG!B29 -> Proveedores | C129: =+BG!C29 -> 0
B130: =+BG!B30 -> Cuentas por pagar | C130: =+BG!C30 -> 0
B131: =+BG!B31 -> Impuestos por pagar | C131: =+BG!C31 -> 0
B132: =+BG!B32 -> Otros pasivos corrientes | C132: =+BG!C32 -> 0
B133: =+BG!B36 -> Otros pasivos de largo plazo | C133: =+BG!C36 -> 0
B136: Obligaciones LP
C137: 1 | D137: 2 | E137: 3 | F137: 4 | G137: 5
B138: Credito LP | C138: =+amortización!F27 -> 85459061.84 | D138: =+amortización!F39 -> 68591573.57 | E138: =+amortización!F51 -> 49025287.18 | F138: =+amortización!F63 -> 26328394.97 | G138: 0
B142: IMPUESTOS | C142: 0 | D142: =+ER_BG!D59 -> 10065562.05 | E142: =+ER_BG!E59 -> 20341467.33 | F142: =+ER_BG!F59 -> 32026422.62 | G142: =+ER_BG!G59 -> 45291205.1
B144: cuota | C144: =+SUM(amortización!C16:C27) -> 28506464.07 | D144: =+C144 -> 28506464.07 | E144: =+D144 -> 28506464.07 | F144: 28506464.07 | G144: 28506464.07
B149: Gastos Financieros
B150: Interes Creditos | C150: =+SUM(amortización!D16:D27) -> 13965525.91 | D150: =+SUM(amortización!D28:D39) -> 11638975.8 | E150: =+SUM(amortización!D40:D51) -> 8940177.681 | F150: =+SUM(amortización!D52:D63) -> 5809571.859 | G150: =+SUM(amortización!D64:D75) -> 2178069.105
B151: 4X1000 | C151: =(+'Flujo de caja'!C50*4)/1000 -> 1464000 | D151: =(+'Flujo de caja'!D50*4)/1000 -> 1627635.983 | E151: =(+'Flujo de caja'!E50*4)/1000 -> 1810198.87 | F151: =(+'Flujo de caja'!F50*4)/1000 -> 2013906.426 | G151: =(+'Flujo de caja'!G50*4)/1000 -> 2241237.637
C152: =+C150+C151 -> 15429525.91 | D152: =+D150+D151 -> 13266611.79 | E152: 10750376.55 | F152: 7823478.285 | G152: 4419306.742

Sheet Tablas de amortización Inversio (hidden)
A2: Amortización de deuda para inversiones y preoperativos | G2: Amortización de deuda para capital de trabajo
A5: Tiempo de la deuda | B5: =+Datos!C22 -> 60 | C5: Meses | G5: Tiempo de la deuda | H5: =+Datos!C26 -> 60 | I5: Meses
A6: Tasa de interés E.A. | B6: =+Datos!C23 -> 0.12 | C6: E.A. | G6: Tasa de interés E.A. | H6: =+Datos!C27 -> 0.09 | I6: E.A.
A7: Tasa de interés periodica | B7: =NOMINAL(B6,12)/12 -> 0.009488792935 | C7: Mensual | D7: =+B7*12 -> 0.1138655152 | E7: =+B7*E15 -> 75910.34348 | G7: Tasa de interés periodica | H7: =NOMINAL(H6,12)/12 -> 0.007207323316 | I7: Mensual
A8: Cápital | B8: 8000000 | D8: =EFFECT(D7,12) -> 0.12 | E8: =+B8-E7 -> 7924089.657 | G8: Cápital | H8: =+Inversiones!D78 -> 30000000
A9: Periodo de gracia | B9: =+Datos!#REF! ->  | G9: Periodo de gracia | H9: =+Datos!#REF! -> 
A14: Mes | B14: Cuota | C14: Interés | D14: Capital | E14: Saldo | G14: Mes | H14: Cuota | I14: Interés | J14: Capital | K14: Saldo
A15: 0 | E15: =+B8 -> 8000000 | G15: 0 | K15: =+H8 -> 30000000
A16: 1 | B16: =IF(A16>$B$5,0,IF(A16<=$B$9,$B$8*$B$7,PMT($B$7,($B$5-$B$9),-$B$8))) ->  | C16: =+E15*$B$7 -> 75910.34348 | D16: =IF(A16<=$B$9,0,B16-C16) ->  | E16: =+E15-D16 ->  | G16: 1 | H16: =IF(G16>$H$5,0,IF(G16<=$H$9,$H$8*$H$7,PMT($H$7,($H$5-$H$9),-$H$8))) ->  | I16: =+K15*$H$7 -> 216219.6995 | J16: =IF(G16<=$H$9,0,H16-I16) ->  | K16: =+K15-J16 -> 
A17: 2 | C17: =+E16*$B$7 ->  | E17: =+E16-D17 ->  | G17: 2 | H17: =IF(G17>$H$5,0,IF(G17<=$H$9,$H$8*$H$7,PMT($H$7,($H$5-$H$9),-$H$8))) ->  | I17: =+K16*$H$7 ->  | J17: =IF(G17<=$H$9,0,H17-I17) ->  | K17: =+K16-J17 -> 
A18: 3 | G18: 3
A19: 4 | G19: 4
A20: 5 | G20: 5
A21: 6 | G21: 6
A22: 7 | G22: 7
A23: 8 | G23: 8
A24: 9 | G24: 9
A25: 10 | G25: 10
A26: 11 | G26: 11
A27: 12 | G27: 12
A28: 13 | G28: 13
A29: 14 | G29: 14
A30: 15 | G30: 15
A31: 16 | G31: 16
A32: 17 | G32: 17
A33: 18 | G33: 18
A34: 19 | G34: 19
A35: 20 | G35: 20
A36: 21 | G36: 21
A37: 22 | G37: 22
A38: 23 | G38: 23
A39: 24 | G39: 24
A40: 25 | G40: 25
A41: 26 | G41: 26
A42: 27 | G42: 27
A43: 28 | G43: 28
A44: 29 | G44: 29
A45: 30 | G45: 30
A46: 31 | G46: 31
A47: 32 | G47: 32
A48: 33 | G48: 33
A49: 34 | G49: 34
A50: 35 | G50: 35
A51: 36 | G51: 36
A52: 37 | G52: 37
A53: 38 | G53: 38
A54: 39 | G54: 39
A55: 40 | G55: 40
A56: 41 | G56: 41
A57: 42 | G57: 42
A58: 43 | G58: 43
A59: 44 | G59: 44
A60: 45 | G60: 45
A61: 46 | G61: 46
A62: 47 | G62: 47
A63: 48 | G63: 48
A64: 49 | G64: 49
A65: 50 | G65: 50
A66: 51 | G66: 51
A67: 52 | G67: 52
A68: 53 | G68: 53
A69: 54 | G69: 54
A70: 55 | G70: 55
A71: 56 | G71: 56
A72: 57 | G72: 57
A73: 58 | G73: 58
A74: 59 | G74: 59
A75: 60 | G75: 60
A76: 61 | B76: 0 | G76: 61 | H76: 0
A77: 62 | B77: 0 | G77: 62 | H77: 0
A78: 63 | B78: 0 | G78: 63 | H78: 0
A79: 64 | B79: 0 | G79: 64 | H79: 0
A80: 65 | B80: =IF(A80>$B$5,0,IF(A80<=$B$9,$B$8*$B$7,PMT($B$7,($B$5-$B$9),-$B$8))) -> 0 | D80: =IF(A80<=$B$9,0,B80-C80) ->  | G80: 65 | H80: 0
A81: 66 | B81: 0 | C81: =+E80*$B$7 ->  | E81: =+E80-D81 ->  | G81: 66 | H81: =IF(G81>$H$5,0,IF(G81<=$H$9,$H$8*$H$7,PMT($H$7,($H$5-$H$9),-$H$8))) -> 0 | I81: =+K80*$H$7 ->  | J81: =IF(G81<=$H$9,0,H81-I81) ->  | K81: =+K80-J81 -> 
A82: 67 | B82: 0 | G82: 67 | H82: 0
A83: 68 | B83: 0 | G83: 68 | H83: 0
A84: 69 | B84: 0 | G84: 69 | H84: 0
A85: 70 | B85: 0 | G85: 70 | H85: 0
A86: 71 | B86: 0 | G86: 71 | H86: 0
A87: 72 | B87: 0 | G87: 72 | H87: 0
A88: 73 | B88: 0 | G88: 73 | H88: 0
A89: 74 | B89: 0 | G89: 74 | H89: 0
A90: 75 | B90: 0 | G90: 75 | H90: 0
A91: 76 | B91: 0 | G91: 76 | H91: 0
A92: 77 | B92: 0 | G92: 77 | H92: 0
A93: 78 | B93: 0 | G93: 78 | H93: 0
A94: 79 | B94: 0 | G94: 79 | H94: 0
A95: 80 | B95: 0 | G95: 80 | H95: 0
A96: 81 | B96: 0 | G96: 81 | H96: 0
A97: 82 | B97: 0 | G97: 82 | H97: 0
A98: 83 | B98: 0 | G98: 83 | H98: 0
A99: 84 | B99: 0 | G99: 84 | H99: 0
A100: 85 | B100: 0 | G100: 85 | H100: 0
A101: 86 | B101: 0 | G101: 86 | H101: 0
A102: 87 | B102: 0 | G102: 87 | H102: 0
A103: 88 | B103: 0 | G103: 88 | H103: 0
A104: 89 | B104: 0 | G104: 89 | H104: 0
A105: 90 | B105: 0 | G105: 90 | H105: 0
A106: 91 | B106: 0 | G106: 91 | H106: 0
A107: 92 | B107: 0 | G107: 92 | H107: 0
A108: 93 | B108: 0 | G108: 93 | H108: 0
A109: 94 | B109: 0 | G109: 94 | H109: 0
A110: 95 | B110: 0 | G110: 95 | H110: 0
A111: 96 | B111: 0 | G111: 96 | H111: 0
A112: 97 | B112: 0 | G112: 97 | H112: 0
A113: 98 | B113: 0 | G113: 98 | H113: 0
A114: 99 | B114: 0 | G114: 99 | H114: 0
A115: 100 | B115: 0 | G115: 100 | H115: 0
A116: 101 | B116: 0 | G116: 101 | H116: 0
A117: 102 | B117: 0 | G117: 102 | H117: 0
A118: 103 | B118: 0 | G118: 103 | H118: 0
A119: 104 | B119: 0 | G119: 104 | H119: 0
A120: 105 | B120: 0 | G120: 105 | H120: 0
A121: 106 | B121: 0 | G121: 106 | H121: 0
A122: 107 | B122: 0 | G122: 107 | H122: 0
A123: 108 | B123: 0 | G123: 108 | H123: 0
A124: 109 | B124: 0 | G124: 109 | H124: 0
A125: 110 | B125: 0 | G125: 110 | H125: 0
A126: 111 | B126: 0 | G126: 111 | H126: 0
A127: 112 | B127: 0 | G127: 112 | H127: 0
A128: 113 | B128: 0 | G128: 113 | H128: 0
A129: 114 | B129: 0 | G129: 114 | H129: 0
A130: 115 | B130: 0 | G130: 115 | H130: 0
A131: 116 | B131: 0 | G131: 116 | H131: 0
A132: 117 | B132: 0 | G132: 117 | H132: 0
A133: 118 | B133: 0 | G133: 118 | H133: 0
A134: 119 | B134: 0 | G134: 119 | H134: 0
A135: 120 | B135: 0 | G135: 120 | H135: 0

Sheet Proyección ventas
B5: Proyección de ventas con % de crecimiento
B8: Precio de venta
A9: Productos y Servicios y servicios | B9: Enero | C9: Febrero | D9: Marzo | E9: Abril | F9: Mayo | G9: Junio | H9: Julio | I9: Agosto | J9: Septiembre | K9: Octubre | L9: Noviembre | M9: Diciembre | N9: TOTAL | P9: AÑO2 | Q9: AÑO3 | R9: AÑO4 | S9: AÑO5
A11: COCINAS INTEGRALES | B11: 2500000 | C11: =+B11 -> 2500000 | D11: 2500000 | E11: 2500000 | F11: 2500000 | G11: 2500000 | H11: 2500000 | I11: 2500000 | J11: 2500000 | K11: 2500000 | L11: 2500000 | M11: 2500000 | N11: =+SUM(B11:M11) -> 30000000 | P11: =+M11*(1+Datos!C11) -> 2595000 | Q11: =+P11*(1+Datos!D$11) -> 2693610 | R11: =+Q11*(1+Datos!E$11) -> 2795967.18 | S11: =+R11*(1+Datos!F$11) -> 2902213.933
A12: BAÑOS | B12: 1000000 | C12: =+B12 -> 1000000 | D12: 1000000 | E12: 1000000 | F12: 1000000 | G12: 1000000 | H12: 1000000 | I12: 1000000 | J12: 1000000 | K12: 1000000 | L12: 1000000 | M12: 1000000 | N12: =+SUM(B12:M12) -> 12000000 | P12: =+M12*(1+Datos!C11) -> 1038000 | Q12: =+P12*(1+Datos!D$11) -> 1077444 | R12: =+Q12*(1+Datos!E$11) -> 1118386.872 | S12: =+R12*(1+Datos!F$11) -> 1160885.573
A13: PISOS | B13: 2000000 | C13: =+B13 -> 2000000 | D13: 2000000 | E13: 2000000 | F13: 2000000 | G13: 2000000 | H13: 2000000 | I13: 2000000 | J13: 2000000 | K13: 2000000 | L13: 2000000 | M13: 2000000 | N13: =+SUM(B13:M13) -> 24000000 | P13: =+M13*(1+Datos!C11) -> 2076000 | Q13: =+P13*(1+Datos!D$11) -> 2154888 | R13: =+Q13*(1+Datos!E$11) -> 2236773.744 | S13: =+R13*(1+Datos!F$11) -> 2321771.146
A14: ASESORIAS | B14: 20000 | C14: =+B14 -> 20000 | D14: =+C14 -> 20000 | E14: 20000 | F14: 20000 | G14: 20000 | H14: 20000 | I14: 20000 | J14: 20000 | K14: 20000 | L14: 20000 | M14: 20000 | N14: =+SUM(B14:M14) -> 240000 | P14: =+M14*(1+Datos!C11) -> 20760 | Q14: =+P14*(1+Datos!D$11) -> 21548.88 | R14: =+Q14*(1+Datos!E$11) -> 22367.73744 | S14: =+R14*(1+Datos!F$11) -> 23217.71146
P15: =IF($B$5=$P$2,'Ventas general'!P66,IF($B$5=$P$3,'Ventas con crecimiento % global'!P66,IF($B$5=$P$7,#REF!,IF($B$5=$P$8,'Ventas general con estacionalid'!P69,IF($B$5=$P$9,'Ventas % global estacionalidad'!P66,IF($B$5=#REF!,'Ventas % prod estacionalidad'!P66,0)))))) ->  | Q15: =IF($B$5=$P$2,'Ventas general'!Q66,IF($B$5=$P$3,'Ventas con crecimiento % global'!Q66,IF($B$5=$P$7,#REF!,IF($B$5=$P$8,'Ventas general con estacionalid'!Q69,IF($B$5=$P$9,'Ventas % global estacionalidad'!Q66,IF($B$5=#REF!,'Ventas % prod estacionalidad'!Q66,0)))))) ->  | R15: =IF($B$5=$P$2,'Ventas general'!R66,IF($B$5=$P$3,'Ventas con crecimiento % global'!R66,IF($B$5=$P$7,#REF!,IF($B$5=$P$8,'Ventas general con estacionalid'!R69,IF($B$5=$P$9,'Ventas % global estacionalidad'!R66,IF($B$5=#REF!,'Ventas % prod estacionalidad'!R66,0)))))) ->  | S15: =IF($B$5=$P$2,'Ventas general'!S66,IF($B$5=$P$3,'Ventas con crecimiento % global'!S66,IF($B$5=$P$7,#REF!,IF($B$5=$P$8,'Ventas general con estacionalid'!S69,IF($B$5=$P$9,'Ventas % global estacionalidad'!S66,IF($B$5=#REF!,'Ventas % prod estacionalidad'!S66,0)))))) -> 
P16: =IF($B$5=$P$2,'Ventas general'!P67,IF($B$5=$P$3,'Ventas con crecimiento % global'!P67,IF($B$5=$P$7,#REF!,IF($B$5=$P$8,'Ventas general con estacionalid'!P70,IF($B$5=$P$9,'Ventas % global estacionalidad'!P67,IF($B$5=#REF!,'Ventas % prod estacionalidad'!P67,0)))))) ->  | Q16: =IF($B$5=$P$2,'Ventas general'!Q67,IF($B$5=$P$3,'Ventas con crecimiento % global'!Q67,IF($B$5=$P$7,#REF!,IF($B$5=$P$8,'Ventas general con estacionalid'!Q70,IF($B$5=$P$9,'Ventas % global estacionalidad'!Q67,IF($B$5=#REF!,'Ventas % prod estacionalidad'!Q67,0)))))) ->  | R16: =IF($B$5=$P$2,'Ventas general'!R67,IF($B$5=$P$3,'Ventas con crecimiento % global'!R67,IF($B$5=$P$7,#REF!,IF($B$5=$P$8,'Ventas general con estacionalid'!R70,IF($B$5=$P$9,'Ventas % global estacionalidad'!R67,IF($B$5=#REF!,'Ventas % prod estacionalidad'!R67,0)))))) ->  | S16: =IF($B$5=$P$2,'Ventas general'!S67,IF($B$5=$P$3,'Ventas con crecimiento % global'!S67,IF($B$5=$P$7,#REF!,IF($B$5=$P$8,'Ventas general con estacionalid'!S70,IF($B$5=$P$9,'Ventas % global estacionalidad'!S67,IF($B$5=#REF!,'Ventas % prod estacionalidad'!S67,0)))))) -> 
P17: =IF($B$5=$P$2,'Ventas general'!P68,IF($B$5=$P$3,'Ventas con crecimiento % global'!P68,IF($B$5=$P$7,#REF!,IF($B$5=$P$8,'Ventas general con estacionalid'!P71,IF($B$5=$P$9,'Ventas % global estacionalidad'!P68,IF($B$5=#REF!,'Ventas % prod estacionalidad'!P68,0)))))) ->  | Q17: =IF($B$5=$P$2,'Ventas general'!Q68,IF($B$5=$P$3,'Ventas con crecimiento % global'!Q68,IF($B$5=$P$7,#REF!,IF($B$5=$P$8,'Ventas general con estacionalid'!Q71,IF($B$5=$P$9,'Ventas % global estacionalidad'!Q68,IF($B$5=#REF!,'Ventas % prod estacionalidad'!Q68,0)))))) ->  | R17: =IF($B$5=$P$2,'Ventas general'!R68,IF($B$5=$P$3,'Ventas con crecimiento % global'!R68,IF($B$5=$P$7,#REF!,IF($B$5=$P$8,'Ventas general con estacionalid'!R71,IF($B$5=$P$9,'Ventas % global estacionalidad'!R68,IF($B$5=#REF!,'Ventas % prod estacionalidad'!R68,0)))))) ->  | S17: =IF($B$5=$P$2,'Ventas general'!S68,IF($B$5=$P$3,'Ventas con crecimiento % global'!S68,IF($B$5=$P$7,#REF!,IF($B$5=$P$8,'Ventas general con estacionalid'!S71,IF($B$5=$P$9,'Ventas % global estacionalidad'!S68,IF($B$5=#REF!,'Ventas % prod estacionalidad'!S68,0)))))) -> 
P18: =IF($B$5=$P$2,'Ventas general'!P69,IF($B$5=$P$3,'Ventas con crecimiento % global'!P69,IF($B$5=$P$7,#REF!,IF($B$5=$P$8,'Ventas general con estacionalid'!P72,IF($B$5=$P$9,'Ventas % global estacionalidad'!P69,IF($B$5=#REF!,'Ventas % prod estacionalidad'!P69,0)))))) ->  | Q18: =IF($B$5=$P$2,'Ventas general'!Q69,IF($B$5=$P$3,'Ventas con crecimiento % global'!Q69,IF($B$5=$P$7,#REF!,IF($B$5=$P$8,'Ventas general con estacionalid'!Q72,IF($B$5=$P$9,'Ventas % global estacionalidad'!Q69,IF($B$5=#REF!,'Ventas % prod estacionalidad'!Q69,0)))))) ->  | R18: =IF($B$5=$P$2,'Ventas general'!R69,IF($B$5=$P$3,'Ventas con crecimiento % global'!R69,IF($B$5=$P$7,#REF!,IF($B$5=$P$8,'Ventas general con estacionalid'!R72,IF($B$5=$P$9,'Ventas % global estacionalidad'!R69,IF($B$5=#REF!,'Ventas % prod estacionalidad'!R69,0)))))) ->  | S18: =IF($B$5=$P$2,'Ventas general'!S69,IF($B$5=$P$3,'Ventas con crecimiento % global'!S69,IF($B$5=$P$7,#REF!,IF($B$5=$P$8,'Ventas general con estacionalid'!S72,IF($B$5=$P$9,'Ventas % global estacionalidad'!S69,IF($B$5=#REF!,'Ventas % prod estacionalidad'!S69,0)))))) -> 
A19: =IF($B$5=$P$2,'Ventas general'!A70,IF($B$5=$P$3,'Ventas con crecimiento % global'!A70,IF($B$5=$P$7,#REF!,IF($B$5=$P$8,'Ventas general con estacionalid'!A73,IF($B$5=$P$9,'Ventas % global estacionalidad'!A70,IF($B$5=#REF!,'Ventas % prod estacionalidad'!A70,0)))))) ->  | P19: =IF($B$5=$P$2,'Ventas general'!P70,IF($B$5=$P$3,'Ventas con crecimiento % global'!P70,IF($B$5=$P$7,#REF!,IF($B$5=$P$8,'Ventas general con estacionalid'!P73,IF($B$5=$P$9,'Ventas % global estacionalidad'!P70,IF($B$5=#REF!,'Ventas % prod estacionalidad'!P70,0)))))) ->  | Q19: =IF($B$5=$P$2,'Ventas general'!Q70,IF($B$5=$P$3,'Ventas con crecimiento % global'!Q70,IF($B$5=$P$7,#REF!,IF($B$5=$P$8,'Ventas general con estacionalid'!Q73,IF($B$5=$P$9,'Ventas % global estacionalidad'!Q70,IF($B$5=#REF!,'Ventas % prod estacionalidad'!Q70,0)))))) ->  | R19: =IF($B$5=$P$2,'Ventas general'!R70,IF($B$5=$P$3,'Ventas con crecimiento % global'!R70,IF($B$5=$P$7,#REF!,IF($B$5=$P$8,'Ventas general con estacionalid'!R73,IF($B$5=$P$9,'Ventas % global estacionalidad'!R70,IF($B$5=#REF!,'Ventas % prod estacionalidad'!R70,0)))))) ->  | S19: =IF($B$5=$P$2,'Ventas general'!S70,IF($B$5=$P$3,'Ventas con crecimiento % global'!S70,IF($B$5=$P$7,#REF!,IF($B$5=$P$8,'Ventas general con estacionalid'!S73,IF($B$5=$P$9,'Ventas % global estacionalidad'!S70,IF($B$5=#REF!,'Ventas % prod estacionalidad'!S70,0)))))) -> 
A20: =IF($B$5=$P$2,'Ventas general'!A71,IF($B$5=$P$3,'Ventas con crecimiento % global'!A71,IF($B$5=$P$7,#REF!,IF($B$5=$P$8,'Ventas general con estacionalid'!A74,IF($B$5=$P$9,'Ventas % global estacionalidad'!A71,IF($B$5=#REF!,'Ventas % prod estacionalidad'!A71,0)))))) ->  | P20: =IF($B$5=$P$2,'Ventas general'!P71,IF($B$5=$P$3,'Ventas con crecimiento % global'!P71,IF($B$5=$P$7,#REF!,IF($B$5=$P$8,'Ventas general con estacionalid'!P74,IF($B$5=$P$9,'Ventas % global estacionalidad'!P71,IF($B$5=#REF!,'Ventas % prod estacionalidad'!P71,0)))))) ->  | Q20: =IF($B$5=$P$2,'Ventas general'!Q71,IF($B$5=$P$3,'Ventas con crecimiento % global'!Q71,IF($B$5=$P$7,#REF!,IF($B$5=$P$8,'Ventas general con estacionalid'!Q74,IF($B$5=$P$9,'Ventas % global estacionalidad'!Q71,IF($B$5=#REF!,'Ventas % prod estacionalidad'!Q71,0)))))) ->  | R20: =IF($B$5=$P$2,'Ventas general'!R71,IF($B$5=$P$3,'Ventas con crecimiento % global'!R71,IF($B$5=$P$7,#REF!,IF($B$5=$P$8,'Ventas general con estacionalid'!R74,IF($B$5=$P$9,'Ventas % global estacionalidad'!R71,IF($B$5=#REF!,'Ventas % prod estacionalidad'!R71,0)))))) ->  | S20: =IF($B$5=$P$2,'Ventas general'!S71,IF($B$5=$P$3,'Ventas con crecimiento % global'!S71,IF($B$5=$P$7,#REF!,IF($B$5=$P$8,'Ventas general con estacionalid'!S74,IF($B$5=$P$9,'Ventas % global estacionalidad'!S71,IF($B$5=#REF!,'Ventas % prod estacionalidad'!S71,0)))))) -> 
A21: =IF($B$5=$P$2,'Ventas general'!A72,IF($B$5=$P$3,'Ventas con crecimiento % global'!A72,IF($B$5=$P$7,#REF!,IF($B$5=$P$8,'Ventas general con estacionalid'!A75,IF($B$5=$P$9,'Ventas % global estacionalidad'!A72,IF($B$5=#REF!,'Ventas % prod estacionalidad'!A72,0)))))) ->  | P21: =IF($B$5=$P$2,'Ventas general'!P72,IF($B$5=$P$3,'Ventas con crecimiento % global'!P72,IF($B$5=$P$7,#REF!,IF($B$5=$P$8,'Ventas general con estacionalid'!P75,IF($B$5=$P$9,'Ventas % global estacionalidad'!P72,IF($B$5=#REF!,'Ventas % prod estacionalidad'!P72,0)))))) ->  | Q21: =IF($B$5=$P$2,'Ventas general'!Q72,IF($B$5=$P$3,'Ventas con crecimiento % global'!Q72,IF($B$5=$P$7,#REF!,IF($B$5=$P$8,'Ventas general con estacionalid'!Q75,IF($B$5=$P$9,'Ventas % global estacionalidad'!Q72,IF($B$5=#REF!,'Ventas % prod estacionalidad'!Q72,0)))))) ->  | R21: =IF($B$5=$P$2,'Ventas general'!R72,IF($B$5=$P$3,'Ventas con crecimiento % global'!R72,IF($B$5=$P$7,#REF!,IF($B$5=$P$8,'Ventas general con estacionalid'!R75,IF($B$5=$P$9,'Ventas % global estacionalidad'!R72,IF($B$5=#REF!,'Ventas % prod estacionalidad'!R72,0)))))) ->  | S21: =IF($B$5=$P$2,'Ventas general'!S72,IF($B$5=$P$3,'Ventas con crecimiento % global'!S72,IF($B$5=$P$7,#REF!,IF($B$5=$P$8,'Ventas general con estacionalid'!S75,IF($B$5=$P$9,'Ventas % global estacionalidad'!S72,IF($B$5=#REF!,'Ventas % prod estacionalidad'!S72,0)))))) -> 
A22: =IF($B$5=$P$2,'Ventas general'!A73,IF($B$5=$P$3,'Ventas con crecimiento % global'!A73,IF($B$5=$P$7,#REF!,IF($B$5=$P$8,'Ventas general con estacionalid'!A76,IF($B$5=$P$9,'Ventas % global estacionalidad'!A73,IF($B$5=#REF!,'Ventas % prod estacionalidad'!A73,0)))))) ->  | P22: =IF($B$5=$P$2,'Ventas general'!P73,IF($B$5=$P$3,'Ventas con crecimiento % global'!P73,IF($B$5=$P$7,#REF!,IF($B$5=$P$8,'Ventas general con estacionalid'!P76,IF($B$5=$P$9,'Ventas % global estacionalidad'!P73,IF($B$5=#REF!,'Ventas % prod estacionalidad'!P73,0)))))) ->  | Q22: =IF($B$5=$P$2,'Ventas general'!Q73,IF($B$5=$P$3,'Ventas con crecimiento % global'!Q73,IF($B$5=$P$7,#REF!,IF($B$5=$P$8,'Ventas general con estacionalid'!Q76,IF($B$5=$P$9,'Ventas % global estacionalidad'!Q73,IF($B$5=#REF!,'Ventas % prod estacionalidad'!Q73,0)))))) ->  | R22: =IF($B$5=$P$2,'Ventas general'!R73,IF($B$5=$P$3,'Ventas con crecimiento % global'!R73,IF($B$5=$P$7,#REF!,IF($B$5=$P$8,'Ventas general con estacionalid'!R76,IF($B$5=$P$9,'Ventas % global estacionalidad'!R73,IF($B$5=#REF!,'Ventas % prod estacionalidad'!R73,0)))))) ->  | S22: =IF($B$5=$P$2,'Ventas general'!S73,IF($B$5=$P$3,'Ventas con crecimiento % global'!S73,IF($B$5=$P$7,#REF!,IF($B$5=$P$8,'Ventas general con estacionalid'!S76,IF($B$5=$P$9,'Ventas % global estacionalidad'!S73,IF($B$5=#REF!,'Ventas % prod estacionalidad'!S73,0)))))) -> 
A23: =IF($B$5=$P$2,'Ventas general'!A74,IF($B$5=$P$3,'Ventas con crecimiento % global'!A74,IF($B$5=$P$7,#REF!,IF($B$5=$P$8,'Ventas general con estacionalid'!A77,IF($B$5=$P$9,'Ventas % global estacionalidad'!A74,IF($B$5=#REF!,'Ventas % prod estacionalidad'!A74,0)))))) ->  | P23: =IF($B$5=$P$2,'Ventas general'!P74,IF($B$5=$P$3,'Ventas con crecimiento % global'!P74,IF($B$5=$P$7,#REF!,IF($B$5=$P$8,'Ventas general con estacionalid'!P77,IF($B$5=$P$9,'Ventas % global estacionalidad'!P74,IF($B$5=#REF!,'Ventas % prod estacionalidad'!P74,0)))))) ->  | Q23: =IF($B$5=$P$2,'Ventas general'!Q74,IF($B$5=$P$3,'Ventas con crecimiento % global'!Q74,IF($B$5=$P$7,#REF!,IF($B$5=$P$8,'Ventas general con estacionalid'!Q77,IF($B$5=$P$9,'Ventas % global estacionalidad'!Q74,IF($B$5=#REF!,'Ventas % prod estacionalidad'!Q74,0)))))) ->  | R23: =IF($B$5=$P$2,'Ventas general'!R74,IF($B$5=$P$3,'Ventas con crecimiento % global'!R74,IF($B$5=$P$7,#REF!,IF($B$5=$P$8,'Ventas general con estacionalid'!R77,IF($B$5=$P$9,'Ventas % global estacionalidad'!R74,IF($B$5=#REF!,'Ventas % prod estacionalidad'!R74,0)))))) ->  | S23: =IF($B$5=$P$2,'Ventas general'!S74,IF($B$5=$P$3,'Ventas con crecimiento % global'!S74,IF($B$5=$P$7,#REF!,IF($B$5=$P$8,'Ventas general con estacionalid'!S77,IF($B$5=$P$9,'Ventas % global estacionalidad'!S74,IF($B$5=#REF!,'Ventas % prod estacionalidad'!S74,0)))))) -> 
A24: =IF($B$5=$P$2,'Ventas general'!A75,IF($B$5=$P$3,'Ventas con crecimiento % global'!A75,IF($B$5=$P$7,#REF!,IF($B$5=$P$8,'Ventas general con estacionalid'!A78,IF($B$5=$P$9,'Ventas % global estacionalidad'!A75,IF($B$5=#REF!,'Ventas % prod estacionalidad'!A75,0)))))) ->  | P24: =IF($B$5=$P$2,'Ventas general'!P75,IF($B$5=$P$3,'Ventas con crecimiento % global'!P75,IF($B$5=$P$7,#REF!,IF($B$5=$P$8,'Ventas general con estacionalid'!P78,IF($B$5=$P$9,'Ventas % global estacionalidad'!P75,IF($B$5=#REF!,'Ventas % prod estacionalidad'!P75,0)))))) ->  | Q24: =IF($B$5=$P$2,'Ventas general'!Q75,IF($B$5=$P$3,'Ventas con crecimiento % global'!Q75,IF($B$5=$P$7,#REF!,IF($B$5=$P$8,'Ventas general con estacionalid'!Q78,IF($B$5=$P$9,'Ventas % global estacionalidad'!Q75,IF($B$5=#REF!,'Ventas % prod estacionalidad'!Q75,0)))))) ->  | R24: =IF($B$5=$P$2,'Ventas general'!R75,IF($B$5=$P$3,'Ventas con crecimiento % global'!R75,IF($B$5=$P$7,#REF!,IF($B$5=$P$8,'Ventas general con estacionalid'!R78,IF($B$5=$P$9,'Ventas % global estacionalidad'!R75,IF($B$5=#REF!,'Ventas % prod estacionalidad'!R75,0)))))) ->  | S24: =IF($B$5=$P$2,'Ventas general'!S75,IF($B$5=$P$3,'Ventas con crecimiento % global'!S75,IF($B$5=$P$7,#REF!,IF($B$5=$P$8,'Ventas general con estacionalid'!S78,IF($B$5=$P$9,'Ventas % global estacionalidad'!S75,IF($B$5=#REF!,'Ventas % prod estacionalidad'!S75,0)))))) -> 
A25: =IF($B$5=$P$2,'Ventas general'!A76,IF($B$5=$P$3,'Ventas con crecimiento % global'!A76,IF($B$5=$P$7,#REF!,IF($B$5=$P$8,'Ventas general con estacionalid'!A79,IF($B$5=$P$9,'Ventas % global estacionalidad'!A76,IF($B$5=#REF!,'Ventas % prod estacionalidad'!A76,0)))))) ->  | P25: =IF($B$5=$P$2,'Ventas general'!P76,IF($B$5=$P$3,'Ventas con crecimiento % global'!P76,IF($B$5=$P$7,#REF!,IF($B$5=$P$8,'Ventas general con estacionalid'!P79,IF($B$5=$P$9,'Ventas % global estacionalidad'!P76,IF($B$5=#REF!,'Ventas % prod estacionalidad'!P76,0)))))) ->  | Q25: =IF($B$5=$P$2,'Ventas general'!Q76,IF($B$5=$P$3,'Ventas con crecimiento % global'!Q76,IF($B$5=$P$7,#REF!,IF($B$5=$P$8,'Ventas general con estacionalid'!Q79,IF($B$5=$P$9,'Ventas % global estacionalidad'!Q76,IF($B$5=#REF!,'Ventas % prod estacionalidad'!Q76,0)))))) ->  | R25: =IF($B$5=$P$2,'Ventas general'!R76,IF($B$5=$P$3,'Ventas con crecimiento % global'!R76,IF($B$5=$P$7,#REF!,IF($B$5=$P$8,'Ventas general con estacionalid'!R79,IF($B$5=$P$9,'Ventas % global estacionalidad'!R76,IF($B$5=#REF!,'Ventas % prod estacionalidad'!R76,0)))))) ->  | S25: =IF($B$5=$P$2,'Ventas general'!S76,IF($B$5=$P$3,'Ventas con crecimiento % global'!S76,IF($B$5=$P$7,#REF!,IF($B$5=$P$8,'Ventas general con estacionalid'!S79,IF($B$5=$P$9,'Ventas % global estacionalidad'!S76,IF($B$5=#REF!,'Ventas % prod estacionalidad'!S76,0)))))) -> 
B27: Porcentaje de venta
A28: Productos y Servicios y servicios | B28: =+B9 -> Enero | C28: =+C9 -> Febrero | D28: Marzo | E28: Abril | F28: Mayo | G28: Junio | H28: Julio | I28: Agosto | J28: Septiembre | K28: Octubre | L28: Noviembre | M28: Diciembre | P28: =+P9 -> AÑO2 | Q28: =+Q9 -> AÑO3 | R28: AÑO4 | S28: AÑO5
A29: =+A11 -> COCINAS INTEGRALES | B29: 0.1 | C29: =+B29 -> 0.1 | D29: =+C29 -> 0.1 | E29: 0.1 | F29: 0.1 | G29: 0.1 | H29: 0.1 | I29: 0.1 | J29: 0.1 | K29: 0.1 | L29: 0.1 | M29: 0.1 | P29: =+M29*(1+Datos!$C$11) -> 0.1038 | Q29: =+P29*(1+Datos!$D$11) -> 0.1077444 | R29: =+Q29*(1+Datos!$E$11) -> 0.1118386872 | S29: =+R29*(1+Datos!$F$11) -> 0.1160885573
A30: =+A12 -> BAÑOS | B30: 0.1 | C30: =+B30 -> 0.1 | D30: =+C30 -> 0.1 | E30: 0.1 | F30: 0.1 | G30: 0.1 | H30: 0.1 | I30: 0.1 | J30: 0.1 | K30: 0.1 | L30: 0.1 | M30: 0.1 | P30: =+M30*(1+Datos!$C$11) -> 0.1038 | Q30: =+P30*(1+Datos!$D$11) -> 0.1077444 | R30: =+Q30*(1+Datos!$E$11) -> 0.1118386872 | S30: =+R30*(1+Datos!$F$11) -> 0.1160885573
A31: PISOS | B31: 0.1 | C31: =+B31 -> 0.1 | D31: =+C31 -> 0.1 | E31: 0.1 | F31: 0.1 | G31: 0.1 | H31: 0.1 | I31: 0.1 | J31: 0.1 | K31: 0.1 | L31: 0.1 | M31: 0.1 | P31: =+M31*(1+Datos!$C$11) -> 0.1038 | Q31: =+P31*(1+Datos!$D$11) -> 0.1077444 | R31: =+Q31*(1+Datos!$E$11) -> 0.1118386872 | S31: =+R31*(1+Datos!$F$11) -> 0.1160885573
A32: =+A14 -> ASESORIAS | B32: 0 | C32: =+B32 -> 0 | D32: 0 | E32: 0 | F32: 0 | G32: 0 | H32: 0 | I32: 0 | J32: 0 | K32: 0 | L32: 0 | M32: 0
F45: =+B11*B29 -> 250000
B46: Cantidad
A47: Productos y Servicios | B47: =+B28 -> Enero | C47: =+C28 -> Febrero | D47: Marzo | E47: Abril | F47: Mayo | G47: Junio | H47: Julio | I47: Agosto | J47: Septiembre | K47: Octubre | L47: Noviembre | M47: Diciembre | N47: TOTAL | P47: =+P28 -> AÑO2 | Q47: =+Q28 -> AÑO3 | R47: AÑO4 | S47: AÑO5
A48: =+A29 -> COCINAS INTEGRALES | B48: 50 | C48: =+B48 -> 50 | D48: =+C48 -> 50 | E48: =+D48 -> 50 | F48: =+E48 -> 50 | G48: =+F48 -> 50 | H48: =+G48 -> 50 | I48: =+H48 -> 50 | J48: =+I48 -> 50 | K48: =+J48 -> 50 | L48: =+K48 -> 50 | M48: =+L48 -> 50 | N48: =+SUM(B48:M48) -> 600 | P48: =+N48*(1+Datos!$D$11) -> 622.8 | Q48: =+P48*(1+Datos!$D$11) -> 646.4664 | R48: =+Q48*(1+Datos!E$11) -> 671.0321232 | S48: =+R48*(1+Datos!$F$11) -> 696.5313439
A49: =+A30 -> BAÑOS | B49: 50 | C49: =+B49 -> 50 | D49: =+C49 -> 50 | E49: =+D49 -> 50 | F49: =+E49 -> 50 | G49: =+F49 -> 50 | H49: =+G49 -> 50 | I49: =+H49 -> 50 | J49: =+I49 -> 50 | K49: =+J49 -> 50 | L49: =+K49 -> 50 | M49: =+L49 -> 50 | N49: =+SUM(B49:M49) -> 600 | P49: =+N49*(1+Datos!$D$11) -> 622.8 | Q49: =+P49*(1+Datos!$D$11) -> 646.4664 | R49: =+Q49*(1+Datos!E$11) -> 671.0321232 | S49: =+R49*(1+Datos!$F$11) -> 696.5313439
A50: PISOS | B50: 50 | C50: =+B50 -> 50 | D50: =+C50 -> 50 | E50: 50 | F50: 50 | G50: 50 | H50: 50 | I50: 50 | J50: 50 | K50: 50 | L50: 50 | M50: 50 | N50: =+SUM(B50:M50) -> 600 | P50: =+N50*(1+Datos!$D$11) -> 622.8 | Q50: =+P50*(1+Datos!$D$11) -> 646.4664 | R50: =+Q50*(1+Datos!E$11) -> 671.0321232 | S50: =+R50*(1+Datos!$F$11) -> 696.5313439
A51: =+A32 -> ASESORIAS | B51: 50 | C51: =+B51 -> 50 | D51: 50 | E51: 50 | F51: 50 | G51: 50 | H51: 50 | I51: 50 | J51: 50 | K51: 50 | L51: 50 | M51: 50 | N51: =+SUM(B51:M51) -> 600 | P51: =+N51*(1+Datos!$D$11) -> 622.8 | Q51: =+P51*(1+Datos!$D$11) -> 646.4664 | R51: =+Q51*(1+Datos!E$11) -> 671.0321232 | S51: =+R51*(1+Datos!$F$11) -> 696.5313439
P52: 1202 | Q52: =+P52*(1+Datos!$D$11) -> 1247.676 | R52: =+Q52*(1+Datos!$D$11) -> 1295.087688 | S52: =+R52*(1+Datos!$D$11) -> 1344.30102
P53: 1203 | Q53: =+P53*(1+Datos!$D$11) -> 1248.714 | R53: =+Q53*(1+Datos!$D$11) -> 1296.165132 | S53: =+R53*(1+Datos!$D$11) -> 1345.419407
P54: 1204 | Q54: =+P54*(1+Datos!$D$11) -> 1249.752 | R54: =+Q54*(1+Datos!$D$11) -> 1297.242576 | S54: =+R54*(1+Datos!$D$11) -> 1346.537794
P55: 1205 | Q55: =+P55*(1+Datos!$D$11) -> 1250.79 | R55: =+Q55*(1+Datos!$D$11) -> 1298.32002 | S55: =+R55*(1+Datos!$D$11) -> 1347.656181
P56: 1206 | Q56: =+P56*(1+Datos!$D$11) -> 1251.828 | R56: =+Q56*(1+Datos!$D$11) -> 1299.397464 | S56: =+R56*(1+Datos!$D$11) -> 1348.774568
P57: 1207 | Q57: =+P57*(1+Datos!$D$11) -> 1252.866 | R57: =+Q57*(1+Datos!$D$11) -> 1300.474908 | S57: =+R57*(1+Datos!$D$11) -> 1349.892955
P58: 1208 | Q58: =+P58*(1+Datos!$D$11) -> 1253.904 | R58: =+Q58*(1+Datos!$D$11) -> 1301.552352 | S58: =+R58*(1+Datos!$D$11) -> 1351.011341
P59: 1209 | Q59: =+P59*(1+Datos!$D$11) -> 1254.942 | R59: =+Q59*(1+Datos!$D$11) -> 1302.629796 | S59: =+R59*(1+Datos!$D$11) -> 1352.129728
P60: 1210 | Q60: =+P60*(1+Datos!$D$11) -> 1255.98 | R60: =+Q60*(1+Datos!$D$11) -> 1303.70724 | S60: =+R60*(1+Datos!$D$11) -> 1353.248115
P61: 1211 | Q61: =+P61*(1+Datos!$D$11) -> 1257.018 | R61: =+Q61*(1+Datos!$D$11) -> 1304.784684 | S61: =+R61*(1+Datos!$D$11) -> 1354.366502
P62: 1212 | Q62: =+P62*(1+Datos!$D$11) -> 1258.056 | R62: =+Q62*(1+Datos!$D$11) -> 1305.862128 | S62: =+R62*(1+Datos!$D$11) -> 1355.484889
B65: Valor ingresos
A66: Productos y Servicios | B66: =+B9 -> Enero | C66: =+C9 -> Febrero | D66: Marzo | E66: Abril | F66: Mayo | G66: Junio | H66: Julio | I66: Agosto | J66: Septiembre | K66: Octubre | L66: Noviembre | M66: Diciembre | N66: TOTAL | P66: =+P47 -> AÑO2 | Q66: =+Q47 -> AÑO3 | R66: AÑO4 | S66: AÑO5
A67: =+A48 -> COCINAS INTEGRALES | B67: =+(B11*B29)*B48 -> 12500000 | C67: =+(C11*C29)*C48 -> 12500000 | D67: 12500000 | E67: 12500000 | F67: 12500000 | G67: 12500000 | H67: 12500000 | I67: 12500000 | J67: 12500000 | K67: 12500000 | L67: 12500000 | M67: 12500000 | N67: =+SUM(B67:M67) -> 150000000 | P67: =+(P11*P29)*P48 -> 167758030.8 | Q67: =+(Q11*Q29)*Q48 -> 187618379.3 | R67: 209829932.4 | S67: 234671041.7
A68: =+A49 -> BAÑOS | B68: =+(B12*B30)*B49 -> 5000000 | C68: 5000000 | D68: 5000000 | E68: 5000000 | F68: 5000000 | G68: 5000000 | H68: 5000000 | I68: 5000000 | J68: 5000000 | K68: 5000000 | L68: 5000000 | M68: 5000000 | N68: =+SUM(B68:M68) -> 60000000 | P68: 67103212.32 | Q68: 75047351.73 | R68: 83931972.95 | S68: 93868416.69
A69: PISOS | B69: 10000000 | C69: 10000000 | D69: 10000000 | E69: 10000000 | F69: 10000000 | G69: 10000000 | H69: 10000000 | I69: 10000000 | J69: 10000000 | K69: 10000000 | L69: 10000000 | M69: 10000000 | N69: 120000000 | P69: =+(P13*P31)*P50 -> 134206424.6 | Q69: 150094703.5 | R69: 167863945.9 | S69: 187736833.4
A70: =+A51 -> ASESORIAS | B70: =+B51*B14 -> 1000000 | C70: =+C51*C14 -> 1000000 | D70: 1000000 | E70: 1000000 | F70: 1000000 | G70: 1000000 | H70: 1000000 | I70: 1000000 | J70: 1000000 | K70: 1000000 | L70: 1000000 | M70: 1000000 | N70: 12000000 | P70: =+P51*P14 -> 12929328 | Q70: =+Q51*Q14 -> 13930626.88 | R70: 15009470.35 | S70: 16171863.77
A82: TOTAL | B82: =SUM(B67:B81) -> 28500000 | C82: =SUM(C67:C81) -> 28500000 | D82: 28500000 | E82: 28500000 | F82: 28500000 | G82: 28500000 | H82: 28500000 | I82: 28500000 | J82: 28500000 | K82: 28500000 | L82: 28500000 | M82: 28500000 | N82: 342000000 | P82: =SUM(P67:P81) -> 381996995.8 | Q82: 426691061.4 | R82: 476635321.6 | S82: 532448155.6
A94: INGRESOS NO OPERACIONALES
A95: Productos y Servicios | B95: =+B66 -> Enero | C95: =+C66 -> Febrero | D95: Marzo | E95: Abril | F95: Mayo | G95: Junio | H95: Julio | I95: Agosto | J95: Septiembre | K95: Octubre | L95: Noviembre | M95: Diciembre | N95: TOTAL | P95: =+P66 -> AÑO2 | Q95: AÑO3 | R95: AÑO4 | S95: AÑO5
A96: PUBLICIDAD | B96: 2000000 | C96: =+B96 -> 2000000 | D96: 2000000 | E96: 2000000 | F96: 2000000 | G96: 2000000 | H96: 2000000 | I96: 2000000 | J96: 2000000 | K96: 2000000 | L96: 2000000 | M96: 2000000 | N96: =+SUM(B96:M96) -> 24000000 | P96: =+N96*(1+Datos!$C$11) -> 24912000 | Q96: =+P96*(1+Datos!$C$11) -> 25858656 | R96: =+Q96*(1+Datos!$C$11) -> 26841284.93 | S96: =+R96*(1+Datos!$C$11) -> 27861253.76
A99: TOTAL COSTO FIJO | B99: =+'costos y gastos'!N35 -> 110400000 | C99: C.F | D99: C.V | E99: =+'costos y gastos'!N16 -> 96000000
A100: =+A67 -> COCINAS INTEGRALES | B100: =+H100 -> 0.4391606025 | C100: =+B100*$B$99 -> 48483330.51 | D100: =+C100/N48 -> 80805.55085 | E100: =+B100*$E$99 -> 42159417.84 | F100: =+E100/N48 -> 70265.6964 | H100: =+P67/$P$82 -> 0.4391606025
A101: =+A68 -> BAÑOS | B101: =+H101 -> 0.175664241 | C101: =+B101*$B$99 -> 19393332.21 | D101: =+C101/N49 -> 32322.22034 | E101: =+B101*$E$99 -> 16863767.13 | F101: =+E101/N49 -> 28106.27856 | H101: =+P68/$P$82 -> 0.175664241
A102: PISOS | B102: =+H102 -> 0.351328482 | C102: 38786664.41 | D102: 64644.44068 | E102: 33727534.27 | F102: 56212.55712 | H102: =+P69/$P$82 -> 0.351328482
A103: ASESORIAS | B103: =+H103 -> 0.03384667456 | C103: 3736672.872 | D103: 6227.78812 | E103: 3249280.758 | F103: 5415.46793 | H103: =+P70/$P$82 -> 0.03384667456

Sheet Ventas % prod estacionalidad (hidden)
E1: Si | F1: Enero | G1: 1 | H1: Enero
A2: ¿Desea aplicar estacionalidad de ventas? | B2: Si | E2: No | F2: Febrero | G2: 2 | H2: Febrero
F3: Marzo | G3: 3 | H3: Marzo
A4: Estacionalidad total para ventas | F4: Abril | G4: 4 | H4: Abril
A5: Enero | B5: 0 | F5: Mayo | G5: 5 | H5: Mayo
A6: Febrero | B6: 0.1 | F6: Junio | G6: 6 | H6: Junio
A7: Marzo | B7: 0.1 | F7: Julio | G7: 7 | H7: Julio
A8: Abril | B8: 0.1 | F8: Agosto | G8: 8 | H8: Agosto
A9: Mayo | B9: 0.1 | F9: Septiembre | G9: 9 | H9: Septiembre
A10: Junio | B10: 0.1 | F10: Octubre | G10: 10 | H10: Octubre
A11: Julio | B11: 0.1 | F11: Noviembre | G11: 11 | H11: Noviembre
A12: Agosto | B12: 0.1 | F12: Diciembre | G12: 12 | H12: Diciembre
A13: Septiembre | B13: 0.1
A14: Octubre | B14: 0.1
A15: Noviembre | B15: 0.1
A16: Diciembre | B16: 0
B17: =SUM(B5:B16) -> 1
A18: PROYECCIÓN DE VENTAS CON INDICADOR DE CRECIMIENTO POR PRODUCTO O SERVICIO Y ESTACIONALIDAD DEFINIDA
B20: Proyección de ingresos | M20: =+Datos!C5 -> 5
A21: Productos o servicios | B21: Año 1 | C21: Año 2 | D21: Año 3 | E21: Año 4 | F21: Año 5 | G21: Año 6 | H21: Año 7 | I21: Año 8 | J21: Año 9 | K21: Año 10
C22: =IF($M$20>=2,IF(C41="",0,(B22*(1+C41))),0) -> 0 | D22: =IF($M$20>=3,IF(D41="",0,(C22*(1+D41))),0) -> 0 | E22: =IF($M$20>=4,IF(E41="",0,(D22*(1+E41))),0) -> 0 | F22: =IF($M$20>=5,IF(F41="",0,(E22*(1+F41))),0) -> 0 | G22: =IF($M$20>=6,IF(G41="",0,(F22*(1+G41))),0) -> 0 | H22: =IF($M$20>=7,IF(H41="",0,(G22*(1+H41))),0) -> 0 | I22: =IF($M$20>=8,IF(I41="",0,(H22*(1+I41))),0) -> 0 | J22: =IF($M$20>=9,IF(J41="",0,(I22*(1+J41))),0) -> 0 | K22: =IF($M$20>=10,IF(K41="",0,(J22*(1+K41))),0) -> 0
C23: =IF($M$20>=2,IF(C42="",0,(B23*(1+C42))),0) -> 0 | D23: =IF($M$20>=3,IF(D42="",0,(C23*(1+D42))),0) -> 0 | E23: =IF($M$20>=4,IF(E42="",0,(D23*(1+E42))),0) -> 0 | F23: =IF($M$20>=5,IF(F42="",0,(E23*(1+F42))),0) -> 0 | G23: =IF($M$20>=6,IF(G42="",0,(F23*(1+G42))),0) -> 0 | H23: =IF($M$20>=7,IF(H42="",0,(G23*(1+H42))),0) -> 0 | I23: =IF($M$20>=8,IF(I42="",0,(H23*(1+I42))),0) -> 0 | J23: =IF($M$20>=9,IF(J42="",0,(I23*(1+J42))),0) -> 0 | K23: =IF($M$20>=10,IF(K42="",0,(J23*(1+K42))),0) -> 0
C24: 0 | D24: 0 | E24: 0 | F24: 0 | G24: 0 | H24: 0 | I24: 0 | J24: 0 | K24: 0
C25: 0 | D25: 0 | E25: 0 | F25: 0 | G25: 0 | H25: 0 | I25: 0 | J25: 0 | K25: 0
C26: 0 | D26: 0 | E26: 0 | F26: 0 | G26: 0 | H26: 0 | I26: 0 | J26: 0 | K26: 0
C27: 0 | D27: 0 | E27: 0 | F27: 0 | G27: 0 | H27: 0 | I27: 0 | J27: 0 | K27: 0
C28: 0 | D28: 0 | E28: 0 | F28: 0 | G28: 0 | H28: 0 | I28: 0 | J28: 0 | K28: 0
C29: 0 | D29: 0 | E29: 0 | F29: 0 | G29: 0 | H29: 0 | I29: 0 | J29: 0 | K29: 0
C30: 0 | D30: 0 | E30: 0 | F30: 0 | G30: 0 | H30: 0 | I30: 0 | J30: 0 | K30: 0
C31: 0 | D31: 0 | E31: 0 | F31: 0 | G31: 0 | H31: 0 | I31: 0 | J31: 0 | K31: 0
C32: 0 | D32: 0 | E32: 0 | F32: 0 | G32: 0 | H32: 0 | I32: 0 | J32: 0 | K32: 0
C33: 0 | D33: 0 | E33: 0 | F33: 0 | G33: 0 | H33: 0 | I33: 0 | J33: 0 | K33: 0
C34: 0 | D34: 0 | E34: 0 | F34: 0 | G34: 0 | H34: 0 | I34: 0 | J34: 0 | K34: 0
C35: 0 | D35: 0 | E35: 0 | F35: 0 | G35: 0 | H35: 0 | I35: 0 | J35: 0 | K35: 0
C36: 0 | D36: 0 | E36: 0 | F36: 0 | G36: 0 | H36: 0 | I36: 0 | J36: 0 | K36: 0
B39: Variación anual del ingreso
A40: Productos o servicios | B40: Año 1 | C40: Año 2 | D40: Año 3 | E40: Año 4 | F40: Año 5 | G40: Año 6 | H40: Año 7 | I40: Año 8 | J40: Año 9 | K40: Año 10
A41: =IF(A22="","",A22) ->  | B41: N/A
A42: =IF(A23="","",A23) ->  | B42: N/A
B43: N/A
B44: N/A
B45: N/A
B46: N/A
B47: N/A
B48: N/A
B49: N/A
B50: N/A
B51: N/A
B52: N/A
B53: N/A
B54: N/A
B55: N/A
B59: Distribución del ingreso | N59: Total | O59: Validación | P59: Año 2 | AB59: Año 3 | AN59: Año 4 | AZ59: Año 5 | BL59: Año 6 | BM59: Año 7 | BN59: Año 8 | BO59: Año 9 | BP59: Año 10
B60: =VLOOKUP(B61,$F$1:$G$12,2,0) -> 1 | C60: =IF(B60=12,1,B60+1) -> 2 | D60: =IF(C60=12,1,C60+1) -> 3 | E60: 4 | F60: 5 | G60: 6 | H60: 7 | I60: 8 | J60: 9 | K60: 10 | L60: 11 | M60: 12 | P60: =IF(M60=12,1,M60+1) -> 1 | Q60: 2 | R60: 3 | S60: 4 | T60: 5 | U60: 6 | V60: 7 | W60: 8 | X60: 9 | Y60: 10 | Z60: 11 | AA60: 12 | AB60: 1 | AC60: 2 | AD60: 3 | AE60: 4 | AF60: 5 | AG60: 6 | AH60: 7 | AI60: 8 | AJ60: 9 | AK60: 10 | AL60: 11 | AM60: 12 | AN60: 1 | AO60: 2 | AP60: 3 | AQ60: 4 | AR60: 5 | AS60: 6 | AT60: 7 | AU60: 8 | AV60: 9 | AW60: 10 | AX60: 11 | AY60: 12 | AZ60: 1 | BA60: 2 | BB60: 3 | BC60: 4 | BD60: 5 | BE60: 6 | BF60: 7 | BG60: 8 | BH60: 9 | BI60: 10 | BJ60: 11 | BK60: 12 | BL60: =+Datos!C6+6 -> 2027 | BM60: =+BL60+1 -> 2028 | BN60: =+BM60+1 -> 2029 | BO60: =+BN60+1 -> 2030 | BP60: =+BO60+1 -> 2031
A61: Productos o servicios | B61: =+Datos!C7 -> Enero | C61: =VLOOKUP(C60,$G$1:$H$12,2,0) -> Febrero | D61: Marzo | E61: Abril | F61: Mayo | G61: Junio | H61: Julio | I61: Agosto | J61: Septiembre | K61: Octubre | L61: Noviembre | M61: Diciembre | N61: Año 1 | P61: =VLOOKUP(P60,$G$1:$H$12,2,0) -> Enero | Q61: Febrero | R61: Marzo | S61: Abril | T61: Mayo | U61: Junio | V61: Julio | W61: Agosto | X61: Septiembre | Y61: Octubre | Z61: Noviembre | AA61: Diciembre | AB61: Enero | AC61: Febrero | AD61: Marzo | AE61: Abril | AF61: Mayo | AG61: Junio | AH61: Julio | AI61: Agosto | AJ61: Septiembre | AK61: Octubre | AL61: Noviembre | AM61: Diciembre | AN61: Enero | AO61: Febrero | AP61: Marzo | AQ61: Abril | AR61: Mayo | AS61: Junio | AT61: Julio | AU61: Agosto | AV61: Septiembre | AW61: Octubre | AX61: Noviembre | AY61: Diciembre | AZ61: Enero | BA61: Febrero | BB61: Marzo | BC61: Abril | BD61: Mayo | BE61: Junio | BF61: Julio | BG61: Agosto | BH61: Septiembre | BI61: Octubre | BJ61: Noviembre | BK61: Diciembre | BL61: =+BL60 -> 2027 | BM61: =+BM60 -> 2028 | BN61: =+BN60 -> 2029 | BO61: =+BO60 -> 2030 | BP61: =+BP60 -> 2031
A62: =IF(A41="","",A41) ->  | B62: =+$B22*B80 -> 0 | C62: =+$B22*C80 -> 0 | D62: 0 | E62: 0 | F62: 0 | G62: 0 | H62: 0 | I62: 0 | J62: 0 | K62: 0 | L62: 0 | M62: 0 | N62: =SUM(B62:M62) -> 0 | O62: =IF(N62<>B22,"No coincide con la proyección del año 1","Coincide con la proyección del año 1") -> Coincide con la proyección del año 1 | P62: =+$C22*B80 -> 0 | Q62: =+$C22*C80 -> 0 | R62: 0 | S62: 0 | T62: 0 | U62: 0 | V62: 0 | W62: 0 | X62: 0 | Y62: 0 | Z62: 0 | AA62: 0 | AB62: =+$D22*B80 -> 0 | AC62: =+$D22*C80 -> 0 | AD62: 0 | AE62: 0 | AF62: 0 | AG62: 0 | AH62: 0 | AI62: 0 | AJ62: 0 | AK62: 0 | AL62: 0 | AM62: 0 | AN62: =+$E22*B80 -> 0 | AO62: =+$E22*C80 -> 0 | AP62: 0 | AQ62: 0 | AR62: 0 | AS62: 0 | AT62: 0 | AU62: 0 | AV62: 0 | AW62: 0 | AX62: 0 | AY62: 0 | AZ62: =+$F22*B80 -> 0 | BA62: =+$F22*C80 -> 0 | BB62: 0 | BC62: 0 | BD62: 0 | BE62: 0 | BF62: 0 | BG62: 0 | BH62: 0 | BI62: 0 | BJ62: 0 | BK62: 0 | BL62: =+G22 -> 0 | BM62: =+H22 -> 0 | BN62: 0 | BO62: 0 | BP62: 0
A63: =IF(A42="","",A42) ->  | B63: =+$B23*B81 -> 0 | C63: 0 | D63: 0 | E63: 0 | F63: 0 | G63: 0 | H63: 0 | I63: 0 | J63: 0 | K63: 0 | L63: 0 | M63: 0 | N63: =SUM(B63:M63) -> 0 | O63: =IF(N63<>B23,"No coincide con la proyección del año 1","Coincide con la proyección del año 1") -> Coincide con la proyección del año 1 | P63: =+$C23*B81 -> 0 | Q63: 0 | R63: 0 | S63: 0 | T63: 0 | U63: 0 | V63: 0 | W63: 0 | X63: 0 | Y63: 0 | Z63: 0 | AA63: 0 | AB63: =+$D23*B81 -> 0 | AC63: 0 | AD63: 0 | AE63: 0 | AF63: 0 | AG63: 0 | AH63: 0 | AI63: 0 | AJ63: 0 | AK63: 0 | AL63: 0 | AM63: 0 | AN63: =+$E23*B81 -> 0 | AO63: 0 | AP63: 0 | AQ63: 0 | AR63: 0 | AS63: 0 | AT63: 0 | AU63: 0 | AV63: 0 | AW63: 0 | AX63: 0 | AY63: 0 | AZ63: =+$F23*B81 -> 0 | BA63: 0 | BB63: 0 | BC63: 0 | BD63: 0 | BE63: 0 | BF63: 0 | BG63: 0 | BH63: 0 | BI63: 0 | BJ63: 0 | BK63: 0 | BL63: =+G23 -> 0 | BM63: 0 | BN63: 0 | BO63: 0 | BP63: 0
B64: =+$B24*B82 -> 0 | C64: 0 | D64: 0 | E64: 0 | F64: 0 | G64: 0 | H64: 0 | I64: 0 | J64: 0 | K64: 0 | L64: 0 | M64: 0 | N64: 0 | O64: Coincide con la proyección del año 1 | P64: 0 | Q64: 0 | R64: 0 | S64: 0 | T64: 0 | U64: 0 | V64: 0 | W64: 0 | X64: 0 | Y64: 0 | Z64: 0 | AA64: 0 | AB64: 0 | AC64: 0 | AD64: 0 | AE64: 0 | AF64: 0 | AG64: 0 | AH64: 0 | AI64: 0 | AJ64: 0 | AK64: 0 | AL64: 0 | AM64: 0 | AN64: 0 | AO64: 0 | AP64: 0 | AQ64: 0 | AR64: 0 | AS64: 0 | AT64: 0 | AU64: 0 | AV64: 0 | AW64: 0 | AX64: 0 | AY64: 0 | AZ64: 0 | BA64: 0 | BB64: 0 | BC64: 0 | BD64: 0 | BE64: 0 | BF64: 0 | BG64: 0 | BH64: 0 | BI64: 0 | BJ64: 0 | BK64: 0 | BL64: 0 | BM64: 0 | BN64: 0 | BO64: 0 | BP64: 0
B65: =+$B25*B83 -> 0 | C65: 0 | D65: 0 | E65: 0 | F65: 0 | G65: 0 | H65: 0 | I65: 0 | J65: 0 | K65: 0 | L65: 0 | M65: 0 | N65: 0 | O65: Coincide con la proyección del año 1 | P65: 0 | Q65: 0 | R65: 0 | S65: 0 | T65: 0 | U65: 0 | V65: 0 | W65: 0 | X65: 0 | Y65: 0 | Z65: 0 | AA65: 0 | AB65: 0 | AC65: 0 | AD65: 0 | AE65: 0 | AF65: 0 | AG65: 0 | AH65: 0 | AI65: 0 | AJ65: 0 | AK65: 0 | AL65: 0 | AM65: 0 | AN65: 0 | AO65: 0 | AP65: 0 | AQ65: 0 | AR65: 0 | AS65: 0 | AT65: 0 | AU65: 0 | AV65: 0 | AW65: 0 | AX65: 0 | AY65: 0 | AZ65: 0 | BA65: 0 | BB65: 0 | BC65: 0 | BD65: 0 | BE65: 0 | BF65: 0 | BG65: 0 | BH65: 0 | BI65: 0 | BJ65: 0 | BK65: 0 | BL65: 0 | BM65: 0 | BN65: 0 | BO65: 0 | BP65: 0
B66: =+$B26*B84 -> 0 | C66: 0 | D66: 0 | E66: 0 | F66: 0 | G66: 0 | H66: 0 | I66: 0 | J66: 0 | K66: 0 | L66: 0 | M66: 0 | N66: 0 | O66: Coincide con la proyección del año 1 | P66: 0 | Q66: 0 | R66: 0 | S66: 0 | T66: 0 | U66: 0 | V66: 0 | W66: 0 | X66: 0 | Y66: 0 | Z66: 0 | AA66: 0 | AB66: 0 | AC66: 0 | AD66: 0 | AE66: 0 | AF66: 0 | AG66: 0 | AH66: 0 | AI66: 0 | AJ66: 0 | AK66: 0 | AL66: 0 | AM66: 0 | AN66: 0 | AO66: 0 | AP66: 0 | AQ66: 0 | AR66: 0 | AS66: 0 | AT66: 0 | AU66: 0 | AV66: 0 | AW66: 0 | AX66: 0 | AY66: 0 | AZ66: 0 | BA66: 0 | BB66: 0 | BC66: 0 | BD66: 0 | BE66: 0 | BF66: 0 | BG66: 0 | BH66: 0 | BI66: 0 | BJ66: 0 | BK66: 0 | BL66: 0 | BM66: 0 | BN66: 0 | BO66: 0 | BP66: 0
B67: =+$B27*B85 -> 0 | C67: 0 | D67: 0 | E67: 0 | F67: 0 | G67: 0 | H67: 0 | I67: 0 | J67: 0 | K67: 0 | L67: 0 | M67: 0 | N67: 0 | O67: Coincide con la proyección del año 1 | P67: 0 | Q67: 0 | R67: 0 | S67: 0 | T67: 0 | U67: 0 | V67: 0 | W67: 0 | X67: 0 | Y67: 0 | Z67: 0 | AA67: 0 | AB67: 0 | AC67: 0 | AD67: 0 | AE67: 0 | AF67: 0 | AG67: 0 | AH67: 0 | AI67: 0 | AJ67: 0 | AK67: 0 | AL67: 0 | AM67: 0 | AN67: 0 | AO67: 0 | AP67: 0 | AQ67: 0 | AR67: 0 | AS67: 0 | AT67: 0 | AU67: 0 | AV67: 0 | AW67: 0 | AX67: 0 | AY67: 0 | AZ67: 0 | BA67: 0 | BB67: 0 | BC67: 0 | BD67: 0 | BE67: 0 | BF67: 0 | BG67: 0 | BH67: 0 | BI67: 0 | BJ67: 0 | BK67: 0 | BL67: 0 | BM67: 0 | BN67: 0 | BO67: 0 | BP67: 0
B68: =+$B28*B86 -> 0 | C68: 0 | D68: 0 | E68: 0 | F68: 0 | G68: 0 | H68: 0 | I68: 0 | J68: 0 | K68: 0 | L68: 0 | M68: 0 | N68: 0 | O68: Coincide con la proyección del año 1 | P68: 0 | Q68: 0 | R68: 0 | S68: 0 | T68: 0 | U68: 0 | V68: 0 | W68: 0 | X68: 0 | Y68: 0 | Z68: 0 | AA68: 0 | AB68: 0 | AC68: 0 | AD68: 0 | AE68: 0 | AF68: 0 | AG68: 0 | AH68: 0 | AI68: 0 | AJ68: 0 | AK68: 0 | AL68: 0 | AM68: 0 | AN68: 0 | AO68: 0 | AP68: 0 | AQ68: 0 | AR68: 0 | AS68: 0 | AT68: 0 | AU68: 0 | AV68: 0 | AW68: 0 | AX68: 0 | AY68: 0 | AZ68: 0 | BA68: 0 | BB68: 0 | BC68: 0 | BD68: 0 | BE68: 0 | BF68: 0 | BG68: 0 | BH68: 0 | BI68: 0 | BJ68: 0 | BK68: 0 | BL68: 0 | BM68: 0 | BN68: 0 | BO68: 0 | BP68: 0
B69: =+$B29*B87 -> 0 | C69: 0 | D69: 0 | E69: 0 | F69: 0 | G69: 0 | H69: 0 | I69: 0 | J69: 0 | K69: 0 | L69: 0 | M69: 0 | N69: 0 | O69: Coincide con la proyección del año 1 | P69: 0 | Q69: 0 | R69: 0 | S69: 0 | T69: 0 | U69: 0 | V69: 0 | W69: 0 | X69: 0 | Y69: 0 | Z69: 0 | AA69: 0 | AB69: 0 | AC69: 0 | AD69: 0 | AE69: 0 | AF69: 0 | AG69: 0 | AH69: 0 | AI69: 0 | AJ69: 0 | AK69: 0 | AL69: 0 | AM69: 0 | AN69: 0 | AO69: 0 | AP69: 0 | AQ69: 0 | AR69: 0 | AS69: 0 | AT69: 0 | AU69: 0 | AV69: 0 | AW69: 0 | AX69: 0 | AY69: 0 | AZ69: 0 | BA69: 0 | BB69: 0 | BC69: 0 | BD69: 0 | BE69: 0 | BF69: 0 | BG69: 0 | BH69: 0 | BI69: 0 | BJ69: 0 | BK69: 0 | BL69: 0 | BM69: 0 | BN69: 0 | BO69: 0 | BP69: 0
B70: =+$B30*B88 -> 0 | C70: 0 | D70: 0 | E70: 0 | F70: 0 | G70: 0 | H70: 0 | I70: 0 | J70: 0 | K70: 0 | L70: 0 | M70: 0 | N70: 0 | O70: Coincide con la proyección del año 1 | P70: 0 | Q70: 0 | R70: 0 | S70: 0 | T70: 0 | U70: 0 | V70: 0 | W70: 0 | X70: 0 | Y70: 0 | Z70: 0 | AA70: 0 | AB70: 0 | AC70: 0 | AD70: 0 | AE70: 0 | AF70: 0 | AG70: 0 | AH70: 0 | AI70: 0 | AJ70: 0 | AK70: 0 | AL70: 0 | AM70: 0 | AN70: 0 | AO70: 0 | AP70: 0 | AQ70: 0 | AR70: 0 | AS70: 0 | AT70: 0 | AU70: 0 | AV70: 0 | AW70: 0 | AX70: 0 | AY70: 0 | AZ70: 0 | BA70: 0 | BB70: 0 | BC70: 0 | BD70: 0 | BE70: 0 | BF70: 0 | BG70: 0 | BH70: 0 | BI70: 0 | BJ70: 0 | BK70: 0 | BL70: 0 | BM70: 0 | BN70: 0 | BO70: 0 | BP70: 0
B71: =+$B31*B89 -> 0 | C71: 0 | D71: 0 | E71: 0 | F71: 0 | G71: 0 | H71: 0 | I71: 0 | J71: 0 | K71: 0 | L71: 0 | M71: 0 | N71: 0 | O71: Coincide con la proyección del año 1 | P71: 0 | Q71: 0 | R71: 0 | S71: 0 | T71: 0 | U71: 0 | V71: 0 | W71: 0 | X71: 0 | Y71: 0 | Z71: 0 | AA71: 0 | AB71: 0 | AC71: 0 | AD71: 0 | AE71: 0 | AF71: 0 | AG71: 0 | AH71: 0 | AI71: 0 | AJ71: 0 | AK71: 0 | AL71: 0 | AM71: 0 | AN71: 0 | AO71: 0 | AP71: 0 | AQ71: 0 | AR71: 0 | AS71: 0 | AT71: 0 | AU71: 0 | AV71: 0 | AW71: 0 | AX71: 0 | AY71: 0 | AZ71: 0 | BA71: 0 | BB71: 0 | BC71: 0 | BD71: 0 | BE71: 0 | BF71: 0 | BG71: 0 | BH71: 0 | BI71: 0 | BJ71: 0 | BK71: 0 | BL71: 0 | BM71: 0 | BN71: 0 | BO71: 0 | BP71: 0
B72: =+$B32*B90 -> 0 | C72: 0 | D72: 0 | E72: 0 | F72: 0 | G72: 0 | H72: 0 | I72: 0 | J72: 0 | K72: 0 | L72: 0 | M72: 0 | N72: 0 | O72: Coincide con la proyección del año 1 | P72: 0 | Q72: 0 | R72: 0 | S72: 0 | T72: 0 | U72: 0 | V72: 0 | W72: 0 | X72: 0 | Y72: 0 | Z72: 0 | AA72: 0 | AB72: 0 | AC72: 0 | AD72: 0 | AE72: 0 | AF72: 0 | AG72: 0 | AH72: 0 | AI72: 0 | AJ72: 0 | AK72: 0 | AL72: 0 | AM72: 0 | AN72: 0 | AO72: 0 | AP72: 0 | AQ72: 0 | AR72: 0 | AS72: 0 | AT72: 0 | AU72: 0 | AV72: 0 | AW72: 0 | AX72: 0 | AY72: 0 | AZ72: 0 | BA72: 0 | BB72: 0 | BC72: 0 | BD72: 0 | BE72: 0 | BF72: 0 | BG72: 0 | BH72: 0 | BI72: 0 | BJ72: 0 | BK72: 0 | BL72: 0 | BM72: 0 | BN72: 0 | BO72: 0 | BP72: 0
B73: =+$B33*B91 -> 0 | C73: 0 | D73: 0 | E73: 0 | F73: 0 | G73: 0 | H73: 0 | I73: 0 | J73: 0 | K73: 0 | L73: 0 | M73: 0 | N73: 0 | O73: Coincide con la proyección del año 1 | P73: 0 | Q73: 0 | R73: 0 | S73: 0 | T73: 0 | U73: 0 | V73: 0 | W73: 0 | X73: 0 | Y73: 0 | Z73: 0 | AA73: 0 | AB73: 0 | AC73: 0 | AD73: 0 | AE73: 0 | AF73: 0 | AG73: 0 | AH73: 0 | AI73: 0 | AJ73: 0 | AK73: 0 | AL73: 0 | AM73: 0 | AN73: 0 | AO73: 0 | AP73: 0 | AQ73: 0 | AR73: 0 | AS73: 0 | AT73: 0 | AU73: 0 | AV73: 0 | AW73: 0 | AX73: 0 | AY73: 0 | AZ73: 0 | BA73: 0 | BB73: 0 | BC73: 0 | BD73: 0 | BE73: 0 | BF73: 0 | BG73: 0 | BH73: 0 | BI73: 0 | BJ73: 0 | BK73: 0 | BL73: 0 | BM73: 0 | BN73: 0 | BO73: 0 | BP73: 0
B74: =+$B34*B92 -> 0 | C74: 0 | D74: 0 | E74: 0 | F74: 0 | G74: 0 | H74: 0 | I74: 0 | J74: 0 | K74: 0 | L74: 0 | M74: 0 | N74: 0 | O74: Coincide con la proyección del año 1 | P74: 0 | Q74: 0 | R74: 0 | S74: 0 | T74: 0 | U74: 0 | V74: 0 | W74: 0 | X74: 0 | Y74: 0 | Z74: 0 | AA74: 0 | AB74: 0 | AC74: 0 | AD74: 0 | AE74: 0 | AF74: 0 | AG74: 0 | AH74: 0 | AI74: 0 | AJ74: 0 | AK74: 0 | AL74: 0 | AM74: 0 | AN74: 0 | AO74: 0 | AP74: 0 | AQ74: 0 | AR74: 0 | AS74: 0 | AT74: 0 | AU74: 0 | AV74: 0 | AW74: 0 | AX74: 0 | AY74: 0 | AZ74: 0 | BA74: 0 | BB74: 0 | BC74: 0 | BD74: 0 | BE74: 0 | BF74: 0 | BG74: 0 | BH74: 0 | BI74: 0 | BJ74: 0 | BK74: 0 | BL74: 0 | BM74: 0 | BN74: 0 | BO74: 0 | BP74: 0
B75: =+$B35*B93 -> 0 | C75: 0 | D75: 0 | E75: 0 | F75: 0 | G75: 0 | H75: 0 | I75: 0 | J75: 0 | K75: 0 | L75: 0 | M75: 0 | N75: 0 | O75: Coincide con la proyección del año 1 | P75: 0 | Q75: 0 | R75: 0 | S75: 0 | T75: 0 | U75: 0 | V75: 0 | W75: 0 | X75: 0 | Y75: 0 | Z75: 0 | AA75: 0 | AB75: 0 | AC75: 0 | AD75: 0 | AE75: 0 | AF75: 0 | AG75: 0 | AH75: 0 | AI75: 0 | AJ75: 0 | AK75: 0 | AL75: 0 | AM75: 0 | AN75: 0 | AO75: 0 | AP75: 0 | AQ75: 0 | AR75: 0 | AS75: 0 | AT75: 0 | AU75: 0 | AV75: 0 | AW75: 0 | AX75: 0 | AY75: 0 | AZ75: 0 | BA75: 0 | BB75: 0 | BC75: 0 | BD75: 0 | BE75: 0 | BF75: 0 | BG75: 0 | BH75: 0 | BI75: 0 | BJ75: 0 | BK75: 0 | BL75: 0 | BM75: 0 | BN75: 0 | BO75: 0 | BP75: 0
B76: =+$B36*B94 -> 0 | C76: 0 | D76: 0 | E76: 0 | F76: 0 | G76: 0 | H76: 0 | I76: 0 | J76: 0 | K76: 0 | L76: 0 | M76: 0 | N76: 0 | O76: Coincide con la proyección del año 1 | P76: 0 | Q76: 0 | R76: 0 | S76: 0 | T76: 0 | U76: 0 | V76: 0 | W76: 0 | X76: 0 | Y76: 0 | Z76: 0 | AA76: 0 | AB76: 0 | AC76: 0 | AD76: 0 | AE76: 0 | AF76: 0 | AG76: 0 | AH76: 0 | AI76: 0 | AJ76: 0 | AK76: 0 | AL76: 0 | AM76: 0 | AN76: 0 | AO76: 0 | AP76: 0 | AQ76: 0 | AR76: 0 | AS76: 0 | AT76: 0 | AU76: 0 | AV76: 0 | AW76: 0 | AX76: 0 | AY76: 0 | AZ76: 0 | BA76: 0 | BB76: 0 | BC76: 0 | BD76: 0 | BE76: 0 | BF76: 0 | BG76: 0 | BH76: 0 | BI76: 0 | BJ76: 0 | BK76: 0 | BL76: 0 | BM76: 0 | BN76: 0 | BO76: 0 | BP76: 0
A79: Estacionalidad de las ventas | B79: =+B61 -> Enero | C79: =+C61 -> Febrero | D79: Marzo | E79: Abril | F79: Mayo | G79: Junio | H79: Julio | I79: Agosto | J79: Septiembre | K79: Octubre | L79: Noviembre | M79: Diciembre | N79: Validación
A80: =IF(A62="","",A62) ->  | B80: 0 | C80: 0 | D80: 0 | E80: 0 | F80: 0 | G80: 0 | H80: 0 | I80: 0 | J80: 0 | K80: 0 | L80: 0 | M80: 0 | N80: =SUM(B80:M80) -> 0 | O80: =IF(N80<>100%,"La distribución de estacionalidad debe sumar 100%","Distribución cuadrada") -> La distribución de estacionalidad debe sumar 100%
A81: =IF(A63="","",A63) ->  | B81: 0 | C81: 0 | D81: 0 | E81: 0 | F81: 0 | G81: 0 | H81: 0 | I81: 0 | J81: 0 | K81: 0 | L81: 0 | M81: 0 | N81: =SUM(B81:M81) -> 0 | O81: =IF(N81<>100%,"La distribución de estacionalidad debe sumar 100%","Distribución cuadrada") -> La distribución de estacionalidad debe sumar 100%
B82: 0 | C82: 0 | D82: 0 | E82: 0 | F82: 0 | G82: 0 | H82: 0 | I82: 0 | J82: 0 | K82: 0 | L82: 0 | M82: 0 | N82: 0 | O82: La distribución de estacionalidad debe sumar 100%
B83: 0 | C83: 0 | D83: 0 | E83: 0 | F83: 0 | G83: 0 | H83: 0 | I83: 0 | J83: 0 | K83: 0 | L83: 0 | M83: 0 | N83: 0 | O83: La distribución de estacionalidad debe sumar 100%
B84: 0 | C84: 0 | D84: 0 | E84: 0 | F84: 0 | G84: 0 | H84: 0 | I84: 0 | J84: 0 | K84: 0 | L84: 0 | M84: 0 | N84: 0 | O84: La distribución de estacionalidad debe sumar 100%
B85: 0 | C85: 0 | D85: 0 | E85: 0 | F85: 0 | G85: 0 | H85: 0 | I85: 0 | J85: 0 | K85: 0 | L85: 0 | M85: 0 | N85: 0 | O85: La distribución de estacionalidad debe sumar 100%
B86: 0 | C86: 0 | D86: 0 | E86: 0 | F86: 0 | G86: 0 | H86: 0 | I86: 0 | J86: 0 | K86: 0 | L86: 0 | M86: 0 | N86: 0 | O86: La distribución de estacionalidad debe sumar 100%
B87: 0 | C87: 0 | D87: 0 | E87: 0 | F87: 0 | G87: 0 | H87: 0 | I87: 0 | J87: 0 | K87: 0 | L87: 0 | M87: 0 | N87: 0 | O87: La distribución de estacionalidad debe sumar 100%
B88: 0 | C88: 0 | D88: 0 | E88: 0 | F88: 0 | G88: 0 | H88: 0 | I88: 0 | J88: 0 | K88: 0 | L88: 0 | M88: 0 | N88: 0 | O88: La distribución de estacionalidad debe sumar 100%
B89: 0 | C89: 0 | D89: 0 | E89: 0 | F89: 0 | G89: 0 | H89: 0 | I89: 0 | J89: 0 | K89: 0 | L89: 0 | M89: 0 | N89: 0 | O89: La distribución de estacionalidad debe sumar 100%
B90: 0 | C90: 0 | D90: 0 | E90: 0 | F90: 0 | G90: 0 | H90: 0 | I90: 0 | J90: 0 | K90: 0 | L90: 0 | M90: 0 | N90: 0 | O90: La distribución de estacionalidad debe sumar 100%
B91: 0 | C91: 0 | D91: 0 | E91: 0 | F91: 0 | G91: 0 | H91: 0 | I91: 0 | J91: 0 | K91: 0 | L91: 0 | M91: 0 | N91: 0 | O91: La distribución de estacionalidad debe sumar 100%
B92: 0 | C92: 0 | D92: 0 | E92: 0 | F92: 0 | G92: 0 | H92: 0 | I92: 0 | J92: 0 | K92: 0 | L92: 0 | M92: 0 | N92: 0 | O92: La distribución de estacionalidad debe sumar 100%
B93: 0 | C93: 0 | D93: 0 | E93: 0 | F93: 0 | G93: 0 | H93: 0 | I93: 0 | J93: 0 | K93: 0 | L93: 0 | M93: 0 | N93: 0 | O93: La distribución de estacionalidad debe sumar 100%
B94: 0 | C94: 0 | D94: 0 | E94: 0 | F94: 0 | G94: 0 | H94: 0 | I94: 0 | J94: 0 | K94: 0 | L94: 0 | M94: 0 | N94: 0 | O94: La distribución de estacionalidad debe sumar 100%
B97: Precio de venta
A98: Productos o servicios | B98: Año 1 | C98: Año 2 | D98: Año 3 | E98: Año 4 | F98: Año 5 | G98: Año 6 | H98: Año 7 | I98: Año 8 | J98: Año 9 | K98: Año 10
A99: =IF(A80="","",A80) ->  | B99: 1 | C99: 1 | D99: 1 | E99: 1 | F99: 1 | G99: 1 | H99: 1 | I99: 1 | J99: 1 | K99: 1
A100: =IF(A81="","",A81) ->  | B100: 1 | C100: 1 | D100: 1 | E100: 1 | F100: 1 | G100: 1 | H100: 1 | I100: 1 | J100: 1 | K100: 1
B101: 1 | C101: 1 | D101: 1 | E101: 1 | F101: 1 | G101: 1 | H101: 1 | I101: 1 | J101: 1 | K101: 1
B102: 1 | C102: 1 | D102: 1 | E102: 1 | F102: 1 | G102: 1 | H102: 1 | I102: 1 | J102: 1 | K102: 1
B103: 1 | C103: 1 | D103: 1 | E103: 1 | F103: 1 | G103: 1 | H103: 1 | I103: 1 | J103: 1 | K103: 1
B104: 1 | C104: 1 | D104: 1 | E104: 1 | F104: 1 | G104: 1 | H104: 1 | I104: 1 | J104: 1 | K104: 1
B105: 1 | C105: 1 | D105: 1 | E105: 1 | F105: 1 | G105: 1 | H105: 1 | I105: 1 | J105: 1 | K105: 1
B106: 1 | C106: 1 | D106: 1 | E106: 1 | F106: 1 | G106: 1 | H106: 1 | I106: 1 | J106: 1 | K106: 1
B107: 1 | C107: 1 | D107: 1 | E107: 1 | F107: 1 | G107: 1 | H107: 1 | I107: 1 | J107: 1 | K107: 1
B108: 1 | C108: 1 | D108: 1 | E108: 1 | F108: 1 | G108: 1 | H108: 1 | I108: 1 | J108: 1 | K108: 1
B109: 1 | C109: 1 | D109: 1 | E109: 1 | F109: 1 | G109: 1 | H109: 1 | I109: 1 | J109: 1 | K109: 1
B110: 1 | C110: 1 | D110: 1 | E110: 1 | F110: 1 | G110: 1 | H110: 1 | I110: 1 | J110: 1 | K110: 1
B111: 1 | C111: 1 | D111: 1 | E111: 1 | F111: 1 | G111: 1 | H111: 1 | I111: 1 | J111: 1 | K111: 1
B112: 1 | C112: 1 | D112: 1 | E112: 1 | F112: 1 | G112: 1 | H112: 1 | I112: 1 | J112: 1 | K112: 1
B113: 1 | C113: 1 | D113: 1 | E113: 1 | F113: 1 | G113: 1 | H113: 1 | I113: 1 | J113: 1 | K113: 1
B116: Proyección de ingresos año 1 | N116: Total | O116: Validación | P116: Año 2 | AB116: Año 3 | AN116: Año 4 | AZ116: Año 5 | BL116: Año 6 | BM116: Año 7 | BN116: Año 8 | BO116: Año 9 | BP116: Año 10
B117: =VLOOKUP(B118,$F$1:$G$12,2,0) -> 1 | C117: =IF(B117=12,1,B117+1) -> 2 | D117: =IF(C117=12,1,C117+1) -> 3 | E117: 4 | F117: 5 | G117: 6 | H117: 7 | I117: 8 | J117: 9 | K117: 10 | L117: 11 | M117: 12 | P117: =IF(M117=12,1,M117+1) -> 1 | Q117: =IF(P117=12,1,P117+1) -> 2 | R117: 3 | S117: 4 | T117: 5 | U117: 6 | V117: 7 | W117: 8 | X117: 9 | Y117: 10 | Z117: 11 | AA117: 12 | AB117: 1 | AC117: 2 | AD117: 3 | AE117: 4 | AF117: 5 | AG117: 6 | AH117: 7 | AI117: 8 | AJ117: 9 | AK117: 10 | AL117: 11 | AM117: 12 | AN117: 1 | AO117: 2 | AP117: 3 | AQ117: 4 | AR117: 5 | AS117: 6 | AT117: 7 | AU117: 8 | AV117: 9 | AW117: 10 | AX117: 11 | AY117: 12 | AZ117: 1 | BA117: 2 | BB117: 3 | BC117: 4 | BD117: 5 | BE117: 6 | BF117: 7 | BG117: 8 | BH117: 9 | BI117: 10 | BJ117: 11 | BK117: 12 | BL117: =+Datos!C60+6 -> 6 | BM117: =+BL117+1 -> 7 | BN117: =+BM117+1 -> 8 | BO117: =+BN117+1 -> 9 | BP117: =+BO117+1 -> 10
A118: Productos o servicios | B118: =+B61 -> Enero | C118: =+C61 -> Febrero | D118: Marzo | E118: Abril | F118: Mayo | G118: Junio | H118: Julio | I118: Agosto | J118: Septiembre | K118: Octubre | L118: Noviembre | M118: Diciembre | N118: Año 1 | P118: Enero | Q118: Febrero | R118: Marzo | S118: Abril | T118: Mayo | U118: Junio | V118: Julio | W118: Agosto | X118: Septiembre | Y118: Octubre | Z118: Noviembre | AA118: Diciembre | AB118: Enero | AC118: Febrero | AD118: Marzo | AE118: Abril | AF118: Mayo | AG118: Junio | AH118: Julio | AI118: Agosto | AJ118: Septiembre | AK118: Octubre | AL118: Noviembre | AM118: Diciembre | AN118: Enero | AO118: Febrero | AP118: Marzo | AQ118: Abril | AR118: Mayo | AS118: Junio | AT118: Julio | AU118: Agosto | AV118: Septiembre | AW118: Octubre | AX118: Noviembre | AY118: Diciembre | AZ118: Enero | BA118: Febrero | BB118: Marzo | BC118: Abril | BD118: Mayo | BE118: Junio | BF118: Julio | BG118: Agosto | BH118: Septiembre | BI118: Octubre | BJ118: Noviembre | BK118: Diciembre | BL118: 2027 | BM118: 2028 | BN118: 2029 | BO118: =+BO61 -> 2030 | BP118: =+BP61 -> 2031
A119: =IF(A99="","",A99) ->  | B119: =+B62*$B99 -> 0 | C119: =+C62*$B99 -> 0 | D119: 0 | E119: 0 | F119: 0 | G119: 0 | H119: 0 | I119: 0 | J119: 0 | K119: 0 | L119: 0 | M119: 0 | N119: =SUM(B119:M119) -> 0 | O119: =+O62 -> Coincide con la proyección del año 1 | P119: =+P62*$C99 -> 0 | Q119: =+Q62*$C99 -> 0 | R119: 0 | S119: 0 | T119: 0 | U119: 0 | V119: 0 | W119: 0 | X119: 0 | Y119: 0 | Z119: 0 | AA119: 0 | AB119: =+AB62*$D99 -> 0 | AC119: =+AC62*$D99 -> 0 | AD119: 0 | AE119: 0 | AF119: 0 | AG119: 0 | AH119: 0 | AI119: 0 | AJ119: 0 | AK119: 0 | AL119: 0 | AM119: 0 | AN119: =+AN62*$E99 -> 0 | AO119: =+AO62*$E99 -> 0 | AP119: 0 | AQ119: 0 | AR119: 0 | AS119: 0 | AT119: 0 | AU119: 0 | AV119: 0 | AW119: 0 | AX119: 0 | AY119: 0 | AZ119: =+AZ62*$F99 -> 0 | BA119: =+BA62*$F99 -> 0 | BB119: 0 | BC119: 0 | BD119: 0 | BE119: 0 | BF119: 0 | BG119: 0 | BH119: 0 | BI119: 0 | BJ119: 0 | BK119: 0 | BL119: =+BL62*G99 -> 0 | BM119: =+BM62*H99 -> 0 | BN119: =+BN62*I99 -> 0 | BO119: =+BO62*J99 -> 0 | BP119: =+BP62*K99 -> 0
A120: =IF(A100="","",A100) ->  | B120: =+B63*$B100 -> 0 | C120: 0 | D120: 0 | E120: 0 | F120: 0 | G120: 0 | H120: 0 | I120: 0 | J120: 0 | K120: 0 | L120: 0 | M120: 0 | N120: =SUM(B120:M120) -> 0 | O120: =+O63 -> Coincide con la proyección del año 1 | P120: =+P63*$C100 -> 0 | Q120: 0 | R120: 0 | S120: 0 | T120: 0 | U120: 0 | V120: 0 | W120: 0 | X120: 0 | Y120: 0 | Z120: 0 | AA120: 0 | AB120: =+AB63*$D100 -> 0 | AC120: 0 | AD120: 0 | AE120: 0 | AF120: 0 | AG120: 0 | AH120: 0 | AI120: 0 | AJ120: 0 | AK120: 0 | AL120: 0 | AM120: 0 | AN120: =+AN63*$E100 -> 0 | AO120: 0 | AP120: 0 | AQ120: 0 | AR120: 0 | AS120: 0 | AT120: 0 | AU120: 0 | AV120: 0 | AW120: 0 | AX120: 0 | AY120: 0 | AZ120: =+AZ63*$F100 -> 0 | BA120: 0 | BB120: 0 | BC120: 0 | BD120: 0 | BE120: 0 | BF120: 0 | BG120: 0 | BH120: 0 | BI120: 0 | BJ120: 0 | BK120: 0 | BL120: =+BL63*G100 -> 0 | BM120: 0 | BN120: 0 | BO120: 0 | BP120: 0
B121: 0 | C121: 0 | D121: 0 | E121: 0 | F121: 0 | G121: 0 | H121: 0 | I121: 0 | J121: 0 | K121: 0 | L121: 0 | M121: 0 | N121: 0 | O121: Coincide con la proyección del año 1 | P121: 0 | Q121: 0 | R121: 0 | S121: 0 | T121: 0 | U121: 0 | V121: 0 | W121: 0 | X121: 0 | Y121: 0 | Z121: 0 | AA121: 0 | AB121: 0 | AC121: 0 | AD121: 0 | AE121: 0 | AF121: 0 | AG121: 0 | AH121: 0 | AI121: 0 | AJ121: 0 | AK121: 0 | AL121: 0 | AM121: 0 | AN121: 0 | AO121: 0 | AP121: 0 | AQ121: 0 | AR121: 0 | AS121: 0 | AT121: 0 | AU121: 0 | AV121: 0 | AW121: 0 | AX121: 0 | AY121: 0 | AZ121: 0 | BA121: 0 | BB121: 0 | BC121: 0 | BD121: 0 | BE121: 0 | BF121: 0 | BG121: 0 | BH121: 0 | BI121: 0 | BJ121: 0 | BK121: 0 | BL121: 0 | BM121: 0 | BN121: 0 | BO121: 0 | BP121: 0
B122: 0 | C122: 0 | D122: 0 | E122: 0 | F122: 0 | G122: 0 | H122: 0 | I122: 0 | J122: 0 | K122: 0 | L122: 0 | M122: 0 | N122: 0 | O122: Coincide con la proyección del año 1 | P122: 0 | Q122: 0 | R122: 0 | S122: 0 | T122: 0 | U122: 0 | V122: 0 | W122: 0 | X122: 0 | Y122: 0 | Z122: 0 | AA122: 0 | AB122: 0 | AC122: 0 | AD122: 0 | AE122: 0 | AF122: 0 | AG122: 0 | AH122: 0 | AI122: 0 | AJ122: 0 | AK122: 0 | AL122: 0 | AM122: 0 | AN122: 0 | AO122: 0 | AP122: 0 | AQ122: 0 | AR122: 0 | AS122: 0 | AT122: 0 | AU122: 0 | AV122: 0 | AW122: 0 | AX122: 0 | AY122: 0 | AZ122: 0 | BA122: 0 | BB122: 0 | BC122: 0 | BD122: 0 | BE122: 0 | BF122: 0 | BG122: 0 | BH122: 0 | BI122: 0 | BJ122: 0 | BK122: 0 | BL122: 0 | BM122: 0 | BN122: 0 | BO122: 0 | BP122: 0
B123: 0 | C123: 0 | D123: 0 | E123: 0 | F123: 0 | G123: 0 | H123: 0 | I123: 0 | J123: 0 | K123: 0 | L123: 0 | M123: 0 | N123: 0 | O123: Coincide con la proyección del año 1 | P123: 0 | Q123: 0 | R123: 0 | S123: 0 | T123: 0 | U123: 0 | V123: 0 | W123: 0 | X123: 0 | Y123: 0 | Z123: 0 | AA123: 0 | AB123: 0 | AC123: 0 | AD123: 0 | AE123: 0 | AF123: 0 | AG123: 0 | AH123: 0 | AI123: 0 | AJ123: 0 | AK123: 0 | AL123: 0 | AM123: 0 | AN123: 0 | AO123: 0 | AP123: 0 | AQ123: 0 | AR123: 0 | AS123: 0 | AT123: 0 | AU123: 0 | AV123: 0 | AW123: 0 | AX123: 0 | AY123: 0 | AZ123: 0 | BA123: 0 | BB123: 0 | BC123: 0 | BD123: 0 | BE123: 0 | BF123: 0 | BG123: 0 | BH123: 0 | BI123: 0 | BJ123: 0 | BK123: 0 | BL123: 0 | BM123: 0 | BN123: 0 | BO123: 0 | BP123: 0
B124: 0 | C124: 0 | D124: 0 | E124: 0 | F124: 0 | G124: 0 | H124: 0 | I124: 0 | J124: 0 | K124: 0 | L124: 0 | M124: 0 | N124: 0 | O124: Coincide con la proyección del año 1 | P124: 0 | Q124: 0 | R124: 0 | S124: 0 | T124: 0 | U124: 0 | V124: 0 | W124: 0 | X124: 0 | Y124: 0 | Z124: 0 | AA124: 0 | AB124: 0 | AC124: 0 | AD124: 0 | AE124: 0 | AF124: 0 | AG124: 0 | AH124: 0 | AI124: 0 | AJ124: 0 | AK124: 0 | AL124: 0 | AM124: 0 | AN124: 0 | AO124: 0 | AP124: 0 | AQ124: 0 | AR124: 0 | AS124: 0 | AT124: 0 | AU124: 0 | AV124: 0 | AW124: 0 | AX124: 0 | AY124: 0 | AZ124: 0 | BA124: 0 | BB124: 0 | BC124: 0 | BD124: 0 | BE124: 0 | BF124: 0 | BG124: 0 | BH124: 0 | BI124: 0 | BJ124: 0 | BK124: 0 | BL124: 0 | BM124: 0 | BN124: 0 | BO124: 0 | BP124: 0
B125: 0 | C125: 0 | D125: 0 | E125: 0 | F125: 0 | G125: 0 | H125: 0 | I125: 0 | J125: 0 | K125: 0 | L125: 0 | M125: 0 | N125: 0 | O125: Coincide con la proyección del año 1 | P125: 0 | Q125: 0 | R125: 0 | S125: 0 | T125: 0 | U125: 0 | V125: 0 | W125: 0 | X125: 0 | Y125: 0 | Z125: 0 | AA125: 0 | AB125: 0 | AC125: 0 | AD125: 0 | AE125: 0 | AF125: 0 | AG125: 0 | AH125: 0 | AI125: 0 | AJ125: 0 | AK125: 0 | AL125: 0 | AM125: 0 | AN125: 0 | AO125: 0 | AP125: 0 | AQ125: 0 | AR125: 0 | AS125: 0 | AT125: 0 | AU125: 0 | AV125: 0 | AW125: 0 | AX125: 0 | AY125: 0 | AZ125: 0 | BA125: 0 | BB125: 0 | BC125: 0 | BD125: 0 | BE125: 0 | BF125: 0 | BG125: 0 | BH125: 0 | BI125: 0 | BJ125: 0 | BK125: 0 | BL125: 0 | BM125: 0 | BN125: 0 | BO125: 0 | BP125: 0
B126: 0 | C126: 0 | D126: 0 | E126: 0 | F126: 0 | G126: 0 | H126: 0 | I126: 0 | J126: 0 | K126: 0 | L126: 0 | M126: 0 | N126: 0 | O126: Coincide con la proyección del año 1 | P126: 0 | Q126: 0 | R126: 0 | S126: 0 | T126: 0 | U126: 0 | V126: 0 | W126: 0 | X126: 0 | Y126: 0 | Z126: 0 | AA126: 0 | AB126: 0 | AC126: 0 | AD126: 0 | AE126: 0 | AF126: 0 | AG126: 0 | AH126: 0 | AI126: 0 | AJ126: 0 | AK126: 0 | AL126: 0 | AM126: 0 | AN126: 0 | AO126: 0 | AP126: 0 | AQ126: 0 | AR126: 0 | AS126: 0 | AT126: 0 | AU126: 0 | AV126: 0 | AW126: 0 | AX126: 0 | AY126: 0 | AZ126: 0 | BA126: 0 | BB126: 0 | BC126: 0 | BD126: 0 | BE126: 0 | BF126: 0 | BG126: 0 | BH126: 0 | BI126: 0 | BJ126: 0 | BK126: 0 | BL126: 0 | BM126: 0 | BN126: 0 | BO126: 0 | BP126: 0
B127: 0 | C127: 0 | D127: 0 | E127: 0 | F127: 0 | G127: 0 | H127: 0 | I127: 0 | J127: 0 | K127: 0 | L127: 0 | M127: 0 | N127: 0 | O127: Coincide con la proyección del año 1 | P127: 0 | Q127: 0 | R127: 0 | S127: 0 | T127: 0 | U127: 0 | V127: 0 | W127: 0 | X127: 0 | Y127: 0 | Z127: 0 | AA127: 0 | AB127: 0 | AC127: 0 | AD127: 0 | AE127: 0 | AF127: 0 | AG127: 0 | AH127: 0 | AI127: 0 | AJ127: 0 | AK127: 0 | AL127: 0 | AM127: 0 | AN127: 0 | AO127: 0 | AP127: 0 | AQ127: 0 | AR127: 0 | AS127: 0 | AT127: 0 | AU127: 0 | AV127: 0 | AW127: 0 | AX127: 0 | AY127: 0 | AZ127: 0 | BA127: 0 | BB127: 0 | BC127: 0 | BD127: 0 | BE127: 0 | BF127: 0 | BG127: 0 | BH127: 0 | BI127: 0 | BJ127: 0 | BK127: 0 | BL127: 0 | BM127: 0 | BN127: 0 | BO127: 0 | BP127: 0
B128: 0 | C128: 0 | D128: 0 | E128: 0 | F128: 0 | G128: 0 | H128: 0 | I128: 0 | J128: 0 | K128: 0 | L128: 0 | M128: 0 | N128: 0 | O128: Coincide con la proyección del año 1 | P128: 0 | Q128: 0 | R128: 0 | S128: 0 | T128: 0 | U128: 0 | V128: 0 | W128: 0 | X128: 0 | Y128: 0 | Z128: 0 | AA128: 0 | AB128: 0 | AC128: 0 | AD128: 0 | AE128: 0 | AF128: 0 | AG128: 0 | AH128: 0 | AI128: 0 | AJ128: 0 | AK128: 0 | AL128: 0 | AM128: 0 | AN128: 0 | AO128: 0 | AP128: 0 | AQ128: 0 | AR128: 0 | AS128: 0 | AT128: 0 | AU128: 0 | AV128: 0 | AW128: 0 | AX128: 0 | AY128: 0 | AZ128: 0 | BA128: 0 | BB128: 0 | BC128: 0 | BD128: 0 | BE128: 0 | BF128: 0 | BG128: 0 | BH128: 0 | BI128: 0 | BJ128: 0 | BK128: 0 | BL128: 0 | BM128: 0 | BN128: 0 | BO128: 0 | BP128: 0
B129: 0 | C129: 0 | D129: 0 | E129: 0 | F129: 0 | G129: 0 | H129: 0 | I129: 0 | J129: 0 | K129: 0 | L129: 0 | M129: 0 | N129: 0 | O129: Coincide con la proyección del año 1 | P129: 0 | Q129: 0 | R129: 0 | S129: 0 | T129: 0 | U129: 0 | V129: 0 | W129: 0 | X129: 0 | Y129: 0 | Z129: 0 | AA129: 0 | AB129: 0 | AC129: 0 | AD129: 0 | AE129: 0 | AF129: 0 | AG129: 0 | AH129: 0 | AI129: 0 | AJ129: 0 | AK129: 0 | AL129: 0 | AM129: 0 | AN129: 0 | AO129: 0 | AP129: 0 | AQ129: 0 | AR129: 0 | AS129: 0 | AT129: 0 | AU129: 0 | AV129: 0 | AW129: 0 | AX129: 0 | AY129: 0 | AZ129: 0 | BA129: 0 | BB129: 0 | BC129: 0 | BD129: 0 | BE129: 0 | BF129: 0 | BG129: 0 | BH129: 0 | BI129: 0 | BJ129: 0 | BK129: 0 | BL129: 0 | BM129: 0 | BN129: 0 | BO129: 0 | BP129: 0
B130: 0 | C130: 0 | D130: 0 | E130: 0 | F130: 0 | G130: 0 | H130: 0 | I130: 0 | J130: 0 | K130: 0 | L130: 0 | M130: 0 | N130: 0 | O130: Coincide con la proyección del año 1 | P130: 0 | Q130: 0 | R130: 0 | S130: 0 | T130: 0 | U130: 0 | V130: 0 | W130: 0 | X130: 0 | Y130: 0 | Z130: 0 | AA130: 0 | AB130: 0 | AC130: 0 | AD130: 0 | AE130: 0 | AF130: 0 | AG130: 0 | AH130: 0 | AI130: 0 | AJ130: 0 | AK130: 0 | AL130: 0 | AM130: 0 | AN130: 0 | AO130: 0 | AP130: 0 | AQ130: 0 | AR130: 0 | AS130: 0 | AT130: 0 | AU130: 0 | AV130: 0 | AW130: 0 | AX130: 0 | AY130: 0 | AZ130: 0 | BA130: 0 | BB130: 0 | BC130: 0 | BD130: 0 | BE130: 0 | BF130: 0 | BG130: 0 | BH130: 0 | BI130: 0 | BJ130: 0 | BK130: 0 | BL130: 0 | BM130: 0 | BN130: 0 | BO130: 0 | BP130: 0
B131: 0 | C131: 0 | D131: 0 | E131: 0 | F131: 0 | G131: 0 | H131: 0 | I131: 0 | J131: 0 | K131: 0 | L131: 0 | M131: 0 | N131: 0 | O131: Coincide con la proyección del año 1 | P131: 0 | Q131: 0 | R131: 0 | S131: 0 | T131: 0 | U131: 0 | V131: 0 | W131: 0 | X131: 0 | Y131: 0 | Z131: 0 | AA131: 0 | AB131: 0 | AC131: 0 | AD131: 0 | AE131: 0 | AF131: 0 | AG131: 0 | AH131: 0 | AI131: 0 | AJ131: 0 | AK131: 0 | AL131: 0 | AM131: 0 | AN131: 0 | AO131: 0 | AP131: 0 | AQ131: 0 | AR131: 0 | AS131: 0 | AT131: 0 | AU131: 0 | AV131: 0 | AW131: 0 | AX131: 0 | AY131: 0 | AZ131: 0 | BA131: 0 | BB131: 0 | BC131: 0 | BD131: 0 | BE131: 0 | BF131: 0 | BG131: 0 | BH131: 0 | BI131: 0 | BJ131: 0 | BK131: 0 | BL131: 0 | BM131: 0 | BN131: 0 | BO131: 0 | BP131: 0
B132: 0 | C132: 0 | D132: 0 | E132: 0 | F132: 0 | G132: 0 | H132: 0 | I132: 0 | J132: 0 | K132: 0 | L132: 0 | M132: 0 | N132: 0 | O132: Coincide con la proyección del año 1 | P132: 0 | Q132: 0 | R132: 0 | S132: 0 | T132: 0 | U132: 0 | V132: 0 | W132: 0 | X132: 0 | Y132: 0 | Z132: 0 | AA132: 0 | AB132: 0 | AC132: 0 | AD132: 0 | AE132: 0 | AF132: 0 | AG132: 0 | AH132: 0 | AI132: 0 | AJ132: 0 | AK132: 0 | AL132: 0 | AM132: 0 | AN132: 0 | AO132: 0 | AP132: 0 | AQ132: 0 | AR132: 0 | AS132: 0 | AT132: 0 | AU132: 0 | AV132: 0 | AW132: 0 | AX132: 0 | AY132: 0 | AZ132: 0 | BA132: 0 | BB132: 0 | BC132: 0 | BD132: 0 | BE132: 0 | BF132: 0 | BG132: 0 | BH132: 0 | BI132: 0 | BJ132: 0 | BK132: 0 | BL132: 0 | BM132: 0 | BN132: 0 | BO132: 0 | BP132: 0
B133: 0 | C133: 0 | D133: 0 | E133: 0 | F133: 0 | G133: 0 | H133: 0 | I133: 0 | J133: 0 | K133: 0 | L133: 0 | M133: 0 | N133: 0 | O133: Coincide con la proyección del año 1 | P133: 0 | Q133: 0 | R133: 0 | S133: 0 | T133: 0 | U133: 0 | V133: 0 | W133: 0 | X133: 0 | Y133: 0 | Z133: 0 | AA133: 0 | AB133: 0 | AC133: 0 | AD133: 0 | AE133: 0 | AF133: 0 | AG133: 0 | AH133: 0 | AI133: 0 | AJ133: 0 | AK133: 0 | AL133: 0 | AM133: 0 | AN133: 0 | AO133: 0 | AP133: 0 | AQ133: 0 | AR133: 0 | AS133: 0 | AT133: 0 | AU133: 0 | AV133: 0 | AW133: 0 | AX133: 0 | AY133: 0 | AZ133: 0 | BA133: 0 | BB133: 0 | BC133: 0 | BD133: 0 | BE133: 0 | BF133: 0 | BG133: 0 | BH133: 0 | BI133: 0 | BJ133: 0 | BK133: 0 | BL133: 0 | BM133: 0 | BN133: 0 | BO133: 0 | BP133: 0
B134: =SUM(B119:B133) -> 0 | C134: =SUM(C119:C133) -> 0 | D134: 0 | E134: 0 | F134: 0 | G134: 0 | H134: 0 | I134: 0 | J134: 0 | K134: 0 | L134: 0 | M134: 0 | N134: 0 | P134: =SUM(P119:P133) -> 0 | Q134: 0 | R134: 0 | S134: 0 | T134: 0 | U134: 0 | V134: 0 | W134: 0 | X134: 0 | Y134: 0 | Z134: 0 | AA134: 0 | AB134: 0 | AC134: 0 | AD134: 0 | AE134: 0 | AF134: 0 | AG134: 0 | AH134: 0 | AI134: 0 | AJ134: 0 | AK134: 0 | AL134: 0 | AM134: 0 | AN134: 0 | AO134: 0 | AP134: 0 | AQ134: 0 | AR134: 0 | AS134: 0 | AT134: 0 | AU134: 0 | AV134: 0 | AW134: 0 | AX134: 0 | AY134: 0 | AZ134: 0 | BA134: 0 | BB134: 0 | BC134: 0 | BD134: 0 | BE134: 0 | BF134: 0 | BG134: 0 | BH134: 0 | BI134: 0 | BJ134: 0 | BK134: 0 | BL134: 0 | BM134: 0 | BN134: 0 | BO134: 0 | BP134: 0

Sheet Ventas % global estacionalidad (hidden)
E1: Si | F1: Enero | G1: 1 | H1: Enero
A2: ¿Desea aplicar estacionalidad de ventas? | B2: Si | E2: No | F2: Febrero | G2: 2 | H2: Febrero
F3: Marzo | G3: 3 | H3: Marzo
A4: Estacionalidad total para ventas | F4: Abril | G4: 4 | H4: Abril
A5: Enero | B5: 0 | F5: Mayo | G5: 5 | H5: Mayo
A6: Febrero | B6: 0.1 | F6: Junio | G6: 6 | H6: Junio
A7: Marzo | B7: 0.1 | F7: Julio | G7: 7 | H7: Julio
A8: Abril | B8: 0.1 | F8: Agosto | G8: 8 | H8: Agosto
A9: Mayo | B9: 0.1 | F9: Septiembre | G9: 9 | H9: Septiembre
A10: Junio | B10: 0.1 | F10: Octubre | G10: 10 | H10: Octubre
A11: Julio | B11: 0.1 | F11: Noviembre | G11: 11 | H11: Noviembre
A12: Agosto | B12: 0.1 | F12: Diciembre | G12: 12 | H12: Diciembre
A13: Septiembre | B13: 0.1
A14: Octubre | B14: 0.1
A15: Noviembre | B15: 0.1
A16: Diciembre | B16: 0
B17: =SUM(B5:B16) -> 1
A18: PROYECCIÓN DE VENTAS CON INDICADOR DE CRECIMIENTO GLOBAL Y ESTACIONALIDAD DEFINIDA
B20: Proyección de ingresos | M20: =+Datos!C5 -> 5
A21: Productos o servicios | B21: Año 1 | C21: Año 2 | D21: Año 3 | E21: Año 4 | F21: Año 5 | G21: Año 6 | H21: Año 7 | I21: Año 8 | J21: Año 9 | K21: Año 10
C22: =IF($M$20>=2,B22*(1+Datos!D$15),0) -> 0 | D22: =IF($M$20>=3,C22*(1+Datos!E$15),0) -> 0 | E22: =IF($M$20>=4,D22*(1+Datos!F$15),0) -> 0 | F22: =IF($M$20>=5,E22*(1+Datos!G$15),0) -> 0 | G22: =IF($M$20>=6,F22*(1+Datos!H$15),0) -> 0 | H22: =IF($M$20>=7,G22*(1+Datos!#REF!),0) -> 0 | I22: =IF($M$20>=8,H22*(1+Datos!#REF!),0) -> 0 | J22: =IF($M$20>=9,I22*(1+Datos!#REF!),0) -> 0 | K22: =IF($M$20>=10,J22*(1+Datos!#REF!),0) -> 0
C23: =IF($M$20>=2,B23*(1+Datos!D$15),0) -> 0 | D23: =IF($M$20>=3,C23*(1+Datos!E$15),0) -> 0 | E23: =IF($M$20>=4,D23*(1+Datos!F$15),0) -> 0 | F23: =IF($M$20>=5,E23*(1+Datos!G$15),0) -> 0 | G23: =IF($M$20>=6,F23*(1+Datos!H$15),0) -> 0 | H23: =IF($M$20>=7,G23*(1+Datos!#REF!),0) -> 0 | I23: =IF($M$20>=8,H23*(1+Datos!#REF!),0) -> 0 | J23: =IF($M$20>=9,I23*(1+Datos!#REF!),0) -> 0 | K23: =IF($M$20>=10,J23*(1+Datos!#REF!),0) -> 0
C24: =IF($M$20>=2,B24*(1+Datos!D$15),0) -> 0 | D24: =IF($M$20>=3,C24*(1+Datos!E$15),0) -> 0 | E24: =IF($M$20>=4,D24*(1+Datos!F$15),0) -> 0 | F24: =IF($M$20>=5,E24*(1+Datos!G$15),0) -> 0 | G24: =IF($M$20>=6,F24*(1+Datos!H$15),0) -> 0 | H24: =IF($M$20>=7,G24*(1+Datos!#REF!),0) -> 0 | I24: =IF($M$20>=8,H24*(1+Datos!#REF!),0) -> 0 | J24: =IF($M$20>=9,I24*(1+Datos!#REF!),0) -> 0 | K24: =IF($M$20>=10,J24*(1+Datos!#REF!),0) -> 0
C25: =IF($M$20>=2,B25*(1+Datos!D$15),0) -> 0 | D25: =IF($M$20>=3,C25*(1+Datos!E$15),0) -> 0 | E25: =IF($M$20>=4,D25*(1+Datos!F$15),0) -> 0 | F25: =IF($M$20>=5,E25*(1+Datos!G$15),0) -> 0 | G25: =IF($M$20>=6,F25*(1+Datos!H$15),0) -> 0 | H25: =IF($M$20>=7,G25*(1+Datos!#REF!),0) -> 0 | I25: =IF($M$20>=8,H25*(1+Datos!#REF!),0) -> 0 | J25: =IF($M$20>=9,I25*(1+Datos!#REF!),0) -> 0 | K25: =IF($M$20>=10,J25*(1+Datos!#REF!),0) -> 0
C26: =IF($M$20>=2,B26*(1+Datos!D$15),0) -> 0 | D26: =IF($M$20>=3,C26*(1+Datos!E$15),0) -> 0 | E26: =IF($M$20>=4,D26*(1+Datos!F$15),0) -> 0 | F26: =IF($M$20>=5,E26*(1+Datos!G$15),0) -> 0 | G26: =IF($M$20>=6,F26*(1+Datos!H$15),0) -> 0 | H26: =IF($M$20>=7,G26*(1+Datos!#REF!),0) -> 0 | I26: =IF($M$20>=8,H26*(1+Datos!#REF!),0) -> 0 | J26: =IF($M$20>=9,I26*(1+Datos!#REF!),0) -> 0 | K26: =IF($M$20>=10,J26*(1+Datos!#REF!),0) -> 0
C27: =IF($M$20>=2,B27*(1+Datos!D$15),0) -> 0 | D27: =IF($M$20>=3,C27*(1+Datos!E$15),0) -> 0 | E27: =IF($M$20>=4,D27*(1+Datos!F$15),0) -> 0 | F27: =IF($M$20>=5,E27*(1+Datos!G$15),0) -> 0 | G27: =IF($M$20>=6,F27*(1+Datos!H$15),0) -> 0 | H27: =IF($M$20>=7,G27*(1+Datos!#REF!),0) -> 0 | I27: =IF($M$20>=8,H27*(1+Datos!#REF!),0) -> 0 | J27: =IF($M$20>=9,I27*(1+Datos!#REF!),0) -> 0 | K27: =IF($M$20>=10,J27*(1+Datos!#REF!),0) -> 0
C28: =IF($M$20>=2,B28*(1+Datos!D$15),0) -> 0 | D28: =IF($M$20>=3,C28*(1+Datos!E$15),0) -> 0 | E28: =IF($M$20>=4,D28*(1+Datos!F$15),0) -> 0 | F28: =IF($M$20>=5,E28*(1+Datos!G$15),0) -> 0 | G28: =IF($M$20>=6,F28*(1+Datos!H$15),0) -> 0 | H28: =IF($M$20>=7,G28*(1+Datos!#REF!),0) -> 0 | I28: =IF($M$20>=8,H28*(1+Datos!#REF!),0) -> 0 | J28: =IF($M$20>=9,I28*(1+Datos!#REF!),0) -> 0 | K28: =IF($M$20>=10,J28*(1+Datos!#REF!),0) -> 0
C29: =IF($M$20>=2,B29*(1+Datos!D$15),0) -> 0 | D29: =IF($M$20>=3,C29*(1+Datos!E$15),0) -> 0 | E29: =IF($M$20>=4,D29*(1+Datos!F$15),0) -> 0 | F29: =IF($M$20>=5,E29*(1+Datos!G$15),0) -> 0 | G29: =IF($M$20>=6,F29*(1+Datos!H$15),0) -> 0 | H29: =IF($M$20>=7,G29*(1+Datos!#REF!),0) -> 0 | I29: =IF($M$20>=8,H29*(1+Datos!#REF!),0) -> 0 | J29: =IF($M$20>=9,I29*(1+Datos!#REF!),0) -> 0 | K29: =IF($M$20>=10,J29*(1+Datos!#REF!),0) -> 0
C30: =IF($M$20>=2,B30*(1+Datos!D$15),0) -> 0 | D30: =IF($M$20>=3,C30*(1+Datos!E$15),0) -> 0 | E30: =IF($M$20>=4,D30*(1+Datos!F$15),0) -> 0 | F30: =IF($M$20>=5,E30*(1+Datos!G$15),0) -> 0 | G30: =IF($M$20>=6,F30*(1+Datos!H$15),0) -> 0 | H30: =IF($M$20>=7,G30*(1+Datos!#REF!),0) -> 0 | I30: =IF($M$20>=8,H30*(1+Datos!#REF!),0) -> 0 | J30: =IF($M$20>=9,I30*(1+Datos!#REF!),0) -> 0 | K30: =IF($M$20>=10,J30*(1+Datos!#REF!),0) -> 0
C31: =IF($M$20>=2,B31*(1+Datos!D$15),0) -> 0 | D31: =IF($M$20>=3,C31*(1+Datos!E$15),0) -> 0 | E31: =IF($M$20>=4,D31*(1+Datos!F$15),0) -> 0 | F31: =IF($M$20>=5,E31*(1+Datos!G$15),0) -> 0 | G31: =IF($M$20>=6,F31*(1+Datos!H$15),0) -> 0 | H31: =IF($M$20>=7,G31*(1+Datos!#REF!),0) -> 0 | I31: =IF($M$20>=8,H31*(1+Datos!#REF!),0) -> 0 | J31: =IF($M$20>=9,I31*(1+Datos!#REF!),0) -> 0 | K31: =IF($M$20>=10,J31*(1+Datos!#REF!),0) -> 0
C32: =IF($M$20>=2,B32*(1+Datos!D$15),0) -> 0 | D32: =IF($M$20>=3,C32*(1+Datos!E$15),0) -> 0 | E32: =IF($M$20>=4,D32*(1+Datos!F$15),0) -> 0 | F32: =IF($M$20>=5,E32*(1+Datos!G$15),0) -> 0 | G32: =IF($M$20>=6,F32*(1+Datos!H$15),0) -> 0 | H32: =IF($M$20>=7,G32*(1+Datos!#REF!),0) -> 0 | I32: =IF($M$20>=8,H32*(1+Datos!#REF!),0) -> 0 | J32: =IF($M$20>=9,I32*(1+Datos!#REF!),0) -> 0 | K32: =IF($M$20>=10,J32*(1+Datos!#REF!),0) -> 0
C33: =IF($M$20>=2,B33*(1+Datos!D$15),0) -> 0 | D33: =IF($M$20>=3,C33*(1+Datos!E$15),0) -> 0 | E33: =IF($M$20>=4,D33*(1+Datos!F$15),0) -> 0 | F33: =IF($M$20>=5,E33*(1+Datos!G$15),0) -> 0 | G33: =IF($M$20>=6,F33*(1+Datos!H$15),0) -> 0 | H33: =IF($M$20>=7,G33*(1+Datos!#REF!),0) -> 0 | I33: =IF($M$20>=8,H33*(1+Datos!#REF!),0) -> 0 | J33: =IF($M$20>=9,I33*(1+Datos!#REF!),0) -> 0 | K33: =IF($M$20>=10,J33*(1+Datos!#REF!),0) -> 0
C34: =IF($M$20>=2,B34*(1+Datos!D$15),0) -> 0 | D34: =IF($M$20>=3,C34*(1+Datos!E$15),0) -> 0 | E34: =IF($M$20>=4,D34*(1+Datos!F$15),0) -> 0 | F34: =IF($M$20>=5,E34*(1+Datos!G$15),0) -> 0 | G34: =IF($M$20>=6,F34*(1+Datos!H$15),0) -> 0 | H34: =IF($M$20>=7,G34*(1+Datos!#REF!),0) -> 0 | I34: =IF($M$20>=8,H34*(1+Datos!#REF!),0) -> 0 | J34: =IF($M$20>=9,I34*(1+Datos!#REF!),0) -> 0 | K34: =IF($M$20>=10,J34*(1+Datos!#REF!),0) -> 0
C35: =IF($M$20>=2,B35*(1+Datos!D$15),0) -> 0 | D35: =IF($M$20>=3,C35*(1+Datos!E$15),0) -> 0 | E35: =IF($M$20>=4,D35*(1+Datos!F$15),0) -> 0 | F35: =IF($M$20>=5,E35*(1+Datos!G$15),0) -> 0 | G35: =IF($M$20>=6,F35*(1+Datos!H$15),0) -> 0 | H35: =IF($M$20>=7,G35*(1+Datos!#REF!),0) -> 0 | I35: =IF($M$20>=8,H35*(1+Datos!#REF!),0) -> 0 | J35: =IF($M$20>=9,I35*(1+Datos!#REF!),0) -> 0 | K35: =IF($M$20>=10,J35*(1+Datos!#REF!),0) -> 0
C36: =IF($M$20>=2,B36*(1+Datos!D$15),0) -> 0 | D36: =IF($M$20>=3,C36*(1+Datos!E$15),0) -> 0 | E36: =IF($M$20>=4,D36*(1+Datos!F$15),0) -> 0 | F36: =IF($M$20>=5,E36*(1+Datos!G$15),0) -> 0 | G36: =IF($M$20>=6,F36*(1+Datos!H$15),0) -> 0 | H36: =IF($M$20>=7,G36*(1+Datos!#REF!),0) -> 0 | I36: =IF($M$20>=8,H36*(1+Datos!#REF!),0) -> 0 | J36: =IF($M$20>=9,I36*(1+Datos!#REF!),0) -> 0 | K36: =IF($M$20>=10,J36*(1+Datos!#REF!),0) -> 0
B39: Variación anual del ingreso
A40: Productos o servicios | B40: Año 1 | C40: Año 2 | D40: Año 3 | E40: Año 4 | F40: Año 5 | G40: Año 6 | H40: Año 7 | I40: Año 8 | J40: Año 9 | K40: Año 10
A41: =IF(A22="","",A22) ->  | B41: N/A | C41: =IFERROR((C22/B22-1),0) -> 0 | D41: =IFERROR((D22/C22-1),0) -> 0 | E41: 0 | F41: 0 | G41: 0 | H41: 0 | I41: 0 | J41: 0 | K41: 0
A42: =IF(A23="","",A23) ->  | B42: N/A | C42: =IFERROR((C23/B23-1),0) -> 0 | D42: 0 | E42: 0 | F42: 0 | G42: 0 | H42: 0 | I42: 0 | J42: 0 | K42: 0
B43: N/A | C43: =IFERROR((C24/B24-1),0) -> 0 | D43: 0 | E43: 0 | F43: 0 | G43: 0 | H43: 0 | I43: 0 | J43: 0 | K43: 0
B44: N/A | C44: =IFERROR((C25/B25-1),0) -> 0 | D44: 0 | E44: 0 | F44: 0 | G44: 0 | H44: 0 | I44: 0 | J44: 0 | K44: 0
B45: N/A | C45: =IFERROR((C26/B26-1),0) -> 0 | D45: 0 | E45: 0 | F45: 0 | G45: 0 | H45: 0 | I45: 0 | J45: 0 | K45: 0
B46: N/A | C46: =IFERROR((C27/B27-1),0) -> 0 | D46: 0 | E46: 0 | F46: 0 | G46: 0 | H46: 0 | I46: 0 | J46: 0 | K46: 0
B47: N/A | C47: =IFERROR((C28/B28-1),0) -> 0 | D47: 0 | E47: 0 | F47: 0 | G47: 0 | H47: 0 | I47: 0 | J47: 0 | K47: 0
B48: N/A | C48: =IFERROR((C29/B29-1),0) -> 0 | D48: 0 | E48: 0 | F48: 0 | G48: 0 | H48: 0 | I48: 0 | J48: 0 | K48: 0
B49: N/A | C49: =IFERROR((C30/B30-1),0) -> 0 | D49: 0 | E49: 0 | F49: 0 | G49: 0 | H49: 0 | I49: 0 | J49: 0 | K49: 0
B50: N/A | C50: =IFERROR((C31/B31-1),0) -> 0 | D50: 0 | E50: 0 | F50: 0 | G50: 0 | H50: 0 | I50: 0 | J50: 0 | K50: 0
B51: N/A | C51: =IFERROR((C32/B32-1),0) -> 0 | D51: 0 | E51: 0 | F51: 0 | G51: 0 | H51: 0 | I51: 0 | J51: 0 | K51: 0
B52: N/A | C52: =IFERROR((C33/B33-1),0) -> 0 | D52: 0 | E52: 0 | F52: 0 | G52: 0 | H52: 0 | I52: 0 | J52: 0 | K52: 0
B53: N/A | C53: =IFERROR((C34/B34-1),0) -> 0 | D53: 0 | E53: 0 | F53: 0 | G53: 0 | H53: 0 | I53: 0 | J53: 0 | K53: 0
B54: N/A | C54: =IFERROR((C35/B35-1),0) -> 0 | D54: 0 | E54: 0 | F54: 0 | G54: 0 | H54: 0 | I54: 0 | J54: 0 | K54: 0
B55: N/A | C55: =IFERROR((C36/B36-1),0) -> 0 | D55: 0 | E55: 0 | F55: 0 | G55: 0 | H55: 0 | I55: 0 | J55: 0 | K55: 0
B59: Distribución del ingreso | N59: Total | O59: Validación | P59: Año 2 | AB59: Año 3 | AN59: Año 4 | AZ59: Año 5 | BL59: Año 6 | BM59: Año 7 | BN59: Año 8 | BO59: Año 9 | BP59: Año 10
B60: =VLOOKUP(B61,$F$1:$G$12,2,0) -> 1 | C60: =IF(B60=12,1,B60+1) -> 2 | D60: =IF(C60=12,1,C60+1) -> 3 | E60: 4 | F60: 5 | G60: 6 | H60: 7 | I60: 8 | J60: 9 | K60: 10 | L60: 11 | M60: 12 | P60: =IF(M60=12,1,M60+1) -> 1 | Q60: 2 | R60: 3 | S60: 4 | T60: 5 | U60: 6 | V60: 7 | W60: 8 | X60: 9 | Y60: 10 | Z60: 11 | AA60: 12 | AB60: 1 | AC60: 2 | AD60: 3 | AE60: 4 | AF60: 5 | AG60: 6 | AH60: 7 | AI60: 8 | AJ60: 9 | AK60: 10 | AL60: 11 | AM60: 12 | AN60: 1 | AO60: 2 | AP60: 3 | AQ60: 4 | AR60: 5 | AS60: 6 | AT60: 7 | AU60: 8 | AV60: 9 | AW60: 10 | AX60: 11 | AY60: 12 | AZ60: 1 | BA60: 2 | BB60: 3 | BC60: 4 | BD60: 5 | BE60: 6 | BF60: 7 | BG60: 8 | BH60: 9 | BI60: 10 | BJ60: 11 | BK60: 12 | BL60: =+Datos!C6+6 -> 2027 | BM60: =+BL60+1 -> 2028 | BN60: =+BM60+1 -> 2029 | BO60: =+BN60+1 -> 2030 | BP60: =+BO60+1 -> 2031
A61: Productos o servicios | B61: =+Datos!C7 -> Enero | C61: =VLOOKUP(C60,$G$1:$H$12,2,0) -> Febrero | D61: Marzo | E61: Abril | F61: Mayo | G61: Junio | H61: Julio | I61: Agosto | J61: Septiembre | K61: Octubre | L61: Noviembre | M61: Diciembre | N61: Año 1 | P61: =VLOOKUP(P60,$G$1:$H$12,2,0) -> Enero | Q61: Febrero | R61: Marzo | S61: Abril | T61: Mayo | U61: Junio | V61: Julio | W61: Agosto | X61: Septiembre | Y61: Octubre | Z61: Noviembre | AA61: Diciembre | AB61: Enero | AC61: Febrero | AD61: Marzo | AE61: Abril | AF61: Mayo | AG61: Junio | AH61: Julio | AI61: Agosto | AJ61: Septiembre | AK61: Octubre | AL61: Noviembre | AM61: Diciembre | AN61: Enero | AO61: Febrero | AP61: Marzo | AQ61: Abril | AR61: Mayo | AS61: Junio | AT61: Julio | AU61: Agosto | AV61: Septiembre | AW61: Octubre | AX61: Noviembre | AY61: Diciembre | AZ61: Enero | BA61: Febrero | BB61: Marzo | BC61: Abril | BD61: Mayo | BE61: Junio | BF61: Julio | BG61: Agosto | BH61: Septiembre | BI61: Octubre | BJ61: Noviembre | BK61: Diciembre | BL61: =+BL60 -> 2027 | BM61: =+BM60 -> 2028 | BN61: =+BN60 -> 2029 | BO61: =+BO60 -> 2030 | BP61: =+BP60 -> 2031
A62: =IF(A41="","",A41) ->  | B62: =+$B22*B80 -> 0 | C62: =+$B22*C80 -> 0 | D62: 0 | E62: 0 | F62: 0 | G62: 0 | H62: 0 | I62: 0 | J62: 0 | K62: 0 | L62: 0 | M62: 0 | N62: =SUM(B62:M62) -> 0 | O62: =IF(N62<>B22,"No coincide con la proyección del año 1","Coincide con la proyección del año 1") -> Coincide con la proyección del año 1 | P62: =+$C22*B80 -> 0 | Q62: =+$C22*C80 -> 0 | R62: 0 | S62: 0 | T62: 0 | U62: 0 | V62: 0 | W62: 0 | X62: 0 | Y62: 0 | Z62: 0 | AA62: 0 | AB62: =+$D22*B80 -> 0 | AC62: =+$D22*C80 -> 0 | AD62: 0 | AE62: 0 | AF62: 0 | AG62: 0 | AH62: 0 | AI62: 0 | AJ62: 0 | AK62: 0 | AL62: 0 | AM62: 0 | AN62: =+$E22*B80 -> 0 | AO62: =+$E22*C80 -> 0 | AP62: 0 | AQ62: 0 | AR62: 0 | AS62: 0 | AT62: 0 | AU62: 0 | AV62: 0 | AW62: 0 | AX62: 0 | AY62: 0 | AZ62: =+$F22*B80 -> 0 | BA62: =+$F22*C80 -> 0 | BB62: 0 | BC62: 0 | BD62: 0 | BE62: 0 | BF62: 0 | BG62: 0 | BH62: 0 | BI62: 0 | BJ62: 0 | BK62: 0 | BL62: =+G22 -> 0 | BM62: =+H22 -> 0 | BN62: 0 | BO62: 0 | BP62: 0
A63: =IF(A42="","",A42) ->  | B63: =+$B23*B81 -> 0 | C63: 0 | D63: 0 | E63: 0 | F63: 0 | G63: 0 | H63: 0 | I63: 0 | J63: 0 | K63: 0 | L63: 0 | M63: 0 | N63: =SUM(B63:M63) -> 0 | O63: =IF(N63<>B23,"No coincide con la proyección del año 1","Coincide con la proyección del año 1") -> Coincide con la proyección del año 1 | P63: =+$C23*B81 -> 0 | Q63: 0 | R63: 0 | S63: 0 | T63: 0 | U63: 0 | V63: 0 | W63: 0 | X63: 0 | Y63: 0 | Z63: 0 | AA63: 0 | AB63: =+$D23*B81 -> 0 | AC63: 0 | AD63: 0 | AE63: 0 | AF63: 0 | AG63: 0 | AH63: 0 | AI63: 0 | AJ63: 0 | AK63: 0 | AL63: 0 | AM63: 0 | AN63: =+$E23*B81 -> 0 | AO63: 0 | AP63: 0 | AQ63: 0 | AR63: 0 | AS63: 0 | AT63: 0 | AU63: 0 | AV63: 0 | AW63: 0 | AX63: 0 | AY63: 0 | AZ63: =+$F23*B81 -> 0 | BA63: 0 | BB63: 0 | BC63: 0 | BD63: 0 | BE63: 0 | BF63: 0 | BG63: 0 | BH63: 0 | BI63: 0 | BJ63: 0 | BK63: 0 | BL63: =+G23 -> 0 | BM63: 0 | BN63: 0 | BO63: 0 | BP63: 0
B64: =+$B24*B82 -> 0 | C64: 0 | D64: 0 | E64: 0 | F64: 0 | G64: 0 | H64: 0 | I64: 0 | J64: 0 | K64: 0 | L64: 0 | M64: 0 | N64: 0 | O64: Coincide con la proyección del año 1 | P64: 0 | Q64: 0 | R64: 0 | S64: 0 | T64: 0 | U64: 0 | V64: 0 | W64: 0 | X64: 0 | Y64: 0 | Z64: 0 | AA64: 0 | AB64: 0 | AC64: 0 | AD64: 0 | AE64: 0 | AF64: 0 | AG64: 0 | AH64: 0 | AI64: 0 | AJ64: 0 | AK64: 0 | AL64: 0 | AM64: 0 | AN64: 0 | AO64: 0 | AP64: 0 | AQ64: 0 | AR64: 0 | AS64: 0 | AT64: 0 | AU64: 0 | AV64: 0 | AW64: 0 | AX64: 0 | AY64: 0 | AZ64: 0 | BA64: 0 | BB64: 0 | BC64: 0 | BD64: 0 | BE64: 0 | BF64: 0 | BG64: 0 | BH64: 0 | BI64: 0 | BJ64: 0 | BK64: 0 | BL64: 0 | BM64: 0 | BN64: 0 | BO64: 0 | BP64: 0
B65: =+$B25*B83 -> 0 | C65: 0 | D65: 0 | E65: 0 | F65: 0 | G65: 0 | H65: 0 | I65: 0 | J65: 0 | K65: 0 | L65: 0 | M65: 0 | N65: 0 | O65: Coincide con la proyección del año 1 | P65: 0 | Q65: 0 | R65: 0 | S65: 0 | T65: 0 | U65: 0 | V65: 0 | W65: 0 | X65: 0 | Y65: 0 | Z65: 0 | AA65: 0 | AB65: 0 | AC65: 0 | AD65: 0 | AE65: 0 | AF65: 0 | AG65: 0 | AH65: 0 | AI65: 0 | AJ65: 0 | AK65: 0 | AL65: 0 | AM65: 0 | AN65: 0 | AO65: 0 | AP65: 0 | AQ65: 0 | AR65: 0 | AS65: 0 | AT65: 0 | AU65: 0 | AV65: 0 | AW65: 0 | AX65: 0 | AY65: 0 | AZ65: 0 | BA65: 0 | BB65: 0 | BC65: 0 | BD65: 0 | BE65: 0 | BF65: 0 | BG65: 0 | BH65: 0 | BI65: 0 | BJ65: 0 | BK65: 0 | BL65: 0 | BM65: 0 | BN65: 0 | BO65: 0 | BP65: 0
B66: =+$B26*B84 -> 0 | C66: 0 | D66: 0 | E66: 0 | F66: 0 | G66: 0 | H66: 0 | I66: 0 | J66: 0 | K66: 0 | L66: 0 | M66: 0 | N66: 0 | O66: Coincide con la proyección del año 1 | P66: 0 | Q66: 0 | R66: 0 | S66: 0 | T66: 0 | U66: 0 | V66: 0 | W66: 0 | X66: 0 | Y66: 0 | Z66: 0 | AA66: 0 | AB66: 0 | AC66: 0 | AD66: 0 | AE66: 0 | AF66: 0 | AG66: 0 | AH66: 0 | AI66: 0 | AJ66: 0 | AK66: 0 | AL66: 0 | AM66: 0 | AN66: 0 | AO66: 0 | AP66: 0 | AQ66: 0 | AR66: 0 | AS66: 0 | AT66: 0 | AU66: 0 | AV66: 0 | AW66: 0 | AX66: 0 | AY66: 0 | AZ66: 0 | BA66: 0 | BB66: 0 | BC66: 0 | BD66: 0 | BE66: 0 | BF66: 0 | BG66: 0 | BH66: 0 | BI66: 0 | BJ66: 0 | BK66: 0 | BL66: 0 | BM66: 0 | BN66: 0 | BO66: 0 | BP66: 0
B67: =+$B27*B85 -> 0 | C67: 0 | D67: 0 | E67: 0 | F67: 0 | G67: 0 | H67: 0 | I67: 0 | J67: 0 | K67: 0 | L67: 0 | M67: 0 | N67: 0 | O67: Coincide con la proyección del año 1 | P67: 0 | Q67: 0 | R67: 0 | S67: 0 | T67: 0 | U67: 0 | V67: 0 | W67: 0 | X67: 0 | Y67: 0 | Z67: 0 | AA67: 0 | AB67: 0 | AC67: 0 | AD67: 0 | AE67: 0 | AF67: 0 | AG67: 0 | AH67: 0 | AI67: 0 | AJ67: 0 | AK67: 0 | AL67: 0 | AM67: 0 | AN67: 0 | AO67: 0 | AP67: 0 | AQ67: 0 | AR67: 0 | AS67: 0 | AT67: 0 | AU67: 0 | AV67: 0 | AW67: 0 | AX67: 0 | AY67: 0 | AZ67: 0 | BA67: 0 | BB67: 0 | BC67: 0 | BD67: 0 | BE67: 0 | BF67: 0 | BG67: 0 | BH67: 0 | BI67: 0 | BJ67: 0 | BK67: 0 | BL67: 0 | BM67: 0 | BN67: 0 | BO67: 0 | BP67: 0
B68: =+$B28*B86 -> 0 | C68: 0 | D68: 0 | E68: 0 | F68: 0 | G68: 0 | H68: 0 | I68: 0 | J68: 0 | K68: 0 | L68: 0 | M68: 0 | N68: 0 | O68: Coincide con la proyección del año 1 | P68: 0 | Q68: 0 | R68: 0 | S68: 0 | T68: 0 | U68: 0 | V68: 0 | W68: 0 | X68: 0 | Y68: 0 | Z68: 0 | AA68: 0 | AB68: 0 | AC68: 0 | AD68: 0 | AE68: 0 | AF68: 0 | AG68: 0 | AH68: 0 | AI68: 0 | AJ68: 0 | AK68: 0 | AL68: 0 | AM68: 0 | AN68: 0 | AO68: 0 | AP68: 0 | AQ68: 0 | AR68: 0 | AS68: 0 | AT68: 0 | AU68: 0 | AV68: 0 | AW68: 0 | AX68: 0 | AY68: 0 | AZ68: 0 | BA68: 0 | BB68: 0 | BC68: 0 | BD68: 0 | BE68: 0 | BF68: 0 | BG68: 0 | BH68: 0 | BI68: 0 | BJ68: 0 | BK68: 0 | BL68: 0 | BM68: 0 | BN68: 0 | BO68: 0 | BP68: 0
B69: =+$B29*B87 -> 0 | C69: 0 | D69: 0 | E69: 0 | F69: 0 | G69: 0 | H69: 0 | I69: 0 | J69: 0 | K69: 0 | L69: 0 | M69: 0 | N69: 0 | O69: Coincide con la proyección del año 1 | P69: 0 | Q69: 0 | R69: 0 | S69: 0 | T69: 0 | U69: 0 | V69: 0 | W69: 0 | X69: 0 | Y69: 0 | Z69: 0 | AA69: 0 | AB69: 0 | AC69: 0 | AD69: 0 | AE69: 0 | AF69: 0 | AG69: 0 | AH69: 0 | AI69: 0 | AJ69: 0 | AK69: 0 | AL69: 0 | AM69: 0 | AN69: 0 | AO69: 0 | AP69: 0 | AQ69: 0 | AR69: 0 | AS69: 0 | AT69: 0 | AU69: 0 | AV69: 0 | AW69: 0 | AX69: 0 | AY69: 0 | AZ69: 0 | BA69: 0 | BB69: 0 | BC69: 0 | BD69: 0 | BE69: 0 | BF69: 0 | BG69: 0 | BH69: 0 | BI69: 0 | BJ69: 0 | BK69: 0 | BL69: 0 | BM69: 0 | BN69: 0 | BO69: 0 | BP69: 0
B70: =+$B30*B88 -> 0 | C70: 0 | D70: 0 | E70: 0 | F70: 0 | G70: 0 | H70: 0 | I70: 0 | J70: 0 | K70: 0 | L70: 0 | M70: 0 | N70: 0 | O70: Coincide con la proyección del año 1 | P70: 0 | Q70: 0 | R70: 0 | S70: 0 | T70: 0 | U70: 0 | V70: 0 | W70: 0 | X70: 0 | Y70: 0 | Z70: 0 | AA70: 0 | AB70: 0 | AC70: 0 | AD70: 0 | AE70: 0 | AF70: 0 | AG70: 0 | AH70: 0 | AI70: 0 | AJ70: 0 | AK70: 0 | AL70: 0 | AM70: 0 | AN70: 0 | AO70: 0 | AP70: 0 | AQ70: 0 | AR70: 0 | AS70: 0 | AT70: 0 | AU70: 0 | AV70: 0 | AW70: 0 | AX70: 0 | AY70: 0 | AZ70: 0 | BA70: 0 | BB70: 0 | BC70: 0 | BD70: 0 | BE70: 0 | BF70: 0 | BG70: 0 | BH70: 0 | BI70: 0 | BJ70: 0 | BK70: 0 | BL70: 0 | BM70: 0 | BN70: 0 | BO70: 0 | BP70: 0
B71: =+$B31*B89 -> 0 | C71: 0 | D71: 0 | E71: 0 | F71: 0 | G71: 0 | H71: 0 | I71: 0 | J71: 0 | K71: 0 | L71: 0 | M71: 0 | N71: 0 | O71: Coincide con la proyección del año 1 | P71: 0 | Q71: 0 | R71: 0 | S71: 0 | T71: 0 | U71: 0 | V71: 0 | W71: 0 | X71: 0 | Y71: 0 | Z71: 0 | AA71: 0 | AB71: 0 | AC71: 0 | AD71: 0 | AE71: 0 | AF71: 0 | AG71: 0 | AH71: 0 | AI71: 0 | AJ71: 0 | AK71: 0 | AL71: 0 | AM71: 0 | AN71: 0 | AO71: 0 | AP71: 0 | AQ71: 0 | AR71: 0 | AS71: 0 | AT71: 0 | AU71: 0 | AV71: 0 | AW71: 0 | AX71: 0 | AY71: 0 | AZ71: 0 | BA71: 0 | BB71: 0 | BC71: 0 | BD71: 0 | BE71: 0 | BF71: 0 | BG71: 0 | BH71: 0 | BI71: 0 | BJ71: 0 | BK71: 0 | BL71: 0 | BM71: 0 | BN71: 0 | BO71: 0 | BP71: 0
B72: =+$B32*B90 -> 0 | C72: 0 | D72: 0 | E72: 0 | F72: 0 | G72: 0 | H72: 0 | I72: 0 | J72: 0 | K72: 0 | L72: 0 | M72: 0 | N72: 0 | O72: Coincide con la proyección del año 1 | P72: 0 | Q72: 0 | R72: 0 | S72: 0 | T72: 0 | U72: 0 | V72: 0 | W72: 0 | X72: 0 | Y72: 0 | Z72: 0 | AA72: 0 | AB72: 0 | AC72: 0 | AD72: 0 | AE72: 0 | AF72: 0 | AG72: 0 | AH72: 0 | AI72: 0 | AJ72: 0 | AK72: 0 | AL72: 0 | AM72: 0 | AN72: 0 | AO72: 0 | AP72: 0 | AQ72: 0 | AR72: 0 | AS72: 0 | AT72: 0 | AU72: 0 | AV72: 0 | AW72: 0 | AX72: 0 | AY72: 0 | AZ72: 0 | BA72: 0 | BB72: 0 | BC72: 0 | BD72: 0 | BE72: 0 | BF72: 0 | BG72: 0 | BH72: 0 | BI72: 0 | BJ72: 0 | BK72: 0 | BL72: 0 | BM72: 0 | BN72: 0 | BO72: 0 | BP72: 0
B73: =+$B33*B91 -> 0 | C73: 0 | D73: 0 | E73: 0 | F73: 0 | G73: 0 | H73: 0 | I73: 0 | J73: 0 | K73: 0 | L73: 0 | M73: 0 | N73: 0 | O73: Coincide con la proyección del año 1 | P73: 0 | Q73: 0 | R73: 0 | S73: 0 | T73: 0 | U73: 0 | V73: 0 | W73: 0 | X73: 0 | Y73: 0 | Z73: 0 | AA73: 0 | AB73: 0 | AC73: 0 | AD73: 0 | AE73: 0 | AF73: 0 | AG73: 0 | AH73: 0 | AI73: 0 | AJ73: 0 | AK73: 0 | AL73: 0 | AM73: 0 | AN73: 0 | AO73: 0 | AP73: 0 | AQ73: 0 | AR73: 0 | AS73: 0 | AT73: 0 | AU73: 0 | AV73: 0 | AW73: 0 | AX73: 0 | AY73: 0 | AZ73: 0 | BA73: 0 | BB73: 0 | BC73: 0 | BD73: 0 | BE73: 0 | BF73: 0 | BG73: 0 | BH73: 0 | BI73: 0 | BJ73: 0 | BK73: 0 | BL73: 0 | BM73: 0 | BN73: 0 | BO73: 0 | BP73: 0
B74: =+$B34*B92 -> 0 | C74: 0 | D74: 0 | E74: 0 | F74: 0 | G74: 0 | H74: 0 | I74: 0 | J74: 0 | K74: 0 | L74: 0 | M74: 0 | N74: 0 | O74: Coincide con la proyección del año 1 | P74: 0 | Q74: 0 | R74: 0 | S74: 0 | T74: 0 | U74: 0 | V74: 0 | W74: 0 | X74: 0 | Y74: 0 | Z74: 0 | AA74: 0 | AB74: 0 | AC74: 0 | AD74: 0 | AE74: 0 | AF74: 0 | AG74: 0 | AH74: 0 | AI74: 0 | AJ74: 0 | AK74: 0 | AL74: 0 | AM74: 0 | AN74: 0 | AO74: 0 | AP74: 0 | AQ74: 0 | AR74: 0 | AS74: 0 | AT74: 0 | AU74: 0 | AV74: 0 | AW74: 0 | AX74: 0 | AY74: 0 | AZ74: 0 | BA74: 0 | BB74: 0 | BC74: 0 | BD74: 0 | BE74: 0 | BF74: 0 | BG74: 0 | BH74: 0 | BI74: 0 | BJ74: 0 | BK74: 0 | BL74: 0 | BM74: 0 | BN74: 0 | BO74: 0 | BP74: 0
B75: =+$B35*B93 -> 0 | C75: 0 | D75: 0 | E75: 0 | F75: 0 | G75: 0 | H75: 0 | I75: 0 | J75: 0 | K75: 0 | L75: 0 | M75: 0 | N75: 0 | O75: Coincide con la proyección del año 1 | P75: 0 | Q75: 0 | R75: 0 | S75: 0 | T75: 0 | U75: 0 | V75: 0 | W75: 0 | X75: 0 | Y75: 0 | Z75: 0 | AA75: 0 | AB75: 0 | AC75: 0 | AD75: 0 | AE75: 0 | AF75: 0 | AG75: 0 | AH75: 0 | AI75: 0 | AJ75: 0 | AK75: 0 | AL75: 0 | AM75: 0 | AN75: 0 | AO75: 0 | AP75: 0 | AQ75: 0 | AR75: 0 | AS75: 0 | AT75: 0 | AU75: 0 | AV75: 0 | AW75: 0 | AX75: 0 | AY75: 0 | AZ75: 0 | BA75: 0 | BB75: 0 | BC75: 0 | BD75: 0 | BE75: 0 | BF75: 0 | BG75: 0 | BH75: 0 | BI75: 0 | BJ75: 0 | BK75: 0 | BL75: 0 | BM75: 0 | BN75: 0 | BO75: 0 | BP75: 0
B76: =+$B36*B94 -> 0 | C76: 0 | D76: 0 | E76: 0 | F76: 0 | G76: 0 | H76: 0 | I76: 0 | J76: 0 | K76: 0 | L76: 0 | M76: 0 | N76: 0 | O76: Coincide con la proyección del año 1 | P76: 0 | Q76: 0 | R76: 0 | S76: 0 | T76: 0 | U76: 0 | V76: 0 | W76: 0 | X76: 0 | Y76: 0 | Z76: 0 | AA76: 0 | AB76: 0 | AC76: 0 | AD76: 0 | AE76: 0 | AF76: 0 | AG76: 0 | AH76: 0 | AI76: 0 | AJ76: 0 | AK76: 0 | AL76: 0 | AM76: 0 | AN76: 0 | AO76: 0 | AP76: 0 | AQ76: 0 | AR76: 0 | AS76: 0 | AT76: 0 | AU76: 0 | AV76: 0 | AW76: 0 | AX76: 0 | AY76: 0 | AZ76: 0 | BA76: 0 | BB76: 0 | BC76: 0 | BD76: 0 | BE76: 0 | BF76: 0 | BG76: 0 | BH76: 0 | BI76: 0 | BJ76: 0 | BK76: 0 | BL76: 0 | BM76: 0 | BN76: 0 | BO76: 0 | BP76: 0
A79: Estacionalidad de las ventas | B79: =+B61 -> Enero | C79: =+C61 -> Febrero | D79: Marzo | E79: Abril | F79: Mayo | G79: Junio | H79: Julio | I79: Agosto | J79: Septiembre | K79: Octubre | L79: Noviembre | M79: Diciembre | N79: Validación
A80: =IF(A62="","",A62) ->  | B80: 0 | C80: 0 | D80: 0 | E80: 0 | F80: 0 | G80: 0 | H80: 0 | I80: 0 | J80: 0 | K80: 0 | L80: 0 | M80: 0 | N80: =SUM(B80:M80) -> 0 | O80: =IF(N80<>100%,"La distribución de estacionalidad debe sumar 100%","Distribución cuadrada") -> La distribución de estacionalidad debe sumar 100%
A81: =IF(A63="","",A63) ->  | B81: 0 | C81: 0 | D81: 0 | E81: 0 | F81: 0 | G81: 0 | H81: 0 | I81: 0 | J81: 0 | K81: 0 | L81: 0 | M81: 0 | N81: =SUM(B81:M81) -> 0 | O81: =IF(N81<>100%,"La distribución de estacionalidad debe sumar 100%","Distribución cuadrada") -> La distribución de estacionalidad debe sumar 100%
B82: 0 | C82: 0 | D82: 0 | E82: 0 | F82: 0 | G82: 0 | H82: 0 | I82: 0 | J82: 0 | K82: 0 | L82: 0 | M82: 0 | N82: 0 | O82: La distribución de estacionalidad debe sumar 100%
B83: 0 | C83: 0 | D83: 0 | E83: 0 | F83: 0 | G83: 0 | H83: 0 | I83: 0 | J83: 0 | K83: 0 | L83: 0 | M83: 0 | N83: 0 | O83: La distribución de estacionalidad debe sumar 100%
B84: 0 | C84: 0 | D84: 0 | E84: 0 | F84: 0 | G84: 0 | H84: 0 | I84: 0 | J84: 0 | K84: 0 | L84: 0 | M84: 0 | N84: 0 | O84: La distribución de estacionalidad debe sumar 100%
B85: 0 | C85: 0 | D85: 0 | E85: 0 | F85: 0 | G85: 0 | H85: 0 | I85: 0 | J85: 0 | K85: 0 | L85: 0 | M85: 0 | N85: 0 | O85: La distribución de estacionalidad debe sumar 100%
B86: 0 | C86: 0 | D86: 0 | E86: 0 | F86: 0 | G86: 0 | H86: 0 | I86: 0 | J86: 0 | K86: 0 | L86: 0 | M86: 0 | N86: 0 | O86: La distribución de estacionalidad debe sumar 100%
B87: 0 | C87: 0 | D87: 0 | E87: 0 | F87: 0 | G87: 0 | H87: 0 | I87: 0 | J87: 0 | K87: 0 | L87: 0 | M87: 0 | N87: 0 | O87: La distribución de estacionalidad debe sumar 100%
B88: 0 | C88: 0 | D88: 0 | E88: 0 | F88: 0 | G88: 0 | H88: 0 | I88: 0 | J88: 0 | K88: 0 | L88: 0 | M88: 0 | N88: 0 | O88: La distribución de estacionalidad debe sumar 100%
B89: 0 | C89: 0 | D89: 0 | E89: 0 | F89: 0 | G89: 0 | H89: 0 | I89: 0 | J89: 0 | K89: 0 | L89: 0 | M89: 0 | N89: 0 | O89: La distribución de estacionalidad debe sumar 100%
B90: 0 | C90: 0 | D90: 0 | E90: 0 | F90: 0 | G90: 0 | H90: 0 | I90: 0 | J90: 0 | K90: 0 | L90: 0 | M90: 0 | N90: 0 | O90: La distribución de estacionalidad debe sumar 100%
B91: 0 | C91: 0 | D91: 0 | E91: 0 | F91: 0 | G91: 0 | H91: 0 | I91: 0 | J91: 0 | K91: 0 | L91: 0 | M91: 0 | N91: 0 | O91: La distribución de estacionalidad debe sumar 100%
B92: 0 | C92: 0 | D92: 0 | E92: 0 | F92: 0 | G92: 0 | H92: 0 | I92: 0 | J92: 0 | K92: 0 | L92: 0 | M92: 0 | N92: 0 | O92: La distribución de estacionalidad debe sumar 100%
B93: 0 | C93: 0 | D93: 0 | E93: 0 | F93: 0 | G93: 0 | H93: 0 | I93: 0 | J93: 0 | K93: 0 | L93: 0 | M93: 0 | N93: 0 | O93: La distribución de estacionalidad debe sumar 100%
B94: 0 | C94: 0 | D94: 0 | E94: 0 | F94: 0 | G94: 0 | H94: 0 | I94: 0 | J94: 0 | K94: 0 | L94: 0 | M94: 0 | N94: 0 | O94: La distribución de estacionalidad debe sumar 100%
B97: Precio de venta
A98: Productos o servicios | B98: Año 1 | C98: Año 2 | D98: Año 3 | E98: Año 4 | F98: Año 5 | G98: Año 6 | H98: Año 7 | I98: Año 8 | J98: Año 9 | K98: Año 10
A99: =IF(A80="","",A80) ->  | B99: 1 | C99: 1 | D99: 1 | E99: 1 | F99: 1 | G99: 1 | H99: 1 | I99: 1 | J99: 1 | K99: 1
A100: =IF(A81="","",A81) ->  | B100: 1 | C100: 1 | D100: 1 | E100: 1 | F100: 1 | G100: 1 | H100: 1 | I100: 1 | J100: 1 | K100: 1
B101: 1 | C101: 1 | D101: 1 | E101: 1 | F101: 1 | G101: 1 | H101: 1 | I101: 1 | J101: 1 | K101: 1
B102: 1 | C102: 1 | D102: 1 | E102: 1 | F102: 1 | G102: 1 | H102: 1 | I102: 1 | J102: 1 | K102: 1
B103: 1 | C103: 1 | D103: 1 | E103: 1 | F103: 1 | G103: 1 | H103: 1 | I103: 1 | J103: 1 | K103: 1
B104: 1 | C104: 1 | D104: 1 | E104: 1 | F104: 1 | G104: 1 | H104: 1 | I104: 1 | J104: 1 | K104: 1
B105: 1 | C105: 1 | D105: 1 | E105: 1 | F105: 1 | G105: 1 | H105: 1 | I105: 1 | J105: 1 | K105: 1
B106: 1 | C106: 1 | D106: 1 | E106: 1 | F106: 1 | G106: 1 | H106: 1 | I106: 1 | J106: 1 | K106: 1
B107: 1 | C107: 1 | D107: 1 | E107: 1 | F107: 1 | G107: 1 | H107: 1 | I107: 1 | J107: 1 | K107: 1
B108: 1 | C108: 1 | D108: 1 | E108: 1 | F108: 1 | G108: 1 | H108: 1 | I108: 1 | J108: 1 | K108: 1
B109: 1 | C109: 1 | D109: 1 | E109: 1 | F109: 1 | G109: 1 | H109: 1 | I109: 1 | J109: 1 | K109: 1
B110: 1 | C110: 1 | D110: 1 | E110: 1 | F110: 1 | G110: 1 | H110: 1 | I110: 1 | J110: 1 | K110: 1
B111: 1 | C111: 1 | D111: 1 | E111: 1 | F111: 1 | G111: 1 | H111: 1 | I111: 1 | J111: 1 | K111: 1
B112: 1 | C112: 1 | D112: 1 | E112: 1 | F112: 1 | G112: 1 | H112: 1 | I112: 1 | J112: 1 | K112: 1
B113: 1 | C113: 1 | D113: 1 | E113: 1 | F113: 1 | G113: 1 | H113: 1 | I113: 1 | J113: 1 | K113: 1
B116: Proyección de ingresos año 1 | N116: Total | O116: Validación | P116: Año 2 | AB116: Año 3 | AN116: Año 4 | AZ116: Año 5 | BL116: Año 6 | BM116: Año 7 | BN116: Año 8 | BO116: Año 9 | BP116: Año 10
B117: =VLOOKUP(B118,$F$1:$G$12,2,0) -> 1 | C117: =IF(B117=12,1,B117+1) -> 2 | D117: =IF(C117=12,1,C117+1) -> 3 | E117: 4 | F117: 5 | G117: 6 | H117: 7 | I117: 8 | J117: 9 | K117: 10 | L117: 11 | M117: 12 | P117: =IF(M117=12,1,M117+1) -> 1 | Q117: =IF(P117=12,1,P117+1) -> 2 | R117: 3 | S117: 4 | T117: 5 | U117: 6 | V117: 7 | W117: 8 | X117: 9 | Y117: 10 | Z117: 11 | AA117: 12 | AB117: 1 | AC117: 2 | AD117: 3 | AE117: 4 | AF117: 5 | AG117: 6 | AH117: 7 | AI117: 8 | AJ117: 9 | AK117: 10 | AL117: 11 | AM117: 12 | AN117: 1 | AO117: 2 | AP117: 3 | AQ117: 4 | AR117: 5 | AS117: 6 | AT117: 7 | AU117: 8 | AV117: 9 | AW117: 10 | AX117: 11 | AY117: 12 | AZ117: 1 | BA117: 2 | BB117: 3 | BC117: 4 | BD117: 5 | BE117: 6 | BF117: 7 | BG117: 8 | BH117: 9 | BI117: 10 | BJ117: 11 | BK117: 12 | BL117: =+Datos!C60+6 -> 6 | BM117: =+BL117+1 -> 7 | BN117: =+BM117+1 -> 8 | BO117: =+BN117+1 -> 9 | BP117: =+BO117+1 -> 10
A118: Productos o servicios | B118: =+B61 -> Enero | C118: =+C61 -> Febrero | D118: Marzo | E118: Abril | F118: Mayo | G118: Junio | H118: Julio | I118: Agosto | J118: Septiembre | K118: Octubre | L118: Noviembre | M118: Diciembre | N118: Año 1 | P118: Enero | Q118: Febrero | R118: Marzo | S118: Abril | T118: Mayo | U118: Junio | V118: Julio | W118: Agosto | X118: Septiembre | Y118: Octubre | Z118: Noviembre | AA118: Diciembre | AB118: Enero | AC118: Febrero | AD118: Marzo | AE118: Abril | AF118: Mayo | AG118: Junio | AH118: Julio | AI118: Agosto | AJ118: Septiembre | AK118: Octubre | AL118: Noviembre | AM118: Diciembre | AN118: Enero | AO118: Febrero | AP118: Marzo | AQ118: Abril | AR118: Mayo | AS118: Junio | AT118: Julio | AU118: Agosto | AV118: Septiembre | AW118: Octubre | AX118: Noviembre | AY118: Diciembre | AZ118: Enero | BA118: Febrero | BB118: Marzo | BC118: Abril | BD118: Mayo | BE118: Junio | BF118: Julio | BG118: Agosto | BH118: Septiembre | BI118: Octubre | BJ118: Noviembre | BK118: Diciembre | BL118: 2027 | BM118: 2028 | BN118: 2029 | BO118: =+BO61 -> 2030 | BP118: =+BP61 -> 2031
A119: =IF(A99="","",A99) ->  | B119: =+B62*$B99 -> 0 | C119: =+C62*$B99 -> 0 | D119: 0 | E119: 0 | F119: 0 | G119: 0 | H119: 0 | I119: 0 | J119: 0 | K119: 0 | L119: 0 | M119: 0 | N119: =SUM(B119:M119) -> 0 | O119: =+O62 -> Coincide con la proyección del año 1 | P119: =+P62*$C99 -> 0 | Q119: =+Q62*$C99 -> 0 | R119: 0 | S119: 0 | T119: 0 | U119: 0 | V119: 0 | W119: 0 | X119: 0 | Y119: 0 | Z119: 0 | AA119: 0 | AB119: =+AB62*$D99 -> 0 | AC119: =+AC62*$D99 -> 0 | AD119: 0 | AE119: 0 | AF119: 0 | AG119: 0 | AH119: 0 | AI119: 0 | AJ119: 0 | AK119: 0 | AL119: 0 | AM119: 0 | AN119: =+AN62*$E99 -> 0 | AO119: =+AO62*$E99 -> 0 | AP119: 0 | AQ119: 0 | AR119: 0 | AS119: 0 | AT119: 0 | AU119: 0 | AV119: 0 | AW119: 0 | AX119: 0 | AY119: 0 | AZ119: =+AZ62*$F99 -> 0 | BA119: =+BA62*$F99 -> 0 | BB119: 0 | BC119: 0 | BD119: 0 | BE119: 0 | BF119: 0 | BG119: 0 | BH119: 0 | BI119: 0 | BJ119: 0 | BK119: 0 | BL119: =+BL62*G99 -> 0 | BM119: =+BM62*H99 -> 0 | BN119: =+BN62*I99 -> 0 | BO119: =+BO62*J99 -> 0 | BP119: =+BP62*K99 -> 0
A120: =IF(A100="","",A100) ->  | B120: =+B63*$B100 -> 0 | C120: 0 | D120: 0 | E120: 0 | F120: 0 | G120: 0 | H120: 0 | I120: 0 | J120: 0 | K120: 0 | L120: 0 | M120: 0 | N120: =SUM(B120:M120) -> 0 | O120: =+O63 -> Coincide con la proyección del año 1 | P120: =+P63*$C100 -> 0 | Q120: 0 | R120: 0 | S120: 0 | T120: 0 | U120: 0 | V120: 0 | W120: 0 | X120: 0 | Y120: 0 | Z120: 0 | AA120: 0 | AB120: =+AB63*$D100 -> 0 | AC120: 0 | AD120: 0 | AE120: 0 | AF120: 0 | AG120: 0 | AH120: 0 | AI120: 0 | AJ120: 0 | AK120: 0 | AL120: 0 | AM120: 0 | AN120: =+AN63*$E100 -> 0 | AO120: 0 | AP120: 0 | AQ120: 0 | AR120: 0 | AS120: 0 | AT120: 0 | AU120: 0 | AV120: 0 | AW120: 0 | AX120: 0 | AY120: 0 | AZ120: =+AZ63*$F100 -> 0 | BA120: 0 | BB120: 0 | BC120: 0 | BD120: 0 | BE120: 0 | BF120: 0 | BG120: 0 | BH120: 0 | BI120: 0 | BJ120: 0 | BK120: 0 | BL120: =+BL63*G100 -> 0 | BM120: 0 | BN120: 0 | BO120: 0 | BP120: 0
B121: 0 | C121: 0 | D121: 0 | E121: 0 | F121: 0 | G121: 0 | H121: 0 | I121: 0 | J121: 0 | K121: 0 | L121: 0 | M121: 0 | N121: 0 | O121: Coincide con la proyección del año 1 | P121: 0 | Q121: 0 | R121: 0 | S121: 0 | T121: 0 | U121: 0 | V121: 0 | W121: 0 | X121: 0 | Y121: 0 | Z121: 0 | AA121: 0 | AB121: 0 | AC121: 0 | AD121: 0 | AE121: 0 | AF121: 0 | AG121: 0 | AH121: 0 | AI121: 0 | AJ121: 0 | AK121: 0 | AL121: 0 | AM121: 0 | AN121: 0 | AO121: 0 | AP121: 0 | AQ121: 0 | AR121: 0 | AS121: 0 | AT121: 0 | AU121: 0 | AV121: 0 | AW121: 0 | AX121: 0 | AY121: 0 | AZ121: 0 | BA121: 0 | BB121: 0 | BC121: 0 | BD121: 0 | BE121: 0 | BF121: 0 | BG121: 0 | BH121: 0 | BI121: 0 | BJ121: 0 | BK121: 0 | BL121: 0 | BM121: 0 | BN121: 0 | BO121: 0 | BP121: 0
B122: 0 | C122: 0 | D122: 0 | E122: 0 | F122: 0 | G122: 0 | H122: 0 | I122: 0 | J122: 0 | K122: 0 | L122: 0 | M122: 0 | N122: 0 | O122: Coincide con la proyección del año 1 | P122: 0 | Q122: 0 | R122: 0 | S122: 0 | T122: 0 | U122: 0 | V122: 0 | W122: 0 | X122: 0 | Y122: 0 | Z122: 0 | AA122: 0 | AB122: 0 | AC122: 0 | AD122: 0 | AE122: 0 | AF122: 0 | AG122: 0 | AH122: 0 | AI122: 0 | AJ122: 0 | AK122: 0 | AL122: 0 | AM122: 0 | AN122: 0 | AO122: 0 | AP122: 0 | AQ122: 0 | AR122: 0 | AS122: 0 | AT122: 0 | AU122: 0 | AV122: 0 | AW122: 0 | AX122: 0 | AY122: 0 | AZ122: 0 | BA122: 0 | BB122: 0 | BC122: 0 | BD122: 0 | BE122: 0 | BF122: 0 | BG122: 0 | BH122: 0 | BI122: 0 | BJ122: 0 | BK122: 0 | BL122: 0 | BM122: 0 | BN122: 0 | BO122: 0 | BP122: 0
B123: 0 | C123: 0 | D123: 0 | E123: 0 | F123: 0 | G123: 0 | H123: 0 | I123: 0 | J123: 0 | K123: 0 | L123: 0 | M123: 0 | N123: 0 | O123: Coincide con la proyección del año 1 | P123: 0 | Q123: 0 | R123: 0 | S123: 0 | T123: 0 | U123: 0 | V123: 0 | W123: 0 | X123: 0 | Y123: 0 | Z123: 0 | AA123: 0 | AB123: 0 | AC123: 0 | AD123: 0 | AE123: 0 | AF123: 0 | AG123: 0 | AH123: 0 | AI123: 0 | AJ123: 0 | AK123: 0 | AL123: 0 | AM123: 0 | AN123: 0 | AO123: 0 | AP123: 0 | AQ123: 0 | AR123: 0 | AS123: 0 | AT123: 0 | AU123: 0 | AV123: 0 | AW123: 0 | AX123: 0 | AY123: 0 | AZ123: 0 | BA123: 0 | BB123: 0 | BC123: 0 | BD123: 0 | BE123: 0 | BF123: 0 | BG123: 0 | BH123: 0 | BI123: 0 | BJ123: 0 | BK123: 0 | BL123: 0 | BM123: 0 | BN123: 0 | BO123: 0 | BP123: 0
B124: 0 | C124: 0 | D124: 0 | E124: 0 | F124: 0 | G124: 0 | H124: 0 | I124: 0 | J124: 0 | K124: 0 | L124: 0 | M124: 0 | N124: 0 | O124: Coincide con la proyección del año 1 | P124: 0 | Q124: 0 | R124: 0 | S124: 0 | T124: 0 | U124: 0 | V124: 0 | W124: 0 | X124: 0 | Y124: 0 | Z124: 0 | AA124: 0 | AB124: 0 | AC124: 0 | AD124: 0 | AE124: 0 | AF124: 0 | AG124: 0 | AH124: 0 | AI124: 0 | AJ124: 0 | AK124: 0 | AL124: 0 | AM124: 0 | AN124: 0 | AO124: 0 | AP124: 0 | AQ124: 0 | AR124: 0 | AS124: 0 | AT124: 0 | AU124: 0 | AV124: 0 | AW124: 0 | AX124: 0 | AY124: 0 | AZ124: 0 | BA124: 0 | BB124: 0 | BC124: 0 | BD124: 0 | BE124: 0 | BF124: 0 | BG124: 0 | BH124: 0 | BI124: 0 | BJ124: 0 | BK124: 0 | BL124: 0 | BM124: 0 | BN124: 0 | BO124: 0 | BP124: 0
B125: 0 | C125: 0 | D125: 0 | E125: 0 | F125: 0 | G125: 0 | H125: 0 | I125: 0 | J125: 0 | K125: 0 | L125: 0 | M125: 0 | N125: 0 | O125: Coincide con la proyección del año 1 | P125: 0 | Q125: 0 | R125: 0 | S125: 0 | T125: 0 | U125: 0 | V125: 0 | W125: 0 | X125: 0 | Y125: 0 | Z125: 0 | AA125: 0 | AB125: 0 | AC125: 0 | AD125: 0 | AE125: 0 | AF125: 0 | AG125: 0 | AH125: 0 | AI125: 0 | AJ125: 0 | AK125: 0 | AL125: 0 | AM125: 0 | AN125: 0 | AO125: 0 | AP125: 0 | AQ125: 0 | AR125: 0 | AS125: 0 | AT125: 0 | AU125: 0 | AV125: 0 | AW125: 0 | AX125: 0 | AY125: 0 | AZ125: 0 | BA125: 0 | BB125: 0 | BC125: 0 | BD125: 0 | BE125: 0 | BF125: 0 | BG125: 0 | BH125: 0 | BI125: 0 | BJ125: 0 | BK125: 0 | BL125: 0 | BM125: 0 | BN125: 0 | BO125: 0 | BP125: 0
B126: 0 | C126: 0 | D126: 0 | E126: 0 | F126: 0 | G126: 0 | H126: 0 | I126: 0 | J126: 0 | K126: 0 | L126: 0 | M126: 0 | N126: 0 | O126: Coincide con la proyección del año 1 | P126: 0 | Q126: 0 | R126: 0 | S126: 0 | T126: 0 | U126: 0 | V126: 0 | W126: 0 | X126: 0 | Y126: 0 | Z126: 0 | AA126: 0 | AB126: 0 | AC126: 0 | AD126: 0 | AE126: 0 | AF126: 0 | AG126: 0 | AH126: 0 | AI126: 0 | AJ126: 0 | AK126: 0 | AL126: 0 | AM126: 0 | AN126: 0 | AO126: 0 | AP126: 0 | AQ126: 0 | AR126: 0 | AS126: 0 | AT126: 0 | AU126: 0 | AV126: 0 | AW126: 0 | AX126: 0 | AY126: 0 | AZ126: 0 | BA126: 0 | BB126: 0 | BC126: 0 | BD126: 0 | BE126: 0 | BF126: 0 | BG126: 0 | BH126: 0 | BI126: 0 | BJ126: 0 | BK126: 0 | BL126: 0 | BM126: 0 | BN126: 0 | BO126: 0 | BP126: 0
B127: 0 | C127: 0 | D127: 0 | E127: 0 | F127: 0 | G127: 0 | H127: 0 | I127: 0 | J127: 0 | K127: 0 | L127: 0 | M127: 0 | N127: 0 | O127: Coincide con la proyección del año 1 | P127: 0 | Q127: 0 | R127: 0 | S127: 0 | T127: 0 | U127: 0 | V127: 0 | W127: 0 | X127: 0 | Y127: 0 | Z127: 0 | AA127: 0 | AB127: 0 | AC127: 0 | AD127: 0 | AE127: 0 | AF127: 0 | AG127: 0 | AH127: 0 | AI127: 0 | AJ127: 0 | AK127: 0 | AL127: 0 | AM127: 0 | AN127: 0 | AO127: 0 | AP127: 0 | AQ127: 0 | AR127: 0 | AS127: 0 | AT127: 0 | AU127: 0 | AV127: 0 | AW127: 0 | AX127: 0 | AY127: 0 | AZ127: 0 | BA127: 0 | BB127: 0 | BC127: 0 | BD127: 0 | BE127: 0 | BF127: 0 | BG127: 0 | BH127: 0 | BI127: 0 | BJ127: 0 | BK127: 0 | BL127: 0 | BM127: 0 | BN127: 0 | BO127: 0 | BP127: 0
B128: 0 | C128: 0 | D128: 0 | E128: 0 | F128: 0 | G128: 0 | H128: 0 | I128: 0 | J128: 0 | K128: 0 | L128: 0 | M128: 0 | N128: 0 | O128: Coincide con la proyección del año 1 | P128: 0 | Q128: 0 | R128: 0 | S128: 0 | T128: 0 | U128: 0 | V128: 0 | W128: 0 | X128: 0 | Y128: 0 | Z128: 0 | AA128: 0 | AB128: 0 | AC128: 0 | AD128: 0 | AE128: 0 | AF128: 0 | AG128: 0 | AH128: 0 | AI128: 0 | AJ128: 0 | AK128: 0 | AL128: 0 | AM128: 0 | AN128: 0 | AO128: 0 | AP128: 0 | AQ128: 0 | AR128: 0 | AS128: 0 | AT128: 0 | AU128: 0 | AV128: 0 | AW128: 0 | AX128: 0 | AY128: 0 | AZ128: 0 | BA128: 0 | BB128: 0 | BC128: 0 | BD128: 0 | BE128: 0 | BF128: 0 | BG128: 0 | BH128: 0 | BI128: 0 | BJ128: 0 | BK128: 0 | BL128: 0 | BM128: 0 | BN128: 0 | BO128: 0 | BP128: 0
B129: 0 | C129: 0 | D129: 0 | E129: 0 | F129: 0 | G129: 0 | H129: 0 | I129: 0 | J129: 0 | K129: 0 | L129: 0 | M129: 0 | N129: 0 | O129: Coincide con la proyección del año 1 | P129: 0 | Q129: 0 | R129: 0 | S129: 0 | T129: 0 | U129: 0 | V129: 0 | W129: 0 | X129: 0 | Y129: 0 | Z129: 0 | AA129: 0 | AB129: 0 | AC129: 0 | AD129: 0 | AE129: 0 | AF129: 0 | AG129: 0 | AH129: 0 | AI129: 0 | AJ129: 0 | AK129: 0 | AL129: 0 | AM129: 0 | AN129: 0 | AO129: 0 | AP129: 0 | AQ129: 0 | AR129: 0 | AS129: 0 | AT129: 0 | AU129: 0 | AV129: 0 | AW129: 0 | AX129: 0 | AY129: 0 | AZ129: 0 | BA129: 0 | BB129: 0 | BC129: 0 | BD129: 0 | BE129: 0 | BF129: 0 | BG129: 0 | BH129: 0 | BI129: 0 | BJ129: 0 | BK129: 0 | BL129: 0 | BM129: 0 | BN129: 0 | BO129: 0 | BP129: 0
B130: 0 | C130: 0 | D130: 0 | E130: 0 | F130: 0 | G130: 0 | H130: 0 | I130: 0 | J130: 0 | K130: 0 | L130: 0 | M130: 0 | N130: 0 | O130: Coincide con la proyección del año 1 | P130: 0 | Q130: 0 | R130: 0 | S130: 0 | T130: 0 | U130: 0 | V130: 0 | W130: 0 | X130: 0 | Y130: 0 | Z130: 0 | AA130: 0 | AB130: 0 | AC130: 0 | AD130: 0 | AE130: 0 | AF130: 0 | AG130: 0 | AH130: 0 | AI130: 0 | AJ130: 0 | AK130: 0 | AL130: 0 | AM130: 0 | AN130: 0 | AO130: 0 | AP130: 0 | AQ130: 0 | AR130: 0 | AS130: 0 | AT130: 0 | AU130: 0 | AV130: 0 | AW130: 0 | AX130: 0 | AY130: 0 | AZ130: 0 | BA130: 0 | BB130: 0 | BC130: 0 | BD130: 0 | BE130: 0 | BF130: 0 | BG130: 0 | BH130: 0 | BI130: 0 | BJ130: 0 | BK130: 0 | BL130: 0 | BM130: 0 | BN130: 0 | BO130: 0 | BP130: 0
B131: 0 | C131: 0 | D131: 0 | E131: 0 | F131: 0 | G131: 0 | H131: 0 | I131: 0 | J131: 0 | K131: 0 | L131: 0 | M131: 0 | N131: 0 | O131: Coincide con la proyección del año 1 | P131: 0 | Q131: 0 | R131: 0 | S131: 0 | T131: 0 | U131: 0 | V131: 0 | W131: 0 | X131: 0 | Y131: 0 | Z131: 0 | AA131: 0 | AB131: 0 | AC131: 0 | AD131: 0 | AE131: 0 | AF131: 0 | AG131: 0 | AH131: 0 | AI131: 0 | AJ131: 0 | AK131: 0 | AL131: 0 | AM131: 0 | AN131: 0 | AO131: 0 | AP131: 0 | AQ131: 0 | AR131: 0 | AS131: 0 | AT131: 0 | AU131: 0 | AV131: 0 | AW131: 0 | AX131: 0 | AY131: 0 | AZ131: 0 | BA131: 0 | BB131: 0 | BC131: 0 | BD131: 0 | BE131: 0 | BF131: 0 | BG131: 0 | BH131: 0 | BI131: 0 | BJ131: 0 | BK131: 0 | BL131: 0 | BM131: 0 | BN131: 0 | BO131: 0 | BP131: 0
B132: 0 | C132: 0 | D132: 0 | E132: 0 | F132: 0 | G132: 0 | H132: 0 | I132: 0 | J132: 0 | K132: 0 | L132: 0 | M132: 0 | N132: 0 | O132: Coincide con la proyección del año 1 | P132: 0 | Q132: 0 | R132: 0 | S132: 0 | T132: 0 | U132: 0 | V132: 0 | W132: 0 | X132: 0 | Y132: 0 | Z132: 0 | AA132: 0 | AB132: 0 | AC132: 0 | AD132: 0 | AE132: 0 | AF132: 0 | AG132: 0 | AH132: 0 | AI132: 0 | AJ132: 0 | AK132: 0 | AL132: 0 | AM132: 0 | AN132: 0 | AO132: 0 | AP132: 0 | AQ132: 0 | AR132: 0 | AS132: 0 | AT132: 0 | AU132: 0 | AV132: 0 | AW132: 0 | AX132: 0 | AY132: 0 | AZ132: 0 | BA132: 0 | BB132: 0 | BC132: 0 | BD132: 0 | BE132: 0 | BF132: 0 | BG132: 0 | BH132: 0 | BI132: 0 | BJ132: 0 | BK132: 0 | BL132: 0 | BM132: 0 | BN132: 0 | BO132: 0 | BP132: 0
B133: 0 | C133: 0 | D133: 0 | E133: 0 | F133: 0 | G133: 0 | H133: 0 | I133: 0 | J133: 0 | K133: 0 | L133: 0 | M133: 0 | N133: 0 | O133: Coincide con la proyección del año 1 | P133: 0 | Q133: 0 | R133: 0 | S133: 0 | T133: 0 | U133: 0 | V133: 0 | W133: 0 | X133: 0 | Y133: 0 | Z133: 0 | AA133: 0 | AB133: 0 | AC133: 0 | AD133: 0 | AE133: 0 | AF133: 0 | AG133: 0 | AH133: 0 | AI133: 0 | AJ133: 0 | AK133: 0 | AL133: 0 | AM133: 0 | AN133: 0 | AO133: 0 | AP133: 0 | AQ133: 0 | AR133: 0 | AS133: 0 | AT133: 0 | AU133: 0 | AV133: 0 | AW133: 0 | AX133: 0 | AY133: 0 | AZ133: 0 | BA133: 0 | BB133: 0 | BC133: 0 | BD133: 0 | BE133: 0 | BF133: 0 | BG133: 0 | BH133: 0 | BI133: 0 | BJ133: 0 | BK133: 0 | BL133: 0 | BM133: 0 | BN133: 0 | BO133: 0 | BP133: 0
B134: =SUM(B119:B133) -> 0 | C134: =SUM(C119:C133) -> 0 | D134: 0 | E134: 0 | F134: 0 | G134: 0 | H134: 0 | I134: 0 | J134: 0 | K134: 0 | L134: 0 | M134: 0 | N134: 0 | P134: =SUM(P119:P133) -> 0 | Q134: 0 | R134: 0 | S134: 0 | T134: 0 | U134: 0 | V134: 0 | W134: 0 | X134: 0 | Y134: 0 | Z134: 0 | AA134: 0 | AB134: 0 | AC134: 0 | AD134: 0 | AE134: 0 | AF134: 0 | AG134: 0 | AH134: 0 | AI134: 0 | AJ134: 0 | AK134: 0 | AL134: 0 | AM134: 0 | AN134: 0 | AO134: 0 | AP134: 0 | AQ134: 0 | AR134: 0 | AS134: 0 | AT134: 0 | AU134: 0 | AV134: 0 | AW134: 0 | AX134: 0 | AY134: 0 | AZ134: 0 | BA134: 0 | BB134: 0 | BC134: 0 | BD134: 0 | BE134: 0 | BF134: 0 | BG134: 0 | BH134: 0 | BI134: 0 | BJ134: 0 | BK134: 0 | BL134: 0 | BM134: 0 | BN134: 0 | BO134: 0 | BP134: 0

Sheet Ventas con crecimiento % global (hidden)
E1: Si | F1: Enero | G1: 1 | H1: Enero
A2: ¿Desea aplicar estacionalidad de ventas? | B2: Si | E2: No | F2: Febrero | G2: 2 | H2: Febrero
F3: Marzo | G3: 3 | H3: Marzo
A4: Estacionalidad total para ventas | F4: Abril | G4: 4 | H4: Abril
A5: Enero | B5: 0 | F5: Mayo | G5: 5 | H5: Mayo
A6: Febrero | B6: 0.1 | F6: Junio | G6: 6 | H6: Junio
A7: Marzo | B7: 0.1 | F7: Julio | G7: 7 | H7: Julio
A8: Abril | B8: 0.1 | F8: Agosto | G8: 8 | H8: Agosto
A9: Mayo | B9: 0.1 | F9: Septiembre | G9: 9 | H9: Septiembre
A10: Junio | B10: 0.1 | F10: Octubre | G10: 10 | H10: Octubre
A11: Julio | B11: 0.1 | F11: Noviembre | G11: 11 | H11: Noviembre
A12: Agosto | B12: 0.1 | F12: Diciembre | G12: 12 | H12: Diciembre
A13: Septiembre | B13: 0.1
A14: Octubre | B14: 0.1
A15: Noviembre | B15: 0.1
A16: Diciembre | B16: 0
B17: =SUM(B5:B16) -> 1
A18: PROYECCIÓN DE VENTAS CON INDICADOR DE CRECIMIENTO GLOBAL
B20: Proyección de ingresos | M20: =+Datos!C5 -> 5
A21: Productos o servicios | B21: Año 1 | C21: Año 2 | D21: Año 3 | E21: Año 4 | F21: Año 5 | G21: Año 6 | H21: Año 7 | I21: Año 8 | J21: Año 9 | K21: Año 10
C22: =IF($M$20>=2,B22*(1+Datos!D$15),0) -> 0 | D22: =IF($M$20>=3,C22*(1+Datos!E$15),0) -> 0 | E22: =IF($M$20>=4,D22*(1+Datos!F$15),0) -> 0 | F22: =IF($M$20>=5,E22*(1+Datos!G$15),0) -> 0 | G22: =IF($M$20>=6,F22*(1+Datos!H$15),0) -> 0 | H22: =IF($M$20>=7,G22*(1+Datos!#REF!),0) -> 0 | I22: =IF($M$20>=8,H22*(1+Datos!#REF!),0) -> 0 | J22: =IF($M$20>=9,I22*(1+Datos!#REF!),0) -> 0 | K22: =IF($M$20>=10,J22*(1+Datos!#REF!),0) -> 0
C23: =IF($M$20>=2,B23*(1+Datos!D$15),0) -> 0 | D23: =IF($M$20>=3,C23*(1+Datos!E$15),0) -> 0 | E23: =IF($M$20>=4,D23*(1+Datos!F$15),0) -> 0 | F23: =IF($M$20>=5,E23*(1+Datos!G$15),0) -> 0 | G23: =IF($M$20>=6,F23*(1+Datos!H$15),0) -> 0 | H23: =IF($M$20>=7,G23*(1+Datos!#REF!),0) -> 0 | I23: =IF($M$20>=8,H23*(1+Datos!#REF!),0) -> 0 | J23: =IF($M$20>=9,I23*(1+Datos!#REF!),0) -> 0 | K23: =IF($M$20>=10,J23*(1+Datos!#REF!),0) -> 0
C24: =IF($M$20>=2,B24*(1+Datos!D$15),0) -> 0 | D24: =IF($M$20>=3,C24*(1+Datos!E$15),0) -> 0 | E24: =IF($M$20>=4,D24*(1+Datos!F$15),0) -> 0 | F24: =IF($M$20>=5,E24*(1+Datos!G$15),0) -> 0 | G24: =IF($M$20>=6,F24*(1+Datos!H$15),0) -> 0 | H24: =IF($M$20>=7,G24*(1+Datos!#REF!),0) -> 0 | I24: =IF($M$20>=8,H24*(1+Datos!#REF!),0) -> 0 | J24: =IF($M$20>=9,I24*(1+Datos!#REF!),0) -> 0 | K24: =IF($M$20>=10,J24*(1+Datos!#REF!),0) -> 0
C25: =IF($M$20>=2,B25*(1+Datos!D$15),0) -> 0 | D25: =IF($M$20>=3,C25*(1+Datos!E$15),0) -> 0 | E25: =IF($M$20>=4,D25*(1+Datos!F$15),0) -> 0 | F25: =IF($M$20>=5,E25*(1+Datos!G$15),0) -> 0 | G25: =IF($M$20>=6,F25*(1+Datos!H$15),0) -> 0 | H25: =IF($M$20>=7,G25*(1+Datos!#REF!),0) -> 0 | I25: =IF($M$20>=8,H25*(1+Datos!#REF!),0) -> 0 | J25: =IF($M$20>=9,I25*(1+Datos!#REF!),0) -> 0 | K25: =IF($M$20>=10,J25*(1+Datos!#REF!),0) -> 0
C26: =IF($M$20>=2,B26*(1+Datos!D$15),0) -> 0 | D26: =IF($M$20>=3,C26*(1+Datos!E$15),0) -> 0 | E26: =IF($M$20>=4,D26*(1+Datos!F$15),0) -> 0 | F26: =IF($M$20>=5,E26*(1+Datos!G$15),0) -> 0 | G26: =IF($M$20>=6,F26*(1+Datos!H$15),0) -> 0 | H26: =IF($M$20>=7,G26*(1+Datos!#REF!),0) -> 0 | I26: =IF($M$20>=8,H26*(1+Datos!#REF!),0) -> 0 | J26: =IF($M$20>=9,I26*(1+Datos!#REF!),0) -> 0 | K26: =IF($M$20>=10,J26*(1+Datos!#REF!),0) -> 0
C27: =IF($M$20>=2,B27*(1+Datos!D$15),0) -> 0 | D27: =IF($M$20>=3,C27*(1+Datos!E$15),0) -> 0 | E27: =IF($M$20>=4,D27*(1+Datos!F$15),0) -> 0 | F27: =IF($M$20>=5,E27*(1+Datos!G$15),0) -> 0 | G27: =IF($M$20>=6,F27*(1+Datos!H$15),0) -> 0 | H27: =IF($M$20>=7,G27*(1+Datos!#REF!),0) -> 0 | I27: =IF($M$20>=8,H27*(1+Datos!#REF!),0) -> 0 | J27: =IF($M$20>=9,I27*(1+Datos!#REF!),0) -> 0 | K27: =IF($M$20>=10,J27*(1+Datos!#REF!),0) -> 0
C28: =IF($M$20>=2,B28*(1+Datos!D$15),0) -> 0 | D28: =IF($M$20>=3,C28*(1+Datos!E$15),0) -> 0 | E28: =IF($M$20>=4,D28*(1+Datos!F$15),0) -> 0 | F28: =IF($M$20>=5,E28*(1+Datos!G$15),0) -> 0 | G28: =IF($M$20>=6,F28*(1+Datos!H$15),0) -> 0 | H28: =IF($M$20>=7,G28*(1+Datos!#REF!),0) -> 0 | I28: =IF($M$20>=8,H28*(1+Datos!#REF!),0) -> 0 | J28: =IF($M$20>=9,I28*(1+Datos!#REF!),0) -> 0 | K28: =IF($M$20>=10,J28*(1+Datos!#REF!),0) -> 0
C29: =IF($M$20>=2,B29*(1+Datos!D$15),0) -> 0 | D29: =IF($M$20>=3,C29*(1+Datos!E$15),0) -> 0 | E29: =IF($M$20>=4,D29*(1+Datos!F$15),0) -> 0 | F29: =IF($M$20>=5,E29*(1+Datos!G$15),0) -> 0 | G29: =IF($M$20>=6,F29*(1+Datos!H$15),0) -> 0 | H29: =IF($M$20>=7,G29*(1+Datos!#REF!),0) -> 0 | I29: =IF($M$20>=8,H29*(1+Datos!#REF!),0) -> 0 | J29: =IF($M$20>=9,I29*(1+Datos!#REF!),0) -> 0 | K29: =IF($M$20>=10,J29*(1+Datos!#REF!),0) -> 0
C30: =IF($M$20>=2,B30*(1+Datos!D$15),0) -> 0 | D30: =IF($M$20>=3,C30*(1+Datos!E$15),0) -> 0 | E30: =IF($M$20>=4,D30*(1+Datos!F$15),0) -> 0 | F30: =IF($M$20>=5,E30*(1+Datos!G$15),0) -> 0 | G30: =IF($M$20>=6,F30*(1+Datos!H$15),0) -> 0 | H30: =IF($M$20>=7,G30*(1+Datos!#REF!),0) -> 0 | I30: =IF($M$20>=8,H30*(1+Datos!#REF!),0) -> 0 | J30: =IF($M$20>=9,I30*(1+Datos!#REF!),0) -> 0 | K30: =IF($M$20>=10,J30*(1+Datos!#REF!),0) -> 0
C31: =IF($M$20>=2,B31*(1+Datos!D$15),0) -> 0 | D31: =IF($M$20>=3,C31*(1+Datos!E$15),0) -> 0 | E31: =IF($M$20>=4,D31*(1+Datos!F$15),0) -> 0 | F31: =IF($M$20>=5,E31*(1+Datos!G$15),0) -> 0 | G31: =IF($M$20>=6,F31*(1+Datos!H$15),0) -> 0 | H31: =IF($M$20>=7,G31*(1+Datos!#REF!),0) -> 0 | I31: =IF($M$20>=8,H31*(1+Datos!#REF!),0) -> 0 | J31: =IF($M$20>=9,I31*(1+Datos!#REF!),0) -> 0 | K31: =IF($M$20>=10,J31*(1+Datos!#REF!),0) -> 0
C32: =IF($M$20>=2,B32*(1+Datos!D$15),0) -> 0 | D32: =IF($M$20>=3,C32*(1+Datos!E$15),0) -> 0 | E32: =IF($M$20>=4,D32*(1+Datos!F$15),0) -> 0 | F32: =IF($M$20>=5,E32*(1+Datos!G$15),0) -> 0 | G32: =IF($M$20>=6,F32*(1+Datos!H$15),0) -> 0 | H32: =IF($M$20>=7,G32*(1+Datos!#REF!),0) -> 0 | I32: =IF($M$20>=8,H32*(1+Datos!#REF!),0) -> 0 | J32: =IF($M$20>=9,I32*(1+Datos!#REF!),0) -> 0 | K32: =IF($M$20>=10,J32*(1+Datos!#REF!),0) -> 0
C33: =IF($M$20>=2,B33*(1+Datos!D$15),0) -> 0 | D33: =IF($M$20>=3,C33*(1+Datos!E$15),0) -> 0 | E33: =IF($M$20>=4,D33*(1+Datos!F$15),0) -> 0 | F33: =IF($M$20>=5,E33*(1+Datos!G$15),0) -> 0 | G33: =IF($M$20>=6,F33*(1+Datos!H$15),0) -> 0 | H33: =IF($M$20>=7,G33*(1+Datos!#REF!),0) -> 0 | I33: =IF($M$20>=8,H33*(1+Datos!#REF!),0) -> 0 | J33: =IF($M$20>=9,I33*(1+Datos!#REF!),0) -> 0 | K33: =IF($M$20>=10,J33*(1+Datos!#REF!),0) -> 0
C34: =IF($M$20>=2,B34*(1+Datos!D$15),0) -> 0 | D34: =IF($M$20>=3,C34*(1+Datos!E$15),0) -> 0 | E34: =IF($M$20>=4,D34*(1+Datos!F$15),0) -> 0 | F34: =IF($M$20>=5,E34*(1+Datos!G$15),0) -> 0 | G34: =IF($M$20>=6,F34*(1+Datos!H$15),0) -> 0 | H34: =IF($M$20>=7,G34*(1+Datos!#REF!),0) -> 0 | I34: =IF($M$20>=8,H34*(1+Datos!#REF!),0) -> 0 | J34: =IF($M$20>=9,I34*(1+Datos!#REF!),0) -> 0 | K34: =IF($M$20>=10,J34*(1+Datos!#REF!),0) -> 0
C35: =IF($M$20>=2,B35*(1+Datos!D$15),0) -> 0 | D35: =IF($M$20>=3,C35*(1+Datos!E$15),0) -> 0 | E35: =IF($M$20>=4,D35*(1+Datos!F$15),0) -> 0 | F35: =IF($M$20>=5,E35*(1+Datos!G$15),0) -> 0 | G35: =IF($M$20>=6,F35*(1+Datos!H$15),0) -> 0 | H35: =IF($M$20>=7,G35*(1+Datos!#REF!),0) -> 0 | I35: =IF($M$20>=8,H35*(1+Datos!#REF!),0) -> 0 | J35: =IF($M$20>=9,I35*(1+Datos!#REF!),0) -> 0 | K35: =IF($M$20>=10,J35*(1+Datos!#REF!),0) -> 0
